Workbook

Sheet Notes
A1: RS4r.xlsm Traders Tip spreadsheet created for the September 2020 Issue
A2: Coded beginning 2020-July-10 by Ronald McAllister (rpmac_xltt@sprynet.com)
A4: This Workbook demonstrates an EXCEL version of the ideas presented
A5: by James Garofallou, PhD in an article titled "The RS4r - Tracking Relative Strength In Four Dimensions"
A6: which originally appeared in the September 2020 issue of
A7: "Technical Analysis of Stocks and Commodities" magazine.
A9: * * * * * * * * * * * * * * * *
A11: Important Mutual Fund History Data Note:
A12: Mutual funds are priced (Net Asset Value determined) after the normal market close of 4pm. That NAV value may not be available to data providers until around 6 pm eastern time
A14: Yahoo Finance History is the data provider for these spreadsheets. If asked nicely, Yahoo Finance will provide a bar for the current day no matter what time of day you make a download request.
A16: However, unlike stocks or ETFs, when you make a request for a mutual fund, that current day bar most likely will contain zeros in the pricing columns until such
A17: time as the mutual fund reports a price for the day. Usually after 6pm EST.
A19: With this "late in the day" mutual fund pricing release in mind, this spreadsheet will look for a current day zero price bar for any of the symbols used here, be they Bench Mark or Ranking Target symbols.
A20: If a zero current day bar is encountered anywhere, the simplest approach to keep rankings apples to apples will be to report rankings as of the previous bar.
A21: This will result in a Friday execution of this spreadsheet reporting a Thursday ranking value if running before 6 pm EST.
A23: Special most recent bar date handling for evaluations performed on market closed days.
A25: When evaluating data on a weekend or market closed holiday, there should be no zeroes in the most recent benchmark bar available.
A26: The correct mutual fund NAVs for that most recent market open bar date should be available by now.
A27: This situation could happen on a weekend or market closed day where the benchmarks were retrieved during the previous market open day while mutual fund NAVs were not yet available.
A28: An error will ask you to refresh the Benchmark pricing before proceeding with target evaluations.
A30: For any target evaluation to proceed it is also necessary to make sure that all symbols are aligned as to the date of the most current bar.
A31: That is, all symbols processed by this spreadsheet, benchmark and evaluation, must share a common most current bar date.
A32: Attempting to evaluate a target with a different most current bar date will flag an error asking you to refresh the benchmarks before proceeding with target evaluations.
A34: Development Notes:
A36: RS4r is essentially a comparison exercise.
A37: The RS4r protocol first measures the relative performance of securities and mutual funds we select against 11 market sector indices (Benchmarks).
A38: Then these measurements are aggregated for each security or mutual fund and the result provides a "strength" value that is used to rank our securities and mutual funds.
A40: Please be prepared to be patient when using this spreadsheet.
A41: The necessary computations and subsequent sorting to rank are almost instantaneous.
A42: The vast majority of elapsed time is spent retrieving historical data.
A44: To use RS4r:
A45: Step 1. Retrieve closing prices for the 11 Benchmark indices. This can be done once per session.
A46: Go to the RS4rBenchmarkSymbolList tab. If you are satisfied with the list of benchmark symbols, click the " Collect Data..." button.
A48: Step 2. Use RS4r evaluation protocol
A49: Go to the RS4rSymbolRanking tab. Enter up to 11 symbols to be evaluated.
A52: Step 3, Click the "Rank Symbols" button to start the process of retrieving price history for your symbols and computing their strength and ranking values.
A54: Step 4. Once the ranking is complete, you may manually copy the ranked results out to a cumulative rankings worksheet for further comparison and rank sorting.
A56: Step 5. If you have more than 10 symbols of interest, you may repeat steps 2 through 4 as necessary.
A58: Step 6. When you have all of your symbols evaluated and copied to a cumulative rankings work sheet, simply sort them on that sheet
A61: With August 2020 I have restructured my Symbol-Not-Found detection and now stop further processing in the not found case
A63: New with the May 2020 version of my T-Tips template: VBA to implement a "Perpetual" U.S. Markets Closed Holiday Calendar.
A65: Why we need one: The Yahoo Finance recently has begun having occasional filtration problems where bars for U.S. Market Closed Holidays
A66: make their way onto the Historical Data web page and into the Historical Data download.
A68: While testing this May 2020 spreadsheet with different symbols, I found that I sometimes had bars with the text "null" in the price fields.
A69: My code always translates the "null" text price values to zeros.
A70: The resulting zeros cause real problems with indicator computations and the amount of blank space below price candles on the price chart.
A72: "null" price bars can be valid for very lightly traded penny sheet symbols which may not trade every day the markets are open.
A73: But is definitely not normal for symbols on the big boards.
A75: A closer look determined that these "bars" were for holiday dates when the US markets are normally closed.
A76: I found it interesting that some times the next download for the same symbol would not contain any of these "holiday" bars. Weird!
A78: My approach here was to write code to determine if the DATE on a null price values bar falls on one of the 9 market closed U.S. Holidays.
A79: If the bar date corresponds to one of these market closed holidays, I drop the bar before it reaches the InputPriceData tab.
A80: If the date is not a holiday, I let the bar through with the resulting zero values.
A82: No messy tables to update over the years as there are good solid rules that can be used in VBA or any other programming language to determine
A83: the dates for U.S. Market Closed Holidays for any given calendar year.
A85: This workbook contains and uses VBA macros and may take advantage of user defined VBA Class structures.
A86: Input Data:
A87: The data in this workbook is sorted date-descending (most recent date at the top). All cell formulas and
A88: VBA routines are built assuming this date sequence.
A90: ERROR 9 (already fixed in this spreadsheet)
A91: On or about Jan 29, 2020 Yahoo Finance changed the format of the split factor expression used their historical data downloads.
A92: The Split expression went from using "/" as in "New Share Number/Old Share Number",
A93: to using ":" as in "New Share Number:Old Share Number".
A94: This caused the then current version of my VBA code to fail with a "Runtime Error '9': subscript out of range".
A96: Fix for this ERROR 9
A97: For T-Tip spreadsheets from September 2018 up to present:
A98: Selecting the Debug option takes one into the VBA at the code line which causes the failure:
A99: CellArray(C_A_RowNdx, C_A_ColNdx + 1) = SplitFactors(1)
A100: Two lines above the failing VBA line is a line that reads:
A101: SplitFactors = Split(CsvColumns(CsvColNdx), "/")
A102: Change the / to a :
A103: The corrected line should now read
A104: SplitFactors = Split(CsvColumns(CsvColNdx), ":")
A106: If you are fixing several spreadsheets and do not want to use the failure to find the fix location,
A107: you can use VBA’s FIND dialog (Ctrl F) to look for the substring
A108: SplitFactors =
A109: Do include one space and the equal sign in your FIND string
A110: Select the "Current Project" option
A111: There should only be one instance.
A113: T-Tip spreadsheets prior to the September 2018 spreadsheet do not hard fail.
A115: They just get weird results in the split columns of the Input Price Data tab (soft fail).
A116: These older spreadsheets used different data retrieval and formatting logic.
A118: To fix these older spreadsheets:
A119: In the VBA editor, use find (CTRL-F).
A120: Select the "Current Project" option, and search for the following:
A121: OtherChar:="/"
A122: You are looking for a hit in a line reading:
A123: Other:=True, OtherChar:="/", _
A124: This line is part of a multiline block of code starting with a line that reads:
A125: SplitRange.Offset(0, 1).Resize(SpRows, 1).TextToColumns
A126: Change the / to a : so that the line reads
A127: Other:=True, OtherChar:=":", _
A130: 2019-04-04 Finally came up with a mechanism to align the left location and overall length of the cursor scroll bar so that the left most and right most
A131: scroll bar thumb positions visually align reasonably well with the left and right ends of the price chart horizontal axis.
A132: Makes it a little easier to visually align the Thumb and thus the cursor with points of interest on the charts.
A134: Older:
B135: My sincere apologies to our Macintosh based readers: Neither MSXML nor WinHttpRequest are supported in your environment. So as it stands this version of the spreadsheet will not work for you.
B136: See "Why this approach does not work for Macintosh" below.
B137: I am investigating cURL as a non-Querytable based approach for the Macintosh environment.
A139: The new Yahoo Finance history download interface has changed rather radically. The biggest hurdle being a pseudo-security requirement of adding a
B140: crumb character string to any URL requesting any type of history download. That crumb must match up (by way of some sort of hash algorithm) with
B141: the Yahoo Finance cookie that must also be sent with any request to the new Yahoo History down load interface.
B143: A crumb value is returned, buried in the HTML for any of what I call the "entry level" Yahoo Finance web pages (no crumb security requirement for entry level pages).
B144: A crumb may come with other Yahoo Finance pages. A crumb may even accompany some of the secured pages as well. I have not checked.
B146: Entry level pages are the top level pages of the various Yahoo Finance dialogs and include: Quote Lookup, Stock Summary Quote, and any of the pages
B147: with links in the horizontal row with the "Summary" link on the quote summary page such as Options, Historical Data, and the rest.
B149: To date I have found no way to get at this crumb value using any native EXCEL capabilities.
B151: So this crumb requirement effectively shuts out any solution that attempts to exclusively use built-in facilities of EXCEL, which is to say a purely Querytables solution.
B153: The approach built for this Traders Tip spreadsheet uses WINHTTP calls to Load the InputPriceData worksheet.
B155: First I call to get the HTML text for the Yahoo Summary Quote page using the requested symbol. From this HTML text I extract the full company name,
B156: the market it trades, the market status and time stamp, and finally the associated crumb string. There is a bunch of other useful bits buried in this HTML
B157: text that do not necessarily appear on the web page your browser presents. Perhaps some day I will go after and build a worksheet with these other bits.
B159: Next I add the freshly extracted crumb string to the URLs I use in three separate WINHTTP calls to retrieve Price history, Split history, and Dividend history respectively.
B161: From there VBA code proceeds as in the past to fill in the cell formulas and formatting that make the "prettied up" InputPriceData sheet.
A163: Why this approach works for Windows:
B164: WINHTTP maintains a temporary computer memory cache where cookies are maintained for as long as the WINHTTP object is instantiated.
B165: WINHTTP updates this cache any time a "set cookie" header accompanies a web response.
B166: Subsequent WINHTTP calls automatically search this cache for cookies and add any "appropriate" cookies to the headers
B167: of any web requests that get sent out.
B168: This cookie handling automation means that even if the response to our WINHTTP call for the Summary web page includes a new version of
B169: the Yahoo Finance cookie, the imbedded Crumb value will always match the cookie newly installed in the cache!
A172: Why this approach does not work for Macintosh:
B173: For what it is worth, the Macintosh version of the MS Office suite of products do in fact maintain a special, shared amongst themselves only, cookie cache.
B174: They automate cookie handling into and from this cache JUST for the Office products and any Querytable activity they might originate.
B176: This cache is not tied to, nor shared with, any browser that might be installed on the MAC. And I have not found anything with HTTP capabilities similar to
B177: MSXML that can work with that Office product cookie cache.
B179: When working in the MAC EXCEL environment, I have not yet become conversant with a Mac based WINHTTP like capability.
B180: So l currently have no mechanism to replicate the non-Querytable data retrieval process I am using in Windows environments.
B181: A software product called CURL has been suggested as providing this capability in the MAC environment.
B182: A version of CURL is available for the Windows So some day I may explore its capabilities and how to access those capabilities from VBA.
A184: Calculation and Chart Worksheet Usage Comments:
C185: In General, Items in Bolded BLUE are items you may freely change to play what-if games.
C186: Be sure to have a backup copy of the spreadsheet before you alter anything else.
A188: Features carried forward from the June 2016 version of my T-Tips Template
A189: Added a pair of buttons near cell F12 that will allow the user to step the charting window forward or backward one bar for each click.
A190: I find this to be a good way to test my understanding of the author's ideas as I step through the evolution of the price behavior and the indicators.
B192: First: In the "Help! I would like to plot data" area.
B193: Added button to resolve #NA problems by locating the bar in the input data with a slightly more recent date than what the user actually requested.
B194: I find this particularly useful when I have a general idea of where I want to be date wise. Now I can pick a set of dates "out of the air".
B195: If either (or both) of my date specifications fall between dates that are available in the price history,
B196: this button will resolve them to the dates of the nearest, slightly more recent input bars.
B197: I can then refine my data interval search as necessary from there.
B198: Really great when working with Weekly or Monthly studies!
C199: 2016Jun11 - added logic to the "I would like to chart.." button to detect #N/A values and terminate
C200: gracefully with a message instead of blowing up in the charting logic.
B202: Second: In the "Price Chart Windowing Controls" area. (A11 and A12)
B203: When retrieving data for a new symbol or when changing from daily to weekly or monthly data, there was the possibility that the
B204: residual settings in A11 and A12 would fall outside of the number bars available on the input data tab after the new data retrieval.
B205: In certain combinations, this could create a serious error in the chart sizing logic and crash the spreadsheet.
B206: I have taken this opportunity to update the validity checking logic used in the chart sizing macros
B207: to adjust these values as necessary so that they fall within the boundaries of the newly retrieved input data.
A208: Features carried forward from the October 2015 Traders Tips Template
B209: Improved automation: changes to any of the following will automatically initiate calculations appropriate to reflect a change.
C210: Changing either of cells A11 (pan) or A12 (zoom) will automatically initiate the same chart sizing macros that the manual
C211: "Set Chart" button uses.

Sheet InputPriceData
A1: Fidelity International Capital Appreciation Fund (FIVFX) -Nasdaq (Daily)
M2: To retrieve data for symbols traded on non US Exchanges, | IJ2: 241.79
A3: Request Online Yahoo History for: | F3: Market State == > | G3: At close: | H3: 18:46:00 | I3: EDT | M3: you will need to append the dot-suffix for the exchange to the symbol.
A4: Symbol | B4: FIVFX | D4: Valid | I4: =OFFSET(I4,-2,0,1,1) -> 0 | M4: The following links provide a description of how to use the exchange suffix
A5: From | B5: 1950-01-01 | D5: Data | M5: along with a list of suffixes for the major world exchanges. | AD5: Trailing 12 Div return (Cur Close)
A6: To | B6: =NOW() -> 2020-07-18T13:01:38.670 | D6: Types | E6: =VLOOKUP(B7,D7:E10,2,FALSE) -> d | M6: https://help.yahoo.com/kb/finance/SLN2310.html
A7: Data Type | B7: Daily | D7: Daily | E7: d | M7: And
A8: Crumb | B8: sbc3OPiN5Fw | D8: Weekly | E8: w | M8: https://www.stockmarketeye.com/users-guide/ticker-symbols-and-data-providers/data-providers.html
A9: Available Data | D9: Monthly | E9: m
A10: Bar Count: | B10: 6297 | M10: You may search on “exchange suffixes” for additional discussions | AD10: =OFFSET(AC15,1,0,1,1)/OFFSET(N15,1,0,1,1) -> 0.0313538206
A11: From: | B11: =IF(B10<=0,"",OFFSET(B15,B10,IF(HistReqDataType="v",1,0),1,1)) -> 1995-07-14 | W11: Trailing 12 Month Dividend Returns
A12: To: | B12: =IF(B10<=0,"",IF(HistReqDataType="v",OFFSET(B15,2,1,1,1),OFFSET(B15,1,0,1,1))) -> 2020-07-17 | W12: Raw Close price on Dividend date | X12: Div Year and Month | Y12: Looking for year ago Div Year and Month | Z12: Year ago Div Date we found | AA12: row offset to year ago div Date | AB12: Same month flag | AC12: Trailing 12 Div Total | AD12: Trailing 12 Div return
Q13: Split History | S13: 0 | T13: Running | U13: Dividend History
B14: Raw Data Values | H14: Adjusted | I14: Price Adjust | J14: Vol Adjust | K14: Adjusted Values | P14: Last | Q14: Effective | R14: Shares | T14: Vol Adjust | V14: 29
A15: RelRow | B15: Date | C15: Open | D15: High | E15: Low | F15: Close | G15: Volume | H15: Close | I15: Factor | J15: Factor | K15: Open | L15: High | M15: Low | N15: Close | O15: Volume | P15: Trade | Q15: 44031 | R15: New | S15: Old | T15: 1 | U15: Date | V15: $ / Share
A16: 1 | B16: 2020-07-17 | C16: 24.08 | D16: 24.08 | E16: 24.08 | F16: 24.08 | G16: 0 | H16: 24.08 | I16: =IF(F16=0,1,H16/F16) -> 1 | J16: =INDEX(OFFSET($T$15,0,0,$S$13+1,1),MATCH(B16,OFFSET($Q$15,0,0,$S$13+1,1),-1)) -> 1 | K16: =ROUND($I16*C16,2) -> 24.08 | L16: =ROUND($I16*D16,2) -> 24.08 | M16: 24.08 | N16: 24.08 | O16: =G16*J16 -> 0 | U16: 2019-12-06 | V16: 0.755 | W16: =(INDEX(OFFSET($F$15,1,0,$B$10,1),MATCH(U16,OFFSET($B$15,1,0,$B$10,1),-1))) -> 22.309999 | X16: =YEAR(U16)&RIGHT("0"&MONTH(U16),2) -> 201912 | Y16: =YEAR(U16)-1&RIGHT("0"&MONTH(U16),2) -> 201812 | Z16: =OFFSET(U15,AA16,0,1,1) -> 2018-12-07 | AA16: =MATCH(Y16,OFFSET($X$15,A16,0,$V$14+1-A16,1),-1) -> 2 | AB16: =IF(OR(AND(YEAR(U16)=YEAR(Z16),MONTH(U16)=MONTH(Z16)),MONTH(U16)=MONTH(Z16)),1,0) -> 1 | AC16: =(V16+IF(AA16-AB16=0,0,IFERROR(SUM(OFFSET(V16,1,0,AA16-AB16-1,1)),0))) -> 0.755 | AD16: =AC16/(INDEX(OFFSET($F$15,1,0,$B$10,1),MATCH(U16,OFFSET($B$15,1,0,$B$10,1),-1))) -> 0.03384132828
A17: 2 | B17: 2020-07-16 | C17: 23.879999 | D17: 23.879999 | E17: 23.879999 | F17: 23.879999 | G17: 0 | H17: 23.879999 | I17: =IF(F17=0,1,H17/F17) -> 1 | J17: =INDEX(OFFSET($T$15,0,0,$S$13+1,1),MATCH(B17,OFFSET($Q$15,0,0,$S$13+1,1),-1)) -> 1 | K17: =ROUND($I17*C17,2) -> 23.88 | L17: =ROUND($I17*D17,2) -> 23.88 | M17: =ROUND($I17*E17,2) -> 23.88 | N17: =ROUND($I17*F17,2) -> 23.88 | O17: =G17*J17 -> 0 | U17: 2018-12-07 | V17: 0.534 | W17: =(INDEX(OFFSET($F$15,1,0,$B$10,1),MATCH(U17,OFFSET($B$15,1,0,$B$10,1),-1))) -> 18.16 | X17: =YEAR(U17)&RIGHT("0"&MONTH(U17),2) -> 201812 | Y17: =YEAR(U17)-1&RIGHT("0"&MONTH(U17),2) -> 201712 | Z17: =OFFSET(U16,AA17,0,1,1) -> 2017-12-08 | AA17: =MATCH(Y17,OFFSET($X$15,A17,0,$V$14+1-A17,1),-1) -> 3 | AB17: =IF(OR(AND(YEAR(U17)=YEAR(Z17),MONTH(U17)=MONTH(Z17)),MONTH(U17)=MONTH(Z17)),1,0) -> 1 | AC17: =(V17+IF(AA17-AB17=0,0,IFERROR(SUM(OFFSET(V17,1,0,AA17-AB17-1,1)),0))) -> 0.536 | AD17: =AC17/(INDEX(OFFSET($F$15,1,0,$B$10,1),MATCH(U17,OFFSET($B$15,1,0,$B$10,1),-1))) -> 0.0295154185
A18: 3 | B18: 2020-07-15 | C18: 24.09 | D18: 24.09 | E18: 24.09 | F18: 24.09 | G18: 0 | H18: 24.09 | I18: 1 | J18: 1 | K18: 24.09 | L18: 24.09 | M18: 24.09 | N18: 24.09 | O18: 0 | U18: 2018-09-14 | V18: 0.002 | W18: 20.870001 | X18: 201809 | Y18: 201709 | Z18: 2017-12-08 | AA18: 2 | AB18: 0 | AC18: 0.7 | AD18: 0.03354096629
A19: 4 | B19: 2020-07-14 | C19: 23.860001 | D19: 23.860001 | E19: 23.860001 | F19: 23.860001 | G19: 0 | H19: 23.860001 | I19: 1 | J19: 1 | K19: 23.86 | L19: 23.86 | M19: 23.86 | N19: 23.86 | O19: 0 | U19: 2017-12-08 | V19: 0.698 | W19: 20.639999 | X19: 201712 | Y19: 201612 | Z19: 2016-12-09 | AA19: 2 | AB19: 1 | AC19: 0.698 | AD19: 0.0338178311
A20: 5 | B20: 2020-07-13 | C20: 23.690001 | D20: 23.690001 | E20: 23.690001 | F20: 23.690001 | G20: 0 | H20: 23.690001 | I20: 1 | J20: 1 | K20: 23.69 | L20: 23.69 | M20: 23.69 | N20: 23.69 | O20: 0 | U20: 2016-12-09 | V20: 0.108 | W20: 15.95 | X20: 201612 | Y20: 201512 | Z20: 2015-12-04 | AA20: 2 | AB20: 1 | AC20: 0.108 | AD20: 0.006771159875
A21: 6 | B21: 2020-07-10 | C21: 23.85 | D21: 23.85 | E21: 23.85 | F21: 23.85 | G21: 0 | H21: 23.85 | I21: 1 | J21: 1 | K21: 23.85 | L21: 23.85 | M21: 23.85 | N21: 23.85 | O21: 0 | U21: 2015-12-04 | V21: 0.26 | W21: 16.82 | X21: 201512 | Y21: 201412 | Z21: 2014-12-05 | AA21: 2 | AB21: 1 | AC21: 0.26 | AD21: 0.01545778835
A22: 7 | B22: 2020-07-09 | C22: 23.700001 | D22: 23.700001 | E22: 23.700001 | F22: 23.700001 | G22: 0 | H22: 23.700001 | I22: 1 | J22: 1 | K22: 23.7 | L22: 23.7 | M22: 23.7 | N22: 23.7 | O22: 0 | U22: 2014-12-05 | V22: 0.905 | W22: 16.68 | X22: 201412 | Y22: 201312 | Z22: 2013-12-06 | AA22: 2 | AB22: 1 | AC22: 0.905 | AD22: 0.05425659472
A23: 8 | B23: 2020-07-08 | C23: 23.709999 | D23: 23.709999 | E23: 23.709999 | F23: 23.709999 | G23: 0 | H23: 23.709999 | I23: 1 | J23: 1 | K23: 23.71 | L23: 23.71 | M23: 23.71 | N23: 23.71 | O23: 0 | U23: 2013-12-06 | V23: 0.119 | W23: 16.16 | X23: 201312 | Y23: 201212 | Z23: 2012-12-27 | AA23: 2 | AB23: 1 | AC23: 0.119 | AD23: 0.007363861386
A24: 9 | B24: 2020-07-07 | C24: 23.299999 | D24: 23.299999 | E24: 23.299999 | F24: 23.299999 | G24: 0 | H24: 23.299999 | I24: 1 | J24: 1 | K24: 23.3 | L24: 23.3 | M24: 23.3 | N24: 23.3 | O24: 0 | U24: 2012-12-27 | V24: 0.006 | W24: 13.76 | X24: 201212 | Y24: 201112 | Z24: 2011-12-02 | AA24: 3 | AB24: 1 | AC24: 0.126 | AD24: 0.009156976744
A25: 10 | B25: 2020-07-06 | C25: 23.52 | D25: 23.52 | E25: 23.52 | F25: 23.52 | G25: 0 | H25: 23.52 | I25: 1 | J25: 1 | K25: 23.52 | L25: 23.52 | M25: 23.52 | N25: 23.52 | O25: 0 | U25: 2012-12-07 | V25: 0.12 | W25: 13.58 | X25: 201212 | Y25: 201112 | Z25: 2011-12-02 | AA25: 2 | AB25: 1 | AC25: 0.12 | AD25: 0.0088365243
A26: 11 | B26: 2020-07-02 | C26: 23.08 | D26: 23.08 | E26: 23.08 | F26: 23.08 | G26: 0 | H26: 23.08 | I26: 1 | J26: 1 | K26: 23.08 | L26: 23.08 | M26: 23.08 | N26: 23.08 | O26: 0 | U26: 2011-12-02 | V26: 0.128 | W26: 11.5 | X26: 201112 | Y26: 201012 | Z26: 2010-12-30 | AA26: 2 | AB26: 1 | AC26: 0.128 | AD26: 0.01113043478
A27: 12 | B27: 2020-07-01 | C27: 22.83 | D27: 22.83 | E27: 22.83 | F27: 22.83 | G27: 0 | H27: 22.83 | I27: 1 | J27: 1 | K27: 22.83 | L27: 22.83 | M27: 22.83 | N27: 22.83 | O27: 0 | U27: 2010-12-30 | V27: 0.028 | W27: 12.83 | X27: 201012 | Y27: 200912 | Z27: 2009-12-04 | AA27: 4 | AB27: 1 | AC27: 0.278 | AD27: 0.02166796571
A28: 13 | B28: 2020-06-30 | C28: 22.639999 | D28: 22.639999 | E28: 22.639999 | F28: 22.639999 | G28: 0 | H28: 22.639999 | I28: 1 | J28: 1 | K28: 22.64 | L28: 22.64 | M28: 22.64 | N28: 22.64 | O28: 0 | U28: 2010-12-03 | V28: 0.22 | W28: 12.81 | X28: 201012 | Y28: 200912 | Z28: 2009-12-04 | AA28: 3 | AB28: 1 | AC28: 0.25 | AD28: 0.01951600312
A29: 14 | B29: 2020-06-29 | C29: 22.530001 | D29: 22.530001 | E29: 22.530001 | F29: 22.530001 | G29: 0 | H29: 22.530001 | I29: 1 | J29: 1 | K29: 22.53 | L29: 22.53 | M29: 22.53 | N29: 22.53 | O29: 0 | U29: 2010-04-30 | V29: 0.03 | W29: 11.71 | X29: 201004 | Y29: 200904 | Z29: 2009-12-04 | AA29: 2 | AB29: 0 | AC29: 0.22 | AD29: 0.01878736123
A30: 15 | B30: 2020-06-26 | C30: 22.41 | D30: 22.41 | E30: 22.41 | F30: 22.41 | G30: 0 | H30: 22.41 | I30: 1 | J30: 1 | K30: 22.41 | L30: 22.41 | M30: 22.41 | N30: 22.41 | O30: 0 | U30: 2009-12-04 | V30: 0.19 | W30: 11.34 | X30: 200912 | Y30: 200812 | Z30: 2008-12-05 | AA30: 2 | AB30: 1 | AC30: 0.19 | AD30: 0.01675485009
A31: 16 | B31: 2020-06-25 | C31: 22.639999 | D31: 22.639999 | E31: 22.639999 | F31: 22.639999 | G31: 0 | H31: 22.639999 | I31: 1 | J31: 1 | K31: 22.64 | L31: 22.64 | M31: 22.64 | N31: 22.64 | O31: 0 | U31: 2008-12-05 | V31: 0.03 | W31: 6.51 | X31: 200812 | Y31: 200712 | Z31: 2007-12-07 | AA31: 2 | AB31: 1 | AC31: 0.03 | AD31: 0.004608294931
A32: 17 | B32: 2020-06-24 | C32: 22.360001 | D32: 22.360001 | E32: 22.360001 | F32: 22.360001 | G32: 0 | H32: 22.360001 | I32: 1 | J32: 1 | K32: 22.36 | L32: 22.36 | M32: 22.36 | N32: 22.36 | O32: 0 | U32: 2007-12-07 | V32: 2.53 | W32: 15.56 | X32: 200712 | Y32: 200612 | Z32: 2006-12-08 | AA32: 2 | AB32: 1 | AC32: 2.53 | AD32: 0.162596401
A33: 18 | B33: 2020-06-23 | C33: 22.860001 | D33: 22.860001 | E33: 22.860001 | F33: 22.860001 | G33: 0 | H33: 22.860001 | I33: 1 | J33: 1 | K33: 22.86 | L33: 22.86 | M33: 22.86 | N33: 22.86 | O33: 0 | U33: 2006-12-08 | V33: 2.84 | W33: 16.41 | X33: 200612 | Y33: 200512 | Z33: 2005-12-09 | AA33: 2 | AB33: 1 | AC33: 2.84 | AD33: 0.1730652041
A34: 19 | B34: 2020-06-22 | C34: 22.629999 | D34: 22.629999 | E34: 22.629999 | F34: 22.629999 | G34: 0 | H34: 22.629999 | I34: 1 | J34: 1 | K34: 22.63 | L34: 22.63 | M34: 22.63 | N34: 22.63 | O34: 0 | U34: 2005-12-09 | V34: 2 | W34: 16.57 | X34: 200512 | Y34: 200412 | Z34: 2004-12-10 | AA34: 2 | AB34: 1 | AC34: 2 | AD34: 0.1207000604
A35: 20 | B35: 2020-06-19 | C35: 22.42 | D35: 22.42 | E35: 22.42 | F35: 22.42 | G35: 0 | H35: 22.42 | I35: 1 | J35: 1 | K35: 22.42 | L35: 22.42 | M35: 22.42 | N35: 22.42 | O35: 0 | U35: 2004-12-10 | V35: 0.05 | W35: 15.86 | X35: 200412 | Y35: 200312 | Z35: 2003-12-12 | AA35: 2 | AB35: 1 | AC35: 0.05 | AD35: 0.00315258512
A36: 21 | B36: 2020-06-18 | C36: 22.379999 | D36: 22.379999 | E36: 22.379999 | F36: 22.379999 | G36: 0 | H36: 22.379999 | I36: 1 | J36: 1 | K36: 22.38 | L36: 22.38 | M36: 22.38 | N36: 22.38 | O36: 0 | U36: 2003-12-12 | V36: 0.1 | W36: 14.47 | X36: 200312 | Y36: 200212 | Z36: 2002-12-13 | AA36: 2 | AB36: 1 | AC36: 0.1 | AD36: 0.006910850035
A37: 22 | B37: 2020-06-17 | C37: 22.440001 | D37: 22.440001 | E37: 22.440001 | F37: 22.440001 | G37: 0 | H37: 22.440001 | I37: 1 | J37: 1 | K37: 22.44 | L37: 22.44 | M37: 22.44 | N37: 22.44 | O37: 0 | U37: 2002-12-13 | V37: 0.01 | W37: 10.81 | X37: 200212 | Y37: 200112 | Z37: 2001-12-14 | AA37: 2 | AB37: 1 | AC37: 0.01 | AD37: 0.0009250693802
A38: 23 | B38: 2020-06-16 | C38: 22.299999 | D38: 22.299999 | E38: 22.299999 | F38: 22.299999 | G38: 0 | H38: 22.299999 | I38: 1 | J38: 1 | K38: 22.3 | L38: 22.3 | M38: 22.3 | N38: 22.3 | O38: 0 | U38: 2001-12-14 | V38: 0.06 | W38: 11.89 | X38: 200112 | Y38: 200012 | Z38: 2000-12-15 | AA38: 2 | AB38: 1 | AC38: 0.06 | AD38: 0.005046257359
A39: 24 | B39: 2020-06-15 | C39: 22.049999 | D39: 22.049999 | E39: 22.049999 | F39: 22.049999 | G39: 0 | H39: 22.049999 | I39: 1 | J39: 1 | K39: 22.05 | L39: 22.05 | M39: 22.05 | N39: 22.05 | O39: 0 | U39: 2000-12-15 | V39: 0.72 | W39: 13.54 | X39: 200012 | Y39: 199912 | Z39: 1999-12-10 | AA39: 2 | AB39: 1 | AC39: 0.72 | AD39: 0.05317577548
A40: 25 | B40: 2020-06-12 | C40: 21.950001 | D40: 21.950001 | E40: 21.950001 | F40: 21.950001 | G40: 0 | H40: 21.950001 | I40: 1 | J40: 1 | K40: 21.95 | L40: 21.95 | M40: 21.95 | N40: 21.95 | O40: 0 | U40: 1999-12-10 | V40: 0.98 | W40: 17.969999 | X40: 199912 | Y40: 199812 | Z40: 1998-12-11 | AA40: 2 | AB40: 1 | AC40: 0.98 | AD40: 0.05453533971
A41: 26 | B41: 2020-06-11 | C41: 21.690001 | D41: 21.690001 | E41: 21.690001 | F41: 21.690001 | G41: 0 | H41: 21.690001 | I41: 1 | J41: 1 | K41: 21.69 | L41: 21.69 | M41: 21.69 | N41: 21.69 | O41: 0 | U41: 1998-12-11 | V41: 0.05 | W41: 12.95 | X41: 199812 | Y41: 199712 | Z41: 1997-12-12 | AA41: 2 | AB41: 1 | AC41: 0.05 | AD41: 0.003861003861
A42: 27 | B42: 2020-06-10 | C42: 22.690001 | D42: 22.690001 | E42: 22.690001 | F42: 22.690001 | G42: 0 | H42: 22.690001 | I42: 1 | J42: 1 | K42: 22.69 | L42: 22.69 | M42: 22.69 | N42: 22.69 | O42: 0 | U42: 1997-12-12 | V42: 0.34 | W42: 11.89 | X42: 199712 | Y42: 199612 | Z42: 1996-12-13 | AA42: 2 | AB42: 1 | AC42: 0.34 | AD42: 0.02859545837
A43: 28 | B43: 2020-06-09 | C43: 22.530001 | D43: 22.530001 | E43: 22.530001 | F43: 22.530001 | G43: 0 | H43: 22.530001 | I43: 1 | J43: 1 | K43: 22.53 | L43: 22.53 | M43: 22.53 | N43: 22.53 | O43: 0 | U43: 1996-12-13 | V43: 0.32 | W43: 11.23 | X43: 199612 | Y43: 199512 | Z43: 1995-12-08 | AA43: 2 | AB43: 1 | AC43: 0.32 | AD43: 0.0284951024
A44: 29 | B44: 2020-06-08 | C44: 22.58 | D44: 22.58 | E44: 22.58 | F44: 22.58 | G44: 0 | H44: 22.58 | I44: 1 | J44: 1 | K44: 22.58 | L44: 22.58 | M44: 22.58 | N44: 22.58 | O44: 0 | U44: 1995-12-08 | V44: 0.31 | W44: 10.81 | X44: 199512 | Y44: 199412 | Z44: 1995-12-08 | AA44: 1 | AB44: 1 | AC44: 0.31 | AD44: 0.02867715079
A45: 30 | B45: 2020-06-05 | C45: 22.629999 | D45: 22.629999 | E45: 22.629999 | F45: 22.629999 | G45: 0 | H45: 22.629999 | I45: 1 | J45: 1 | K45: 22.63 | L45: 22.63 | M45: 22.63 | N45: 22.63 | O45: 0
A46: 31 | B46: 2020-06-04 | C46: 22.43 | D46: 22.43 | E46: 22.43 | F46: 22.43 | G46: 0 | H46: 22.43 | I46: 1 | J46: 1 | K46: 22.43 | L46: 22.43 | M46: 22.43 | N46: 22.43 | O46: 0
A47: 32 | B47: 2020-06-03 | C47: 22.48 | D47: 22.48 | E47: 22.48 | F47: 22.48 | G47: 0 | H47: 22.48 | I47: 1 | J47: 1 | K47: 22.48 | L47: 22.48 | M47: 22.48 | N47: 22.48 | O47: 0
A48: 33 | B48: 2020-06-02 | C48: 22.040001 | D48: 22.040001 | E48: 22.040001 | F48: 22.040001 | G48: 0 | H48: 22.040001 | I48: 1 | J48: 1 | K48: 22.04 | L48: 22.04 | M48: 22.04 | N48: 22.04 | O48: 0
A49: 34 | B49: 2020-06-01 | C49: 21.809999 | D49: 21.809999 | E49: 21.809999 | F49: 21.809999 | G49: 0 | H49: 21.809999 | I49: 1 | J49: 1 | K49: 21.81 | L49: 21.81 | M49: 21.81 | N49: 21.81 | O49: 0
A50: 35 | B50: 2020-05-29 | C50: 21.559999 | D50: 21.559999 | E50: 21.559999 | F50: 21.559999 | G50: 0 | H50: 21.559999 | I50: 1 | J50: 1 | K50: 21.56 | L50: 21.56 | M50: 21.56 | N50: 21.56 | O50: 0
A51: 36 | B51: 2020-05-28 | C51: 21.42 | D51: 21.42 | E51: 21.42 | F51: 21.42 | G51: 0 | H51: 21.42 | I51: 1 | J51: 1 | K51: 21.42 | L51: 21.42 | M51: 21.42 | N51: 21.42 | O51: 0
A52: 37 | B52: 2020-05-27 | C52: 21.09 | D52: 21.09 | E52: 21.09 | F52: 21.09 | G52: 0 | H52: 21.09 | I52: 1 | J52: 1 | K52: 21.09 | L52: 21.09 | M52: 21.09 | N52: 21.09 | O52: 0
A53: 38 | B53: 2020-05-26 | C53: 21.08 | D53: 21.08 | E53: 21.08 | F53: 21.08 | G53: 0 | H53: 21.08 | I53: 1 | J53: 1 | K53: 21.08 | L53: 21.08 | M53: 21.08 | N53: 21.08 | O53: 0
A54: 39 | B54: 2020-05-22 | C54: 20.76 | D54: 20.76 | E54: 20.76 | F54: 20.76 | G54: 0 | H54: 20.76 | I54: 1 | J54: 1 | K54: 20.76 | L54: 20.76 | M54: 20.76 | N54: 20.76 | O54: 0
A55: 40 | B55: 2020-05-21 | C55: 20.870001 | D55: 20.870001 | E55: 20.870001 | F55: 20.870001 | G55: 0 | H55: 20.870001 | I55: 1 | J55: 1 | K55: 20.87 | L55: 20.87 | M55: 20.87 | N55: 20.87 | O55: 0
A56: 41 | B56: 2020-05-20 | C56: 21.09 | D56: 21.09 | E56: 21.09 | F56: 21.09 | G56: 0 | H56: 21.09 | I56: 1 | J56: 1 | K56: 21.09 | L56: 21.09 | M56: 21.09 | N56: 21.09 | O56: 0
A57: 42 | B57: 2020-05-19 | C57: 20.68 | D57: 20.68 | E57: 20.68 | F57: 20.68 | G57: 0 | H57: 20.68 | I57: 1 | J57: 1 | K57: 20.68 | L57: 20.68 | M57: 20.68 | N57: 20.68 | O57: 0
A58: 43 | B58: 2020-05-18 | C58: 20.780001 | D58: 20.780001 | E58: 20.780001 | F58: 20.780001 | G58: 0 | H58: 20.780001 | I58: 1 | J58: 1 | K58: 20.78 | L58: 20.78 | M58: 20.78 | N58: 20.78 | O58: 0
A59: 44 | B59: 2020-05-15 | C59: 20.209999 | D59: 20.209999 | E59: 20.209999 | F59: 20.209999 | G59: 0 | H59: 20.209999 | I59: 1 | J59: 1 | K59: 20.21 | L59: 20.21 | M59: 20.21 | N59: 20.21 | O59: 0
A60: 45 | B60: 2020-05-14 | C60: 20.23 | D60: 20.23 | E60: 20.23 | F60: 20.23 | G60: 0 | H60: 20.23 | I60: 1 | J60: 1 | K60: 20.23 | L60: 20.23 | M60: 20.23 | N60: 20.23 | O60: 0
A61: 46 | B61: 2020-05-13 | C61: 20.360001 | D61: 20.360001 | E61: 20.360001 | F61: 20.360001 | G61: 0 | H61: 20.360001 | I61: 1 | J61: 1 | K61: 20.36 | L61: 20.36 | M61: 20.36 | N61: 20.36 | O61: 0
A62: 47 | B62: 2020-05-12 | C62: 20.450001 | D62: 20.450001 | E62: 20.450001 | F62: 20.450001 | G62: 0 | H62: 20.450001 | I62: 1 | J62: 1 | K62: 20.45 | L62: 20.45 | M62: 20.45 | N62: 20.45 | O62: 0
A63: 48 | B63: 2020-05-11 | C63: 20.65 | D63: 20.65 | E63: 20.65 | F63: 20.65 | G63: 0 | H63: 20.65 | I63: 1 | J63: 1 | K63: 20.65 | L63: 20.65 | M63: 20.65 | N63: 20.65 | O63: 0
A64: 49 | B64: 2020-05-08 | C64: 20.719999 | D64: 20.719999 | E64: 20.719999 | F64: 20.719999 | G64: 0 | H64: 20.719999 | I64: 1 | J64: 1 | K64: 20.72 | L64: 20.72 | M64: 20.72 | N64: 20.72 | O64: 0
A65: 50 | B65: 2020-05-07 | C65: 20.48 | D65: 20.48 | E65: 20.48 | F65: 20.48 | G65: 0 | H65: 20.48 | I65: 1 | J65: 1 | K65: 20.48 | L65: 20.48 | M65: 20.48 | N65: 20.48 | O65: 0
A66: 51 | B66: 2020-05-06 | C66: 20.139999 | D66: 20.139999 | E66: 20.139999 | F66: 20.139999 | G66: 0 | H66: 20.139999 | I66: 1 | J66: 1 | K66: 20.14 | L66: 20.14 | M66: 20.14 | N66: 20.14 | O66: 0
A67: 52 | B67: 2020-05-05 | C67: 20.1 | D67: 20.1 | E67: 20.1 | F67: 20.1 | G67: 0 | H67: 20.1 | I67: 1 | J67: 1 | K67: 20.1 | L67: 20.1 | M67: 20.1 | N67: 20.1 | O67: 0
A68: 53 | B68: 2020-05-04 | C68: 19.99 | D68: 19.99 | E68: 19.99 | F68: 19.99 | G68: 0 | H68: 19.99 | I68: 1 | J68: 1 | K68: 19.99 | L68: 19.99 | M68: 19.99 | N68: 19.99 | O68: 0
A69: 54 | B69: 2020-05-01 | C69: 20.030001 | D69: 20.030001 | E69: 20.030001 | F69: 20.030001 | G69: 0 | H69: 20.030001 | I69: 1 | J69: 1 | K69: 20.03 | L69: 20.03 | M69: 20.03 | N69: 20.03 | O69: 0
A70: 55 | B70: 2020-04-30 | C70: 20.370001 | D70: 20.370001 | E70: 20.370001 | F70: 20.370001 | G70: 0 | H70: 20.370001 | I70: 1 | J70: 1 | K70: 20.37 | L70: 20.37 | M70: 20.37 | N70: 20.37 | O70: 0
A71: 56 | B71: 2020-04-29 | C71: 20.559999 | D71: 20.559999 | E71: 20.559999 | F71: 20.559999 | G71: 0 | H71: 20.559999 | I71: 1 | J71: 1 | K71: 20.56 | L71: 20.56 | M71: 20.56 | N71: 20.56 | O71: 0
A72: 57 | B72: 2020-04-28 | C72: 20.17 | D72: 20.17 | E72: 20.17 | F72: 20.17 | G72: 0 | H72: 20.17 | I72: 1 | J72: 1 | K72: 20.17 | L72: 20.17 | M72: 20.17 | N72: 20.17 | O72: 0
A73: 58 | B73: 2020-04-27 | C73: 20.18 | D73: 20.18 | E73: 20.18 | F73: 20.18 | G73: 0 | H73: 20.18 | I73: 1 | J73: 1 | K73: 20.18 | L73: 20.18 | M73: 20.18 | N73: 20.18 | O73: 0
A74: 59 | B74: 2020-04-24 | C74: 19.959999 | D74: 19.959999 | E74: 19.959999 | F74: 19.959999 | G74: 0 | H74: 19.959999 | I74: 1 | J74: 1 | K74: 19.96 | L74: 19.96 | M74: 19.96 | N74: 19.96 | O74: 0
A75: 60 | B75: 2020-04-23 | C75: 19.870001 | D75: 19.870001 | E75: 19.870001 | F75: 19.870001 | G75: 0 | H75: 19.870001 | I75: 1 | J75: 1 | K75: 19.87 | L75: 19.87 | M75: 19.87 | N75: 19.87 | O75: 0
A76: 61 | B76: 2020-04-22 | C76: 20 | D76: 20 | E76: 20 | F76: 20 | G76: 0 | H76: 20 | I76: 1 | J76: 1 | K76: 20 | L76: 20 | M76: 20 | N76: 20 | O76: 0
A77: 62 | B77: 2020-04-21 | C77: 19.65 | D77: 19.65 | E77: 19.65 | F77: 19.65 | G77: 0 | H77: 19.65 | I77: 1 | J77: 1 | K77: 19.65 | L77: 19.65 | M77: 19.65 | N77: 19.65 | O77: 0
A78: 63 | B78: 2020-04-20 | C78: 20.1 | D78: 20.1 | E78: 20.1 | F78: 20.1 | G78: 0 | H78: 20.1 | I78: 1 | J78: 1 | K78: 20.1 | L78: 20.1 | M78: 20.1 | N78: 20.1 | O78: 0
A79: 64 | B79: 2020-04-17 | C79: 20.290001 | D79: 20.290001 | E79: 20.290001 | F79: 20.290001 | G79: 0 | H79: 20.290001 | I79: 1 | J79: 1 | K79: 20.29 | L79: 20.29 | M79: 20.29 | N79: 20.29 | O79: 0
A80: 65 | B80: 2020-04-16 | C80: 19.73 | D80: 19.73 | E80: 19.73 | F80: 19.73 | G80: 0 | H80: 19.73 | I80: 1 | J80: 1 | K80: 19.73 | L80: 19.73 | M80: 19.73 | N80: 19.73 | O80: 0
A81: 66 | B81: 2020-04-15 | C81: 19.629999 | D81: 19.629999 | E81: 19.629999 | F81: 19.629999 | G81: 0 | H81: 19.629999 | I81: =IF(F81=0,1,H81/F81) -> 1 | J81: =INDEX(OFFSET($T$15,0,0,$S$13+1,1),MATCH(B81,OFFSET($Q$15,0,0,$S$13+1,1),-1)) -> 1 | K81: =ROUND($I81*C81,2) -> 19.63 | L81: =ROUND($I81*D81,2) -> 19.63 | M81: =ROUND($I81*E81,2) -> 19.63 | N81: =ROUND($I81*F81,2) -> 19.63 | O81: =G81*J81 -> 0
A82: 67 | B82: 2020-04-14 | C82: 20.17 | D82: 20.17 | E82: 20.17 | F82: 20.17 | G82: 0 | H82: 20.17 | I82: 1 | J82: 1 | K82: 20.17 | L82: 20.17 | M82: 20.17 | N82: 20.17 | O82: 0
A83: 68 | B83: 2020-04-13 | C83: 19.68 | D83: 19.68 | E83: 19.68 | F83: 19.68 | G83: 0 | H83: 19.68 | I83: 1 | J83: 1 | K83: 19.68 | L83: 19.68 | M83: 19.68 | N83: 19.68 | O83: 0
A84: 69 | B84: 2020-04-09 | C84: 19.799999 | D84: 19.799999 | E84: 19.799999 | F84: 19.799999 | G84: 0 | H84: 19.799999 | I84: 1 | J84: 1 | K84: 19.8 | L84: 19.8 | M84: 19.8 | N84: 19.8 | O84: 0
A85: 70 | B85: 2020-04-08 | C85: 19.559999 | D85: 19.559999 | E85: 19.559999 | F85: 19.559999 | G85: 0 | H85: 19.559999 | I85: 1 | J85: 1 | K85: 19.56 | L85: 19.56 | M85: 19.56 | N85: 19.56 | O85: 0
A86: 71 | B86: 2020-04-07 | C86: 19.17 | D86: 19.17 | E86: 19.17 | F86: 19.17 | G86: 0 | H86: 19.17 | I86: 1 | J86: 1 | K86: 19.17 | L86: 19.17 | M86: 19.17 | N86: 19.17 | O86: 0
A87: 72 | B87: 2020-04-06 | C87: 19.110001 | D87: 19.110001 | E87: 19.110001 | F87: 19.110001 | G87: 0 | H87: 19.110001 | I87: 1 | J87: 1 | K87: 19.11 | L87: 19.11 | M87: 19.11 | N87: 19.11 | O87: 0
A88: 73 | B88: 2020-04-03 | C88: 18.24 | D88: 18.24 | E88: 18.24 | F88: 18.24 | G88: 0 | H88: 18.24 | I88: 1 | J88: 1 | K88: 18.24 | L88: 18.24 | M88: 18.24 | N88: 18.24 | O88: 0
A89: 74 | B89: 2020-04-02 | C89: 18.48 | D89: 18.48 | E89: 18.48 | F89: 18.48 | G89: 0 | H89: 18.48 | I89: 1 | J89: 1 | K89: 18.48 | L89: 18.48 | M89: 18.48 | N89: 18.48 | O89: 0
A90: 75 | B90: 2020-04-01 | C90: 18.290001 | D90: 18.290001 | E90: 18.290001 | F90: 18.290001 | G90: 0 | H90: 18.290001 | I90: 1 | J90: 1 | K90: 18.29 | L90: 18.29 | M90: 18.29 | N90: 18.29 | O90: 0
A91: 76 | B91: 2020-03-31 | C91: 19.02 | D91: 19.02 | E91: 19.02 | F91: 19.02 | G91: 0 | H91: 19.02 | I91: 1 | J91: 1 | K91: 19.02 | L91: 19.02 | M91: 19.02 | N91: 19.02 | O91: 0
A92: 77 | B92: 2020-03-30 | C92: 19.17 | D92: 19.17 | E92: 19.17 | F92: 19.17 | G92: 0 | H92: 19.17 | I92: 1 | J92: 1 | K92: 19.17 | L92: 19.17 | M92: 19.17 | N92: 19.17 | O92: 0
A93: 78 | B93: 2020-03-27 | C93: 18.82 | D93: 18.82 | E93: 18.82 | F93: 18.82 | G93: 0 | H93: 18.82 | I93: 1 | J93: 1 | K93: 18.82 | L93: 18.82 | M93: 18.82 | N93: 18.82 | O93: 0
A94: 79 | B94: 2020-03-26 | C94: 19.469999 | D94: 19.469999 | E94: 19.469999 | F94: 19.469999 | G94: 0 | H94: 19.469999 | I94: 1 | J94: 1 | K94: 19.47 | L94: 19.47 | M94: 19.47 | N94: 19.47 | O94: 0
A95: 80 | B95: 2020-03-25 | C95: 18.48 | D95: 18.48 | E95: 18.48 | F95: 18.48 | G95: 0 | H95: 18.48 | I95: 1 | J95: 1 | K95: 18.48 | L95: 18.48 | M95: 18.48 | N95: 18.48 | O95: 0
A96: 81 | B96: 2020-03-24 | C96: 17.82 | D96: 17.82 | E96: 17.82 | F96: 17.82 | G96: 0 | H96: 17.82 | I96: 1 | J96: 1 | K96: 17.82 | L96: 17.82 | M96: 17.82 | N96: 17.82 | O96: 0
A97: 82 | B97: 2020-03-23 | C97: 16.469999 | D97: 16.469999 | E97: 16.469999 | F97: 16.469999 | G97: 0 | H97: 16.469999 | I97: 1 | J97: 1 | K97: 16.47 | L97: 16.47 | M97: 16.47 | N97: 16.47 | O97: 0
A98: 83 | B98: 2020-03-20 | C98: 16.92 | D98: 16.92 | E98: 16.92 | F98: 16.92 | G98: 0 | H98: 16.92 | I98: 1 | J98: 1 | K98: 16.92 | L98: 16.92 | M98: 16.92 | N98: 16.92 | O98: 0
A99: 84 | B99: 2020-03-19 | C99: 16.98 | D99: 16.98 | E99: 16.98 | F99: 16.98 | G99: 0 | H99: 16.98 | I99: 1 | J99: 1 | K99: 16.98 | L99: 16.98 | M99: 16.98 | N99: 16.98 | O99: 0
A100: 85 | B100: 2020-03-18 | C100: 16.82 | D100: 16.82 | E100: 16.82 | F100: 16.82 | G100: 0 | H100: 16.82 | I100: 1 | J100: 1 | K100: 16.82 | L100: 16.82 | M100: 16.82 | N100: 16.82 | O100: 0
A101: 86 | B101: 2020-03-17 | C101: 17.889999 | D101: 17.889999 | E101: 17.889999 | F101: 17.889999 | G101: 0 | H101: 17.889999 | I101: 1 | J101: 1 | K101: 17.89 | L101: 17.89 | M101: 17.89 | N101: 17.89 | O101: 0
A102: 87 | B102: 2020-03-16 | C102: 17.290001 | D102: 17.290001 | E102: 17.290001 | F102: 17.290001 | G102: 0 | H102: 17.290001 | I102: 1 | J102: 1 | K102: 17.29 | L102: 17.29 | M102: 17.29 | N102: 17.29 | O102: 0
A103: 88 | B103: 2020-03-13 | C103: 19.290001 | D103: 19.290001 | E103: 19.290001 | F103: 19.290001 | G103: 0 | H103: 19.290001 | I103: 1 | J103: 1 | K103: 19.29 | L103: 19.29 | M103: 19.29 | N103: 19.29 | O103: 0
A104: 89 | B104: 2020-03-12 | C104: 18.07 | D104: 18.07 | E104: 18.07 | F104: 18.07 | G104: 0 | H104: 18.07 | I104: 1 | J104: 1 | K104: 18.07 | L104: 18.07 | M104: 18.07 | N104: 18.07 | O104: 0
A105: 90 | B105: 2020-03-11 | C105: 20.08 | D105: 20.08 | E105: 20.08 | F105: 20.08 | G105: 0 | H105: 20.08 | I105: 1 | J105: 1 | K105: 20.08 | L105: 20.08 | M105: 20.08 | N105: 20.08 | O105: 0
A106: 91 | B106: 2020-03-10 | C106: 20.950001 | D106: 20.950001 | E106: 20.950001 | F106: 20.950001 | G106: 0 | H106: 20.950001 | I106: 1 | J106: 1 | K106: 20.95 | L106: 20.95 | M106: 20.95 | N106: 20.95 | O106: 0
A107: 92 | B107: 2020-03-09 | C107: 20.41 | D107: 20.41 | E107: 20.41 | F107: 20.41 | G107: 0 | H107: 20.41 | I107: 1 | J107: 1 | K107: 20.41 | L107: 20.41 | M107: 20.41 | N107: 20.41 | O107: 0
A108: 93 | B108: 2020-03-06 | C108: 21.870001 | D108: 21.870001 | E108: 21.870001 | F108: 21.870001 | G108: 0 | H108: 21.870001 | I108: 1 | J108: 1 | K108: 21.87 | L108: 21.87 | M108: 21.87 | N108: 21.87 | O108: 0
A109: 94 | B109: 2020-03-05 | C109: 22.35 | D109: 22.35 | E109: 22.35 | F109: 22.35 | G109: 0 | H109: 22.35 | I109: 1 | J109: 1 | K109: 22.35 | L109: 22.35 | M109: 22.35 | N109: 22.35 | O109: 0
A110: 95 | B110: 2020-03-04 | C110: 22.790001 | D110: 22.790001 | E110: 22.790001 | F110: 22.790001 | G110: 0 | H110: 22.790001 | I110: 1 | J110: 1 | K110: 22.79 | L110: 22.79 | M110: 22.79 | N110: 22.79 | O110: 0
A111: 96 | B111: 2020-03-03 | C111: 22.17 | D111: 22.17 | E111: 22.17 | F111: 22.17 | G111: 0 | H111: 22.17 | I111: 1 | J111: 1 | K111: 22.17 | L111: 22.17 | M111: 22.17 | N111: 22.17 | O111: 0
A112: 97 | B112: 2020-03-02 | C112: 22.23 | D112: 22.23 | E112: 22.23 | F112: 22.23 | G112: 0 | H112: 22.23 | I112: 1 | J112: 1 | K112: 22.23 | L112: 22.23 | M112: 22.23 | N112: 22.23 | O112: 0
A113: 98 | B113: 2020-02-28 | C113: 21.77 | D113: 21.77 | E113: 21.77 | F113: 21.77 | G113: 0 | H113: 21.77 | I113: 1 | J113: 1 | K113: 21.77 | L113: 21.77 | M113: 21.77 | N113: 21.77 | O113: 0
A114: 99 | B114: 2020-02-27 | C114: 21.889999 | D114: 21.889999 | E114: 21.889999 | F114: 21.889999 | G114: 0 | H114: 21.889999 | I114: 1 | J114: 1 | K114: 21.89 | L114: 21.89 | M114: 21.89 | N114: 21.89 | O114: 0
A115: 100 | B115: 2020-02-26 | C115: 22.450001 | D115: 22.450001 | E115: 22.450001 | F115: 22.450001 | G115: 0 | H115: 22.450001 | I115: 1 | J115: 1 | K115: 22.45 | L115: 22.45 | M115: 22.45 | N115: 22.45 | O115: 0
A116: 101 | B116: 2020-02-25 | C116: 22.379999 | D116: 22.379999 | E116: 22.379999 | F116: 22.379999 | G116: 0 | H116: 22.379999 | I116: 1 | J116: 1 | K116: 22.38 | L116: 22.38 | M116: 22.38 | N116: 22.38 | O116: 0
A117: 102 | B117: 2020-02-24 | C117: 22.790001 | D117: 22.790001 | E117: 22.790001 | F117: 22.790001 | G117: 0 | H117: 22.790001 | I117: 1 | J117: 1 | K117: 22.79 | L117: 22.79 | M117: 22.79 | N117: 22.79 | O117: 0
A118: 103 | B118: 2020-02-21 | C118: 23.610001 | D118: 23.610001 | E118: 23.610001 | F118: 23.610001 | G118: 0 | H118: 23.610001 | I118: 1 | J118: 1 | K118: 23.61 | L118: 23.61 | M118: 23.61 | N118: 23.61 | O118: 0
A119: 104 | B119: 2020-02-20 | C119: 23.639999 | D119: 23.639999 | E119: 23.639999 | F119: 23.639999 | G119: 0 | H119: 23.639999 | I119: 1 | J119: 1 | K119: 23.64 | L119: 23.64 | M119: 23.64 | N119: 23.64 | O119: 0
A120: 105 | B120: 2020-02-19 | C120: 23.870001 | D120: 23.870001 | E120: 23.870001 | F120: 23.870001 | G120: 0 | H120: 23.870001 | I120: 1 | J120: 1 | K120: 23.87 | L120: 23.87 | M120: 23.87 | N120: 23.87 | O120: 0
A121: 106 | B121: 2020-02-18 | C121: 23.610001 | D121: 23.610001 | E121: 23.610001 | F121: 23.610001 | G121: 0 | H121: 23.610001 | I121: 1 | J121: 1 | K121: 23.61 | L121: 23.61 | M121: 23.61 | N121: 23.61 | O121: 0
A122: 107 | B122: 2020-02-14 | C122: 23.700001 | D122: 23.700001 | E122: 23.700001 | F122: 23.700001 | G122: 0 | H122: 23.700001 | I122: 1 | J122: 1 | K122: 23.7 | L122: 23.7 | M122: 23.7 | N122: 23.7 | O122: 0
A123: 108 | B123: 2020-02-13 | C123: 23.709999 | D123: 23.709999 | E123: 23.709999 | F123: 23.709999 | G123: 0 | H123: 23.709999 | I123: 1 | J123: 1 | K123: 23.71 | L123: 23.71 | M123: 23.71 | N123: 23.71 | O123: 0
A124: 109 | B124: 2020-02-12 | C124: 23.74 | D124: 23.74 | E124: 23.74 | F124: 23.74 | G124: 0 | H124: 23.74 | I124: 1 | J124: 1 | K124: 23.74 | L124: 23.74 | M124: 23.74 | N124: 23.74 | O124: 0
A125: 110 | B125: 2020-02-11 | C125: 23.700001 | D125: 23.700001 | E125: 23.700001 | F125: 23.700001 | G125: 0 | H125: 23.700001 | I125: 1 | J125: 1 | K125: 23.7 | L125: 23.7 | M125: 23.7 | N125: 23.7 | O125: 0
A126: 111 | B126: 2020-02-10 | C126: 23.530001 | D126: 23.530001 | E126: 23.530001 | F126: 23.530001 | G126: 0 | H126: 23.530001 | I126: 1 | J126: 1 | K126: 23.53 | L126: 23.53 | M126: 23.53 | N126: 23.53 | O126: 0
A127: 112 | B127: 2020-02-07 | C127: 23.5 | D127: 23.5 | E127: 23.5 | F127: 23.5 | G127: 0 | H127: 23.5 | I127: 1 | J127: 1 | K127: 23.5 | L127: 23.5 | M127: 23.5 | N127: 23.5 | O127: 0
A128: 113 | B128: 2020-02-06 | C128: 23.67 | D128: 23.67 | E128: 23.67 | F128: 23.67 | G128: 0 | H128: 23.67 | I128: 1 | J128: 1 | K128: 23.67 | L128: 23.67 | M128: 23.67 | N128: 23.67 | O128: 0
A129: 114 | B129: 2020-02-05 | C129: 23.57 | D129: 23.57 | E129: 23.57 | F129: 23.57 | G129: 0 | H129: 23.57 | I129: 1 | J129: 1 | K129: 23.57 | L129: 23.57 | M129: 23.57 | N129: 23.57 | O129: 0
A130: 115 | B130: 2020-02-04 | C130: 23.450001 | D130: 23.450001 | E130: 23.450001 | F130: 23.450001 | G130: 0 | H130: 23.450001 | I130: 1 | J130: 1 | K130: 23.45 | L130: 23.45 | M130: 23.45 | N130: 23.45 | O130: 0
A131: 116 | B131: 2020-02-03 | C131: 23.059999 | D131: 23.059999 | E131: 23.059999 | F131: 23.059999 | G131: 0 | H131: 23.059999 | I131: 1 | J131: 1 | K131: 23.06 | L131: 23.06 | M131: 23.06 | N131: 23.06 | O131: 0
A132: 117 | B132: 2020-01-31 | C132: 22.9 | D132: 22.9 | E132: 22.9 | F132: 22.9 | G132: 0 | H132: 22.9 | I132: 1 | J132: 1 | K132: 22.9 | L132: 22.9 | M132: 22.9 | N132: 22.9 | O132: 0
A133: 118 | B133: 2020-01-30 | C133: 23.200001 | D133: 23.200001 | E133: 23.200001 | F133: 23.200001 | G133: 0 | H133: 23.200001 | I133: 1 | J133: 1 | K133: 23.2 | L133: 23.2 | M133: 23.2 | N133: 23.2 | O133: 0
A134: 119 | B134: 2020-01-29 | C134: 23.290001 | D134: 23.290001 | E134: 23.290001 | F134: 23.290001 | G134: 0 | H134: 23.290001 | I134: 1 | J134: 1 | K134: 23.29 | L134: 23.29 | M134: 23.29 | N134: 23.29 | O134: 0
A135: 120 | B135: 2020-01-28 | C135: 23.25 | D135: 23.25 | E135: 23.25 | F135: 23.25 | G135: 0 | H135: 23.25 | I135: 1 | J135: 1 | K135: 23.25 | L135: 23.25 | M135: 23.25 | N135: 23.25 | O135: 0
A136: 121 | B136: 2020-01-27 | C136: 23.059999 | D136: 23.059999 | E136: 23.059999 | F136: 23.059999 | G136: 0 | H136: 23.059999 | I136: 1 | J136: 1 | K136: 23.06 | L136: 23.06 | M136: 23.06 | N136: 23.06 | O136: 0
A137: 122 | B137: 2020-01-24 | C137: 23.530001 | D137: 23.530001 | E137: 23.530001 | F137: 23.530001 | G137: 0 | H137: 23.530001 | I137: 1 | J137: 1 | K137: 23.53 | L137: 23.53 | M137: 23.53 | N137: 23.53 | O137: 0
A138: 123 | B138: 2020-01-23 | C138: 23.51 | D138: 23.51 | E138: 23.51 | F138: 23.51 | G138: 0 | H138: 23.51 | I138: 1 | J138: 1 | K138: 23.51 | L138: 23.51 | M138: 23.51 | N138: 23.51 | O138: 0
A139: 124 | B139: 2020-01-22 | C139: 23.629999 | D139: 23.629999 | E139: 23.629999 | F139: 23.629999 | G139: 0 | H139: 23.629999 | I139: 1 | J139: 1 | K139: 23.63 | L139: 23.63 | M139: 23.63 | N139: 23.63 | O139: 0
A140: 125 | B140: 2020-01-21 | C140: 23.530001 | D140: 23.530001 | E140: 23.530001 | F140: 23.530001 | G140: 0 | H140: 23.530001 | I140: 1 | J140: 1 | K140: 23.53 | L140: 23.53 | M140: 23.53 | N140: 23.53 | O140: 0
A141: 126 | B141: 2020-01-17 | C141: 23.719999 | D141: 23.719999 | E141: 23.719999 | F141: 23.719999 | G141: 0 | H141: 23.719999 | I141: 1 | J141: 1 | K141: 23.72 | L141: 23.72 | M141: 23.72 | N141: 23.72 | O141: 0
A142: 127 | B142: 2020-01-16 | C142: 23.559999 | D142: 23.559999 | E142: 23.559999 | F142: 23.559999 | G142: 0 | H142: 23.559999 | I142: 1 | J142: 1 | K142: 23.56 | L142: 23.56 | M142: 23.56 | N142: 23.56 | O142: 0
A143: 128 | B143: 2020-01-15 | C143: 23.48 | D143: 23.48 | E143: 23.48 | F143: 23.48 | G143: 0 | H143: 23.48 | I143: 1 | J143: 1 | K143: 23.48 | L143: 23.48 | M143: 23.48 | N143: 23.48 | O143: 0
A144: 129 | B144: 2020-01-14 | C144: 23.379999 | D144: 23.379999 | E144: 23.379999 | F144: 23.379999 | G144: 0 | H144: 23.379999 | I144: 1 | J144: 1 | K144: 23.38 | L144: 23.38 | M144: 23.38 | N144: 23.38 | O144: 0
A145: 130 | B145: 2020-01-13 | C145: 23.35 | D145: 23.35 | E145: 23.35 | F145: 23.35 | G145: 0 | H145: 23.35 | I145: =IF(F145=0,1,H145/F145) -> 1 | J145: =INDEX(OFFSET($T$15,0,0,$S$13+1,1),MATCH(B145,OFFSET($Q$15,0,0,$S$13+1,1),-1)) -> 1 | K145: =ROUND($I145*C145,2) -> 23.35 | L145: =ROUND($I145*D145,2) -> 23.35 | M145: =ROUND($I145*E145,2) -> 23.35 | N145: =ROUND($I145*F145,2) -> 23.35 | O145: =G145*J145 -> 0
A146: 131 | B146: 2020-01-10 | C146: 23.200001 | D146: 23.200001 | E146: 23.200001 | F146: 23.200001 | G146: 0 | H146: 23.200001 | I146: 1 | J146: 1 | K146: 23.2 | L146: 23.2 | M146: 23.2 | N146: 23.2 | O146: 0
A147: 132 | B147: 2020-01-09 | C147: 23.18 | D147: 23.18 | E147: 23.18 | F147: 23.18 | G147: 0 | H147: 23.18 | I147: 1 | J147: 1 | K147: 23.18 | L147: 23.18 | M147: 23.18 | N147: 23.18 | O147: 0
A148: 133 | B148: 2020-01-08 | C148: 23.030001 | D148: 23.030001 | E148: 23.030001 | F148: 23.030001 | G148: 0 | H148: 23.030001 | I148: 1 | J148: 1 | K148: 23.03 | L148: 23.03 | M148: 23.03 | N148: 23.03 | O148: 0
A149: 134 | B149: 2020-01-07 | C149: 22.959999 | D149: 22.959999 | E149: 22.959999 | F149: 22.959999 | G149: 0 | H149: 22.959999 | I149: 1 | J149: 1 | K149: 22.96 | L149: 22.96 | M149: 22.96 | N149: 22.96 | O149: 0
A150: 135 | B150: 2020-01-06 | C150: 22.969999 | D150: 22.969999 | E150: 22.969999 | F150: 22.969999 | G150: 0 | H150: 22.969999 | I150: 1 | J150: 1 | K150: 22.97 | L150: 22.97 | M150: 22.97 | N150: 22.97 | O150: 0
A151: 136 | B151: 2020-01-03 | C151: 22.99 | D151: 22.99 | E151: 22.99 | F151: 22.99 | G151: 0 | H151: 22.99 | I151: 1 | J151: 1 | K151: 22.99 | L151: 22.99 | M151: 22.99 | N151: 22.99 | O151: 0
A152: 137 | B152: 2020-01-02 | C152: 23.129999 | D152: 23.129999 | E152: 23.129999 | F152: 23.129999 | G152: 0 | H152: 23.129999 | I152: 1 | J152: 1 | K152: 23.13 | L152: 23.13 | M152: 23.13 | N152: 23.13 | O152: 0
A153: 138 | B153: 2019-12-31 | C153: 22.940001 | D153: 22.940001 | E153: 22.940001 | F153: 22.940001 | G153: 0 | H153: 22.940001 | I153: 1 | J153: 1 | K153: 22.94 | L153: 22.94 | M153: 22.94 | N153: 22.94 | O153: 0
A154: 139 | B154: 2019-12-30 | C154: 22.91 | D154: 22.91 | E154: 22.91 | F154: 22.91 | G154: 0 | H154: 22.91 | I154: 1 | J154: 1 | K154: 22.91 | L154: 22.91 | M154: 22.91 | N154: 22.91 | O154: 0
A155: 140 | B155: 2019-12-27 | C155: 23.08 | D155: 23.08 | E155: 23.08 | F155: 23.08 | G155: 0 | H155: 23.08 | I155: 1 | J155: 1 | K155: 23.08 | L155: 23.08 | M155: 23.08 | N155: 23.08 | O155: 0
A156: 141 | B156: 2019-12-26 | C156: 22.950001 | D156: 22.950001 | E156: 22.950001 | F156: 22.950001 | G156: 0 | H156: 22.950001 | I156: 1 | J156: 1 | K156: 22.95 | L156: 22.95 | M156: 22.95 | N156: 22.95 | O156: 0
A157: 142 | B157: 2019-12-24 | C157: 22.889999 | D157: 22.889999 | E157: 22.889999 | F157: 22.889999 | G157: 0 | H157: 22.889999 | I157: 1 | J157: 1 | K157: 22.89 | L157: 22.89 | M157: 22.89 | N157: 22.89 | O157: 0
A158: 143 | B158: 2019-12-23 | C158: 22.870001 | D158: 22.870001 | E158: 22.870001 | F158: 22.870001 | G158: 0 | H158: 22.870001 | I158: 1 | J158: 1 | K158: 22.87 | L158: 22.87 | M158: 22.87 | N158: 22.87 | O158: 0
A159: 144 | B159: 2019-12-20 | C159: 22.83 | D159: 22.83 | E159: 22.83 | F159: 22.83 | G159: 0 | H159: 22.83 | I159: 1 | J159: 1 | K159: 22.83 | L159: 22.83 | M159: 22.83 | N159: 22.83 | O159: 0
A160: 145 | B160: 2019-12-19 | C160: 22.709999 | D160: 22.709999 | E160: 22.709999 | F160: 22.709999 | G160: 0 | H160: 22.709999 | I160: 1 | J160: 1 | K160: 22.71 | L160: 22.71 | M160: 22.71 | N160: 22.71 | O160: 0
A161: 146 | B161: 2019-12-18 | C161: 22.709999 | D161: 22.709999 | E161: 22.709999 | F161: 22.709999 | G161: 0 | H161: 22.709999 | I161: 1 | J161: 1 | K161: 22.71 | L161: 22.71 | M161: 22.71 | N161: 22.71 | O161: 0
A162: 147 | B162: 2019-12-17 | C162: 22.75 | D162: 22.75 | E162: 22.75 | F162: 22.75 | G162: 0 | H162: 22.75 | I162: 1 | J162: 1 | K162: 22.75 | L162: 22.75 | M162: 22.75 | N162: 22.75 | O162: 0
A163: 148 | B163: 2019-12-16 | C163: 22.76 | D163: 22.76 | E163: 22.76 | F163: 22.76 | G163: 0 | H163: 22.76 | I163: 1 | J163: 1 | K163: 22.76 | L163: 22.76 | M163: 22.76 | N163: 22.76 | O163: 0
A164: 149 | B164: 2019-12-13 | C164: 22.549999 | D164: 22.549999 | E164: 22.549999 | F164: 22.549999 | G164: 0 | H164: 22.549999 | I164: 1 | J164: 1 | K164: 22.55 | L164: 22.55 | M164: 22.55 | N164: 22.55 | O164: 0
A165: 150 | B165: 2019-12-12 | C165: 22.459999 | D165: 22.459999 | E165: 22.459999 | F165: 22.459999 | G165: 0 | H165: 22.459999 | I165: 1 | J165: 1 | K165: 22.46 | L165: 22.46 | M165: 22.46 | N165: 22.46 | O165: 0
A166: 151 | B166: 2019-12-11 | C166: 22.379999 | D166: 22.379999 | E166: 22.379999 | F166: 22.379999 | G166: 0 | H166: 22.379999 | I166: 1 | J166: 1 | K166: 22.38 | L166: 22.38 | M166: 22.38 | N166: 22.38 | O166: 0
A167: 152 | B167: 2019-12-10 | C167: 22.219999 | D167: 22.219999 | E167: 22.219999 | F167: 22.219999 | G167: 0 | H167: 22.219999 | I167: 1 | J167: 1 | K167: 22.22 | L167: 22.22 | M167: 22.22 | N167: 22.22 | O167: 0
A168: 153 | B168: 2019-12-09 | C168: 22.23 | D168: 22.23 | E168: 22.23 | F168: 22.23 | G168: 0 | H168: 22.23 | I168: 1 | J168: 1 | K168: 22.23 | L168: 22.23 | M168: 22.23 | N168: 22.23 | O168: 0
A169: 154 | B169: 2019-12-06 | C169: 22.309999 | D169: 22.309999 | E169: 22.309999 | F169: 22.309999 | G169: 0 | H169: 22.309999 | I169: 1 | J169: 1 | K169: 22.31 | L169: 22.31 | M169: 22.31 | N169: 22.31 | O169: 0
A170: 155 | B170: 2019-12-05 | C170: 22.879999 | D170: 22.879999 | E170: 22.879999 | F170: 22.879999 | G170: 0 | H170: 22.124998 | I170: 0.9670017031 | J170: 1 | K170: 22.12 | L170: 22.12 | M170: 22.12 | N170: 22.12 | O170: 0
A171: 156 | B171: 2019-12-04 | C171: 22.799999 | D171: 22.799999 | E171: 22.799999 | F171: 22.799999 | G171: 0 | H171: 22.047638 | I171: 0.9670017091 | J171: 1 | K171: 22.05 | L171: 22.05 | M171: 22.05 | N171: 22.05 | O171: 0
A172: 157 | B172: 2019-12-03 | C172: 22.67 | D172: 22.67 | E172: 22.67 | F172: 22.67 | G172: 0 | H172: 21.92193 | I172: 0.9670017644 | J172: 1 | K172: 21.92 | L172: 21.92 | M172: 21.92 | N172: 21.92 | O172: 0
A173: 158 | B173: 2019-12-02 | C173: 22.700001 | D173: 22.700001 | E173: 22.700001 | F173: 22.700001 | G173: 0 | H173: 21.950941 | I173: 0.9670017636 | J173: 1 | K173: 21.95 | L173: 21.95 | M173: 21.95 | N173: 21.95 | O173: 0
A174: 159 | B174: 2019-11-29 | C174: 22.91 | D174: 22.91 | E174: 22.91 | F174: 22.91 | G174: 0 | H174: 22.154009 | I174: 0.9670017023 | J174: 1 | K174: 22.15 | L174: 22.15 | M174: 22.15 | N174: 22.15 | O174: 0
A175: 160 | B175: 2019-11-27 | C175: 23.040001 | D175: 23.040001 | E175: 23.040001 | F175: 23.040001 | G175: 0 | H175: 22.27972 | I175: 0.9670016941 | J175: 1 | K175: 22.28 | L175: 22.28 | M175: 22.28 | N175: 22.28 | O175: 0
A176: 161 | B176: 2019-11-26 | C176: 22.969999 | D176: 22.969999 | E176: 22.969999 | F176: 22.969999 | G176: 0 | H176: 22.212029 | I176: 0.96700174 | J176: 1 | K176: 22.21 | L176: 22.21 | M176: 22.21 | N176: 22.21 | O176: 0
A177: 162 | B177: 2019-11-25 | C177: 22.83 | D177: 22.83 | E177: 22.83 | F177: 22.83 | G177: 0 | H177: 22.076649 | I177: 0.9670017083 | J177: 1 | K177: 22.08 | L177: 22.08 | M177: 22.08 | N177: 22.08 | O177: 0
A178: 163 | B178: 2019-11-22 | C178: 22.620001 | D178: 22.620001 | E178: 22.620001 | F178: 22.620001 | G178: 0 | H178: 21.873581 | I178: 0.9670017698 | J178: 1 | K178: 21.87 | L178: 21.87 | M178: 21.87 | N178: 21.87 | O178: 0
A179: 164 | B179: 2019-11-21 | C179: 22.620001 | D179: 22.620001 | E179: 22.620001 | F179: 22.620001 | G179: 0 | H179: 21.873581 | I179: 0.9670017698 | J179: 1 | K179: 21.87 | L179: 21.87 | M179: 21.87 | N179: 21.87 | O179: 0
A180: 165 | B180: 2019-11-20 | C180: 22.73 | D180: 22.73 | E180: 22.73 | F180: 22.73 | G180: 0 | H180: 21.97995 | I180: 0.9670017598 | J180: 1 | K180: 21.98 | L180: 21.98 | M180: 21.98 | N180: 21.98 | O180: 0
A181: 166 | B181: 2019-11-19 | C181: 22.790001 | D181: 22.790001 | E181: 22.790001 | F181: 22.790001 | G181: 0 | H181: 22.03797 | I181: 0.9670017127 | J181: 1 | K181: 22.04 | L181: 22.04 | M181: 22.04 | N181: 22.04 | O181: 0
A182: 167 | B182: 2019-11-18 | C182: 22.75 | D182: 22.75 | E182: 22.75 | F182: 22.75 | G182: 0 | H182: 21.999289 | I182: 0.9670017143 | J182: 1 | K182: 22 | L182: 22 | M182: 22 | N182: 22 | O182: 0
A183: 168 | B183: 2019-11-15 | C183: 22.709999 | D183: 22.709999 | E183: 22.709999 | F183: 22.709999 | G183: 0 | H183: 21.960609 | I183: 0.9670017599 | J183: 1 | K183: 21.96 | L183: 21.96 | M183: 21.96 | N183: 21.96 | O183: 0
A184: 169 | B184: 2019-11-14 | C184: 22.549999 | D184: 22.549999 | E184: 22.549999 | F184: 22.549999 | G184: 0 | H184: 21.805889 | I184: 0.9670017724 | J184: 1 | K184: 21.81 | L184: 21.81 | M184: 21.81 | N184: 21.81 | O184: 0
A185: 170 | B185: 2019-11-13 | C185: 22.530001 | D185: 22.530001 | E185: 22.530001 | F185: 22.530001 | G185: 0 | H185: 21.786551 | I185: 0.9670017769 | J185: 1 | K185: 21.79 | L185: 21.79 | M185: 21.79 | N185: 21.79 | O185: 0
A186: 171 | B186: 2019-11-12 | C186: 22.49 | D186: 22.49 | E186: 22.49 | F186: 22.49 | G186: 0 | H186: 21.747869 | I186: 0.9670017341 | J186: 1 | K186: 21.75 | L186: 21.75 | M186: 21.75 | N186: 21.75 | O186: 0
A187: 172 | B187: 2019-11-11 | C187: 22.49 | D187: 22.49 | E187: 22.49 | F187: 22.49 | G187: 0 | H187: 21.747869 | I187: 0.9670017341 | J187: 1 | K187: 21.75 | L187: 21.75 | M187: 21.75 | N187: 21.75 | O187: 0
A188: 173 | B188: 2019-11-08 | C188: 22.48 | D188: 22.48 | E188: 22.48 | F188: 22.48 | G188: 0 | H188: 21.738199 | I188: 0.9670017349 | J188: 1 | K188: 21.74 | L188: 21.74 | M188: 21.74 | N188: 21.74 | O188: 0
A189: 174 | B189: 2019-11-07 | C189: 22.549999 | D189: 22.549999 | E189: 22.549999 | F189: 22.549999 | G189: 0 | H189: 21.805889 | I189: 0.9670017724 | J189: 1 | K189: 21.81 | L189: 21.81 | M189: 21.81 | N189: 21.81 | O189: 0
A190: 175 | B190: 2019-11-06 | C190: 22.549999 | D190: 22.549999 | E190: 22.549999 | F190: 22.549999 | G190: 0 | H190: 21.805889 | I190: 0.9670017724 | J190: 1 | K190: 21.81 | L190: 21.81 | M190: 21.81 | N190: 21.81 | O190: 0
A191: 176 | B191: 2019-11-05 | C191: 22.540001 | D191: 22.540001 | E191: 22.540001 | F191: 22.540001 | G191: 0 | H191: 21.796221 | I191: 0.9670017761 | J191: 1 | K191: 21.8 | L191: 21.8 | M191: 21.8 | N191: 21.8 | O191: 0
A192: 177 | B192: 2019-11-04 | C192: 22.639999 | D192: 22.639999 | E192: 22.639999 | F192: 22.639999 | G192: 0 | H192: 21.89292 | I192: 0.9670018095 | J192: 1 | K192: 21.89 | L192: 21.89 | M192: 21.89 | N192: 21.89 | O192: 0
A193: 178 | B193: 2019-11-01 | C193: 22.59 | D193: 22.59 | E193: 22.59 | F193: 22.59 | G193: 0 | H193: 21.84457 | I193: 0.9670017707 | J193: 1 | K193: 21.84 | L193: 21.84 | M193: 21.84 | N193: 21.84 | O193: 0
A194: 179 | B194: 2019-10-31 | C194: 22.41 | D194: 22.41 | E194: 22.41 | F194: 22.41 | G194: 0 | H194: 21.670509 | I194: 0.9670017403 | J194: 1 | K194: 21.67 | L194: 21.67 | M194: 21.67 | N194: 21.67 | O194: 0
A195: 180 | B195: 2019-10-30 | C195: 22.459999 | D195: 22.459999 | E195: 22.459999 | F195: 22.459999 | G195: 0 | H195: 21.718859 | I195: 0.9670017795 | J195: 1 | K195: 21.72 | L195: 21.72 | M195: 21.72 | N195: 21.72 | O195: 0
A196: 181 | B196: 2019-10-29 | C196: 22.219999 | D196: 22.219999 | E196: 22.219999 | F196: 22.219999 | G196: 0 | H196: 21.486778 | I196: 0.9670017537 | J196: 1 | K196: 21.49 | L196: 21.49 | M196: 21.49 | N196: 21.49 | O196: 0
A197: 182 | B197: 2019-10-28 | C197: 22.25 | D197: 22.25 | E197: 22.25 | F197: 22.25 | G197: 0 | H197: 21.515789 | I197: 0.9670017528 | J197: 1 | K197: 21.52 | L197: 21.52 | M197: 21.52 | N197: 21.52 | O197: 0
A198: 183 | B198: 2019-10-25 | C198: 22.129999 | D198: 22.129999 | E198: 22.129999 | F198: 22.129999 | G198: 0 | H198: 21.399748 | I198: 0.9670017608 | J198: 1 | K198: 21.4 | L198: 21.4 | M198: 21.4 | N198: 21.4 | O198: 0
A199: 184 | B199: 2019-10-24 | C199: 22.07 | D199: 22.07 | E199: 22.07 | F199: 22.07 | G199: 0 | H199: 21.341728 | I199: 0.9670017218 | J199: 1 | K199: 21.34 | L199: 21.34 | M199: 21.34 | N199: 21.34 | O199: 0
A200: 185 | B200: 2019-10-23 | C200: 21.950001 | D200: 21.950001 | E200: 21.950001 | F200: 21.950001 | G200: 0 | H200: 21.225689 | I200: 0.9670017327 | J200: 1 | K200: 21.23 | L200: 21.23 | M200: 21.23 | N200: 21.23 | O200: 0
... 6112 more rows

Sheet RS4rBenchmarkSymbolList
B1: Symbols for the "Benchmark" Securities or Indicies that will be used as the basis to evaluate the strength of our target symbols of interest. | H1: 2020-07-18T12:02:52.530 | I1: Start
H2: 2020-07-18T12:04:44.970 | I2: Stop
C3: Zero Most Recent Date Bar Encountered: | D3: FALSE | H3: =IF(H2>H1,H2-H1,"") -> 00:01:52.440 | I3: Elapsed
D5: =MATCH(1,1/(B:B<>""),1) - 9 -> 11 | E5: Symbols In List.
B8: Benchmark | C8: Description | D8: Last Trade as of most recent check
B9: Symbol | D9: Date | E9: Time | F9: Close | G9: Change | H9: Retrieved @
B10: FXAIX | C10: Fidelity 500 Index Fund (FXAIX) -Nasdaq (Daily) | D10: 2020-07-17 | E10: 18:46:00 | F10: 111.870003 | G10: 0.32 | H10: 2020-07-18T12:03:04
B11: FNCMX | C11: Fidelity NASDAQ Composite Index Fund (FNCMX) -Nasdaq (Daily) | D11: 2020-07-17 | E11: 18:46:00 | F11: 132.399994 | G11: 0.369995 | H11: 2020-07-18T12:03:16
B12: FSMDX | C12: Fidelity Mid Cap Index Fund (FSMDX) -Nasdaq (Daily) | D12: 2020-07-17 | E12: 18:46:00 | F12: 22.200001 | G12: 0.140002 | H12: 2020-07-18T12:03:27
B13: FSSNX | C13: Fidelity Small Cap Index Fund (FSSNX) -Nasdaq (Daily) | D13: 2020-07-17 | E13: 18:46:00 | F13: 18.690001 | G13: 0.07 | H13: 2020-07-18T12:03:35
B14: FSPGX | C14: Fidelity Large Cap Growth Index Fund (FSPGX) -Nasdaq (Daily) | D14: 2020-07-17 | E14: 18:46:00 | F14: 19.9 | G14: 0.07 | H14: 2020-07-18T12:03:43
B15: FLCOX | C15: Fidelity Large Cap Value Index Fund (FLCOX) -Nasdaq (Daily) | D15: 2020-07-17 | E15: 18:46:00 | F15: 11.41 | G15: 0.03 | H15: 2020-07-18T12:03:50
B16: FPADX | C16: Fidelity Emerging Markets Index Fund (FPADX) -Nasdaq (Daily) | D16: 2020-07-17 | E16: 18:46:00 | F16: 10.55 | G16: 0.09 | H16: 2020-07-18T12:03:58
B17: FSAGX | C17: Fidelity Select Gold Portfolio (FSAGX) -Nasdaq (Daily) | D17: 2020-07-17 | E17: 18:46:00 | F17: 32.130001 | G17: 0.77 | H17: 2020-07-18T12:04:11
B18: FSUTX | C18: Fidelity Select Utilities Portfolio (FSUTX) -Nasdaq (Daily) | D18: 2020-07-17 | E18: 18:46:00 | F18: 85.290001 | G18: 1.830002 | H18: 2020-07-18T12:04:25
B19: FTBFX | C19: Fidelity Total Bond Fund (FTBFX) -Nasdaq (Daily) | D19: 2020-07-17 | E19: 18:46:00 | F19: 11.46 | G19: 0.01 | H19: 2020-07-18T12:04:35
B20: FSRNX | C20: Fidelity Real Estate Index Fund (FSRNX) -Nasdaq (Daily) | D20: 2020-07-17 | E20: 18:46:00 | F20: 13.07 | G20: 0.19 | H20: 2020-07-18T12:04:44
C22: ** Specify up to 11 Benchmark Symbols and then click on the "Collect Data..." button.

Sheet RS4rBenchmarkValues
A1: Close Price History For Each of our Benchmark Symbols
B3: Bars
A4: Max | B4: =MAX(B13:W13) -> 1024
A5: Min | B5: =MIN(B13:W13) -> 1024
B7: Bar Date
B8: Range
A9: Oldest | B9: =IF(B13>0,OFFSET(B15,B13,0,1,1),"") -> 2016-06-23 | D9: =IF(D13>0,OFFSET(D15,D13,0,1,1),"") -> 2016-06-23 | F9: =IF(F13>0,OFFSET(F15,F13,0,1,1),"") -> 2016-06-23 | H9: =IF(H13>0,OFFSET(H15,H13,0,1,1),"") -> 2016-06-23 | J9: =IF(J13>0,OFFSET(J15,J13,0,1,1),"") -> 2016-06-23 | L9: =IF(L13>0,OFFSET(L15,L13,0,1,1),"") -> 2016-06-23 | N9: =IF(N13>0,OFFSET(N15,N13,0,1,1),"") -> 2016-06-23 | P9: =IF(P13>0,OFFSET(P15,P13,0,1,1),"") -> 2016-06-23 | R9: =IF(R13>0,OFFSET(R15,R13,0,1,1),"") -> 2016-06-23 | T9: =IF(T13>0,OFFSET(T15,T13,0,1,1),"") -> 2016-06-23 | V9: =IF(V13>0,OFFSET(V15,V13,0,1,1),"") -> 2016-06-23
A10: Current | B10: =IF(B13>0,B16,"") -> 2020-07-17 | D10: =IF(D13>0,D16,"") -> 2020-07-17 | F10: =IF(F13>0,F16,"") -> 2020-07-17 | H10: =IF(H13>0,H16,"") -> 2020-07-17 | J10: =IF(J13>0,J16,"") -> 2020-07-17 | L10: =IF(L13>0,L16,"") -> 2020-07-17 | N10: =IF(N13>0,N16,"") -> 2020-07-17 | P10: =IF(P13>0,P16,"") -> 2020-07-17 | R10: =IF(R13>0,R16,"") -> 2020-07-17 | T10: =IF(T13>0,T16,"") -> 2020-07-17 | V10: =IF(V13>0,V16,"") -> 2020-07-17
B13: 1024 | D13: 1024 | F13: 1024 | H13: 1024 | J13: 1024 | L13: 1024 | N13: 1024 | P13: 1024 | R13: 1024 | T13: 1024 | V13: 1024
B14: =IF(INDEX(RS4rBenchmarkSymbolList!$B$10:$B$20,COLUMN()/2)="","- - - - -",INDEX(RS4rBenchmarkSymbolList!$B$10:$B$20,COLUMN()/2)) -> FXAIX | D14: =IF(INDEX(RS4rBenchmarkSymbolList!$B$10:$B$20,COLUMN()/2)="","- - - - -",INDEX(RS4rBenchmarkSymbolList!$B$10:$B$20,COLUMN()/2)) -> FNCMX | F14: =IF(INDEX(RS4rBenchmarkSymbolList!$B$10:$B$20,COLUMN()/2)="","- - - - -",INDEX(RS4rBenchmarkSymbolList!$B$10:$B$20,COLUMN()/2)) -> FSMDX | H14: =IF(INDEX(RS4rBenchmarkSymbolList!$B$10:$B$20,COLUMN()/2)="","- - - - -",INDEX(RS4rBenchmarkSymbolList!$B$10:$B$20,COLUMN()/2)) -> FSSNX | J14: =IF(INDEX(RS4rBenchmarkSymbolList!$B$10:$B$20,COLUMN()/2)="","- - - - -",INDEX(RS4rBenchmarkSymbolList!$B$10:$B$20,COLUMN()/2)) -> FSPGX | L14: =IF(INDEX(RS4rBenchmarkSymbolList!$B$10:$B$20,COLUMN()/2)="","- - - - -",INDEX(RS4rBenchmarkSymbolList!$B$10:$B$20,COLUMN()/2)) -> FLCOX | N14: =IF(INDEX(RS4rBenchmarkSymbolList!$B$10:$B$20,COLUMN()/2)="","- - - - -",INDEX(RS4rBenchmarkSymbolList!$B$10:$B$20,COLUMN()/2)) -> FPADX | P14: =IF(INDEX(RS4rBenchmarkSymbolList!$B$10:$B$20,COLUMN()/2)="","- - - - -",INDEX(RS4rBenchmarkSymbolList!$B$10:$B$20,COLUMN()/2)) -> FSAGX | R14: =IF(INDEX(RS4rBenchmarkSymbolList!$B$10:$B$20,COLUMN()/2)="","- - - - -",INDEX(RS4rBenchmarkSymbolList!$B$10:$B$20,COLUMN()/2)) -> FSUTX | T14: =IF(INDEX(RS4rBenchmarkSymbolList!$B$10:$B$20,COLUMN()/2)="","- - - - -",INDEX(RS4rBenchmarkSymbolList!$B$10:$B$20,COLUMN()/2)) -> FTBFX | V14: =IF(INDEX(RS4rBenchmarkSymbolList!$B$10:$B$20,COLUMN()/2)="","- - - - -",INDEX(RS4rBenchmarkSymbolList!$B$10:$B$20,COLUMN()/2)) -> FSRNX
B15: Date | C15: Close | D15: Date | E15: Close | F15: Date | G15: Close | H15: Date | I15: Close | J15: Date | K15: Close | L15: Date | M15: Close | N15: Date | O15: Close | P15: Date | Q15: Close | R15: Date | S15: Close | T15: Date | U15: Close | V15: Date | W15: Close
B16: 2020-07-17 | C16: 111.87 | D16: 2020-07-17 | E16: 132.4 | F16: 2020-07-17 | G16: 22.2 | H16: 2020-07-17 | I16: 18.69 | J16: 2020-07-17 | K16: 19.9 | L16: 2020-07-17 | M16: 11.41 | N16: 2020-07-17 | O16: 10.55 | P16: 2020-07-17 | Q16: 32.13 | R16: 2020-07-17 | S16: 85.29 | T16: 2020-07-17 | U16: 11.46 | V16: 2020-07-17 | W16: 13.07
B17: 2020-07-16 | C17: 111.55 | D17: 2020-07-16 | E17: 132.03 | F17: 2020-07-16 | G17: 22.06 | H17: 2020-07-16 | I17: 18.62 | J17: 2020-07-16 | K17: 19.83 | L17: 2020-07-16 | M17: 11.38 | N17: 2020-07-16 | O17: 10.46 | P17: 2020-07-16 | Q17: 31.36 | R17: 2020-07-16 | S17: 83.46 | T17: 2020-07-16 | U17: 11.45 | V17: 2020-07-16 | W17: 12.88
B18: 2020-07-15 | C18: 111.93 | D18: 2020-07-15 | E18: 133 | F18: 2020-07-15 | G18: 22.12 | H18: 2020-07-15 | I18: 18.75 | J18: 2020-07-15 | K18: 19.97 | L18: 2020-07-15 | M18: 11.38 | N18: 2020-07-15 | O18: 10.64 | P18: 2020-07-15 | Q18: 31.58 | R18: 2020-07-15 | S18: 82.87 | T18: 2020-07-15 | U18: 11.44 | V18: 2020-07-15 | W18: 13.1
B19: 2020-07-14 | C19: 110.92 | D19: 2020-07-14 | E19: 132.22 | F19: 2020-07-14 | G19: 21.64 | H19: 2020-07-14 | I19: 18.11 | J19: 2020-07-14 | K19: 19.89 | L19: 2020-07-14 | M19: 11.2 | N19: 2020-07-14 | O19: 10.63 | P19: 2020-07-14 | Q19: 31.58 | R19: 2020-07-14 | S19: 82.87 | T19: 2020-07-14 | U19: 11.42 | V19: 2020-07-14 | W19: 12.92
B20: 2020-07-13 | C20: 109.43 | D20: 2020-07-13 | E20: 130.98 | F20: 2020-07-13 | G20: 21.29 | H20: 2020-07-13 | I20: 17.8 | J20: 2020-07-13 | K20: 19.66 | L20: 2020-07-13 | M20: 11.02 | N20: 2020-07-13 | O20: 10.63 | P20: 2020-07-13 | Q20: 30.53 | R20: 2020-07-13 | S20: 81.91 | T20: 2020-07-13 | U20: 11.43 | V20: 2020-07-13 | W20: 12.86
B21: 2020-07-10 | C21: 110.47 | D21: 2020-07-10 | E21: 133.84 | F21: 2020-07-10 | G21: 21.55 | H21: 2020-07-10 | I21: 18.04 | J21: 2020-07-10 | K21: 20.07 | L21: 2020-07-10 | M21: 11.04 | N21: 2020-07-10 | O21: 10.72 | P21: 2020-07-10 | Q21: 31.54 | R21: 2020-07-10 | S21: 81.84 | T21: 2020-07-10 | U21: 11.41 | V21: 2020-07-10 | W21: 12.95
B22: 2020-07-09 | C22: 109.82 | D22: 2020-07-09 | E22: 132.95 | F22: 2020-07-09 | G22: 21.32 | H22: 2020-07-09 | I22: 17.74 | J22: 2020-07-09 | K22: 20 | L22: 2020-07-09 | M22: 10.84 | N22: 2020-07-09 | O22: 10.77 | P22: 2020-07-09 | Q22: 31.88 | R22: 2020-07-09 | S22: 80.28 | T22: 2020-07-09 | U22: 11.43 | V22: 2020-07-09 | W22: 12.86
B23: 2020-07-08 | C23: 110.41 | D23: 2020-07-08 | E23: 132.25 | F23: 2020-07-08 | G23: 21.54 | H23: 2020-07-08 | I23: 18.1 | J23: 2020-07-08 | K23: 19.92 | L23: 2020-07-08 | M23: 11.01 | N23: 2020-07-08 | O23: 10.72 | P23: 2020-07-08 | Q23: 31.97 | R23: 2020-07-08 | S23: 81.52 | T23: 2020-07-08 | U23: 11.4 | V23: 2020-07-08 | W23: 12.99
B24: 2020-07-07 | C24: 109.55 | D24: 2020-07-07 | E24: 130.38 | F24: 2020-07-07 | G24: 21.39 | H24: 2020-07-07 | I24: 17.96 | J24: 2020-07-07 | K24: 19.65 | L24: 2020-07-07 | M24: 10.97 | N24: 2020-07-07 | O24: 10.48 | P24: 2020-07-07 | Q24: 31.17 | R24: 2020-07-07 | S24: 80.81 | T24: 2020-07-07 | U24: 11.42 | V24: 2020-07-07 | W24: 13.01
B25: 2020-07-06 | C25: 110.75 | D25: 2020-07-06 | E25: 131.49 | F25: 2020-07-06 | G25: 21.7 | H25: 2020-07-06 | I25: 18.3 | J25: 2020-07-06 | K25: 19.8 | L25: 2020-07-06 | M25: 11.13 | N25: 2020-07-06 | O25: 10.59 | P25: 2020-07-06 | Q25: 30.45 | R25: 2020-07-06 | S25: 81.35 | T25: 2020-07-06 | U25: 11.39 | V25: 2020-07-06 | W25: 13.36
B26: 2020-07-02 | C26: 109.02 | D26: 2020-07-02 | E26: 128.64 | F26: 2020-07-02 | G26: 21.48 | H26: 2020-07-02 | I26: 18.16 | J26: 2020-07-02 | K26: 19.4 | L26: 2020-07-02 | M26: 11.01 | N26: 2020-07-02 | O26: 10.21 | P26: 2020-07-02 | Q26: 30.06 | R26: 2020-07-02 | S26: 82.46 | T26: 2020-07-02 | U26: 11.38 | V26: 2020-07-02 | W26: 13.42
B27: 2020-07-01 | C27: 108.5 | D27: 2020-07-01 | E27: 127.95 | F27: 2020-07-01 | G27: 21.37 | H27: 2020-07-01 | I27: 18.1 | J27: 2020-07-01 | K27: 19.3 | L27: 2020-07-01 | M27: 10.95 | N27: 2020-07-01 | O27: 9.99 | P27: 2020-07-01 | Q27: 30.46 | R27: 2020-07-01 | S27: 82.01 | T27: 2020-07-01 | U27: 11.35 | V27: 2020-07-01 | W27: 13.47
B28: 2020-06-30 | C28: 107.95 | D28: 2020-06-30 | E28: 126.73 | F28: 2020-06-30 | G28: 21.35 | H28: 2020-06-30 | I28: 18.27 | J28: 2020-06-30 | K28: 19.05 | L28: 2020-06-30 | M28: 10.98 | N28: 2020-06-30 | O28: 9.93 | P28: 2020-06-30 | Q28: 30.46 | R28: 2020-06-30 | S28: 80.57 | T28: 2020-06-30 | U28: 11.34 | V28: 2020-06-30 | W28: 13.15
B29: 2020-06-29 | C29: 106.31 | D29: 2020-06-29 | E29: 124.38 | F29: 2020-06-29 | G29: 21.05 | H29: 2020-06-29 | I29: 18.02 | J29: 2020-06-29 | K29: 18.7 | L29: 2020-06-29 | M29: 10.85 | N29: 2020-06-29 | O29: 9.93 | P29: 2020-06-29 | Q29: 29.53 | R29: 2020-06-29 | S29: 80.37 | T29: 2020-06-29 | U29: 11.32 | V29: 2020-06-29 | W29: 13.03
B30: 2020-06-26 | C30: 104.76 | D30: 2020-06-26 | E30: 122.89 | F30: 2020-06-26 | G30: 20.71 | H30: 2020-06-26 | I30: 17.47 | J30: 2020-06-26 | K30: 18.51 | L30: 2020-06-26 | M30: 10.65 | N30: 2020-06-26 | O30: 9.87 | P30: 2020-06-26 | Q30: 29.23 | R30: 2020-06-26 | S30: 78.66 | T30: 2020-06-26 | U30: 11.33 | V30: 2020-06-26 | W30: 12.77
B31: 2020-06-25 | C31: 107.36 | D31: 2020-06-25 | E31: 126.16 | F31: 2020-06-25 | G31: 21.1 | H31: 2020-06-25 | I31: 17.91 | J31: 2020-06-25 | K31: 18.95 | L31: 2020-06-25 | M31: 10.9 | N31: 2020-06-25 | O31: 10 | P31: 2020-06-25 | Q31: 29.04 | R31: 2020-06-25 | S31: 79.84 | T31: 2020-06-25 | U31: 11.32 | V31: 2020-06-25 | W31: 13.02
B32: 2020-06-24 | C32: 106.19 | D32: 2020-06-24 | E32: 124.8 | F32: 2020-06-24 | G32: 20.86 | H32: 2020-06-24 | I32: 17.61 | J32: 2020-06-24 | K32: 18.74 | L32: 2020-06-24 | M32: 10.78 | N32: 2020-06-24 | O32: 9.96 | P32: 2020-06-24 | Q32: 28.87 | R32: 2020-06-24 | S32: 80.56 | T32: 2020-06-24 | U32: 11.33 | V32: 2020-06-24 | W32: 12.82
B33: 2020-06-23 | C33: 109 | D33: 2020-06-23 | E33: 127.59 | F33: 2020-06-23 | G33: 21.51 | H33: 2020-06-23 | I33: 18.24 | J33: 2020-06-23 | K33: 19.19 | L33: 2020-06-23 | M33: 11.11 | N33: 2020-06-23 | O33: 10.09 | P33: 2020-06-23 | Q33: 29.34 | R33: 2020-06-23 | S33: 81.47 | T33: 2020-06-23 | U33: 11.34 | V33: 2020-06-23 | W33: 13.17
B34: 2020-06-22 | C34: 108.54 | D34: 2020-06-22 | E34: 126.63 | F34: 2020-06-22 | G34: 21.52 | H34: 2020-06-22 | I34: 18.16 | J34: 2020-06-22 | K34: 19.07 | L34: 2020-06-22 | M34: 11.11 | N34: 2020-06-22 | O34: 9.98 | P34: 2020-06-22 | Q34: 28.92 | R34: 2020-06-22 | S34: 82.38 | T34: 2020-06-22 | U34: 11.34 | V34: 2020-06-22 | W34: 13.24
B35: 2020-06-19 | C35: 107.83 | D35: 2020-06-19 | E35: 125.23 | F35: 2020-06-19 | G35: 21.42 | H35: 2020-06-19 | I35: 17.97 | J35: 2020-06-19 | K35: 18.84 | L35: 2020-06-19 | M35: 11.11 | N35: 2020-06-19 | O35: 9.91 | P35: 2020-06-19 | Q35: 27.95 | R35: 2020-06-19 | S35: 81.21 | T35: 2020-06-19 | U35: 11.35 | V35: 2020-06-19 | W35: 13.17
B36: 2020-06-18 | C36: 108.43 | D36: 2020-06-18 | E36: 125.19 | F36: 2020-06-18 | G36: 21.6 | H36: 2020-06-18 | I36: 18.08 | J36: 2020-06-18 | K36: 18.9 | L36: 2020-06-18 | M36: 11.21 | N36: 2020-06-18 | O36: 9.87 | P36: 2020-06-18 | Q36: 26.98 | R36: 2020-06-18 | S36: 83.73 | T36: 2020-06-18 | U36: 11.33 | V36: 2020-06-18 | W36: 13.61
B37: 2020-06-17 | C37: 108.36 | D37: 2020-06-17 | E37: 124.78 | F37: 2020-06-17 | G37: 21.59 | H37: 2020-06-17 | I37: 18.07 | J37: 2020-06-17 | K37: 18.87 | L37: 2020-06-17 | M37: 11.22 | N37: 2020-06-17 | O37: 9.87 | P37: 2020-06-17 | Q37: 27.34 | R37: 2020-06-17 | S37: 83.72 | T37: 2020-06-17 | U37: 11.33 | V37: 2020-06-17 | W37: 13.76
B38: 2020-06-16 | C38: 108.75 | D38: 2020-06-16 | E38: 124.6 | F38: 2020-06-16 | G38: 21.72 | H38: 2020-06-16 | I38: 18.4 | J38: 2020-06-16 | K38: 18.85 | L38: 2020-06-16 | M38: 11.33 | N38: 2020-06-16 | O38: 9.82 | P38: 2020-06-16 | Q38: 27.23 | R38: 2020-06-16 | S38: 84.12 | T38: 2020-06-16 | U38: 11.33 | V38: 2020-06-16 | W38: 14.06
B39: 2020-06-15 | C39: 106.73 | D39: 2020-06-15 | E39: 122.46 | F39: 2020-06-15 | G39: 21.33 | H39: 2020-06-15 | I39: 17.98 | J39: 2020-06-15 | K39: 18.48 | L39: 2020-06-15 | M39: 11.15 | N39: 2020-06-15 | O39: 9.73 | P39: 2020-06-15 | Q39: 27.97 | R39: 2020-06-15 | S39: 83.3 | T39: 2020-06-15 | U39: 11.28 | V39: 2020-06-15 | W39: 13.7
B40: 2020-06-12 | C40: 105.84 | D40: 2020-06-12 | E40: 120.73 | F40: 2020-06-12 | G40: 21.03 | H40: 2020-06-12 | I40: 17.58 | J40: 2020-06-12 | K40: 18.29 | L40: 2020-06-12 | M40: 11.05 | N40: 2020-06-12 | O40: 9.8 | P40: 2020-06-12 | Q40: 27.21 | R40: 2020-06-12 | S40: 82.59 | T40: 2020-06-12 | U40: 11.29 | V40: 2020-06-12 | W40: 13.65
B41: 2020-06-11 | C41: 104.45 | D41: 2020-06-11 | E41: 119.51 | F41: 2020-06-11 | G41: 20.67 | H41: 2020-06-11 | I41: 17.18 | J41: 2020-06-11 | K41: 18.1 | L41: 2020-06-11 | M41: 10.86 | N41: 2020-06-11 | O41: 9.65 | P41: 2020-06-11 | Q41: 27.45 | R41: 2020-06-11 | S41: 82.65 | T41: 2020-06-11 | U41: 11.3 | V41: 2020-06-11 | W41: 13.16
B42: 2020-06-10 | C42: 110.98 | D42: 2020-06-10 | E42: 126.15 | F42: 2020-06-10 | G42: 22.05 | H42: 2020-06-10 | I42: 18.58 | J42: 2020-06-10 | K42: 19.14 | L42: 2020-06-10 | M42: 11.62 | N42: 2020-06-10 | O42: 10.06 | P42: 2020-06-10 | Q42: 28.68 | R42: 2020-06-10 | S42: 86.52 | T42: 2020-06-10 | U42: 11.33 | V42: 2020-06-10 | W42: 14.08
B43: 2020-06-09 | C43: 111.57 | D43: 2020-06-09 | E43: 125.32 | F43: 2020-06-09 | G43: 22.41 | H43: 2020-06-09 | I43: 19.08 | J43: 2020-06-09 | K43: 19.01 | L43: 2020-06-09 | M43: 11.87 | N43: 2020-06-09 | O43: 10.02 | P43: 2020-06-09 | Q43: 27.63 | R43: 2020-06-09 | S43: 87.16 | T43: 2020-06-09 | U43: 11.29 | V43: 2020-06-09 | W43: 14.6
B44: 2020-06-08 | C44: 112.44 | D44: 2020-06-08 | E44: 124.97 | F44: 2020-06-08 | G44: 22.88 | H44: 2020-06-08 | I44: 19.46 | J44: 2020-06-08 | K44: 19.01 | L44: 2020-06-08 | M44: 12.12 | N44: 2020-06-08 | O44: 10.07 | P44: 2020-06-08 | Q44: 27.26 | R44: 2020-06-08 | S44: 89.42 | T44: 2020-06-08 | U44: 11.28 | V44: 2020-06-08 | W44: 14.95
B45: 2020-06-05 | C45: 111.1 | D45: 2020-06-05 | E45: 123.57 | F45: 2020-06-05 | G45: 22.45 | H45: 2020-06-05 | I45: 19.08 | J45: 2020-06-05 | K45: 18.85 | L45: 2020-06-05 | M45: 11.89 | N45: 2020-06-05 | O45: 10.01 | P45: 2020-06-05 | Q45: 26.99 | R45: 2020-06-05 | S45: 86.78 | T45: 2020-06-05 | U45: 11.25 | V45: 2020-06-05 | W45: 14.5
B46: 2020-06-04 | C46: 108.26 | D46: 2020-06-04 | E46: 121.07 | F46: 2020-06-04 | G46: 21.99 | H46: 2020-06-04 | I46: 18.42 | J46: 2020-06-04 | K46: 18.61 | L46: 2020-06-04 | M46: 11.63 | N46: 2020-06-04 | O46: 9.8 | P46: 2020-06-04 | Q46: 27.49 | R46: 2020-06-04 | S46: 85.28 | T46: 2020-06-04 | U46: 11.21 | V46: 2020-06-04 | W46: 13.91
B47: 2020-06-03 | C47: 108.6 | D47: 2020-06-03 | E47: 121.91 | F47: 2020-06-03 | G47: 22.04 | H47: 2020-06-03 | I47: 18.42 | J47: 2020-06-03 | K47: 18.8 | L47: 2020-06-03 | M47: 11.57 | N47: 2020-06-03 | O47: 9.84 | P47: 2020-06-03 | Q47: 27.31 | R47: 2020-06-03 | S47: 86.74 | T47: 2020-06-03 | U47: 11.23 | V47: 2020-06-03 | W47: 13.98
B48: 2020-06-02 | C48: 107.13 | D48: 2020-06-02 | E48: 120.96 | F48: 2020-06-02 | G48: 21.55 | H48: 2020-06-02 | I48: 17.99 | J48: 2020-06-02 | K48: 18.65 | L48: 2020-06-02 | M48: 11.31 | N48: 2020-06-02 | O48: 9.64 | P48: 2020-06-02 | Q48: 28.37 | R48: 2020-06-02 | S48: 85.66 | T48: 2020-06-02 | U48: 11.22 | V48: 2020-06-02 | W48: 13.44
B49: 2020-06-01 | C49: 106.25 | D49: 2020-06-01 | E49: 120.25 | F49: 2020-06-01 | G49: 21.34 | H49: 2020-06-01 | I49: 17.83 | J49: 2020-06-01 | K49: 18.53 | L49: 2020-06-01 | M49: 11.2 | N49: 2020-06-01 | O49: 9.45 | P49: 2020-06-01 | Q49: 29.33 | R49: 2020-06-01 | S49: 85.18 | T49: 2020-06-01 | U49: 11.2 | V49: 2020-06-01 | W49: 13.28
B50: 2020-05-29 | C50: 105.85 | D50: 2020-05-29 | E50: 119.47 | F50: 2020-05-29 | G50: 21.1 | H50: 2020-05-29 | I50: 17.68 | J50: 2020-05-29 | K50: 18.44 | L50: 2020-05-29 | M50: 11.14 | N50: 2020-05-29 | O50: 9.27 | P50: 2020-05-29 | Q50: 28.59 | R50: 2020-05-29 | S50: 83.92 | T50: 2020-05-29 | U50: 11.19 | V50: 2020-05-29 | W50: 12.97
B51: 2020-05-28 | C51: 105.33 | D51: 2020-05-28 | E51: 117.95 | F51: 2020-05-28 | G51: 21.01 | H51: 2020-05-28 | I51: 17.76 | J51: 2020-05-28 | K51: 18.26 | L51: 2020-05-28 | M51: 11.14 | N51: 2020-05-28 | O51: 9.16 | P51: 2020-05-28 | Q51: 28.17 | R51: 2020-05-28 | S51: 83.87 | T51: 2020-05-28 | U51: 11.15 | V51: 2020-05-28 | W51: 13.2
B52: 2020-05-27 | C52: 105.54 | D52: 2020-05-27 | E52: 118.49 | F52: 2020-05-27 | G52: 21.11 | H52: 2020-05-27 | I52: 18.22 | J52: 2020-05-27 | K52: 18.24 | L52: 2020-05-27 | M52: 11.22 | N52: 2020-05-27 | O52: 9.19 | P52: 2020-05-27 | Q52: 28.03 | R52: 2020-05-27 | S52: 81.79 | T52: 2020-05-27 | U52: 11.14 | V52: 2020-05-27 | W52: 13.19
B53: 2020-05-26 | C53: 103.99 | D53: 2020-05-26 | E53: 117.58 | F53: 2020-05-26 | G53: 20.71 | H53: 2020-05-26 | I53: 17.67 | J53: 2020-05-26 | K53: 18.09 | L53: 2020-05-26 | M53: 10.96 | N53: 2020-05-26 | O53: 9.16 | P53: 2020-05-26 | Q53: 28.38 | R53: 2020-05-26 | S53: 80.95 | T53: 2020-05-26 | U53: 11.13 | V53: 2020-05-26 | W53: 12.96
B54: 2020-05-22 | C54: 102.73 | D54: 2020-05-22 | E54: 117.37 | F54: 2020-05-22 | G54: 20.22 | H54: 2020-05-22 | I54: 17.19 | J54: 2020-05-22 | K54: 18.04 | L54: 2020-05-22 | M54: 10.67 | N54: 2020-05-22 | O54: 8.97 | P54: 2020-05-22 | Q54: 29.72 | R54: 2020-05-22 | S54: 80.41 | T54: 2020-05-22 | U54: 11.11 | V54: 2020-05-22 | W54: 12.35
B55: 2020-05-21 | C55: 102.47 | D55: 2020-05-21 | E55: 116.87 | F55: 2020-05-21 | G55: 20.14 | H55: 2020-05-21 | I55: 17.09 | J55: 2020-05-21 | K55: 17.96 | L55: 2020-05-21 | M55: 10.67 | N55: 2020-05-21 | O55: 9.18 | P55: 2020-05-21 | Q55: 29.73 | R55: 2020-05-21 | S55: 79.43 | T55: 2020-05-21 | U55: 11.11 | V55: 2020-05-21 | W55: 12.32
B56: 2020-05-20 | C56: 103.27 | D56: 2020-05-20 | E56: 118.02 | F56: 2020-05-20 | G56: 20.24 | H56: 2020-05-20 | I56: 17.08 | J56: 2020-05-20 | K56: 18.1 | L56: 2020-05-20 | M56: 10.73 | N56: 2020-05-20 | O56: 9.24 | P56: 2020-05-20 | Q56: 30.58 | R56: 2020-05-20 | S56: 80.21 | T56: 2020-05-20 | U56: 11.09 | V56: 2020-05-20 | W56: 12.31
B57: 2020-05-19 | C57: 101.56 | D57: 2020-05-19 | E57: 115.58 | F57: 2020-05-19 | G57: 19.89 | H57: 2020-05-19 | I57: 16.58 | J57: 2020-05-19 | K57: 17.8 | L57: 2020-05-19 | M57: 10.54 | N57: 2020-05-19 | O57: 9.12 | P57: 2020-05-19 | Q57: 31.03 | R57: 2020-05-19 | S57: 79.91 | T57: 2020-05-19 | U57: 11.05 | V57: 2020-05-19 | W57: 12.16
B58: 2020-05-18 | C58: 102.62 | D58: 2020-05-18 | E58: 116.21 | F58: 2020-05-18 | G58: 20.07 | H58: 2020-05-18 | I58: 16.91 | J58: 2020-05-18 | K58: 17.89 | L58: 2020-05-18 | M58: 10.72 | N58: 2020-05-18 | O58: 9.12 | P58: 2020-05-18 | Q58: 30.15 | R58: 2020-05-18 | S58: 81.07 | T58: 2020-05-18 | U58: 11.02 | V58: 2020-05-18 | W58: 12.34
B59: 2020-05-15 | C59: 99.48 | D59: 2020-05-15 | E59: 113.42 | F59: 2020-05-15 | G59: 19.2 | H59: 2020-05-15 | I59: 15.93 | J59: 2020-05-15 | K59: 17.49 | L59: 2020-05-15 | M59: 10.25 | N59: 2020-05-15 | O59: 8.9 | P59: 2020-05-15 | Q59: 30.58 | R59: 2020-05-15 | S59: 77.61 | T59: 2020-05-15 | U59: 11.01 | V59: 2020-05-15 | W59: 11.54
B60: 2020-05-14 | C60: 99.08 | D60: 2020-05-14 | E60: 112.52 | F60: 2020-05-14 | G60: 19.11 | H60: 2020-05-14 | I60: 15.69 | J60: 2020-05-14 | K60: 17.35 | L60: 2020-05-14 | M60: 10.25 | N60: 2020-05-14 | O60: 8.98 | P60: 2020-05-14 | Q60: 29.44 | R60: 2020-05-14 | S60: 78.69 | T60: 2020-05-14 | U60: 11 | V60: 2020-05-14 | W60: 11.6
B61: 2020-05-13 | C61: 97.93 | D61: 2020-05-13 | E61: 111.49 | F61: 2020-05-13 | G61: 18.83 | H61: 2020-05-13 | I61: 15.63 | J61: 2020-05-13 | K61: 17.18 | L61: 2020-05-13 | M61: 10.11 | N61: 2020-05-13 | O61: 8.94 | P61: 2020-05-13 | Q61: 28.55 | R61: 2020-05-13 | S61: 77.73 | T61: 2020-05-13 | U61: 11 | V61: 2020-05-13 | W61: 11.48
B62: 2020-05-12 | C62: 99.66 | D62: 2020-05-12 | E62: 113.25 | F62: 2020-05-12 | G62: 19.36 | H62: 2020-05-12 | I62: 16.16 | J62: 2020-05-12 | K62: 17.44 | L62: 2020-05-12 | M62: 10.35 | N62: 2020-05-12 | O62: 8.95 | P62: 2020-05-12 | Q62: 28.43 | R62: 2020-05-12 | S62: 78.67 | T62: 2020-05-12 | U62: 11 | V62: 2020-05-12 | W62: 11.82
B63: 2020-05-11 | C63: 101.73 | D63: 2020-05-11 | E63: 115.65 | F63: 2020-05-11 | G63: 19.88 | H63: 2020-05-11 | I63: 16.74 | J63: 2020-05-11 | K63: 17.78 | L63: 2020-05-11 | M63: 10.6 | N63: 2020-05-11 | O63: 9.04 | P63: 2020-05-11 | Q63: 28.45 | R63: 2020-05-11 | S63: 79.35 | T63: 2020-05-11 | U63: 10.96 | V63: 2020-05-11 | W63: 12.48
B64: 2020-05-08 | C64: 101.72 | D64: 2020-05-08 | E64: 114.76 | F64: 2020-05-08 | G64: 20 | H64: 2020-05-08 | I64: 16.85 | J64: 2020-05-08 | K64: 17.66 | L64: 2020-05-08 | M64: 10.7 | N64: 2020-05-08 | O64: 9.03 | P64: 2020-05-08 | Q64: 29.31 | R64: 2020-05-08 | S64: 79.78 | T64: 2020-05-08 | U64: 10.99 | V64: 2020-05-08 | W64: 12.77
B65: 2020-05-07 | C65: 100.01 | D65: 2020-05-07 | E65: 112.94 | F65: 2020-05-07 | G65: 19.53 | H65: 2020-05-07 | I65: 16.25 | J65: 2020-05-07 | K65: 17.43 | L65: 2020-05-07 | M65: 10.45 | N65: 2020-05-07 | O65: 8.89 | P65: 2020-05-07 | Q65: 29.29 | R65: 2020-05-07 | S65: 77.68 | T65: 2020-05-07 | U65: 11.01 | V65: 2020-05-07 | W65: 12.45
B66: 2020-05-06 | C66: 98.84 | D66: 2020-05-06 | E66: 111.35 | F66: 2020-05-06 | G66: 19.19 | H66: 2020-05-06 | I66: 16 | J66: 2020-05-06 | K66: 17.2 | L66: 2020-05-06 | M66: 10.32 | N66: 2020-05-06 | O66: 8.84 | P66: 2020-05-06 | Q66: 28.36 | R66: 2020-05-06 | S66: 77.17 | T66: 2020-05-06 | U66: 10.97 | V66: 2020-05-06 | W66: 12.21
B67: 2020-05-05 | C67: 99.52 | D67: 2020-05-05 | E67: 110.77 | F67: 2020-05-05 | G67: 19.34 | H67: 2020-05-05 | I67: 16.13 | J67: 2020-05-05 | K67: 17.18 | L67: 2020-05-05 | M67: 10.48 | N67: 2020-05-05 | O67: 8.87 | P67: 2020-05-05 | Q67: 29.17 | R67: 2020-05-05 | S67: 79.45 | T67: 2020-05-05 | U67: 11.01 | V67: 2020-05-05 | W67: 12.51
B68: 2020-05-04 | C68: 98.63 | D68: 2020-05-04 | E68: 109.54 | F68: 2020-05-04 | G68: 19.15 | H68: 2020-05-04 | I68: 16.01 | J68: 2020-05-04 | K68: 16.96 | L68: 2020-05-04 | M68: 10.43 | N68: 2020-05-04 | O68: 8.81 | P68: 2020-05-04 | Q68: 28.67 | R68: 2020-05-04 | S68: 78.53 | T68: 2020-05-04 | U68: 11 | V68: 2020-05-04 | W68: 12.5
B69: 2020-05-01 | C69: 98.21 | D69: 2020-05-01 | E69: 108.21 | F69: 2020-05-01 | G69: 19.07 | H69: 2020-05-01 | I69: 15.96 | J69: 2020-05-01 | K69: 16.8 | L69: 2020-05-01 | M69: 10.44 | N69: 2020-05-01 | O69: 8.87 | P69: 2020-05-01 | Q69: 28.01 | R69: 2020-05-01 | S69: 77.99 | T69: 2020-05-01 | U69: 11.01 | V69: 2020-05-01 | W69: 12.57
B70: 2020-04-30 | C70: 101.04 | D70: 2020-04-30 | E70: 111.79 | F70: 2020-04-30 | G70: 19.71 | H70: 2020-04-30 | I70: 16.6 | J70: 2020-04-30 | K70: 17.27 | L70: 2020-04-30 | M70: 10.77 | N70: 2020-04-30 | O70: 9.09 | P70: 2020-04-30 | Q70: 27.21 | R70: 2020-04-30 | S70: 80.2 | T70: 2020-04-30 | U70: 11.01 | V70: 2020-04-30 | W70: 13.05
B71: 2020-04-29 | C71: 101.97 | D71: 2020-04-29 | E71: 112.11 | F71: 2020-04-29 | G71: 20.19 | H71: 2020-04-29 | I71: 17.23 | J71: 2020-04-29 | K71: 17.3 | L71: 2020-04-29 | M71: 11.01 | N71: 2020-04-29 | O71: 9.17 | P71: 2020-04-29 | Q71: 28.44 | R71: 2020-04-29 | S71: 82.1 | T71: 2020-04-29 | U71: 11 | V71: 2020-04-29 | W71: 13.26
B72: 2020-04-28 | C72: 99.33 | D72: 2020-04-28 | E72: 108.24 | F72: 2020-04-28 | G72: 19.59 | H72: 2020-04-28 | I72: 16.44 | J72: 2020-04-28 | K72: 16.79 | L72: 2020-04-28 | M72: 10.75 | N72: 2020-04-28 | O72: 8.94 | P72: 2020-04-28 | Q72: 28.27 | R72: 2020-04-28 | S72: 82.47 | T72: 2020-04-28 | U72: 10.98 | V72: 2020-04-28 | W72: 12.96
B73: 2020-04-27 | C73: 99.85 | D73: 2020-04-27 | E73: 109.78 | F73: 2020-04-27 | G73: 19.45 | H73: 2020-04-27 | I73: 16.23 | J73: 2020-04-27 | K73: 17.01 | L73: 2020-04-27 | M73: 10.68 | N73: 2020-04-27 | O73: 8.87 | P73: 2020-04-27 | Q73: 28.29 | R73: 2020-04-27 | S73: 82.11 | T73: 2020-04-27 | U73: 10.94 | V73: 2020-04-27 | W73: 12.75
B74: 2020-04-24 | C74: 98.4 | D74: 2020-04-24 | E74: 108.57 | F74: 2020-04-24 | G74: 18.92 | H74: 2020-04-24 | I74: 15.61 | J74: 2020-04-24 | K74: 16.82 | L74: 2020-04-24 | M74: 10.44 | N74: 2020-04-24 | O74: 8.75 | P74: 2020-04-24 | Q74: 28.17 | R74: 2020-04-24 | S74: 80.74 | T74: 2020-04-24 | U74: 10.98 | V74: 2020-04-24 | W74: 12.27
B75: 2020-04-23 | C75: 97.05 | D75: 2020-04-23 | E75: 106.81 | F75: 2020-04-23 | G75: 18.65 | H75: 2020-04-23 | I75: 15.37 | J75: 2020-04-23 | K75: 16.55 | L75: 2020-04-23 | M75: 10.31 | N75: 2020-04-23 | O75: 8.8 | P75: 2020-04-23 | Q75: 27.84 | R75: 2020-04-23 | S75: 80.08 | T75: 2020-04-23 | U75: 10.98 | V75: 2020-04-23 | W75: 12.18
B76: 2020-04-22 | C76: 97.09 | D76: 2020-04-22 | E76: 106.83 | F76: 2020-04-22 | G76: 18.61 | H76: 2020-04-22 | I76: 15.23 | J76: 2020-04-22 | K76: 16.56 | L76: 2020-04-22 | M76: 10.31 | N76: 2020-04-22 | O76: 8.83 | P76: 2020-04-22 | Q76: 27.04 | R76: 2020-04-22 | S76: 81.36 | T76: 2020-04-22 | U76: 10.96 | V76: 2020-04-22 | W76: 12.32
B77: 2020-04-21 | C77: 94.92 | D77: 2020-04-21 | E77: 103.9 | F77: 2020-04-21 | G77: 18.22 | H77: 2020-04-21 | I77: 15.01 | J77: 2020-04-21 | K77: 16.12 | L77: 2020-04-21 | M77: 10.14 | N77: 2020-04-21 | O77: 8.61 | P77: 2020-04-21 | Q77: 25.58 | R77: 2020-04-21 | S77: 78.88 | T77: 2020-04-21 | U77: 10.96 | V77: 2020-04-21 | W77: 12.16
B78: 2020-04-20 | C78: 97.92 | D78: 2020-04-20 | E78: 107.65 | F78: 2020-04-20 | G78: 18.78 | H78: 2020-04-20 | I78: 15.36 | J78: 2020-04-20 | K78: 16.7 | L78: 2020-04-20 | M78: 10.41 | N78: 2020-04-20 | O78: 8.84 | P78: 2020-04-20 | Q78: 25.68 | R78: 2020-04-20 | S78: 80.42 | T78: 2020-04-20 | U78: 10.97 | V78: 2020-04-20 | W78: 12.36
B79: 2020-04-17 | C79: 99.7 | D79: 2020-04-17 | E79: 108.78 | F79: 2020-04-17 | G79: 19.16 | H79: 2020-04-17 | I79: 15.56 | J79: 2020-04-17 | K79: 16.93 | L79: 2020-04-17 | M79: 10.64 | N79: 2020-04-17 | O79: 8.91 | P79: 2020-04-17 | Q79: 25.22 | R79: 2020-04-17 | S79: 83.28 | T79: 2020-04-17 | U79: 10.98 | V79: 2020-04-17 | W79: 12.94
B80: 2020-04-16 | C80: 97.09 | D80: 2020-04-16 | E80: 107.29 | F80: 2020-04-16 | G80: 18.44 | H80: 2020-04-16 | I80: 14.92 | J80: 2020-04-16 | K80: 16.63 | L80: 2020-04-16 | M80: 10.23 | N80: 2020-04-16 | O80: 8.76 | P80: 2020-04-16 | Q80: 25.75 | R80: 2020-04-16 | S80: 80.3 | T80: 2020-04-16 | U80: 10.99 | V80: 2020-04-16 | W80: 12.48
B81: 2020-04-15 | C81: 96.53 | D81: 2020-04-15 | E81: 105.54 | F81: 2020-04-15 | G81: 18.44 | H81: 2020-04-15 | I81: 14.99 | J81: 2020-04-15 | K81: 16.43 | L81: 2020-04-15 | M81: 10.27 | N81: 2020-04-15 | O81: 8.75 | P81: 2020-04-15 | Q81: 25.4 | R81: 2020-04-15 | S81: 80.46 | T81: 2020-04-15 | U81: 10.98 | V81: 2020-04-15 | W81: 12.73
B82: 2020-04-14 | C82: 98.7 | D82: 2020-04-14 | E82: 107.08 | F82: 2020-04-14 | G82: 19.02 | H82: 2020-04-14 | I82: 15.67 | J82: 2020-04-14 | K82: 16.66 | L82: 2020-04-14 | M82: 10.61 | N82: 2020-04-14 | O82: 8.89 | P82: 2020-04-14 | Q82: 25.93 | R82: 2020-04-14 | S82: 83.74 | T82: 2020-04-14 | U82: 10.96 | V82: 2020-04-14 | W82: 13.33
B83: 2020-04-13 | C83: 95.76 | D83: 2020-04-13 | E83: 103.01 | F83: 2020-04-13 | G83: 18.54 | H83: 2020-04-13 | I83: 15.35 | J83: 2020-04-13 | K83: 16.04 | L83: 2020-04-13 | M83: 10.4 | N83: 2020-04-13 | O83: 8.73 | P83: 2020-04-13 | Q83: 25.44 | R83: 2020-04-13 | S83: 81.8 | T83: 2020-04-13 | U83: 10.93 | V83: 2020-04-13 | W83: 12.98
B84: 2020-04-09 | C84: 96.74 | D84: 2020-04-09 | E84: 102.52 | F84: 2020-04-09 | G84: 18.98 | H84: 2020-04-09 | I84: 15.78 | J84: 2020-04-09 | K84: 16.08 | L84: 2020-04-09 | M84: 10.62 | N84: 2020-04-09 | O84: 8.75 | P84: 2020-04-09 | Q84: 23.85 | R84: 2020-04-09 | S84: 84.49 | T84: 2020-04-09 | U84: 10.9 | V84: 2020-04-09 | W84: 13.58
B85: 2020-04-08 | C85: 95.34 | D85: 2020-04-08 | E85: 101.72 | F85: 2020-04-08 | G85: 18.46 | H85: 2020-04-08 | I85: 15.09 | J85: 2020-04-08 | K85: 15.93 | L85: 2020-04-08 | M85: 10.36 | N85: 2020-04-08 | O85: 8.71 | P85: 2020-04-08 | Q85: 21.86 | R85: 2020-04-08 | S85: 81.01 | T85: 2020-04-08 | U85: 10.75 | V85: 2020-04-08 | W85: 12.81
B86: 2020-04-07 | C86: 92.16 | D86: 2020-04-07 | E86: 99.16 | F86: 2020-04-07 | G86: 17.66 | H86: 2020-04-07 | I86: 14.42 | J86: 2020-04-07 | K86: 15.46 | L86: 2020-04-07 | M86: 9.95 | N86: 2020-04-07 | O86: 8.66 | P86: 2020-04-07 | Q86: 21.76 | R86: 2020-04-07 | S86: 76.35 | T86: 2020-04-07 | U86: 10.74 | V86: 2020-04-07 | W86: 12.09
B87: 2020-04-06 | C87: 92.31 | D87: 2020-04-06 | E87: 99.49 | F87: 2020-04-06 | G87: 17.51 | H87: 2020-04-06 | I87: 14.41 | J87: 2020-04-06 | K87: 15.52 | L87: 2020-04-06 | M87: 9.91 | N87: 2020-04-06 | O87: 8.54 | P87: 2020-04-06 | Q87: 21.77 | R87: 2020-04-06 | S87: 76.99 | T87: 2020-04-06 | U87: 10.7 | V87: 2020-04-06 | W87: 11.89
B88: 2020-04-03 | C88: 86.24 | D88: 2020-04-03 | E88: 92.68 | F88: 2020-04-03 | G88: 16.2 | H88: 2020-04-03 | I88: 13.32 | J88: 2020-04-03 | K88: 14.44 | L88: 2020-04-03 | M88: 9.3 | N88: 2020-04-03 | O88: 8.19 | P88: 2020-04-03 | Q88: 20.63 | R88: 2020-04-03 | S88: 71.03 | T88: 2020-04-03 | U88: 10.7 | V88: 2020-04-03 | W88: 10.92
B89: 2020-04-02 | C89: 87.56 | D89: 2020-04-02 | E89: 94.12 | F89: 2020-04-02 | G89: 16.55 | H89: 2020-04-02 | I89: 13.74 | J89: 2020-04-02 | K89: 14.67 | L89: 2020-04-02 | M89: 9.45 | N89: 2020-04-02 | O89: 8.3 | P89: 2020-04-02 | Q89: 20.84 | R89: 2020-04-02 | S89: 73.66 | T89: 2020-04-02 | U89: 10.71 | V89: 2020-04-02 | W89: 11.07
B90: 2020-04-01 | C90: 85.59 | D90: 2020-04-01 | E90: 92.5 | F90: 2020-04-01 | G90: 16.37 | H90: 2020-04-01 | I90: 13.57 | J90: 2020-04-01 | K90: 14.39 | L90: 2020-04-01 | M90: 9.23 | N90: 2020-04-01 | O90: 8.07 | P90: 2020-04-01 | Q90: 20 | R90: 2020-04-01 | S90: 71.76 | T90: 2020-04-01 | U90: 10.69 | V90: 2020-04-01 | W90: 11.24
B91: 2020-03-31 | C91: 89.54 | D91: 2020-03-31 | E91: 96.77 | F91: 2020-03-31 | G91: 17.24 | H91: 2020-03-31 | I91: 14.59 | J91: 2020-03-31 | K91: 15.05 | L91: 2020-03-31 | M91: 9.68 | N91: 2020-03-31 | O91: 8.36 | P91: 2020-03-31 | Q91: 19.58 | R91: 2020-03-31 | S91: 76.56 | T91: 2020-03-31 | U91: 10.71 | V91: 2020-03-31 | W91: 12.1
B92: 2020-03-30 | C92: 90.98 | D92: 2020-03-30 | E92: 97.7 | F92: 2020-03-30 | G92: 17.57 | H92: 2020-03-30 | I92: 14.66 | J92: 2020-03-30 | K92: 15.25 | L92: 2020-03-30 | M92: 9.86 | N92: 2020-03-30 | O92: 8.31 | P92: 2020-03-30 | Q92: 20.08 | R92: 2020-03-30 | S92: 79.82 | T92: 2020-03-30 | U92: 10.65 | V92: 2020-03-30 | W92: 12.29
B93: 2020-03-27 | C93: 88.02 | D93: 2020-03-27 | E93: 94.26 | F93: 2020-03-27 | G93: 17.18 | H93: 2020-03-27 | I93: 14.31 | J93: 2020-03-27 | K93: 14.73 | L93: 2020-03-27 | M93: 9.59 | N93: 2020-03-27 | O93: 8.24 | P93: 2020-03-27 | Q93: 20.26 | R93: 2020-03-27 | S93: 77.44 | T93: 2020-03-27 | U93: 10.64 | V93: 2020-03-27 | W93: 12.2
B94: 2020-03-26 | C94: 91.09 | D94: 2020-03-26 | E94: 97.98 | F94: 2020-03-26 | G94: 17.72 | H94: 2020-03-26 | I94: 14.92 | J94: 2020-03-26 | K94: 15.28 | L94: 2020-03-26 | M94: 9.89 | N94: 2020-03-26 | O94: 8.64 | P94: 2020-03-26 | Q94: 21.57 | R94: 2020-03-26 | S94: 77.88 | T94: 2020-03-26 | U94: 10.54 | V94: 2020-03-26 | W94: 12.04
B95: 2020-03-25 | C95: 85.74 | D95: 2020-03-25 | E95: 92.78 | F95: 2020-03-25 | G95: 16.73 | H95: 2020-03-25 | I95: 14.04 | J95: 2020-03-25 | K95: 14.42 | L95: 2020-03-25 | M95: 9.29 | N95: 2020-03-25 | O95: 8.31 | P95: 2020-03-25 | Q95: 21.74 | R95: 2020-03-25 | S95: 71.98 | T95: 2020-03-25 | U95: 10.41 | V95: 2020-03-25 | W95: 11.31
B96: 2020-03-24 | C96: 84.76 | D96: 2020-03-24 | E96: 93.21 | F96: 2020-03-24 | G96: 16.24 | H96: 2020-03-24 | I96: 13.87 | J96: 2020-03-24 | K96: 14.32 | L96: 2020-03-24 | M96: 9.09 | N96: 2020-03-24 | O96: 8.05 | P96: 2020-03-24 | Q96: 21.05 | R96: 2020-03-24 | S96: 69.84 | T96: 2020-03-24 | U96: 10.33 | V96: 2020-03-24 | W96: 10.75
B97: 2020-03-23 | C97: 77.47 | D97: 2020-03-23 | E97: 86.19 | F97: 2020-03-23 | G97: 14.65 | H97: 2020-03-23 | I97: 12.67 | J97: 2020-03-23 | K97: 13.12 | L97: 2020-03-23 | M97: 8.27 | N97: 2020-03-23 | O97: 7.52 | P97: 2020-03-23 | Q97: 18.51 | R97: 2020-03-23 | S97: 62.86 | T97: 2020-03-23 | U97: 10.28 | V97: 2020-03-23 | W97: 9.96
B98: 2020-03-20 | C98: 79.81 | D98: 2020-03-20 | E98: 86.41 | F98: 2020-03-20 | G98: 15.13 | H98: 2020-03-20 | I98: 12.82 | J98: 2020-03-20 | K98: 13.37 | L98: 2020-03-20 | M98: 8.63 | N98: 2020-03-20 | O98: 7.76 | P98: 2020-03-20 | Q98: 17.51 | R98: 2020-03-20 | S98: 66.44 | T98: 2020-03-20 | U98: 10.24 | V98: 2020-03-20 | W98: 10.35
B99: 2020-03-19 | C99: 83.42 | D99: 2020-03-19 | E99: 89.84 | F99: 2020-03-19 | G99: 15.81 | H99: 2020-03-19 | I99: 13.38 | J99: 2020-03-19 | K99: 13.95 | L99: 2020-03-19 | M99: 9.01 | N99: 2020-03-19 | O99: 7.66 | P99: 2020-03-19 | Q99: 18.36 | R99: 2020-03-19 | S99: 70.45 | T99: 2020-03-19 | U99: 10.14 | V99: 2020-03-19 | W99: 10.82
B100: 2020-03-18 | C100: 83.03 | D100: 2020-03-18 | E100: 87.82 | F100: 2020-03-18 | G100: 15.51 | H100: 2020-03-18 | I100: 12.53 | J100: 2020-03-18 | K100: 13.78 | L100: 2020-03-18 | M100: 8.97 | N100: 2020-03-18 | O100: 7.72 | P100: 2020-03-18 | Q100: 18.13 | R100: 2020-03-18 | S100: 73.18 | T100: 2020-03-18 | U100: 10.28 | V100: 2020-03-18 | W100: 10.74
B101: 2020-03-17 | C101: 87.54 | D101: 2020-03-17 | E101: 92.16 | F101: 2020-03-17 | G101: 16.89 | H101: 2020-03-17 | I101: 13.99 | J101: 2020-03-17 | K101: 14.43 | L101: 2020-03-17 | M101: 9.63 | N101: 2020-03-17 | O101: 8.25 | P101: 2020-03-17 | Q101: 20.27 | R101: 2020-03-17 | S101: 76.84 | T101: 2020-03-17 | U101: 10.52 | V101: 2020-03-17 | W101: 12
B102: 2020-03-16 | C102: 82.63 | D102: 2020-03-16 | E102: 86.74 | F102: 2020-03-16 | G102: 16.04 | H102: 2020-03-16 | I102: 13.11 | J102: 2020-03-16 | K102: 13.67 | L102: 2020-03-16 | M102: 9.08 | N102: 2020-03-16 | O102: 7.99 | P102: 2020-03-16 | Q102: 18.25 | R102: 2020-03-16 | S102: 67.56 | T102: 2020-03-16 | U102: 10.73 | V102: 2020-03-16 | W102: 11.36
B103: 2020-03-13 | C103: 93.84 | D103: 2020-03-13 | E103: 98.92 | F103: 2020-03-13 | G103: 18.48 | H103: 2020-03-13 | I103: 15.28 | J103: 2020-03-13 | K103: 15.6 | L103: 2020-03-13 | M103: 10.32 | N103: 2020-03-13 | O103: 8.93 | P103: 2020-03-13 | Q103: 17.28 | R103: 2020-03-13 | S103: 77.89 | T103: 2020-03-13 | U103: 10.7 | V103: 2020-03-13 | W103: 13.93
B104: 2020-03-12 | C104: 85.85 | D104: 2020-03-12 | E104: 90.45 | F104: 2020-03-12 | G104: 17.22 | H104: 2020-03-12 | I104: 14.19 | J104: 2020-03-12 | K104: 14.3 | L104: 2020-03-12 | M104: 9.46 | N104: 2020-03-12 | O104: 8.47 | P104: 2020-03-12 | Q104: 19.35 | R104: 2020-03-12 | S104: 74.1 | T104: 2020-03-12 | U104: 10.76 | V104: 2020-03-12 | W104: 12.85
B105: 2020-03-11 | C105: 94.85 | D105: 2020-03-11 | E105: 99.85 | F105: 2020-03-11 | G105: 19.12 | H105: 2020-03-11 | I105: 15.97 | J105: 2020-03-11 | K105: 15.74 | L105: 2020-03-11 | M105: 10.51 | N105: 2020-03-11 | O105: 9.24 | P105: 2020-03-11 | Q105: 21.33 | R105: 2020-03-11 | S105: 83.45 | T105: 2020-03-11 | U105: 10.89 | V105: 2020-03-11 | W105: 14.27
B106: 2020-03-10 | C106: 99.71 | D106: 2020-03-10 | E106: 104.79 | F106: 2020-03-10 | G106: 20.27 | H106: 2020-03-10 | I106: 17.06 | J106: 2020-03-10 | K106: 16.51 | L106: 2020-03-10 | M106: 11.11 | N106: 2020-03-10 | O106: 9.61 | P106: 2020-03-10 | Q106: 22.78 | R106: 2020-03-10 | S106: 88.4 | T106: 2020-03-10 | U106: 10.98 | V106: 2020-03-10 | W106: 15.33
B107: 2020-03-09 | C107: 95.02 | D107: 2020-03-09 | E107: 99.84 | F107: 2020-03-09 | G107: 19.39 | H107: 2020-03-09 | I107: 16.59 | J107: 2020-03-09 | K107: 15.68 | L107: 2020-03-09 | M107: 10.65 | N107: 2020-03-09 | O107: 9.24 | P107: 2020-03-09 | Q107: 22.89 | R107: 2020-03-09 | S107: 86.42 | T107: 2020-03-09 | U107: 11.1 | V107: 2020-03-09 | W107: 14.75
B108: 2020-03-06 | C108: 102.82 | D108: 2020-03-06 | E108: 107.69 | F108: 2020-03-06 | G108: 21.22 | H108: 2020-03-06 | I108: 18.3 | J108: 2020-03-06 | K108: 16.84 | L108: 2020-03-06 | M108: 11.66 | N108: 2020-03-06 | O108: 9.95 | P108: 2020-03-06 | Q108: 24.73 | R108: 2020-03-06 | S108: 93.09 | T108: 2020-03-06 | U108: 11.22 | V108: 2020-03-06 | W108: 16.02
B109: 2020-03-05 | C109: 104.59 | D109: 2020-03-05 | E109: 109.74 | F109: 2020-03-05 | G109: 21.72 | H109: 2020-03-05 | I109: 18.68 | J109: 2020-03-05 | K109: 17.11 | L109: 2020-03-05 | M109: 11.9 | N109: 2020-03-05 | O109: 10.14 | P109: 2020-03-05 | Q109: 24.76 | R109: 2020-03-05 | S109: 94.2 | T109: 2020-03-05 | U109: 11.18 | V109: 2020-03-05 | W109: 16.29
B110: 2020-03-04 | C110: 108.25 | D110: 2020-03-04 | E110: 113.23 | F110: 2020-03-04 | G110: 22.46 | H110: 2020-03-04 | I110: 19.34 | J110: 2020-03-04 | K110: 17.68 | L110: 2020-03-04 | M110: 12.33 | N110: 2020-03-04 | O110: 10.31 | P110: 2020-03-04 | Q110: 24.2 | R110: 2020-03-04 | S110: 96.08 | T110: 2020-03-04 | U110: 11.15 | V110: 2020-03-04 | W110: 16.69
B111: 2020-03-03 | C111: 103.86 | D111: 2020-03-03 | E111: 109.03 | F111: 2020-03-03 | G111: 21.67 | H111: 2020-03-03 | I111: 18.77 | J111: 2020-03-03 | K111: 16.96 | L111: 2020-03-03 | M111: 11.86 | N111: 2020-03-03 | O111: 10.08 | P111: 2020-03-03 | Q111: 23.93 | R111: 2020-03-03 | S111: 91.44 | T111: 2020-03-03 | U111: 11.16 | V111: 2020-03-03 | W111: 16.09
B112: 2020-03-02 | C112: 106.86 | D112: 2020-03-02 | E112: 112.4 | F112: 2020-03-02 | G112: 22.16 | H112: 2020-03-02 | I112: 19.17 | J112: 2020-03-02 | K112: 17.47 | L112: 2020-03-02 | M112: 12.16 | N112: 2020-03-02 | O112: 10.18 | P112: 2020-03-02 | Q112: 22.82 | R112: 2020-03-02 | S112: 92.87 | T112: 2020-03-02 | U112: 11.08 | V112: 2020-03-02 | W112: 16.17
B113: 2020-02-28 | C113: 102.16 | D113: 2020-02-28 | E113: 107.56 | F113: 2020-02-28 | G113: 21.41 | H113: 2020-02-28 | I113: 18.64 | J113: 2020-02-28 | K113: 16.69 | L113: 2020-02-28 | M113: 11.68 | N113: 2020-02-28 | O113: 9.96 | P113: 2020-02-28 | Q113: 22.16 | R113: 2020-02-28 | S113: 88.31 | T113: 2020-02-28 | U113: 11.09 | V113: 2020-02-28 | W113: 15.57
B114: 2020-02-27 | C114: 102.98 | D114: 2020-02-27 | E114: 107.54 | F114: 2020-02-27 | G114: 21.67 | H114: 2020-02-27 | I114: 18.91 | J114: 2020-02-27 | K114: 16.71 | L114: 2020-02-27 | M114: 11.86 | N114: 2020-02-27 | O114: 10.04 | P114: 2020-02-27 | Q114: 23.56 | R114: 2020-02-27 | S114: 91.48 | T114: 2020-02-27 | U114: 11.03 | V114: 2020-02-27 | W114: 15.96
B115: 2020-02-26 | C115: 107.73 | D115: 2020-02-26 | E115: 112.76 | F115: 2020-02-26 | G115: 22.54 | H115: 2020-02-26 | I115: 19.6 | J115: 2020-02-26 | K115: 17.5 | L115: 2020-02-26 | M115: 12.38 | N115: 2020-02-26 | O115: 10.24 | P115: 2020-02-26 | Q115: 24.97 | R115: 2020-02-26 | S115: 95.25 | T115: 2020-02-26 | U115: 11.03 | V115: 2020-02-26 | W115: 16.85
B116: 2020-02-25 | C116: 108.13 | D116: 2020-02-25 | E116: 112.58 | F116: 2020-02-25 | G116: 22.82 | H116: 2020-02-25 | I116: 19.84 | J116: 2020-02-25 | K116: 17.5 | L116: 2020-02-25 | M116: 12.51 | N116: 2020-02-25 | O116: 10.2 | P116: 2020-02-25 | Q116: 25.09 | R116: 2020-02-25 | S116: 96.35 | T116: 2020-02-25 | U116: 11.04 | V116: 2020-02-25 | W116: 17.04
B117: 2020-02-24 | C117: 111.51 | D117: 2020-02-24 | E117: 115.79 | F117: 2020-02-24 | G117: 23.6 | H117: 2020-02-24 | I117: 20.55 | J117: 2020-02-24 | K117: 18.04 | L117: 2020-02-24 | M117: 12.92 | N117: 2020-02-24 | O117: 10.3 | P117: 2020-02-24 | Q117: 26.04 | R117: 2020-02-24 | S117: 98.7 | T117: 2020-02-24 | U117: 11.04 | V117: 2020-02-24 | W117: 17.61
B118: 2020-02-21 | C118: 115.36 | D118: 2020-02-21 | E118: 120.26 | F118: 2020-02-21 | G118: 24.3 | H118: 2020-02-21 | I118: 21.19 | J118: 2020-02-21 | K118: 18.72 | L118: 2020-02-21 | M118: 13.31 | N118: 2020-02-21 | O118: 10.66 | P118: 2020-02-21 | Q118: 25.81 | R118: 2020-02-21 | S118: 100.02 | T118: 2020-02-21 | U118: 11.01 | V118: 2020-02-21 | W118: 17.87
B119: 2020-02-20 | C119: 116.58 | D119: 2020-02-20 | E119: 122.46 | F119: 2020-02-20 | G119: 24.56 | H119: 2020-02-20 | I119: 21.41 | J119: 2020-02-20 | K119: 19.02 | L119: 2020-02-20 | M119: 13.37 | N119: 2020-02-20 | O119: 10.75 | P119: 2020-02-20 | Q119: 25.07 | R119: 2020-02-20 | S119: 100.29 | T119: 2020-02-20 | U119: 10.99 | V119: 2020-02-20 | W119: 17.81
B120: 2020-02-19 | C120: 117.02 | D120: 2020-02-19 | E120: 123.3 | F120: 2020-02-19 | G120: 24.54 | H120: 2020-02-19 | I120: 21.36 | J120: 2020-02-19 | K120: 19.13 | L120: 2020-02-19 | M120: 13.37 | N120: 2020-02-19 | O120: 10.87 | P120: 2020-02-19 | Q120: 24.97 | R120: 2020-02-19 | S120: 100.06 | T120: 2020-02-19 | U120: 10.97 | V120: 2020-02-19 | W120: 17.57
B121: 2020-02-18 | C121: 116.46 | D121: 2020-02-18 | E121: 122.2 | F121: 2020-02-18 | G121: 24.46 | H121: 2020-02-18 | I121: 21.25 | J121: 2020-02-18 | K121: 19.01 | L121: 2020-02-18 | M121: 13.33 | N121: 2020-02-18 | O121: 10.79 | P121: 2020-02-18 | Q121: 24.53 | R121: 2020-02-18 | S121: 100.77 | T121: 2020-02-18 | U121: 10.97 | V121: 2020-02-18 | W121: 17.87
B122: 2020-02-14 | C122: 116.79 | D122: 2020-02-14 | E122: 122.19 | F122: 2020-02-14 | G122: 24.5 | H122: 2020-02-14 | I122: 21.3 | J122: 2020-02-14 | K122: 19.01 | L122: 2020-02-14 | M122: 13.4 | N122: 2020-02-14 | O122: 10.88 | P122: 2020-02-14 | Q122: 23.75 | R122: 2020-02-14 | S122: 100.09 | T122: 2020-02-14 | U122: 10.96 | V122: 2020-02-14 | W122: 17.84
B123: 2020-02-13 | C123: 116.55 | D123: 2020-02-13 | E123: 121.95 | F123: 2020-02-13 | G123: 24.44 | H123: 2020-02-13 | I123: 21.37 | J123: 2020-02-13 | K123: 18.93 | L123: 2020-02-13 | M123: 13.4 | N123: 2020-02-13 | O123: 10.88 | P123: 2020-02-13 | Q123: 23.72 | R123: 2020-02-13 | S123: 99.43 | T123: 2020-02-13 | U123: 10.95 | V123: 2020-02-13 | W123: 17.64
B124: 2020-02-12 | C124: 116.71 | D124: 2020-02-12 | E124: 122.12 | F124: 2020-02-12 | G124: 24.42 | H124: 2020-02-12 | I124: 21.31 | J124: 2020-02-12 | K124: 18.96 | L124: 2020-02-12 | M124: 13.4 | N124: 2020-02-12 | O124: 10.94 | P124: 2020-02-12 | Q124: 23.49 | R124: 2020-02-12 | S124: 98.65 | T124: 2020-02-12 | U124: 10.94 | V124: 2020-02-12 | W124: 17.53
B125: 2020-02-11 | C125: 115.96 | D125: 2020-02-11 | E125: 121.02 | F125: 2020-02-11 | G125: 24.26 | H125: 2020-02-11 | I125: 21.16 | J125: 2020-02-11 | K125: 18.79 | L125: 2020-02-11 | M125: 13.35 | N125: 2020-02-11 | O125: 10.82 | P125: 2020-02-11 | Q125: 23.73 | R125: 2020-02-11 | S125: 98.62 | T125: 2020-02-11 | U125: 10.95 | V125: 2020-02-11 | W125: 17.47
B126: 2020-02-10 | C126: 115.76 | D126: 2020-02-10 | E126: 120.88 | F126: 2020-02-10 | G126: 24.11 | H126: 2020-02-10 | I126: 21.04 | J126: 2020-02-10 | K126: 18.78 | L126: 2020-02-10 | M126: 13.29 | N126: 2020-02-10 | O126: 10.7 | P126: 2020-02-10 | Q126: 23.76 | R126: 2020-02-10 | S126: 97.91 | T126: 2020-02-10 | U126: 10.96 | V126: 2020-02-10 | W126: 17.47
B127: 2020-02-07 | C127: 114.89 | D127: 2020-02-07 | E127: 119.52 | F127: 2020-02-07 | G127: 23.97 | H127: 2020-02-07 | I127: 20.9 | J127: 2020-02-07 | K127: 18.58 | L127: 2020-02-07 | M127: 13.25 | N127: 2020-02-07 | O127: 10.69 | P127: 2020-02-07 | Q127: 23.43 | R127: 2020-02-07 | S127: 97.66 | T127: 2020-02-07 | U127: 10.95 | V127: 2020-02-07 | W127: 17.26
B128: 2020-02-06 | C128: 115.5 | D128: 2020-02-06 | E128: 120.17 | F128: 2020-02-06 | G128: 24.16 | H128: 2020-02-06 | I128: 21.16 | J128: 2020-02-06 | K128: 18.66 | L128: 2020-02-06 | M128: 13.33 | N128: 2020-02-06 | O128: 10.83 | P128: 2020-02-06 | Q128: 23.7 | R128: 2020-02-06 | S128: 97.83 | T128: 2020-02-06 | U128: 10.92 | V128: 2020-02-06 | W128: 17.3
B129: 2020-02-05 | C129: 115.09 | D129: 2020-02-05 | E129: 119.37 | F129: 2020-02-05 | G129: 24.19 | H129: 2020-02-05 | I129: 21.21 | J129: 2020-02-05 | K129: 18.55 | L129: 2020-02-05 | M129: 13.33 | N129: 2020-02-05 | O129: 10.77 | P129: 2020-02-05 | Q129: 23.53 | R129: 2020-02-05 | S129: 97.84 | T129: 2020-02-05 | U129: 10.91 | V129: 2020-02-05 | W129: 17.22
B130: 2020-02-04 | C130: 113.81 | D130: 2020-02-04 | E130: 118.85 | F130: 2020-02-04 | G130: 23.96 | H130: 2020-02-04 | I130: 20.89 | J130: 2020-02-04 | K130: 18.47 | L130: 2020-02-04 | M130: 13.12 | N130: 2020-02-04 | O130: 10.73 | P130: 2020-02-04 | Q130: 23.62 | R130: 2020-02-04 | S130: 97.39 | T130: 2020-02-04 | U130: 10.93 | V130: 2020-02-04 | W130: 17.21
B131: 2020-02-03 | C131: 112.13 | D131: 2020-02-03 | E131: 116.33 | F131: 2020-02-03 | G131: 23.63 | H131: 2020-02-03 | I131: 20.58 | J131: 2020-02-03 | K131: 18.12 | L131: 2020-02-03 | M131: 12.98 | N131: 2020-02-03 | O131: 10.45 | P131: 2020-02-03 | Q131: 23.99 | R131: 2020-02-03 | S131: 98.37 | T131: 2020-02-03 | U131: 10.96 | V131: 2020-02-03 | W131: 17.01
B132: 2020-01-31 | C132: 111.33 | D132: 2020-01-31 | E132: 114.83 | F132: 2020-01-31 | G132: 23.44 | H132: 2020-01-31 | I132: 20.35 | J132: 2020-01-31 | K132: 17.9 | L132: 2020-01-31 | M132: 12.93 | N132: 2020-01-31 | O132: 10.37 | P132: 2020-01-31 | Q132: 24.27 | R132: 2020-01-31 | S132: 97.78 | T132: 2020-01-31 | U132: 10.97 | V132: 2020-01-31 | W132: 17
B133: 2020-01-30 | C133: 113.32 | D133: 2020-01-30 | E133: 116.86 | F133: 2020-01-30 | G133: 23.87 | H133: 2020-01-30 | I133: 20.78 | J133: 2020-01-30 | K133: 18.22 | L133: 2020-01-30 | M133: 13.16 | N133: 2020-01-30 | O133: 10.6 | P133: 2020-01-30 | Q133: 24.15 | R133: 2020-01-30 | S133: 98.28 | T133: 2020-01-30 | U133: 10.92 | V133: 2020-01-30 | W133: 17.22
B134: 2020-01-29 | C134: 112.96 | D134: 2020-01-29 | E134: 116.35 | F134: 2020-01-29 | G134: 23.81 | H134: 2020-01-29 | I134: 20.79 | J134: 2020-01-29 | K134: 18.18 | L134: 2020-01-29 | M134: 13.1 | N134: 2020-01-29 | O134: 10.76 | P134: 2020-01-29 | Q134: 24.03 | R134: 2020-01-29 | S134: 97.49 | T134: 2020-01-29 | U134: 10.92 | V134: 2020-01-29 | W134: 17.23
B135: 2020-01-28 | C135: 113.05 | D135: 2020-01-28 | E135: 116.35 | F135: 2020-01-28 | G135: 23.89 | H135: 2020-01-28 | I135: 20.91 | J135: 2020-01-28 | K135: 18.15 | L135: 2020-01-28 | M135: 13.15 | N135: 2020-01-28 | O135: 10.76 | P135: 2020-01-28 | Q135: 23.71 | R135: 2020-01-28 | S135: 97.13 | T135: 2020-01-28 | U135: 10.89 | V135: 2020-01-28 | W135: 17.28
B136: 2020-01-27 | C136: 111.92 | D136: 2020-01-27 | E136: 114.68 | F136: 2020-01-27 | G136: 23.67 | H136: 2020-01-27 | I136: 20.73 | J136: 2020-01-27 | K136: 17.92 | L136: 2020-01-27 | M136: 13.05 | N136: 2020-01-27 | O136: 10.68 | P136: 2020-01-27 | Q136: 24.21 | R136: 2020-01-27 | S136: 96.56 | T136: 2020-01-27 | U136: 10.91 | V136: 2020-01-27 | W136: 17.24
B137: 2020-01-24 | C137: 113.71 | D137: 2020-01-24 | E137: 116.91 | F137: 2020-01-24 | G137: 24.03 | H137: 2020-01-24 | I137: 20.96 | J137: 2020-01-24 | K137: 18.23 | L137: 2020-01-24 | M137: 13.23 | N137: 2020-01-24 | O137: 10.97 | P137: 2020-01-24 | Q137: 24.32 | R137: 2020-01-24 | S137: 97.17 | T137: 2020-01-24 | U137: 10.89 | V137: 2020-01-24 | W137: 17.37
B138: 2020-01-23 | C138: 114.75 | D138: 2020-01-23 | E138: 118.06 | F138: 2020-01-23 | G138: 24.26 | H138: 2020-01-23 | I138: 21.25 | J138: 2020-01-23 | K138: 18.4 | L138: 2020-01-23 | M138: 13.35 | N138: 2020-01-23 | O138: 11.04 | P138: 2020-01-23 | Q138: 23.95 | R138: 2020-01-23 | S138: 97.26 | T138: 2020-01-23 | U138: 10.87 | V138: 2020-01-23 | W138: 17.43
B139: 2020-01-22 | C139: 114.61 | D139: 2020-01-22 | E139: 117.77 | F139: 2020-01-22 | G139: 24.2 | H139: 2020-01-22 | I139: 21.24 | J139: 2020-01-22 | K139: 18.37 | L139: 2020-01-22 | M139: 13.34 | N139: 2020-01-22 | O139: 11.15 | P139: 2020-01-22 | Q139: 24 | R139: 2020-01-22 | S139: 96.39 | T139: 2020-01-22 | U139: 10.86 | V139: 2020-01-22 | W139: 17.27
B140: 2020-01-21 | C140: 114.57 | D140: 2020-01-21 | E140: 117.58 | F140: 2020-01-21 | G140: 24.2 | H140: 2020-01-21 | I140: 21.26 | J140: 2020-01-21 | K140: 18.35 | L140: 2020-01-21 | M140: 13.34 | N140: 2020-01-21 | O140: 11.08 | P140: 2020-01-21 | Q140: 24.04 | R140: 2020-01-21 | S140: 96.52 | T140: 2020-01-21 | U140: 10.85 | V140: 2020-01-21 | W140: 17.42
B141: 2020-01-17 | C141: 114.87 | D141: 2020-01-17 | E141: 117.81 | F141: 2020-01-17 | G141: 24.29 | H141: 2020-01-17 | I141: 21.43 | J141: 2020-01-17 | K141: 18.37 | L141: 2020-01-17 | M141: 13.4 | N141: 2020-01-17 | O141: 11.3 | P141: 2020-01-17 | Q141: 23.66 | R141: 2020-01-17 | S141: 95.92 | T141: 2020-01-17 | U141: 10.83 | V141: 2020-01-17 | W141: 17.27
B142: 2020-01-16 | C142: 114.43 | D142: 2020-01-16 | E142: 117.42 | F142: 2020-01-16 | G142: 24.26 | H142: 2020-01-16 | I142: 21.5 | J142: 2020-01-16 | K142: 18.29 | L142: 2020-01-16 | M142: 13.37 | N142: 2020-01-16 | O142: 11.23 | P142: 2020-01-16 | Q142: 23.66 | R142: 2020-01-16 | S142: 95.27 | T142: 2020-01-16 | U142: 10.84 | V142: 2020-01-16 | W142: 17.23
B143: 2020-01-15 | C143: 113.47 | D143: 2020-01-15 | E143: 116.23 | F143: 2020-01-15 | G143: 24.01 | H143: 2020-01-15 | I143: 21.21 | J143: 2020-01-15 | K143: 18.12 | L143: 2020-01-15 | M143: 13.27 | N143: 2020-01-15 | O143: 11.19 | P143: 2020-01-15 | Q143: 23.7 | R143: 2020-01-15 | S143: 94.68 | T143: 2020-01-15 | U143: 10.84 | V143: 2020-01-15 | W143: 17.04
B144: 2020-01-14 | C144: 113.26 | D144: 2020-01-14 | E144: 116.17 | F144: 2020-01-14 | G144: 23.96 | H144: 2020-01-14 | I144: 21.13 | J144: 2020-01-14 | K144: 18.06 | L144: 2020-01-14 | M144: 13.27 | N144: 2020-01-14 | O144: 11.26 | P144: 2020-01-14 | Q144: 23.22 | R144: 2020-01-14 | S144: 93.29 | T144: 2020-01-14 | U144: 10.83 | V144: 2020-01-14 | W144: 16.91
B145: 2020-01-13 | C145: 113.42 | D145: 2020-01-13 | E145: 116.43 | F145: 2020-01-13 | G145: 23.92 | H145: 2020-01-13 | I145: 21.05 | J145: 2020-01-13 | K145: 18.11 | L145: 2020-01-13 | M145: 13.25 | N145: 2020-01-13 | O145: 11.3 | P145: 2020-01-13 | Q145: 23.04 | R145: 2020-01-13 | S145: 93.07 | T145: 2020-01-13 | U145: 10.82 | V145: 2020-01-13 | W145: 16.97
B146: 2020-01-10 | C146: 112.64 | D146: 2020-01-10 | E146: 115.23 | F146: 2020-01-10 | G146: 23.74 | H146: 2020-01-10 | I146: 20.9 | J146: 2020-01-10 | K146: 17.95 | L146: 2020-01-10 | M146: 13.18 | N146: 2020-01-10 | O146: 11.15 | P146: 2020-01-10 | Q146: 23.45 | R146: 2020-01-10 | S146: 92.64 | T146: 2020-01-10 | U146: 10.82 | V146: 2020-01-10 | W146: 16.77
B147: 2020-01-09 | C147: 112.96 | D147: 2020-01-09 | E147: 115.55 | F147: 2020-01-09 | G147: 23.79 | H147: 2020-01-09 | I147: 20.99 | J147: 2020-01-09 | K147: 17.99 | L147: 2020-01-09 | M147: 13.23 | N147: 2020-01-09 | O147: 11.12 | P147: 2020-01-09 | Q147: 23.14 | R147: 2020-01-09 | S147: 92.53 | T147: 2020-01-09 | U147: 10.8 | V147: 2020-01-09 | W147: 16.66
B148: 2020-01-08 | C148: 112.18 | D148: 2020-01-08 | E148: 114.65 | F148: 2020-01-08 | G148: 23.68 | H148: 2020-01-08 | I148: 20.97 | J148: 2020-01-08 | K148: 17.83 | L148: 2020-01-08 | M148: 13.17 | N148: 2020-01-08 | O148: 11.01 | P148: 2020-01-08 | Q148: 23.41 | R148: 2020-01-08 | S148: 92.2 | T148: 2020-01-08 | U148: 10.79 | V148: 2020-01-08 | W148: 16.7
B149: 2020-01-07 | C149: 111.63 | D149: 2020-01-07 | E149: 113.84 | F149: 2020-01-07 | G149: 23.62 | H149: 2020-01-07 | I149: 20.9 | J149: 2020-01-07 | K149: 17.69 | L149: 2020-01-07 | M149: 13.14 | N149: 2020-01-07 | O149: 10.99 | P149: 2020-01-07 | Q149: 24.16 | R149: 2020-01-07 | S149: 92.17 | T149: 2020-01-07 | U149: 10.81 | V149: 2020-01-07 | W149: 16.64
B150: 2020-01-06 | C150: 111.93 | D150: 2020-01-06 | E150: 113.85 | F150: 2020-01-06 | G150: 23.65 | H150: 2020-01-06 | I150: 20.97 | J150: 2020-01-06 | K150: 17.73 | L150: 2020-01-06 | M150: 13.18 | N150: 2020-01-06 | O150: 10.97 | P150: 2020-01-06 | Q150: 24.12 | R150: 2020-01-06 | S150: 92.17 | T150: 2020-01-06 | U150: 10.82 | V150: 2020-01-06 | W150: 16.84
B151: 2020-01-03 | C151: 111.53 | D151: 2020-01-03 | E151: 113.27 | F151: 2020-01-03 | G151: 23.62 | H151: 2020-01-03 | I151: 20.94 | J151: 2020-01-03 | K151: 17.63 | L151: 2020-01-03 | M151: 13.17 | N151: 2020-01-03 | O151: 11.05 | P151: 2020-01-03 | Q151: 24.04 | R151: 2020-01-03 | S151: 91.93 | T151: 2020-01-03 | U151: 10.83 | V151: 2020-01-03 | W151: 16.82
B152: 2020-01-02 | C152: 112.32 | D152: 2020-01-02 | E152: 114.18 | F152: 2020-01-02 | G152: 23.7 | H152: 2020-01-02 | I152: 21.01 | J152: 2020-01-02 | K152: 17.74 | L152: 2020-01-02 | M152: 13.25 | N152: 2020-01-02 | O152: 11.14 | P152: 2020-01-02 | Q152: 24.01 | R152: 2020-01-02 | S152: 91.97 | T152: 2020-01-02 | U152: 10.8 | V152: 2020-01-02 | W152: 16.65
B153: 2019-12-31 | C153: 111.37 | D153: 2019-12-31 | E153: 112.66 | F153: 2019-12-31 | G153: 23.63 | H153: 2019-12-31 | I153: 21.03 | J153: 2019-12-31 | K153: 17.51 | L153: 2019-12-31 | M153: 13.21 | N153: 2019-12-31 | O153: 10.98 | P153: 2019-12-31 | Q153: 24.2 | R153: 2019-12-31 | S153: 93.03 | T153: 2019-12-31 | U153: 10.77 | V153: 2019-12-31 | W153: 16.93
B154: 2019-12-30 | C154: 111.04 | D154: 2019-12-30 | E154: 112.34 | F154: 2019-12-30 | G154: 23.55 | H154: 2019-12-30 | I154: 20.97 | J154: 2019-12-30 | K154: 17.47 | L154: 2019-12-30 | M154: 13.16 | N154: 2019-12-30 | O154: 10.97 | P154: 2019-12-30 | Q154: 24.15 | R154: 2019-12-30 | S154: 92.53 | T154: 2019-12-30 | U154: 10.76 | V154: 2019-12-30 | W154: 16.8
B155: 2019-12-27 | C155: 111.66 | D155: 2019-12-27 | E155: 113.07 | F155: 2019-12-27 | G155: 23.63 | H155: 2019-12-27 | I155: 21.02 | J155: 2019-12-27 | K155: 17.59 | L155: 2019-12-27 | M155: 13.22 | N155: 2019-12-27 | O155: 11.01 | P155: 2019-12-27 | Q155: 23.72 | R155: 2019-12-27 | S155: 92.51 | T155: 2019-12-27 | U155: 10.76 | V155: 2019-12-27 | W155: 16.78
B156: 2019-12-26 | C156: 111.66 | D156: 2019-12-26 | E156: 113.29 | F156: 2019-12-26 | G156: 23.66 | H156: 2019-12-26 | I156: 21.13 | J156: 2019-12-26 | K156: 17.59 | L156: 2019-12-26 | M156: 13.22 | N156: 2019-12-26 | O156: 10.95 | P156: 2019-12-26 | Q156: 23.79 | R156: 2019-12-26 | S156: 92.34 | T156: 2019-12-26 | U156: 10.75 | V156: 2019-12-26 | W156: 16.72
B157: 2019-12-24 | C157: 111.09 | D157: 2019-12-24 | E157: 112.44 | F157: 2019-12-24 | G157: 23.61 | H157: 2019-12-24 | I157: 21.13 | J157: 2019-12-24 | K157: 17.47 | L157: 2019-12-24 | M157: 13.19 | N157: 2019-12-24 | O157: 10.9 | P157: 2019-12-24 | Q157: 23.48 | R157: 2019-12-24 | S157: 92.23 | T157: 2019-12-24 | U157: 10.74 | V157: 2019-12-24 | W157: 16.63
B158: 2019-12-23 | C158: 111.1 | D158: 2019-12-23 | E158: 112.34 | F158: 2019-12-23 | G158: 23.59 | H158: 2019-12-23 | I158: 21.08 | J158: 2019-12-23 | K158: 17.47 | L158: 2019-12-23 | M158: 13.18 | N158: 2019-12-23 | O158: 10.92 | P158: 2019-12-23 | Q158: 22.72 | R158: 2019-12-23 | S158: 92.2 | T158: 2019-12-23 | U158: 10.73 | V158: 2019-12-23 | W158: 16.6
B159: 2019-12-20 | C159: 111 | D159: 2019-12-20 | E159: 112.1 | F159: 2019-12-20 | G159: 23.6 | H159: 2019-12-20 | I159: 21.05 | J159: 2019-12-20 | K159: 17.44 | L159: 2019-12-20 | M159: 13.19 | N159: 2019-12-20 | O159: 10.89 | P159: 2019-12-20 | Q159: 22.2 | R159: 2019-12-20 | S159: 92.87 | T159: 2019-12-20 | U159: 10.74 | V159: 2019-12-20 | W159: 16.69
B160: 2019-12-19 | C160: 110.45 | D160: 2019-12-19 | E160: 111.64 | F160: 2019-12-19 | G160: 23.46 | H160: 2019-12-19 | I160: 20.99 | J160: 2019-12-19 | K160: 17.36 | L160: 2019-12-19 | M160: 13.12 | N160: 2019-12-19 | O160: 10.88 | P160: 2019-12-19 | Q160: 22.4 | R160: 2019-12-19 | S160: 92.22 | T160: 2019-12-19 | U160: 10.74 | V160: 2019-12-19 | W160: 16.61
B161: 2019-12-18 | C161: 109.95 | D161: 2019-12-18 | E161: 110.91 | F161: 2019-12-18 | G161: 23.36 | H161: 2019-12-18 | I161: 20.92 | J161: 2019-12-18 | K161: 17.24 | L161: 2019-12-18 | M161: 13.08 | N161: 2019-12-18 | O161: 10.89 | P161: 2019-12-18 | Q161: 22.35 | R161: 2019-12-18 | S161: 92.24 | T161: 2019-12-18 | U161: 10.73 | V161: 2019-12-18 | W161: 16.51
B162: 2019-12-17 | C162: 109.99 | D162: 2019-12-17 | E162: 110.84 | F162: 2019-12-17 | G162: 23.34 | H162: 2019-12-17 | I162: 20.87 | J162: 2019-12-17 | K162: 17.23 | L162: 2019-12-17 | M162: 13.09 | N162: 2019-12-17 | O162: 10.83 | P162: 2019-12-17 | Q162: 22.12 | R162: 2019-12-17 | S162: 91.73 | T162: 2019-12-17 | U162: 10.74 | V162: 2019-12-17 | W162: 16.37
B163: 2019-12-16 | C163: 109.95 | D163: 2019-12-16 | E163: 110.74 | F163: 2019-12-16 | G163: 23.34 | H163: 2019-12-16 | I163: 20.77 | J163: 2019-12-16 | K163: 17.24 | L163: 2019-12-16 | M163: 13.08 | N163: 2019-12-16 | O163: 10.71 | P163: 2019-12-16 | Q163: 22.27 | R163: 2019-12-16 | S163: 91.8 | T163: 2019-12-16 | U163: 10.74 | V163: 2019-12-16 | W163: 16.52
B164: 2019-12-13 | C164: 109.17 | D164: 2019-12-13 | E164: 109.74 | F164: 2019-12-13 | G164: 23.18 | H164: 2019-12-13 | I164: 20.62 | J164: 2019-12-13 | K164: 17.1 | L164: 2019-12-13 | M164: 12.99 | N164: 2019-12-13 | O164: 10.65 | P164: 2019-12-13 | Q164: 22.48 | R164: 2019-12-13 | S164: 90.57 | T164: 2019-12-13 | U164: 10.76 | V164: 2019-12-13 | W164: 16.44
B165: 2019-12-12 | C165: 109.14 | D165: 2019-12-12 | E165: 109.51 | F165: 2019-12-12 | G165: 23.22 | H165: 2019-12-12 | I165: 20.71 | J165: 2019-12-12 | K165: 17.05 | L165: 2019-12-12 | M165: 13.03 | N165: 2019-12-12 | O165: 10.6 | P165: 2019-12-12 | Q165: 22.48 | R165: 2019-12-12 | S165: 89.94 | T165: 2019-12-12 | U165: 10.71 | V165: 2019-12-12 | W165: 16.47
B166: 2019-12-11 | C166: 108.2 | D166: 2019-12-11 | E166: 108.69 | F166: 2019-12-11 | G166: 23.05 | H166: 2019-12-11 | I166: 20.54 | J166: 2019-12-11 | K166: 16.95 | L166: 2019-12-11 | M166: 12.88 | N166: 2019-12-11 | O166: 10.42 | P166: 2019-12-11 | Q166: 22.52 | R166: 2019-12-11 | S166: 90.27 | T166: 2019-12-11 | U166: 10.76 | V166: 2019-12-11 | W166: 16.71
B167: 2019-12-10 | C167: 107.88 | D167: 2019-12-10 | E167: 108.23 | F167: 2019-12-10 | G167: 23 | H167: 2019-12-10 | I167: 20.54 | J167: 2019-12-10 | K167: 16.89 | L167: 2019-12-10 | M167: 12.86 | N167: 2019-12-10 | O167: 10.31 | P167: 2019-12-10 | Q167: 21.98 | R167: 2019-12-10 | S167: 90.01 | T167: 2019-12-10 | U167: 10.73 | V167: 2019-12-10 | W167: 16.94
B168: 2019-12-09 | C168: 108 | D168: 2019-12-09 | E168: 108.25 | F168: 2019-12-09 | G168: 23.03 | H168: 2019-12-09 | I168: 20.51 | J168: 2019-12-09 | K168: 16.91 | L168: 2019-12-09 | M168: 12.88 | N168: 2019-12-09 | O168: 10.32 | P168: 2019-12-09 | Q168: 21.79 | R168: 2019-12-09 | S168: 89.99 | T168: 2019-12-09 | U168: 10.73 | V168: 2019-12-09 | W168: 17.04
B169: 2019-12-06 | C169: 108.33 | D169: 2019-12-06 | E169: 108.71 | F169: 2019-12-06 | G169: 23.1 | H169: 2019-12-06 | I169: 20.56 | J169: 2019-12-06 | K169: 16.97 | L169: 2019-12-06 | M169: 12.91 | N169: 2019-12-06 | O169: 10.32 | P169: 2019-12-06 | Q169: 21.9 | R169: 2019-12-06 | S169: 90.37 | T169: 2019-12-06 | U169: 10.73 | V169: 2019-12-06 | W169: 17.02
B170: 2019-12-05 | C170: 107.34 | D170: 2019-12-05 | E170: 107.62 | F170: 2019-12-05 | G170: 22.93 | H170: 2019-12-05 | I170: 20.33 | J170: 2019-12-05 | K170: 16.82 | L170: 2019-12-05 | M170: 12.8 | N170: 2019-12-05 | O170: 10.26 | P170: 2019-12-05 | Q170: 22.33 | R170: 2019-12-05 | S170: 90.6 | T170: 2019-12-05 | U170: 10.74 | V170: 2019-12-05 | W170: 16.98
B171: 2019-12-04 | C171: 107.15 | D171: 2019-12-04 | E171: 107.55 | F171: 2019-12-04 | G171: 22.9 | H171: 2019-12-04 | I171: 20.31 | J171: 2019-12-04 | K171: 16.8 | L171: 2019-12-04 | M171: 12.77 | N171: 2019-12-04 | O171: 10.2 | P171: 2019-12-04 | Q171: 22.17 | R171: 2019-12-04 | S171: 90.57 | T171: 2019-12-04 | U171: 10.75 | V171: 2019-12-04 | W171: 16.98
B172: 2019-12-03 | C172: 106.47 | D172: 2019-12-03 | E172: 106.95 | F172: 2019-12-03 | G172: 22.75 | H172: 2019-12-03 | I172: 20.16 | J172: 2019-12-03 | K172: 16.72 | L172: 2019-12-03 | M172: 12.68 | N172: 2019-12-03 | O172: 10.16 | P172: 2019-12-03 | Q172: 22.34 | R172: 2019-12-03 | S172: 90.37 | T172: 2019-12-03 | U172: 10.77 | V172: 2019-12-03 | W172: 16.93
B173: 2019-12-02 | C173: 107.18 | D173: 2019-12-02 | E173: 107.57 | F173: 2019-12-02 | G173: 22.89 | H173: 2019-12-02 | I173: 20.23 | J173: 2019-12-02 | K173: 16.8 | L173: 2019-12-02 | M173: 12.78 | N173: 2019-12-02 | O173: 10.18 | P173: 2019-12-02 | Q173: 21.94 | R173: 2019-12-02 | S173: 90.05 | T173: 2019-12-02 | U173: 10.72 | V173: 2019-12-02 | W173: 16.84
B174: 2019-11-29 | C174: 108.11 | D174: 2019-11-29 | E174: 108.81 | F174: 2019-11-29 | G174: 23.1 | H174: 2019-11-29 | I174: 20.43 | J174: 2019-11-29 | K174: 17 | L174: 2019-11-29 | M174: 12.85 | N174: 2019-11-29 | O174: 10.21 | P174: 2019-11-29 | Q174: 21.79 | R174: 2019-11-29 | S174: 90.5 | T174: 2019-11-29 | U174: 10.74 | V174: 2019-11-29 | W174: 17.09
B175: 2019-11-27 | C175: 108.52 | D175: 2019-11-27 | E175: 109.31 | F175: 2019-11-27 | G175: 23.24 | H175: 2019-11-27 | I175: 20.56 | J175: 2019-11-27 | K175: 17.07 | L175: 2019-11-27 | M175: 12.91 | N175: 2019-11-27 | O175: 10.34 | P175: 2019-11-27 | Q175: 21.53 | R175: 2019-11-27 | S175: 90.62 | T175: 2019-11-27 | U175: 10.72 | V175: 2019-11-27 | W175: 17.18
B176: 2019-11-26 | C176: 108.06 | D176: 2019-11-26 | E176: 108.6 | F176: 2019-11-26 | G176: 23.13 | H176: 2019-11-26 | I176: 20.42 | J176: 2019-11-26 | K176: 16.98 | L176: 2019-11-26 | M176: 12.86 | N176: 2019-11-26 | O176: 10.3 | P176: 2019-11-26 | Q176: 21.5 | R176: 2019-11-26 | S176: 90.34 | T176: 2019-11-26 | U176: 10.74 | V176: 2019-11-26 | W176: 17.09
B177: 2019-11-25 | C177: 107.81 | D177: 2019-11-25 | E177: 108.38 | F177: 2019-11-25 | G177: 23.06 | H177: 2019-11-25 | I177: 20.39 | J177: 2019-11-25 | K177: 16.91 | L177: 2019-11-25 | M177: 12.85 | N177: 2019-11-25 | O177: 10.35 | P177: 2019-11-25 | Q177: 21.1 | R177: 2019-11-25 | S177: 90.3 | T177: 2019-11-25 | U177: 10.72 | V177: 2019-11-25 | W177: 16.86
B178: 2019-11-22 | C178: 107 | D178: 2019-11-22 | E178: 106.98 | F178: 2019-11-22 | G178: 22.85 | H178: 2019-11-22 | I178: 19.99 | J178: 2019-11-22 | K178: 16.74 | L178: 2019-11-22 | M178: 12.79 | N178: 2019-11-22 | O178: 10.29 | P178: 2019-11-22 | Q178: 21.52 | R178: 2019-11-22 | S178: 90.6 | T178: 2019-11-22 | U178: 10.71 | V178: 2019-11-22 | W178: 16.79
B179: 2019-11-21 | C179: 106.77 | D179: 2019-11-21 | E179: 106.8 | F179: 2019-11-21 | G179: 22.78 | H179: 2019-11-21 | I179: 19.92 | J179: 2019-11-21 | K179: 16.72 | L179: 2019-11-21 | M179: 12.74 | N179: 2019-11-21 | O179: 10.27 | P179: 2019-11-21 | Q179: 21.64 | R179: 2019-11-21 | S179: 90.41 | T179: 2019-11-21 | U179: 10.71 | V179: 2019-11-21 | W179: 16.8
B180: 2019-11-20 | C180: 106.93 | D180: 2019-11-20 | E180: 107.05 | F180: 2019-11-20 | G180: 22.9 | H180: 2019-11-20 | I180: 20.01 | J180: 2019-11-20 | K180: 16.78 | L180: 2019-11-20 | M180: 12.74 | N180: 2019-11-20 | O180: 10.31 | P180: 2019-11-20 | Q180: 22 | R180: 2019-11-20 | S180: 90.86 | T180: 2019-11-20 | U180: 10.72 | V180: 2019-11-20 | W180: 17.03
B181: 2019-11-19 | C181: 107.31 | D181: 2019-11-19 | E181: 107.56 | F181: 2019-11-19 | G181: 22.94 | H181: 2019-11-19 | I181: 20.09 | J181: 2019-11-19 | K181: 16.84 | L181: 2019-11-19 | M181: 12.78 | N181: 2019-11-19 | O181: 10.36 | P181: 2019-11-19 | Q181: 22 | R181: 2019-11-19 | S181: 90.3 | T181: 2019-11-19 | U181: 10.7 | V181: 2019-11-19 | W181: 17.11
B182: 2019-11-18 | C182: 107.37 | D182: 2019-11-18 | E182: 107.32 | F182: 2019-11-18 | G182: 22.91 | H182: 2019-11-18 | I182: 20.02 | J182: 2019-11-18 | K182: 16.8 | L182: 2019-11-18 | M182: 12.81 | N182: 2019-11-18 | O182: 10.31 | P182: 2019-11-18 | Q182: 21.87 | R182: 2019-11-18 | S182: 90.61 | T182: 2019-11-18 | U182: 10.7 | V182: 2019-11-18 | W182: 17.09
B183: 2019-11-15 | C183: 107.31 | D183: 2019-11-15 | E183: 107.22 | F183: 2019-11-15 | G183: 22.9 | H183: 2019-11-15 | I183: 20.07 | J183: 2019-11-15 | K183: 16.77 | L183: 2019-11-15 | M183: 12.82 | N183: 2019-11-15 | O183: 10.31 | P183: 2019-11-15 | Q183: 21.67 | R183: 2019-11-15 | S183: 90.4 | T183: 2019-11-15 | U183: 10.69 | V183: 2019-11-15 | W183: 17.01
B184: 2019-11-14 | C184: 106.47 | D184: 2019-11-14 | E184: 106.45 | F184: 2019-11-14 | G184: 22.74 | H184: 2019-11-14 | I184: 19.98 | J184: 2019-11-14 | K184: 16.63 | L184: 2019-11-14 | M184: 12.73 | N184: 2019-11-14 | O184: 10.24 | P184: 2019-11-14 | Q184: 21.82 | R184: 2019-11-14 | S184: 90.18 | T184: 2019-11-14 | U184: 10.69 | V184: 2019-11-14 | W184: 16.94
B185: 2019-11-13 | C185: 106.36 | D185: 2019-11-13 | E185: 106.47 | F185: 2019-11-13 | G185: 22.67 | H185: 2019-11-13 | I185: 19.98 | J185: 2019-11-13 | K185: 16.6 | L185: 2019-11-13 | M185: 12.73 | N185: 2019-11-13 | O185: 10.24 | P185: 2019-11-13 | Q185: 21.65 | R185: 2019-11-13 | S185: 89.89 | T185: 2019-11-13 | U185: 10.67 | V185: 2019-11-13 | W185: 16.79
B186: 2019-11-12 | C186: 106.28 | D186: 2019-11-12 | E186: 106.54 | F186: 2019-11-12 | G186: 22.65 | H186: 2019-11-12 | I186: 20.04 | J186: 2019-11-12 | K186: 16.57 | L186: 2019-11-12 | M186: 12.73 | N186: 2019-11-12 | O186: 10.34 | P186: 2019-11-12 | Q186: 21.41 | R186: 2019-11-12 | S186: 88.89 | T186: 2019-11-12 | U186: 10.66 | V186: 2019-11-12 | W186: 16.64
B187: 2019-11-11 | C187: 106.11 | D187: 2019-11-11 | E187: 106.25 | F187: 2019-11-11 | G187: 22.64 | H187: 2019-11-11 | I187: 20.04 | J187: 2019-11-11 | K187: 16.52 | L187: 2019-11-11 | M187: 12.73 | N187: 2019-11-11 | O187: 10.34 | P187: 2019-11-11 | Q187: 21.23 | R187: 2019-11-11 | S187: 88.55 | T187: 2019-11-11 | U187: 10.65 | V187: 2019-11-11 | W187: 16.8
B188: 2019-11-08 | C188: 106.31 | D188: 2019-11-08 | E188: 106.37 | F188: 2019-11-08 | G188: 22.66 | H188: 2019-11-08 | I188: 20.09 | J188: 2019-11-08 | K188: 16.53 | L188: 2019-11-08 | M188: 12.77 | N188: 2019-11-08 | O188: 10.44 | P188: 2019-11-08 | Q188: 21.18 | R188: 2019-11-08 | S188: 89.17 | T188: 2019-11-08 | U188: 10.64 | V188: 2019-11-08 | W188: 16.8
B189: 2019-11-07 | C189: 106.03 | D189: 2019-11-07 | E189: 105.88 | F189: 2019-11-07 | G189: 22.59 | H189: 2019-11-07 | I189: 20.03 | J189: 2019-11-07 | K189: 16.46 | L189: 2019-11-07 | M189: 12.74 | N189: 2019-11-07 | O189: 10.55 | P189: 2019-11-07 | Q189: 21.52 | R189: 2019-11-07 | S189: 89.28 | T189: 2019-11-07 | U189: 10.65 | V189: 2019-11-07 | W189: 16.86
B190: 2019-11-06 | C190: 105.69 | D190: 2019-11-06 | E190: 105.57 | F190: 2019-11-06 | G190: 22.56 | H190: 2019-11-06 | I190: 19.98 | J190: 2019-11-06 | K190: 16.41 | L190: 2019-11-06 | M190: 12.7 | N190: 2019-11-06 | O190: 10.48 | P190: 2019-11-06 | Q190: 21.84 | R190: 2019-11-06 | S190: 89.81 | T190: 2019-11-06 | U190: 10.7 | V190: 2019-11-06 | W190: 17.04
B191: 2019-11-05 | C191: 105.6 | D191: 2019-11-05 | E191: 105.84 | F191: 2019-11-05 | G191: 22.61 | H191: 2019-11-05 | I191: 20.09 | J191: 2019-11-05 | K191: 16.4 | L191: 2019-11-05 | M191: 12.69 | N191: 2019-11-05 | O191: 10.51 | P191: 2019-11-05 | Q191: 21.64 | R191: 2019-11-05 | S191: 89.8 | T191: 2019-11-05 | U191: 10.68 | V191: 2019-11-05 | W191: 17
B192: 2019-11-04 | C192: 105.73 | D192: 2019-11-04 | E192: 105.84 | F192: 2019-11-04 | G192: 22.65 | H192: 2019-11-04 | I192: 20.06 | J192: 2019-11-04 | K192: 16.45 | L192: 2019-11-04 | M192: 12.69 | N192: 2019-11-04 | O192: 10.43 | P192: 2019-11-04 | Q192: 22.12 | R192: 2019-11-04 | S192: 90.7 | T192: 2019-11-04 | U192: 10.72 | V192: 2019-11-04 | W192: 17.25
B193: 2019-11-01 | C193: 105.35 | D193: 2019-11-01 | E193: 105.23 | F193: 2019-11-01 | G193: 22.57 | H193: 2019-11-01 | I193: 19.97 | J193: 2019-11-01 | K193: 16.42 | L193: 2019-11-01 | M193: 12.61 | N193: 2019-11-01 | O193: 10.31 | P193: 2019-11-01 | Q193: 22.44 | R193: 2019-11-01 | S193: 91.37 | T193: 2019-11-01 | U193: 10.74 | V193: 2019-11-01 | W193: 17.34
B194: 2019-10-31 | C194: 104.33 | D194: 2019-10-31 | E194: 104.07 | F194: 2019-10-31 | G194: 22.3 | H194: 2019-10-31 | I194: 19.62 | J194: 2019-10-31 | K194: 16.28 | L194: 2019-10-31 | M194: 12.47 | N194: 2019-10-31 | O194: 10.2 | P194: 2019-10-31 | Q194: 22.6 | R194: 2019-10-31 | S194: 91 | T194: 2019-10-31 | U194: 10.75 | V194: 2019-10-31 | W194: 17.32
B195: 2019-10-30 | C195: 104.63 | D195: 2019-10-30 | E195: 104.25 | F195: 2019-10-30 | G195: 22.45 | H195: 2019-10-30 | I195: 19.76 | J195: 2019-10-30 | K195: 16.32 | L195: 2019-10-30 | M195: 12.52 | N195: 2019-10-30 | O195: 10.24 | P195: 2019-10-30 | Q195: 22.12 | R195: 2019-10-30 | S195: 90.83 | T195: 2019-10-30 | U195: 10.68 | V195: 2019-10-30 | W195: 17.36
B196: 2019-10-29 | C196: 104.31 | D196: 2019-10-29 | E196: 103.87 | F196: 2019-10-29 | G196: 22.43 | H196: 2019-10-29 | I196: 19.81 | J196: 2019-10-29 | K196: 16.23 | L196: 2019-10-29 | M196: 12.51 | N196: 2019-10-29 | O196: 10.24 | P196: 2019-10-29 | Q196: 22.02 | R196: 2019-10-29 | S196: 90.28 | T196: 2019-10-29 | U196: 10.65 | V196: 2019-10-29 | W196: 17.24
B197: 2019-10-28 | C197: 104.37 | D197: 2019-10-28 | E197: 104.43 | F197: 2019-10-28 | G197: 22.39 | H197: 2019-10-28 | I197: 19.74 | J197: 2019-10-28 | K197: 16.29 | L197: 2019-10-28 | M197: 12.49 | N197: 2019-10-28 | O197: 10.25 | P197: 2019-10-28 | Q197: 22.04 | R197: 2019-10-28 | S197: 89.92 | T197: 2019-10-28 | U197: 10.65 | V197: 2019-10-28 | W197: 17.2
B198: 2019-10-25 | C198: 103.8 | D198: 2019-10-25 | E198: 103.44 | F198: 2019-10-25 | G198: 22.31 | H198: 2019-10-25 | I198: 19.58 | J198: 2019-10-25 | K198: 16.15 | L198: 2019-10-25 | M198: 12.46 | N198: 2019-10-25 | O198: 10.19 | P198: 2019-10-25 | Q198: 22.44 | R198: 2019-10-25 | S198: 91.18 | T198: 2019-10-25 | U198: 10.67 | V198: 2019-10-25 | W198: 17.3
B199: 2019-10-24 | C199: 103.37 | D199: 2019-10-24 | E199: 102.62 | F199: 2019-10-24 | G199: 22.26 | H199: 2019-10-24 | I199: 19.47 | J199: 2019-10-24 | K199: 16.08 | L199: 2019-10-24 | M199: 12.4 | N199: 2019-10-24 | O199: 10.17 | P199: 2019-10-24 | Q199: 22.26 | R199: 2019-10-24 | S199: 92.6 | T199: 2019-10-24 | U199: 10.68 | V199: 2019-10-24 | W199: 17.49
B200: 2019-10-23 | C200: 103.17 | D200: 2019-10-23 | E200: 101.89 | F200: 2019-10-23 | G200: 22.18 | H200: 2019-10-23 | I200: 19.5 | J200: 2019-10-23 | K200: 15.96 | L200: 2019-10-23 | M200: 12.43 | N200: 2019-10-23 | O200: 10.14 | P200: 2019-10-23 | Q200: 21.79 | R200: 2019-10-23 | S200: 92.38 | T200: 2019-10-23 | U200: 10.68 | V200: 2019-10-23 | W200: 17.49
B201: 2019-10-22 | C201: 102.88 | D201: 2019-10-22 | E201: 101.64 | F201: 2019-10-22 | G201: 22.14 | H201: 2019-10-22 | I201: 19.48 | J201: 2019-10-22 | K201: 15.92 | L201: 2019-10-22 | M201: 12.39 | N201: 2019-10-22 | O201: 10.15 | P201: 2019-10-22 | Q201: 21.57 | R201: 2019-10-22 | S201: 91.88 | T201: 2019-10-22 | U201: 10.67 | V201: 2019-10-22 | W201: 17.45
B202: 2019-10-21 | C202: 103.24 | D202: 2019-10-21 | E202: 102.42 | F202: 2019-10-21 | G202: 22.2 | H202: 2019-10-21 | I202: 19.47 | J202: 2019-10-21 | K202: 16.07 | L202: 2019-10-21 | M202: 12.36 | N202: 2019-10-21 | O202: 10.11 | P202: 2019-10-21 | Q202: 21.69 | R202: 2019-10-21 | S202: 91.36 | T202: 2019-10-21 | U202: 10.66 | V202: 2019-10-21 | W202: 17.47
B203: 2019-10-18 | C203: 102.53 | D203: 2019-10-18 | E203: 101.51 | F203: 2019-10-18 | G203: 22.06 | H203: 2019-10-18 | I203: 19.28 | J203: 2019-10-18 | K203: 15.98 | L203: 2019-10-18 | M203: 12.27 | N203: 2019-10-18 | O203: 10.05 | P203: 2019-10-18 | Q203: 22.05 | R203: 2019-10-18 | S203: 91.05 | T203: 2019-10-18 | U203: 10.68 | V203: 2019-10-18 | W203: 17.3
B204: 2019-10-17 | C204: 102.94 | D204: 2019-10-17 | E204: 102.34 | F204: 2019-10-17 | G204: 22.09 | H204: 2019-10-17 | I204: 19.36 | J204: 2019-10-17 | K204: 16.09 | L204: 2019-10-17 | M204: 12.28 | N204: 2019-10-17 | O204: 10.09 | P204: 2019-10-17 | Q204: 21.97 | R204: 2019-10-17 | S204: 90.69 | T204: 2019-10-17 | U204: 10.67 | V204: 2019-10-17 | W204: 17.19
... 835 more rows

Sheet RS4rSymbolsToEvaluate
A1: Symbols to be Evaluated Using RS4r Prodocols | G1: Start | H1: 2020-07-18T12:10:25.480
C2: Suggest starting with groups of 11 symbols or less untill you have a feel for elapsed time consumed. | G2: Stop | H2: 2020-07-18T12:16:26.060
G3: Elapsed | H3: =IF(H2>H1,H2-H1,"") -> 00:06:00.580
E5: =MAX((B:B<>"")*ROW(B:B))-9 -> 30 | F5: <--Symbols In List. | H5: RS4r Values--> | I5: =MAX((J:J<>"")*ROW(J:J))-9 -> 30
B8: RS4r | C8: Name | D8: Last Trade as of most recent check | I8: Strength Values
B9: Target | D9: Date | E9: Time | F9: Close | G9: Change | H9: Retrieved @ | I9: RS5 | J9: RS4r
B10: FSPGX | C10: Fidelity Large Cap Growth Index Fund (FSPGX) -Nasdaq (Daily) | D10: 2020-07-17 | E10: 18:46:00 | F10: 19.9 | G10: 0.07 | H10: 2020-07-18T12:10:39 | I10: 0 | J10: 69.09
B11: FDCPX | C11: Fidelity Select Computers Portfolio (FDCPX) -Nasdaq (Daily) | D11: 2020-07-17 | E11: 18:46:00 | F11: 83.18 | G11: 0.190002 | H11: 2020-07-18T12:10:55 | I11: 0 | J11: 63.64
B12: FSPTX | C12: Fidelity Select Technology Portfolio (FSPTX) -Nasdaq (Daily) | D12: 2020-07-17 | E12: 18:46:00 | F12: 23.68 | G12: 0.08 | H12: 2020-07-18T12:11:11 | I12: 0 | J12: 67.27
B13: FBGRX | C13: Fidelity Blue Chip Growth Fund (FBGRX) -Nasdaq (Daily) | D13: 2020-07-17 | E13: 18:46:00 | F13: 134.56 | G13: 0.410004 | H13: 2020-07-18T12:11:26 | I13: 0 | J13: 78.18
B14: FDCPX | C14: Fidelity Select Computers Portfolio (FDCPX) -Nasdaq (Daily) | D14: 2020-07-17 | E14: 18:46:00 | F14: 83.18 | G14: 0.190002 | H14: 2020-07-18T12:11:43 | I14: 0 | J14: 63.64
B15: FHKCX | C15: Fidelity China Region Fund (FHKCX) -Nasdaq (Daily) | D15: 2020-07-17 | E15: 18:46:00 | F15: 47.09 | G15: 0.5 | H15: 2020-07-18T12:11:56 | I15: 100 | J15: 95.45
B16: FNCMX | C16: Fidelity NASDAQ Composite Index Fund (FNCMX) -Nasdaq (Daily) | D16: 2020-07-17 | E16: 18:46:00 | F16: 132.4 | G16: 0.369995 | H16: 2020-07-18T12:12:08 | I16: 0 | J16: 78.18
B17: FDEQX | C17: Fidelity Disciplined Equity Fund (FDEQX) -Nasdaq (Daily) | D17: 2020-07-17 | E17: 18:46:00 | F17: 43.94 | G17: 0.23 | H17: 2020-07-18T12:12:23 | I17: 0 | J17: 59.09
B18: FSLBX | C18: Fidelity Select Brokerage & Invmt Mgmt Portfolio (FSLBX) -Nasdaq (Daily) | D18: 2020-07-17 | E18: 18:46:00 | F18: 80.97 | G18: 0.169998 | H18: 2020-07-18T12:12:37 | I18: 0 | J18: 54.55
B19: FSCSX | C19: Fidelity Select Software & IT Services Portfolio (FSCSX) -Nasdaq (Daily) | D19: 2020-07-17 | E19: 18:46:00 | F19: 23.08 | G19: 0.15 | H19: 2020-07-18T12:12:48 | I19: 0 | J19: 58.18
B20: FSAVX | C20: Fidelity Select Automotive Portfolio (FSAVX) -Nasdaq (Daily) | D20: 2020-07-17 | E20: 18:46:00 | F20: 35.71 | G20: -0.130001 | H20: 2020-07-18T12:13:01 | I20: 13.33 | J20: 80.91
B21: FXAIX | C21: Fidelity 500 Index Fund (FXAIX) -Nasdaq (Daily) | D21: 2020-07-17 | E21: 18:46:00 | F21: 111.87 | G21: 0.32 | H21: 2020-07-18T12:13:10 | I21: 0 | J21: 60
B22: SPY | C22: SPDR S&P 500 ETF Trust (SPY) -NYSEArca (Daily) | D22: 2020-07-17 | E22: 16:00:00 | F22: 321.72 | G22: 0.929992 | H22: 2020-07-18T12:13:22 | I22: 0 | J22: 60
B23: QQQ | C23: Invesco QQQ Trust (QQQ) -NasdaqGM (Daily) | D23: 2020-07-17 | E23: 16:00:00 | F23: 259.42 | G23: 0.300018 | H23: 2020-07-18T12:13:32 | I23: 0 | J23: 78.18
B24: FTRNX | C24: Fidelity Trend Fund (FTRNX) -Nasdaq (Daily) | D24: 2020-07-17 | E24: 18:46:00 | F24: 126.97 | G24: 0.739998 | H24: 2020-07-18T12:13:44 | I24: 20 | J24: 69.09
B25: FWRLX | C25: Fidelity Select Wireless Portfolio (FWRLX) -Nasdaq (Daily) | D25: 2020-07-17 | E25: 18:46:00 | F25: 11.73 | G25: 0.12 | H25: 2020-07-18T12:13:55 | I25: 0 | J25: 59.09
B26: FBSOX | C26: Fidelity Select IT Services Portfolio (FBSOX) -Nasdaq (Daily) | D26: 2020-07-17 | E26: 18:46:00 | F26: 80.5 | G26: 1.190002 | H26: 2020-07-18T12:14:05 | I26: 0 | J26: 34.55
B27: FDSVX | C27: Fidelity Growth Discovery Fund (FDSVX) -Nasdaq (Daily) | D27: 2020-07-17 | E27: 18:46:00 | F27: 47.33 | G27: 0.330002 | H27: 2020-07-18T12:14:15 | I27: 86.67 | J27: 77.27
B28: FEQIX | C28: Fidelity Equity-Income Fund (FEQIX) -Nasdaq (Daily) | D28: 2020-07-17 | E28: 18:46:00 | F28: 54.51 | G28: 0.169998 | H28: 2020-07-18T12:14:27 | I28: 0 | J28: 33.64
B29: FGMNX | C29: Fidelity GNMA Fund (FGMNX) -Nasdaq (Daily) | D29: 2020-07-17 | E29: 18:46:00 | F29: 11.78 | G29: 0 | H29: 2020-07-18T12:14:39 | I29: 0 | J29: 9.09
B30: FFNOX | C30: Fidelity Four-in-One Index Fund (FFNOX) -Nasdaq (Daily) | D30: 2020-07-17 | E30: 18:46:00 | F30: 48.76 | G30: 0.16 | H30: 2020-07-18T12:14:50 | I30: 0 | J30: 50.91
B31: FFIDX | C31: Fidelity Fund (FFIDX) -Nasdaq (Daily) | D31: 2020-07-17 | E31: 18:46:00 | F31: 56.5 | G31: 0.27 | H31: 2020-07-18T12:15:02 | I31: 0 | J31: 60
B32: FFFAX | C32: Fidelity Freedom Income Fund (FFFAX) -Nasdaq (Daily) | D32: 2020-07-17 | E32: 18:46:00 | F32: 11.85 | G32: 0.02 | H32: 2020-07-18T12:15:14 | I32: 0 | J32: 34.55
B33: FEXPX | C33: Fidelity Export and Multinational Fund (FEXPX) -Nasdaq (Daily) | D33: 2020-07-17 | E33: 20:01:00 | F33: 17.59 | G33: 0.049999 | H33: 2020-07-18T12:15:25 | I33: 0 | J33: 9.09
B34: FGBFX | C34: Fidelity Global Credit Fund (FGBFX) -Nasdaq (Daily) | D34: 2020-07-17 | E34: 20:00:00 | F34: 9.89 | G34: 0 | H34: 2020-07-18T12:15:34 | I34: 0 | J34: 25.45
B35: FEQTX | C35: Fidelity Equity Dividend Income Fund (FEQTX) -Nasdaq (Daily) | D35: 2020-07-17 | E35: 18:46:00 | F35: 22.31 | G35: 0.01 | H35: 2020-07-18T12:15:44 | I35: 0 | J35: 17.27
B36: FGHNX | C36: Fidelity Global High Income Fund (FGHNX) -Nasdaq (Daily) | D36: 2020-07-17 | E36: 18:46:00 | F36: 9.06 | G36: 0.02 | H36: 2020-07-18T12:15:53 | I36: 0 | J36: 25.45
B37: FFRHX | C37: Fidelity Floating Rate High Income Fund (FFRHX) -Nasdaq (Daily) | D37: 2020-07-17 | E37: 18:46:00 | F37: 8.84 | G37: 0.01 | H37: 2020-07-18T12:16:03 | I37: 0 | J37: 17.27
B38: FIEUX | C38: Fidelity Europe Fund (FIEUX) -Nasdaq (Daily) | D38: 2020-07-17 | E38: 18:46:00 | F38: 35.64 | G38: 0.419998 | H38: 2020-07-18T12:16:15 | I38: 0 | J38: 63.64
B39: FIVFX | C39: Fidelity International Capital Appreciation Fund (FIVFX) -Nasdaq (Daily) | D39: 2020-07-17 | E39: 18:46:00 | F39: 24.08 | G39: 0.200001 | H39: 2020-07-18T12:16:26 | I39: 13.33 | J39: 80.91

Sheet RS4rComputations
A1: RS4r Computations
A2: User Controls and Calculated Factors
A3: Used in RS1 thru RS4r calculations | I3: Used in RS5 calculations
A4: 10 | B4: Periods | I4: 4 | J4: WMA Len
C5: Alpha | D5: 1-Alpha | J5: Sum of the Weights: | K5: =I4*(I4+1)/2 -> 10
A6: =A4 -> 10 | B6: Fast | C6: =2/(A6+1) -> 0.1818181818 | D6: =1-C6 -> 0.8181818182 | I6: 15 | J6: Periods
A7: 7 | B7: Medium | C7: =2/(A7+1) -> 0.25 | D7: =1-C7 -> 0.75
A8: 15 | B8: Slow | C8: 0.125 | D8: =1-C8 -> 0.875
A9: 30 | B9: Vslow | C9: 0.06451612903 | D9: =1-C9 -> 0.935483871 | I9: 2 | J9: Rounding | O9: =RS4rBenchmarkSymbolList!D5 -> 11 | P9: Available Benchmark Symbols
B10: Current RS4r Evaluation Symbol
O11: RS1 and RS2t for | Y11: RS1 and RS2t for | AI11: RS1 and RS2t for | AS11: RS1 and RS2t for | BC11: RS1 and RS2t for | BM11: RS1 and RS2t for | BW11: RS1 and RS2t for | CG11: RS1 and RS2t for | CQ11: RS1 and RS2t for | DA11: RS1 and RS2t for | DK11: RS1 and RS2t for
B12: FIVFX | O12: =RS4rBenchmarkValues!B14 -> FXAIX | Y12: =RS4rBenchmarkValues!D14 -> FNCMX | AI12: =RS4rBenchmarkValues!F14 -> FSMDX | AS12: =RS4rBenchmarkValues!H14 -> FSSNX | BC12: =RS4rBenchmarkValues!J14 -> FSPGX | BM12: =RS4rBenchmarkValues!L14 -> FLCOX | BW12: =RS4rBenchmarkValues!N14 -> FPADX | CG12: =RS4rBenchmarkValues!P14 -> FSAGX | CQ12: =RS4rBenchmarkValues!R14 -> FSUTX | DA12: =RS4rBenchmarkValues!T14 -> FTBFX | DK12: =RS4rBenchmarkValues!V14 -> FSRNX
B13: Bars | O13: Bars | Y13: Bars | AI13: Bars | AS13: Bars | BC13: Bars | BM13: Bars | BW13: Bars | CG13: Bars | CQ13: Bars | DA13: Bars | DK13: Bars
A14: Rel | B14: 1024 | I14: ="WMA("&I4&")" -> WMA(4) | O14: =RS4rBenchmarkValues!B13 -> 1024 | P14: Fast | Q14: Med | R14: Slow | S14: Vslow | Y14: =RS4rBenchmarkValues!D13 -> 1024 | Z14: Fast | AA14: Med | AB14: Slow | AC14: Vslow | AI14: =RS4rBenchmarkValues!F13 -> 1024 | AJ14: Fast | AK14: Med | AL14: Slow | AM14: Vslow | AS14: =RS4rBenchmarkValues!H13 -> 1024 | AT14: Fast | AU14: Med | AV14: Slow | AW14: Vslow | BC14: =RS4rBenchmarkValues!J13 -> 1024 | BD14: Fast | BE14: Med | BF14: Slow | BG14: Vslow | BM14: =RS4rBenchmarkValues!L13 -> 1024 | BN14: Fast | BO14: Med | BP14: Slow | BQ14: Vslow | BW14: =RS4rBenchmarkValues!N13 -> 1024 | BX14: Fast | BY14: Med | BZ14: Slow | CA14: Vslow | CG14: =RS4rBenchmarkValues!P13 -> 1024 | CH14: Fast | CI14: Med | CJ14: Slow | CK14: Vslow | CQ14: =RS4rBenchmarkValues!R13 -> 1024 | CR14: Fast | CS14: Med | CT14: Slow | CU14: Vslow | DA14: =RS4rBenchmarkValues!T13 -> 1024 | DB14: Fast | DC14: Med | DD14: Slow | DE14: Vslow | DK14: =RS4rBenchmarkValues!V13 -> 1024 | DL14: Fast | DM14: Med | DN14: Slow | DO14: Vslow
A15: Row | B15: Date | C15: Close | D15: RS3x | E15: RS4 | F15: RS4Osc | G15: MV | H15: RS4r | I15: Weights | J15: mvRS4r | K15: RS4rup | L15: X | M15: R5 | N15: RS5 | O15: RS1 | P15: ="EMA("&$A6&")" -> EMA(10) | Q15: ="EMA("&$A7&")" -> EMA(7) | R15: ="EMA("&$A8&")" -> EMA(15) | S15: ="EMA("&$A9&")" -> EMA(30) | T15: Tier1 | U15: Tier2 | V15: Tier3 | W15: Tier4 | X15: RS2t | Y15: RS1 | Z15: ="EMA("&$A6&")" -> EMA(10) | AA15: ="EMA("&$A7&")" -> EMA(7) | AB15: ="EMA("&$A8&")" -> EMA(15) | AC15: ="EMA("&$A9&")" -> EMA(30) | AD15: Tier1 | AE15: Tier2 | AF15: Tier3 | AG15: Tier4 | AH15: RS2t | AI15: RS1 | AJ15: ="EMA("&$A6&")" -> EMA(10) | AK15: ="EMA("&$A7&")" -> EMA(7) | AL15: ="EMA("&$A8&")" -> EMA(15) | AM15: ="EMA("&$A9&")" -> EMA(30) | AN15: Tier1 | AO15: Tier2 | AP15: Tier3 | AQ15: Tier4 | AR15: RS2t | AS15: RS1 | AT15: ="EMA("&$A6&")" -> EMA(10) | AU15: ="EMA("&$A7&")" -> EMA(7) | AV15: ="EMA("&$A8&")" -> EMA(15) | AW15: ="EMA("&$A9&")" -> EMA(30) | AX15: Tier1 | AY15: Tier2 | AZ15: Tier3 | BA15: Tier4 | BB15: RS2t | BC15: RS1 | BD15: ="EMA("&$A6&")" -> EMA(10) | BE15: ="EMA("&$A7&")" -> EMA(7) | BF15: ="EMA("&$A8&")" -> EMA(15) | BG15: ="EMA("&$A9&")" -> EMA(30) | BH15: Tier1 | BI15: Tier2 | BJ15: Tier3 | BK15: Tier4 | BL15: Tier1 | BM15: RS1 | BN15: ="EMA("&$A6&")" -> EMA(10) | BO15: ="EMA("&$A7&")" -> EMA(7) | BP15: ="EMA("&$A8&")" -> EMA(15) | BQ15: ="EMA("&$A9&")" -> EMA(30) | BR15: Tier1 | BS15: Tier2 | BT15: Tier3 | BU15: Tier4 | BV15: RS2t | BW15: RS1 | BX15: ="EMA("&$A6&")" -> EMA(10) | BY15: ="EMA("&$A7&")" -> EMA(7) | BZ15: ="EMA("&$A8&")" -> EMA(15) | CA15: ="EMA("&$A9&")" -> EMA(30) | CB15: Tier1 | CC15: Tier2 | CD15: Tier3 | CE15: Tier4 | CF15: RS2t | CG15: RS1 | CH15: ="EMA("&$A6&")" -> EMA(10) | CI15: ="EMA("&$A7&")" -> EMA(7) | CJ15: ="EMA("&$A8&")" -> EMA(15) | CK15: ="EMA("&$A9&")" -> EMA(30) | CL15: Tier1 | CM15: Tier2 | CN15: Tier3 | CO15: Tier4 | CP15: RS2t | CQ15: RS1 | CR15: ="EMA("&$A6&")" -> EMA(10) | CS15: ="EMA("&$A7&")" -> EMA(7) | CT15: ="EMA("&$A8&")" -> EMA(15) | CU15: ="EMA("&$A9&")" -> EMA(30) | CV15: Tier1 | CW15: Tier2 | CX15: Tier3 | CY15: Tier4 | CZ15: RS2t | DA15: RS1 | DB15: ="EMA("&$A6&")" -> EMA(10) | DC15: ="EMA("&$A7&")" -> EMA(7) | DD15: ="EMA("&$A8&")" -> EMA(15) | DE15: ="EMA("&$A9&")" -> EMA(30) | DF15: Tier1 | DG15: Tier2 | DH15: Tier3 | DI15: Tier4 | DJ15: RS2t | DK15: RS1 | DL15: ="EMA("&$A6&")" -> EMA(10) | DM15: ="EMA("&$A7&")" -> EMA(7) | DN15: ="EMA("&$A8&")" -> EMA(15) | DO15: ="EMA("&$A9&")" -> EMA(30) | DP15: Tier1 | DQ15: Tier2 | DR15: Tier3 | DS15: Tier4 | DT15: RS2t
A16: 1 | B16: 2020-07-17 | C16: 24.08 | D16: =X16+AH16+AR16+BB16+BL16+BV16+CF16+CP16+CZ16+DJ16+DT16 -> 89 | E16: =D16/$O$9*10 -> 80.90909091 | F16: =AVERAGE(E16:E18) -> 75.45454545 | G16: =AVERAGE(F16:F20) -> 71.45454545 | H16: =ROUND(E16,$I$9) -> 80.91 | I16: =IF(A16=1,$I$4,IF(A16<=$I$4,I15-1,NA())) -> 4 | J16: =SUMPRODUCT(OFFSET(H16,0,0,$I$4,1),OFFSET($I$16,0,0,$I$4,1))/$K$5 -> 76.002 | K16: =OR(H16>=80,H16>J16) -> TRUE | L16: =IF(H16>80,1,0) -> 1 | M16: =IF(K16,AVERAGE(OFFSET(L16,0,0,$I$6,1))*100,0) -> 13.33333333 | N16: =ROUND(M16,$I$9) -> 13.33 | O16: =IF(RS4rBenchmarkValues!C16=0,RS4rComputations!O17,RS4rComputations!$C16/RS4rBenchmarkValues!C16) -> 0.2152498436 | P16: =$C$6*O16+$D$6*P17 -> 0.214355946 | Q16: =$C$7*P16+$D$7*Q17 -> 0.2135012417 | R16: =$C$8*P16+$D$8*R17 -> 0.2119202017 | S16: =$C$9*R16+$D$9*S17 -> 0.2078253776 | T16: =IF(AND(P16>0,P16>=Q16,Q16>=R16,R16>=S16),10,0) -> 10 | U16: =IF(AND(P16>=Q16,Q16>=R16,R16<S16),9,0) -> 0 | V16: =IF(AND(P16<Q16,Q16>=R16,R16>=S16),9,0) -> 0 | W16: =IF(AND(P16<Q16,Q16>=R16,R16<S16),5,0) -> 0 | X16: =SUM(T16:W16) -> 10 | Y16: =IF(RS4rBenchmarkValues!E16=0,RS4rComputations!Y17,RS4rComputations!$C16/RS4rBenchmarkValues!E16) -> 0.1818731118 | Z16: =$C$6*Y16+$D$6*Z17 -> 0.1803465087 | AA16: =$C$7*Z16+$D$7*AA17 -> 0.1798034948 | AB16: =$C$8*Z16+$D$8*AB17 -> 0.1797744059 | AC16: =$C$9*AB16+$D$9*AC17 -> 0.1807873733 | AD16: =IF(AND(Z16>0,Z16>=AA16,AA16>=AB16,AB16>=AC16),10,0) -> 0 | AE16: =IF(AND(Z16>=AA16,AA16>=AB16,AB16<AC16),9,0) -> 9 | AF16: =IF(AND(Z16<AA16,AA16>=AB16,AB16>=AC16),9,0) -> 0 | AG16: =IF(AND(Z16<AA16,AA16>=AB16,AB16<AC16),5,0) -> 0 | AH16: =SUM(AD16:AG16) -> 9 | AI16: =IF(RS4rBenchmarkValues!G16=0,RS4rComputations!AI17,RS4rComputations!$C16/RS4rBenchmarkValues!G16) -> 1.084684685 | AJ16: =$C$6*AI16+$D$6*AJ17 -> 1.089944533 | AK16: =$C$7*AJ16+$D$7*AK17 -> 1.087492835 | AL16: =$C$8*AJ16+$D$8*AL17 -> 1.076872726 | AM16: =$C$9*AL16+$D$9*AM17 -> 1.05184107 | AN16: =IF(AND(AJ16>0,AJ16>=AK16,AK16>=AL16,AL16>=AM16),10,0) -> 10 | AO16: =IF(AND(AJ16>=AK16,AK16>=AL16,AL16<AM16),9,0) -> 0 | AP16: =IF(AND(AJ16<AK16,AK16>=AL16,AL16>=AM16),9,0) -> 0 | AQ16: =IF(AND(AJ16<AK16,AK16>=AL16,AL16<AM16),5,0) -> 0 | AR16: =SUM(AN16:AQ16) -> 10 | AS16: =IF(RS4rBenchmarkValues!I16=0,RS4rComputations!AS17,RS4rComputations!$C16/RS4rBenchmarkValues!I16) -> 1.288389513 | AT16: =$C$6*AS16+$D$6*AT17 -> 1.295069177 | AU16: =$C$7*AT16+$D$7*AU17 -> 1.292098905 | AV16: =$C$8*AT16+$D$8*AV17 -> 1.278427405 | AW16: =$C$9*AV16+$D$9*AW17 -> 1.249589196 | AX16: =IF(AND(AT16>0,AT16>=AU16,AU16>=AV16,AV16>=AW16),10,0) -> 10 | AY16: =IF(AND(AT16>=AU16,AU16>=AV16,AV16<AW16),9,0) -> 0 | AZ16: =IF(AND(AT16<AU16,AU16>=AV16,AV16>=AW16),9,0) -> 0 | BA16: =IF(AND(AT16<AU16,AU16>=AV16,AV16<AW16),5,0) -> 0 | BB16: =SUM(AX16:BA16) -> 10 | BC16: =IF(RS4rBenchmarkValues!K16=0,RS4rComputations!BC17,RS4rComputations!$C16/RS4rBenchmarkValues!K16) -> 1.210050251 | BD16: =$C$6*BC16+$D$6*BD17 -> 1.199608119 | BE16: =$C$7*BD16+$D$7*BE17 -> 1.195184756 | BF16: =$C$8*BD16+$D$8*BF17 -> 1.192962108 | BG16: =$C$9*BF16+$D$9*BG17 -> 1.189283031 | BH16: =IF(AND(BD16>0,BD16>=BE16,BE16>=BF16,BF16>=BG16),10,0) -> 10 | BI16: =IF(AND(BD16>=BE16,BE16>=BF16,BF16<BG16),9,0) -> 0 | BJ16: =IF(AND(BD16<BE16,BE16>=BF16,BF16>=BG16),9,0) -> 0 | BK16: =IF(AND(BD16<BE16,BE16>=BF16,BF16<BG16),5,0) -> 0 | BL16: =IF(AND(BH16>0,BH16>=BI16,BI16>=BJ16,BJ16>=BK16),10,0) -> 10 | BM16: =IF(RS4rBenchmarkValues!M16=0,RS4rComputations!BM17,RS4rComputations!$C16/RS4rBenchmarkValues!M16) -> 2.110429448 | BN16: =$C$6*BM16+$D$6*BN17 -> 2.118230861 | BO16: =$C$7*BN16+$D$7*BO17 -> 2.113789563 | BP16: =$C$8*BN16+$D$8*BP17 -> 2.087697094 | BQ16: =$C$9*BP16+$D$9*BQ17 -> 2.007751729 | BR16: =IF(AND(BN16>0,BN16>=BO16,BO16>=BP16,BP16>=BQ16),10,0) -> 10 | BS16: =IF(AND(BN16>=BO16,BO16>=BP16,BP16<BQ16),9,0) -> 0 | BT16: =IF(AND(BN16<BO16,BO16>=BP16,BP16>=BQ16),9,0) -> 0 | BU16: =IF(AND(BN16<BO16,BO16>=BP16,BP16<BQ16),5,0) -> 0 | BV16: =SUM(BR16:BU16) -> 10 | BW16: =IF(RS4rBenchmarkValues!O16=0,RS4rComputations!BW17,RS4rComputations!$C16/RS4rBenchmarkValues!O16) -> 2.282464455 | BX16: =$C$6*BW16+$D$6*BX17 -> 2.254859345 | BY16: =$C$7*BX16+$D$7*BY17 -> 2.246684933 | BZ16: =$C$8*BX16+$D$8*BZ17 -> 2.250778943 | CA16: =$C$9*BZ16+$D$9*CA17 -> 2.263382447 | CB16: =IF(AND(BX16>0,BX16>=BY16,BY16>=BZ16,BZ16>=CA16),10,0) -> 0 | CC16: =IF(AND(BX16>=BY16,BY16>=BZ16,BZ16<CA16),9,0) -> 0 | CD16: =IF(AND(BX16<BY16,BY16>=BZ16,BZ16>=CA16),9,0) -> 0 | CE16: =IF(AND(BX16<BY16,BY16>=BZ16,BZ16<CA16),5,0) -> 0 | CF16: =SUM(CB16:CE16) -> 0 | CG16: =IF(RS4rBenchmarkValues!Q16=0,RS4rComputations!CG17,RS4rComputations!$C16/RS4rBenchmarkValues!Q16) -> 0.7494553377 | CH16: =$C$6*CG16+$D$6*CH17 -> 0.7587887799 | CI16: =$C$7*CH16+$D$7*CI17 -> 0.7614272444 | CJ16: =$C$8*CH16+$D$8*CJ17 -> 0.766448388 | CK16: =$C$9*CJ16+$D$9*CK17 -> 0.7724109435 | CL16: =IF(AND(CH16>0,CH16>=CI16,CI16>=CJ16,CJ16>=CK16),10,0) -> 0 | CM16: =IF(AND(CH16>=CI16,CI16>=CJ16,CJ16<CK16),9,0) -> 0 | CN16: =IF(AND(CH16<CI16,CI16>=CJ16,CJ16>=CK16),9,0) -> 0 | CO16: =IF(AND(CH16<CI16,CI16>=CJ16,CJ16<CK16),5,0) -> 0 | CP16: =SUM(CL16:CO16) -> 0 | CQ16: =IF(RS4rBenchmarkValues!S16=0,RS4rComputations!CQ17,RS4rComputations!$C16/RS4rBenchmarkValues!S16) -> 0.2823308711 | CR16: =$C$6*CQ16+$D$6*CR17 -> 0.2865533436 | CS16: =$C$7*CR16+$D$7*CS17 -> 0.2859456078 | CT16: =$C$8*CR16+$D$8*CT17 -> 0.2820618982 | CU16: =$C$9*CT16+$D$9*CU17 -> 0.2693538974 | CV16: =IF(AND(CR16>0,CR16>=CS16,CS16>=CT16,CT16>=CU16),10,0) -> 10 | CW16: =IF(AND(CR16>=CS16,CS16>=CT16,CT16<CU16),9,0) -> 0 | CX16: =IF(AND(CR16<CS16,CS16>=CT16,CT16>=CU16),9,0) -> 0 | CY16: =IF(AND(CR16<CS16,CS16>=CT16,CT16<CU16),5,0) -> 0 | CZ16: =SUM(CV16:CY16) -> 10 | DA16: =IF(RS4rBenchmarkValues!U16=0,RS4rComputations!DA17,RS4rComputations!$C16/RS4rBenchmarkValues!U16) -> 2.10122164 | DB16: =$C$6*DA16+$D$6*DB17 -> 2.075491029 | DC16: =$C$7*DB16+$D$7*DC17 -> 2.056320773 | DD16: =$C$8*DB16+$D$8*DD17 -> 2.032515587 | DE16: =$C$9*DD16+$D$9*DE17 -> 1.965013017 | DF16: =IF(AND(DB16>0,DB16>=DC16,DC16>=DD16,DD16>=DE16),10,0) -> 10 | DG16: =IF(AND(DB16>=DC16,DC16>=DD16,DD16<DE16),9,0) -> 0 | DH16: =IF(AND(DB16<DC16,DC16>=DD16,DD16>=DE16),9,0) -> 0 | DI16: =IF(AND(DB16<DC16,DC16>=DD16,DD16<DE16),5,0) -> 0 | DJ16: =SUM(DF16:DI16) -> 10 | DK16: =IF(RS4rBenchmarkValues!W16=0,RS4rComputations!DK17,RS4rComputations!$C16/RS4rBenchmarkValues!W16) -> 1.842387146 | DL16: =$C$6*DK16+$D$6*DL17 -> 1.820992057 | DM16: =$C$7*DL16+$D$7*DM17 -> 1.795041653 | DN16: =$C$8*DL16+$D$8*DN17 -> 1.759223707 | DO16: =$C$9*DN16+$D$9*DO17 -> 1.677718972 | DP16: =IF(AND(DL16>0,DL16>=DM16,DM16>=DN16,DN16>=DO16),10,0) -> 10 | DQ16: =IF(AND(DL16>=DM16,DM16>=DN16,DN16<DO16),9,0) -> 0 | DR16: =IF(AND(DL16<DM16,DM16>=DN16,DN16>=DO16),9,0) -> 0 | DS16: =IF(AND(DL16<DM16,DM16>=DN16,DN16<DO16),5,0) -> 0 | DT16: =SUM(DP16:DS16) -> 10
A17: 2 | B17: 2020-07-16 | C17: 23.88 | D17: =X17+AH17+AR17+BB17+BL17+BV17+CF17+CP17+CZ17+DJ17+DT17 -> 80 | E17: 72.72727273 | F17: =AVERAGE(E17:E19) -> 72.72727273 | G17: =AVERAGE(F17:F21) -> 69.09090909 | H17: =ROUND(E17,$I$9) -> 72.73 | I17: =IF(A17=1,$I$4,IF(A17<=$I$4,I16-1,NA())) -> 3 | J17: =SUMPRODUCT(OFFSET(H17,0,0,$I$4,1),OFFSET($I$16,0,0,$I$4,1))/$K$5 -> 72.73 | K17: =OR(H17>=80,H17>J17) -> FALSE | L17: =IF(H17>80,1,0) -> 0 | M17: =IF(K17,AVERAGE(OFFSET(L17,0,0,$I$6,1))*100,0) -> 0 | N17: =ROUND(M17,$I$9) -> 0 | O17: =IF(RS4rBenchmarkValues!C17=0,RS4rComputations!O18,RS4rComputations!$C17/RS4rBenchmarkValues!C17) -> 0.2140744061 | P17: 0.2141573021 | Q17: 0.2132163402 | R17: =$C$8*P17+$D$8*R18 -> 0.2115722382 | S17: 0.207542976 | T17: =IF(AND(P17>0,P17>=Q17,Q17>=R17,R17>=S17),10,0) -> 10 | U17: =IF(AND(P17>=Q17,Q17>=R17,R17<S17),9,0) -> 0 | V17: =IF(AND(P17<Q17,Q17>=R17,R17>=S17),9,0) -> 0 | W17: =IF(AND(P17<Q17,Q17>=R17,R17<S17),5,0) -> 0 | X17: =SUM(T17:W17) -> 10 | Y17: =IF(RS4rBenchmarkValues!E17=0,RS4rComputations!Y18,RS4rComputations!$C17/RS4rBenchmarkValues!E17) -> 0.1808679845 | Z17: 0.1800072635 | AA17: 0.1796224902 | AB17: =$C$8*Z17+$D$8*AB18 -> 0.1796926769 | AC17: 0.1808572331 | AD17: =IF(AND(Z17>0,Z17>=AA17,AA17>=AB17,AB17>=AC17),10,0) -> 0 | AE17: =IF(AND(Z17>=AA17,AA17>=AB17,AB17<AC17),9,0) -> 0 | AF17: =IF(AND(Z17<AA17,AA17>=AB17,AB17>=AC17),9,0) -> 0 | AG17: =IF(AND(Z17<AA17,AA17>=AB17,AB17<AC17),5,0) -> 0 | AH17: =SUM(AD17:AG17) -> 0 | AI17: =IF(RS4rBenchmarkValues!G17=0,RS4rComputations!AI18,RS4rComputations!$C17/RS4rBenchmarkValues!G17) -> 1.082502267 | AJ17: 1.091113388 | AK17: 1.086675602 | AL17: =$C$8*AJ17+$D$8*AL18 -> 1.075005325 | AM17: 1.050114749 | AN17: =IF(AND(AJ17>0,AJ17>=AK17,AK17>=AL17,AL17>=AM17),10,0) -> 10 | AO17: =IF(AND(AJ17>=AK17,AK17>=AL17,AL17<AM17),9,0) -> 0 | AP17: =IF(AND(AJ17<AK17,AK17>=AL17,AL17>=AM17),9,0) -> 0 | AQ17: =IF(AND(AJ17<AK17,AK17>=AL17,AL17<AM17),5,0) -> 0 | AR17: =SUM(AN17:AQ17) -> 10 | AS17: =IF(RS4rBenchmarkValues!I17=0,RS4rComputations!AS18,RS4rComputations!$C17/RS4rBenchmarkValues!I17) -> 1.282491944 | AT17: 1.296553547 | AU17: 1.291108814 | AV17: =$C$8*AT17+$D$8*AV18 -> 1.276050009 | AW17: 1.247600354 | AX17: =IF(AND(AT17>0,AT17>=AU17,AU17>=AV17,AV17>=AW17),10,0) -> 10 | AY17: =IF(AND(AT17>=AU17,AU17>=AV17,AV17<AW17),9,0) -> 0 | AZ17: =IF(AND(AT17<AU17,AU17>=AV17,AV17>=AW17),9,0) -> 0 | BA17: =IF(AND(AT17<AU17,AU17>=AV17,AV17<AW17),5,0) -> 0 | BB17: =SUM(AX17:BA17) -> 10 | BC17: =IF(RS4rBenchmarkValues!K17=0,RS4rComputations!BC18,RS4rComputations!$C17/RS4rBenchmarkValues!K17) -> 1.204236006 | BD17: 1.197287645 | BE17: 1.193710301 | BF17: =$C$8*BD17+$D$8*BF18 -> 1.192012678 | BG17: 1.189029301 | BH17: =IF(AND(BD17>0,BD17>=BE17,BE17>=BF17,BF17>=BG17),10,0) -> 10 | BI17: =IF(AND(BD17>=BE17,BE17>=BF17,BF17<BG17),9,0) -> 0 | BJ17: =IF(AND(BD17<BE17,BE17>=BF17,BF17>=BG17),9,0) -> 0 | BK17: =IF(AND(BD17<BE17,BE17>=BF17,BF17<BG17),5,0) -> 0 | BL17: =IF(AND(BH17>0,BH17>=BI17,BI17>=BJ17,BJ17>=BK17),10,0) -> 10 | BM17: =IF(RS4rBenchmarkValues!M17=0,RS4rComputations!BM18,RS4rComputations!$C17/RS4rBenchmarkValues!M17) -> 2.098418278 | BN17: 2.119964509 | BO17: 2.11230913 | BP17: =$C$8*BN17+$D$8*BP18 -> 2.083335127 | BQ17: 2.002238256 | BR17: =IF(AND(BN17>0,BN17>=BO17,BO17>=BP17,BP17>=BQ17),10,0) -> 10 | BS17: =IF(AND(BN17>=BO17,BO17>=BP17,BP17<BQ17),9,0) -> 0 | BT17: =IF(AND(BN17<BO17,BO17>=BP17,BP17>=BQ17),9,0) -> 0 | BU17: =IF(AND(BN17<BO17,BO17>=BP17,BP17<BQ17),5,0) -> 0 | BV17: =SUM(BR17:BU17) -> 10 | BW17: =IF(RS4rBenchmarkValues!O17=0,RS4rComputations!BW18,RS4rComputations!$C17/RS4rBenchmarkValues!O17) -> 2.282982792 | BX17: 2.248724877 | BY17: 2.243960129 | BZ17: =$C$8*BX17+$D$8*BZ18 -> 2.250196029 | CA17: 2.264251655 | CB17: =IF(AND(BX17>0,BX17>=BY17,BY17>=BZ17,BZ17>=CA17),10,0) -> 0 | CC17: =IF(AND(BX17>=BY17,BY17>=BZ17,BZ17<CA17),9,0) -> 0 | CD17: =IF(AND(BX17<BY17,BY17>=BZ17,BZ17>=CA17),9,0) -> 0 | CE17: =IF(AND(BX17<BY17,BY17>=BZ17,BZ17<CA17),5,0) -> 0 | CF17: =SUM(CB17:CE17) -> 0 | CG17: =IF(RS4rBenchmarkValues!Q17=0,RS4rComputations!CG18,RS4rComputations!$C17/RS4rBenchmarkValues!Q17) -> 0.7614795918 | CH17: 0.7608628782 | CI17: 0.7623067325 | CJ17: =$C$8*CH17+$D$8*CJ18 -> 0.7675426178 | CK17: 0.7728221543 | CL17: =IF(AND(CH17>0,CH17>=CI17,CI17>=CJ17,CJ17>=CK17),10,0) -> 0 | CM17: =IF(AND(CH17>=CI17,CI17>=CJ17,CJ17<CK17),9,0) -> 0 | CN17: =IF(AND(CH17<CI17,CI17>=CJ17,CJ17>=CK17),9,0) -> 0 | CO17: =IF(AND(CH17<CI17,CI17>=CJ17,CJ17<CK17),5,0) -> 0 | CP17: =SUM(CL17:CO17) -> 0 | CQ17: =IF(RS4rBenchmarkValues!S17=0,RS4rComputations!CQ18,RS4rComputations!$C17/RS4rBenchmarkValues!S17) -> 0.2861250899 | CR17: 0.2874916708 | CS17: 0.2857430292 | CT17: =$C$8*CR17+$D$8*CT18 -> 0.2814202631 | CU17: 0.2684774836 | CV17: =IF(AND(CR17>0,CR17>=CS17,CS17>=CT17,CT17>=CU17),10,0) -> 10 | CW17: =IF(AND(CR17>=CS17,CS17>=CT17,CT17<CU17),9,0) -> 0 | CX17: =IF(AND(CR17<CS17,CS17>=CT17,CT17>=CU17),9,0) -> 0 | CY17: =IF(AND(CR17<CS17,CS17>=CT17,CT17<CU17),5,0) -> 0 | CZ17: =SUM(CV17:CY17) -> 10 | DA17: =IF(RS4rBenchmarkValues!U17=0,RS4rComputations!DA18,RS4rComputations!$C17/RS4rBenchmarkValues!U17) -> 2.08558952 | DB17: 2.069773115 | DC17: 2.049930688 | DD17: =$C$8*DB17+$D$8*DD18 -> 2.026376238 | DE17: 1.960357668 | DF17: =IF(AND(DB17>0,DB17>=DC17,DC17>=DD17,DD17>=DE17),10,0) -> 10 | DG17: =IF(AND(DB17>=DC17,DC17>=DD17,DD17<DE17),9,0) -> 0 | DH17: =IF(AND(DB17<DC17,DC17>=DD17,DD17>=DE17),9,0) -> 0 | DI17: =IF(AND(DB17<DC17,DC17>=DD17,DD17<DE17),5,0) -> 0 | DJ17: =SUM(DF17:DI17) -> 10 | DK17: =IF(RS4rBenchmarkValues!W17=0,RS4rComputations!DK18,RS4rComputations!$C17/RS4rBenchmarkValues!W17) -> 1.854037267 | DL17: 1.816237593 | DM17: 1.786391518 | DN17: =$C$8*DL17+$D$8*DN18 -> 1.750399658 | DO17: 1.672097956 | DP17: =IF(AND(DL17>0,DL17>=DM17,DM17>=DN17,DN17>=DO17),10,0) -> 10 | DQ17: =IF(AND(DL17>=DM17,DM17>=DN17,DN17<DO17),9,0) -> 0 | DR17: =IF(AND(DL17<DM17,DM17>=DN17,DN17>=DO17),9,0) -> 0 | DS17: =IF(AND(DL17<DM17,DM17>=DN17,DN17<DO17),5,0) -> 0 | DT17: =SUM(DP17:DS17) -> 10
A18: 3 | B18: 2020-07-15 | C18: 24.09 | D18: 80 | E18: 72.72727273 | F18: 72.72727273 | G18: 67.27272727 | H18: 72.73 | I18: 2 | J18: 71.821 | K18: TRUE | L18: 0 | M18: 6.666666667 | N18: 6.67 | O18: =IF(RS4rBenchmarkValues!C18=0,RS4rComputations!O19,RS4rComputations!$C18/RS4rBenchmarkValues!C18) -> 0.2152238006 | P18: 0.2141757234 | Q18: 0.2129026862 | R18: 0.2112029434 | S18: 0.2072650958 | T18: 10 | U18: 0 | V18: 0 | W18: 0 | X18: 10 | Y18: =IF(RS4rBenchmarkValues!E18=0,RS4rComputations!Y19,RS4rComputations!$C18/RS4rBenchmarkValues!E18) -> 0.1811278195 | Z18: 0.1798159922 | AA18: 0.1794942324 | AB18: 0.179647736 | AC18: 0.1809375474 | AD18: 0 | AE18: 0 | AF18: 0 | AG18: 0 | AH18: 0 | AI18: =IF(RS4rBenchmarkValues!G18=0,RS4rComputations!AI19,RS4rComputations!$C18/RS4rBenchmarkValues!G18) -> 1.089059675 | AJ18: 1.093026971 | AK18: 1.08519634 | AL18: 1.072704173 | AM18: 1.048398158 | AN18: 10 | AO18: 0 | AP18: 0 | AQ18: 0 | AR18: 10 | AS18: =IF(RS4rBenchmarkValues!I18=0,RS4rComputations!AS19,RS4rComputations!$C18/RS4rBenchmarkValues!I18) -> 1.2848 | AT18: 1.299678347 | AU18: 1.289293903 | AV18: 1.273120933 | AW18: 1.245638309 | AX18: 10 | AY18: 0 | AZ18: 0 | BA18: 0 | BB18: 10 | BC18: =IF(RS4rBenchmarkValues!K18=0,RS4rComputations!BC19,RS4rComputations!$C18/RS4rBenchmarkValues!K18) -> 1.206309464 | BD18: 1.195743565 | BE18: 1.192517853 | BF18: 1.191259112 | BG18: 1.188823551 | BH18: 10 | BI18: 0 | BJ18: 0 | BK18: 0 | BL18: 10 | BM18: =IF(RS4rBenchmarkValues!M18=0,RS4rComputations!BM19,RS4rComputations!$C18/RS4rBenchmarkValues!M18) -> 2.116871705 | BN18: 2.12475256 | BO18: 2.109757337 | BP18: 2.078102359 | BQ18: 1.996645368 | BR18: 10 | BS18: 0 | BT18: 0 | BU18: 0 | BV18: 10 | BW18: =IF(RS4rBenchmarkValues!O18=0,RS4rComputations!BW19,RS4rComputations!$C18/RS4rBenchmarkValues!O18) -> 2.264097744 | BX18: 2.241112007 | BY18: 2.24237188 | BZ18: 2.250406193 | CA18: 2.265221008 | CB18: 0 | CC18: 0 | CD18: 0 | CE18: 0 | CF18: 0 | CG18: =IF(RS4rBenchmarkValues!Q18=0,RS4rComputations!CG19,RS4rComputations!$C18/RS4rBenchmarkValues!Q18) -> 0.7628245725 | CH18: 0.7607258307 | CI18: 0.7627880173 | CJ18: 0.7684968663 | CK18: 0.7731862602 | CL18: 0 | CM18: 0 | CN18: 0 | CO18: 0 | CP18: 0 | CQ18: =IF(RS4rBenchmarkValues!S18=0,RS4rComputations!CQ19,RS4rComputations!$C18/RS4rBenchmarkValues!S18) -> 0.2906962713 | CR18: 0.2877953555 | CS18: 0.2851601487 | CT18: 0.2805529191 | CU18: 0.2675848781 | CV18: 10 | CW18: 0 | CX18: 0 | CY18: 0 | CZ18: 10 | DA18: =IF(RS4rBenchmarkValues!U18=0,RS4rComputations!DA19,RS4rComputations!$C18/RS4rBenchmarkValues!U18) -> 2.105769231 | DB18: 2.066258359 | DC18: 2.043316546 | DD18: 2.020176685 | DE18: 1.955804663 | DF18: 10 | DG18: 0 | DH18: 0 | DI18: 0 | DJ18: 10 | DK18: =IF(RS4rBenchmarkValues!W18=0,RS4rComputations!DK19,RS4rComputations!$C18/RS4rBenchmarkValues!W18) -> 1.838931298 | DL18: 1.807837666 | DM18: 1.776442827 | DN18: 1.740994238 | DO18: 1.666697839 | DP18: 10 | DQ18: 0 | DR18: 0 | DS18: 0 | DT18: 10
A19: 4 | B19: 2020-07-14 | C19: 23.86 | D19: 80 | E19: 72.72727273 | F19: 69.6969697 | G19: 65.45454545 | H19: 72.73 | I19: 1 | J19: 70.003 | K19: TRUE | L19: 0 | M19: 6.666666667 | N19: 6.67 | O19: =IF(RS4rBenchmarkValues!C19=0,RS4rComputations!O20,RS4rComputations!$C19/RS4rBenchmarkValues!C19) -> 0.2151099892 | P19: 0.2139428174 | Q19: 0.2124783405 | R19: 0.2107782605 | S19: 0.2069935201 | T19: 10 | U19: 0 | V19: 0 | W19: 0 | X19: 10 | Y19: =IF(RS4rBenchmarkValues!E19=0,RS4rComputations!Y20,RS4rComputations!$C19/RS4rBenchmarkValues!E19) -> 0.1804568144 | Z19: 0.179524475 | AA19: 0.1793869792 | AB19: 0.1796236994 | AC19: 0.1810264999 | AD19: 0 | AE19: 0 | AF19: 0 | AG19: 0 | AH19: 0 | AI19: =IF(RS4rBenchmarkValues!G19=0,RS4rComputations!AI20,RS4rComputations!$C19/RS4rBenchmarkValues!G19) -> 1.1025878 | AJ19: 1.093908592 | AK19: 1.08258613 | AL19: 1.069800916 | AM19: 1.046721881 | AN19: 10 | AO19: 0 | AP19: 0 | AQ19: 0 | AR19: 10 | AS19: =IF(RS4rBenchmarkValues!I19=0,RS4rComputations!AS20,RS4rComputations!$C19/RS4rBenchmarkValues!I19) -> 1.317504141 | AT19: 1.302984647 | AU19: 1.285832421 | AV19: 1.269327016 | AW19: 1.243742955 | AX19: 10 | AY19: 0 | AZ19: 0 | BA19: 0 | BB19: 10 | BC19: =IF(RS4rBenchmarkValues!K19=0,RS4rComputations!BC20,RS4rComputations!$C19/RS4rBenchmarkValues!K19) -> 1.199597788 | BD19: 1.193395587 | BE19: 1.191442616 | BF19: 1.190618475 | BG19: 1.188655582 | BH19: 10 | BI19: 0 | BJ19: 0 | BK19: 0 | BL19: 10 | BM19: =IF(RS4rBenchmarkValues!M19=0,RS4rComputations!BM20,RS4rComputations!$C19/RS4rBenchmarkValues!M19) -> 2.130357143 | BN19: 2.126503861 | BO19: 2.104758929 | BP19: 2.071438044 | BQ19: 1.991027644 | BR19: 10 | BS19: 0 | BT19: 0 | BU19: 0 | BV19: 10 | BW19: =IF(RS4rBenchmarkValues!O19=0,RS4rComputations!BW20,RS4rComputations!$C19/RS4rBenchmarkValues!O19) -> 2.244590781 | BX19: 2.236004065 | BY19: 2.242791837 | BZ19: 2.251733934 | CA19: 2.26624272 | CB19: 0 | CC19: 0 | CD19: 0 | CE19: 0 | CF19: 0 | CG19: =IF(RS4rBenchmarkValues!Q19=0,RS4rComputations!CG20,RS4rComputations!$C19/RS4rBenchmarkValues!Q19) -> 0.755541482 | CH19: 0.7602594436 | CI19: 0.7634754128 | CJ19: 0.7696070142 | CK19: 0.7735096667 | CL19: 0 | CM19: 0 | CN19: 0 | CO19: 0 | CP19: 0 | CQ19: =IF(RS4rBenchmarkValues!S19=0,RS4rComputations!CQ20,RS4rComputations!$C19/RS4rBenchmarkValues!S19) -> 0.2879208399 | CR19: 0.2871507076 | CS19: 0.2842817464 | CT19: 0.2795182854 | CU19: 0.2666905304 | CV19: 10 | CW19: 0 | CX19: 0 | CY19: 0 | CZ19: 10 | DA19: =IF(RS4rBenchmarkValues!U19=0,RS4rComputations!DA20,RS4rComputations!$C19/RS4rBenchmarkValues!U19) -> 2.089316988 | DB19: 2.057478165 | DC19: 2.035669275 | DD19: 2.013593588 | DE19: 1.951365213 | DF19: 10 | DG19: 0 | DH19: 0 | DI19: 0 | DJ19: 10 | DK19: =IF(RS4rBenchmarkValues!W19=0,RS4rComputations!DK20,RS4rComputations!$C19/RS4rBenchmarkValues!W19) -> 1.846749226 | DL19: 1.80092797 | DM19: 1.765977881 | DN19: 1.731445177 | DO19: 1.661573949 | DP19: 10 | DQ19: 0 | DR19: 0 | DS19: 0 | DT19: 10
A20: 5 | B20: 2020-07-13 | C20: 23.69 | D20: 80 | E20: 72.72727273 | F20: 66.66666667 | G20: 64.24242424 | H20: 72.73 | J20: 67.276 | K20: TRUE | L20: 0 | M20: 6.666666667 | N20: 6.67 | O20: =IF(RS4rBenchmarkValues!C20=0,RS4rComputations!O21,RS4rComputations!$C20/RS4rBenchmarkValues!C20) -> 0.2164854245 | P20: 0.2136834459 | Q20: 0.2119901816 | R20: 0.210326181 | S20: 0.2067325035 | T20: 10 | U20: 0 | V20: 0 | W20: 0 | X20: 10 | Y20: =IF(RS4rBenchmarkValues!E20=0,RS4rComputations!Y21,RS4rComputations!$C20/RS4rBenchmarkValues!E20) -> 0.180867308 | Z20: 0.1793172885 | AA20: 0.1793411473 | AB20: 0.1796378743 | AC20: 0.1811232447 | AD20: 0 | AE20: 0 | AF20: 0 | AG20: 0 | AH20: 0 | AI20: =IF(RS4rBenchmarkValues!G20=0,RS4rComputations!AI21,RS4rComputations!$C20/RS4rBenchmarkValues!G20) -> 1.112728981 | AJ20: 1.09197988 | AK20: 1.078811976 | AL20: 1.066356962 | AM20: 1.045130223 | AN20: 10 | AO20: 0 | AP20: 0 | AQ20: 0 | AR20: 10 | AS20: =IF(RS4rBenchmarkValues!I20=0,RS4rComputations!AS21,RS4rComputations!$C20/RS4rBenchmarkValues!I20) -> 1.330898876 | AT20: 1.299758093 | AU20: 1.280115013 | AV20: 1.264518783 | AW20: 1.241978537 | AX20: 10 | AY20: 0 | AZ20: 0 | BA20: 0 | BB20: 10 | BC20: =IF(RS4rBenchmarkValues!K20=0,RS4rComputations!BC21,RS4rComputations!$C20/RS4rBenchmarkValues!K20) -> 1.204984741 | BD20: 1.192017321 | BE20: 1.190791625 | BF20: 1.190221745 | BG20: 1.18852021 | BH20: 10 | BI20: 0 | BJ20: 0 | BK20: 0 | BL20: 10 | BM20: =IF(RS4rBenchmarkValues!M20=0,RS4rComputations!BM21,RS4rComputations!$C20/RS4rBenchmarkValues!M20) -> 2.149727768 | BN20: 2.125647576 | BO20: 2.097510619 | BP20: 2.063571499 | BQ20: 1.9854821 | BR20: 10 | BS20: 0 | BT20: 0 | BU20: 0 | BV20: 10 | BW20: =IF(RS4rBenchmarkValues!O20=0,RS4rComputations!BW21,RS4rComputations!$C20/RS4rBenchmarkValues!O20) -> 2.228598307 | BX20: 2.234095906 | BY20: 2.245054428 | BZ20: 2.253981058 | CA20: 2.267243325 | CB20: 0 | CC20: 0 | CD20: 0 | CE20: 0 | CF20: 0 | CG20: =IF(RS4rBenchmarkValues!Q20=0,RS4rComputations!CG21,RS4rComputations!$C20/RS4rBenchmarkValues!Q20) -> 0.775958074 | CH20: 0.7613078795 | CI20: 0.7645474026 | CJ20: 0.7709423815 | CK20: 0.7737788151 | CL20: 0 | CM20: 0 | CN20: 0 | CO20: 0 | CP20: 0 | CQ20: =IF(RS4rBenchmarkValues!S20=0,RS4rComputations!CQ21,RS4rComputations!$C20/RS4rBenchmarkValues!S20) -> 0.2892198755 | CR20: 0.2869795671 | CS20: 0.2833254261 | CT20: 0.2784279394 | CU20: 0.2658058577 | CV20: 10 | CW20: 0 | CX20: 0 | CY20: 0 | CZ20: 10 | DA20: =IF(RS4rBenchmarkValues!U20=0,RS4rComputations!DA21,RS4rComputations!$C20/RS4rBenchmarkValues!U20) -> 2.072615923 | DB20: 2.050402871 | DC20: 2.028399645 | DD20: 2.007324363 | DE20: 1.947073601 | DF20: 10 | DG20: 0 | DH20: 0 | DI20: 0 | DJ20: 10 | DK20: =IF(RS4rBenchmarkValues!W20=0,RS4rComputations!DK21,RS4rComputations!$C20/RS4rBenchmarkValues!W20) -> 1.84214619 | DL20: 1.790745468 | DM20: 1.754327851 | DN20: 1.721519064 | DO20: 1.656755244 | DP20: 10 | DQ20: 0 | DR20: 0 | DS20: 0 | DT20: 10
A21: 6 | B21: 2020-07-10 | C21: 23.85 | D21: 70 | E21: 63.63636364 | F21: 63.63636364 | G21: 64.24242424 | H21: 63.64 | J21: 63.64 | K21: FALSE | L21: 0 | M21: 0 | N21: 0 | O21: =IF(RS4rBenchmarkValues!C21=0,RS4rComputations!O22,RS4rComputations!$C21/RS4rBenchmarkValues!C21) -> 0.2158957183 | P21: 0.213060784 | Q21: 0.2114257601 | R21: 0.2098465717 | S21: 0.2064846637 | T21: 10 | U21: 0 | V21: 0 | W21: 0 | X21: 10 | Y21: =IF(RS4rBenchmarkValues!E21=0,RS4rComputations!Y22,RS4rComputations!$C21/RS4rBenchmarkValues!E21) -> 0.1781978482 | Z21: 0.1789728397 | AA21: 0.1793491002 | AB21: 0.1796836723 | AC21: 0.1812256841 | AD21: 0 | AE21: 0 | AF21: 0 | AG21: 0 | AH21: 0 | AI21: =IF(RS4rBenchmarkValues!G21=0,RS4rComputations!AI22,RS4rComputations!$C21/RS4rBenchmarkValues!G21) -> 1.106728538 | AJ21: 1.087368968 | AK21: 1.074422675 | AL21: 1.062696545 | AM21: 1.04366631 | AN21: 10 | AO21: 0 | AP21: 0 | AQ21: 0 | AR21: 10 | AS21: =IF(RS4rBenchmarkValues!I21=0,RS4rComputations!AS22,RS4rComputations!$C21/RS4rBenchmarkValues!I21) -> 1.322062084 | AT21: 1.292837918 | AU21: 1.273567319 | AV21: 1.259484596 | AW21: 1.240424038 | AX21: 10 | AY21: 0 | AZ21: 0 | BA21: 0 | BB21: 10 | BC21: =IF(RS4rBenchmarkValues!K21=0,RS4rComputations!BC22,RS4rComputations!$C21/RS4rBenchmarkValues!K21) -> 1.188340807 | BD21: 1.189135672 | BE21: 1.19038306 | BF21: 1.189965234 | BG21: 1.188402862 | BH21: 0 | BI21: 0 | BJ21: 9 | BK21: 0 | BL21: 0 | BM21: =IF(RS4rBenchmarkValues!M21=0,RS4rComputations!BM22,RS4rComputations!$C21/RS4rBenchmarkValues!M21) -> 2.160326087 | BN21: 2.120296423 | BO21: 2.088131633 | BP21: 2.054703488 | BQ21: 1.980096624 | BR21: 10 | BS21: 0 | BT21: 0 | BU21: 0 | BV21: 10 | BW21: =IF(RS4rBenchmarkValues!O21=0,RS4rComputations!BW22,RS4rComputations!$C21/RS4rBenchmarkValues!O21) -> 2.224813433 | BX21: 2.235317595 | BY21: 2.248707269 | BZ21: 2.256821794 | CA21: 2.268157965 | CB21: 0 | CC21: 0 | CD21: 0 | CE21: 0 | CF21: 0 | CG21: =IF(RS4rBenchmarkValues!Q21=0,RS4rComputations!CG22,RS4rComputations!$C21/RS4rBenchmarkValues!Q21) -> 0.7561826252 | CH21: 0.7580522808 | CI21: 0.7656272436 | CJ21: 0.7723187389 | CK21: 0.7739744313 | CL21: 0 | CM21: 0 | CN21: 0 | CO21: 0 | CP21: 0 | CQ21: =IF(RS4rBenchmarkValues!S21=0,RS4rComputations!CQ22,RS4rComputations!$C21/RS4rBenchmarkValues!S21) -> 0.2914222874 | CR21: 0.2864817207 | CS21: 0.2821073791 | CT21: 0.2772062783 | CU21: 0.2649353693 | CV21: 10 | CW21: 0 | CX21: 0 | CY21: 0 | CZ21: 10 | DA21: =IF(RS4rBenchmarkValues!U21=0,RS4rComputations!DA22,RS4rComputations!$C21/RS4rBenchmarkValues!U21) -> 2.090271691 | DB21: 2.045466637 | DC21: 2.021065237 | DD21: 2.001170291 | DE21: 1.942918376 | DF21: 10 | DG21: 0 | DH21: 0 | DI21: 0 | DJ21: 10 | DK21: =IF(RS4rBenchmarkValues!W21=0,RS4rComputations!DK22,RS4rComputations!$C21/RS4rBenchmarkValues!W21) -> 1.841698842 | DL21: 1.779323086 | DM21: 1.742188645 | DN21: 1.711629578 | DO21: 1.652288773 | DP21: 10 | DQ21: 0 | DR21: 0 | DS21: 0 | DT21: 10
A22: 7 | B22: 2020-07-09 | C22: 23.7 | D22: 70 | E22: 63.63636364 | F22: 63.63636364 | G22: 66 | H22: 63.64 | J22: 63.64 | K22: FALSE | L22: 0 | M22: 0 | N22: 0 | O22: =IF(RS4rBenchmarkValues!C22=0,RS4rComputations!O23,RS4rComputations!$C22/RS4rBenchmarkValues!C22) -> 0.2158076853 | P22: 0.2124307985 | Q22: 0.2108807522 | R22: 0.2093873985 | S22: 0.206252808 | T22: 10 | U22: 0 | V22: 0 | W22: 0 | X22: 10 | Y22: =IF(RS4rBenchmarkValues!E22=0,RS4rComputations!Y23,RS4rComputations!$C22/RS4rBenchmarkValues!E22) -> 0.1782625047 | Z22: 0.17914506 | AA22: 0.1794745204 | AB22: 0.1797852198 | AC22: 0.1813320297 | AD22: 0 | AE22: 0 | AF22: 0 | AG22: 0 | AH22: 0 | AI22: =IF(RS4rBenchmarkValues!G22=0,RS4rComputations!AI23,RS4rComputations!$C22/RS4rBenchmarkValues!G22) -> 1.11163227 | AJ22: 1.083066842 | AK22: 1.070107243 | AL22: 1.059171914 | AM22: 1.04235388 | AN22: 10 | AO22: 0 | AP22: 0 | AQ22: 0 | AR22: 10 | AS22: =IF(RS4rBenchmarkValues!I22=0,RS4rComputations!AS23,RS4rComputations!$C22/RS4rBenchmarkValues!I22) -> 1.335963923 | AT22: 1.286343659 | AU22: 1.267143786 | AV22: 1.254719836 | AW22: 1.239109516 | AX22: 10 | AY22: 0 | AZ22: 0 | BA22: 0 | BB22: 10 | BC22: =IF(RS4rBenchmarkValues!K22=0,RS4rComputations!BC23,RS4rComputations!$C22/RS4rBenchmarkValues!K22) -> 1.185 | BD22: 1.189312308 | BE22: 1.190798857 | BF22: 1.190083743 | BG22: 1.188295113 | BH22: 0 | BI22: 0 | BJ22: 9 | BK22: 0 | BL22: 0 | BM22: =IF(RS4rBenchmarkValues!M22=0,RS4rComputations!BM23,RS4rComputations!$C22/RS4rBenchmarkValues!M22) -> 2.186346863 | BN22: 2.111400942 | BO22: 2.077410036 | BP22: 2.045333068 | BQ22: 1.974951323 | BR22: 10 | BS22: 0 | BT22: 0 | BU22: 0 | BV22: 10 | BW22: =IF(RS4rBenchmarkValues!O22=0,RS4rComputations!BW23,RS4rComputations!$C22/RS4rBenchmarkValues!O22) -> 2.200557103 | BX22: 2.237651853 | BY22: 2.253170494 | BZ22: 2.259893823 | CA22: 2.268939769 | CB22: 0 | CC22: 0 | CD22: 0 | CE22: 0 | CF22: 0 | CG22: =IF(RS4rBenchmarkValues!Q22=0,RS4rComputations!CG23,RS4rComputations!$C22/RS4rBenchmarkValues!Q22) -> 0.743412798 | CH22: 0.7584677598 | CI22: 0.7681522312 | CJ22: 0.7743568043 | CK22: 0.7740886169 | CL22: 0 | CM22: 0 | CN22: 0 | CO22: 0 | CP22: 0 | CQ22: =IF(RS4rBenchmarkValues!S22=0,RS4rComputations!CQ23,RS4rComputations!$C22/RS4rBenchmarkValues!S22) -> 0.2952167414 | CR22: 0.285383817 | CS22: 0.2806492652 | CT22: 0.275881215 | CU22: 0.2640890997 | CV22: 10 | CW22: 0 | CX22: 0 | CY22: 0 | CZ22: 10 | DA22: =IF(RS4rBenchmarkValues!U22=0,RS4rComputations!DA23,RS4rComputations!$C22/RS4rBenchmarkValues!U22) -> 2.073490814 | DB22: 2.035509958 | DC22: 2.012931437 | DD22: 1.994842241 | DE22: 1.938901002 | DF22: 10 | DG22: 0 | DH22: 0 | DI22: 0 | DJ22: 10 | DK22: =IF(RS4rBenchmarkValues!W22=0,RS4rComputations!DK23,RS4rComputations!$C22/RS4rBenchmarkValues!W22) -> 1.842923795 | DL22: 1.765461806 | DM22: 1.729810499 | DN22: 1.701959076 | DO22: 1.648196304 | DP22: 10 | DQ22: 0 | DR22: 0 | DS22: 0 | DT22: 10
A23: 8 | B23: 2020-07-08 | C23: 23.71 | D23: 70 | E23: 63.63636364 | F23: 63.63636364 | G23: 68.84848485 | H23: 63.64 | J23: 63.64 | K23: FALSE | L23: 0 | M23: 0 | N23: 0 | O23: =IF(RS4rBenchmarkValues!C23=0,RS4rComputations!O24,RS4rComputations!$C23/RS4rBenchmarkValues!C23) -> 0.2147450412 | P23: 0.2116803793 | Q23: 0.2103640701 | R23: 0.2089526271 | S23: 0.2060366293 | T23: 10 | U23: 0 | V23: 0 | W23: 0 | X23: 10 | Y23: =IF(RS4rBenchmarkValues!E23=0,RS4rComputations!Y24,RS4rComputations!$C23/RS4rBenchmarkValues!E23) -> 0.1792816635 | Z23: 0.1793411834 | AA23: 0.1795843405 | AB23: 0.1798766712 | AC23: 0.1814387062 | AD23: 0 | AE23: 0 | AF23: 0 | AG23: 0 | AH23: 0 | AI23: =IF(RS4rBenchmarkValues!G23=0,RS4rComputations!AI24,RS4rComputations!$C23/RS4rBenchmarkValues!G23) -> 1.100742804 | AJ23: 1.076718969 | AK23: 1.065787377 | AL23: 1.055758352 | AM23: 1.041194016 | AN23: 10 | AO23: 0 | AP23: 0 | AQ23: 0 | AR23: 10 | AS23: =IF(RS4rBenchmarkValues!I23=0,RS4rComputations!AS24,RS4rComputations!$C23/RS4rBenchmarkValues!I23) -> 1.309944751 | AT23: 1.275316934 | AU23: 1.260743828 | AV23: 1.250202147 | AW23: 1.238032943 | AX23: 10 | AY23: 0 | AZ23: 0 | BA23: 0 | BB23: 10 | BC23: =IF(RS4rBenchmarkValues!K23=0,RS4rComputations!BC24,RS4rComputations!$C23/RS4rBenchmarkValues!K23) -> 1.190261044 | BD23: 1.190270599 | BE23: 1.191294373 | BF23: 1.190193948 | BG23: 1.188171759 | BH23: 0 | BI23: 0 | BJ23: 9 | BK23: 0 | BL23: 0 | BM23: =IF(RS4rBenchmarkValues!M23=0,RS4rComputations!BM24,RS4rComputations!$C23/RS4rBenchmarkValues!M23) -> 2.153496821 | BN23: 2.094746292 | BO23: 2.066079734 | BP23: 2.035894801 | BQ23: 1.970097409 | BR23: 10 | BS23: 0 | BT23: 0 | BU23: 0 | BV23: 10 | BW23: =IF(RS4rBenchmarkValues!O23=0,RS4rComputations!BW24,RS4rComputations!$C23/RS4rBenchmarkValues!O23) -> 2.211753731 | BX23: 2.245895131 | BY23: 2.258343374 | BZ23: 2.263071247 | CA23: 2.269563628 | CB23: 0 | CC23: 0 | CD23: 0 | CE23: 0 | CF23: 0 | CG23: =IF(RS4rBenchmarkValues!Q23=0,RS4rComputations!CG24,RS4rComputations!$C23/RS4rBenchmarkValues!Q23) -> 0.7416327807 | CH23: 0.7618133068 | CI23: 0.7713803884 | CJ23: 0.7766266678 | CK23: 0.7740701213 | CL23: 0 | CM23: 0 | CN23: 0 | CO23: 0 | CP23: 0 | CQ23: =IF(RS4rBenchmarkValues!S23=0,RS4rComputations!CQ24,RS4rComputations!$C23/RS4rBenchmarkValues!S23) -> 0.2908488714 | CR23: 0.2831987227 | CS23: 0.2790710812 | CT23: 0.2745237005 | CU23: 0.2632758503 | CV23: 10 | CW23: 0 | CX23: 0 | CY23: 0 | CZ23: 10 | DA23: =IF(RS4rBenchmarkValues!U23=0,RS4rComputations!DA24,RS4rComputations!$C23/RS4rBenchmarkValues!U23) -> 2.079824561 | DB23: 2.027069768 | DC23: 2.005405263 | DD23: 1.989032567 | DE23: 1.935042986 | DF23: 10 | DG23: 0 | DH23: 0 | DI23: 0 | DJ23: 10 | DK23: =IF(RS4rBenchmarkValues!W23=0,RS4rComputations!DK24,RS4rComputations!$C23/RS4rBenchmarkValues!W23) -> 1.825250192 | DL23: 1.748248031 | DM23: 1.71792673 | DN23: 1.692887258 | DO23: 1.644488526 | DP23: 10 | DQ23: 0 | DR23: 0 | DS23: 0 | DT23: 10
A24: 9 | B24: 2020-07-07 | C24: 23.3 | D24: 70 | E24: 63.63636364 | F24: 63.63636364 | G24: 72.18181818 | H24: 63.64 | J24: 64.549 | K24: FALSE | L24: 0 | M24: 0 | N24: 0 | O24: =IF(RS4rBenchmarkValues!C24=0,RS4rComputations!O25,RS4rComputations!$C24/RS4rBenchmarkValues!C24) -> 0.2126882702 | P24: 0.2109993433 | Q24: 0.2099253003 | R24: 0.2085629482 | S24: 0.205835526 | T24: 10 | U24: 0 | V24: 0 | W24: 0 | X24: 10 | Y24: =IF(RS4rBenchmarkValues!E24=0,RS4rComputations!Y25,RS4rComputations!$C24/RS4rBenchmarkValues!E24) -> 0.1787083909 | Z24: 0.1793544101 | AA24: 0.1796653928 | AB24: 0.1799531695 | AC24: 0.1815464328 | AD24: 0 | AE24: 0 | AF24: 0 | AG24: 0 | AH24: 0 | AI24: =IF(RS4rBenchmarkValues!G24=0,RS4rComputations!AI25,RS4rComputations!$C24/RS4rBenchmarkValues!G24) -> 1.089294063 | AJ24: 1.071380338 | AK24: 1.062143514 | AL24: 1.052763979 | AM24: 1.040189579 | AN24: 10 | AO24: 0 | AP24: 0 | AQ24: 0 | AR24: 10 | AS24: =IF(RS4rBenchmarkValues!I24=0,RS4rComputations!AS25,RS4rComputations!$C24/RS4rBenchmarkValues!I24) -> 1.297327394 | AT24: 1.267621863 | AU24: 1.255886126 | AV24: 1.24661432 | AW24: 1.237193687 | AX24: 10 | AY24: 0 | AZ24: 0 | BA24: 0 | BB24: 10 | BC24: =IF(RS4rBenchmarkValues!K24=0,RS4rComputations!BC25,RS4rComputations!$C24/RS4rBenchmarkValues!K24) -> 1.185750636 | BD24: 1.190272722 | BE24: 1.191635631 | BF24: 1.190182998 | BG24: 1.188032297 | BH24: 0 | BI24: 0 | BJ24: 9 | BK24: 0 | BL24: 0 | BM24: =IF(RS4rBenchmarkValues!M24=0,RS4rComputations!BM25,RS4rComputations!$C24/RS4rBenchmarkValues!M24) -> 2.123974476 | BN24: 2.081690619 | BO24: 2.056524215 | BP24: 2.027487445 | BQ24: 1.965559658 | BR24: 10 | BS24: 0 | BT24: 0 | BU24: 0 | BV24: 10 | BW24: =IF(RS4rBenchmarkValues!O24=0,RS4rComputations!BW25,RS4rComputations!$C24/RS4rBenchmarkValues!O24) -> 2.223282443 | BX24: 2.253482108 | BY24: 2.262492788 | BZ24: 2.265524978 | CA24: 2.270011378 | CB24: 0 | CC24: 0 | CD24: 0 | CE24: 0 | CF24: 0 | CG24: =IF(RS4rBenchmarkValues!Q24=0,RS4rComputations!CG25,RS4rComputations!$C24/RS4rBenchmarkValues!Q24) -> 0.7475136349 | CH24: 0.7662978682 | CI24: 0.7745694155 | CJ24: 0.7787428622 | CK24: 0.7738938077 | CL24: 0 | CM24: 0 | CN24: 0 | CO24: 0 | CP24: 0 | CQ24: =IF(RS4rBenchmarkValues!S24=0,RS4rComputations!CQ25,RS4rComputations!$C24/RS4rBenchmarkValues!S24) -> 0.2883306521 | CR24: 0.2814986897 | CS24: 0.2776952007 | CT24: 0.2732844116 | CU24: 0.2625001365 | CV24: 10 | CW24: 0 | CX24: 0 | CY24: 0 | CZ24: 10 | DA24: =IF(RS4rBenchmarkValues!U24=0,RS4rComputations!DA25,RS4rComputations!$C24/RS4rBenchmarkValues!U24) -> 2.04028021 | DB24: 2.015346481 | DC24: 1.998183762 | DD24: 1.983598681 | DE24: 1.931319567 | DF24: 10 | DG24: 0 | DH24: 0 | DI24: 0 | DJ24: 10 | DK24: =IF(RS4rBenchmarkValues!W24=0,RS4rComputations!DK25,RS4rComputations!$C24/RS4rBenchmarkValues!W24) -> 1.790930054 | DL24: 1.73113644 | DM24: 1.707819629 | DN24: 1.684978576 | DO24: 1.641150683 | DP24: 10 | DQ24: 0 | DR24: 0 | DS24: 0 | DT24: 10
A25: 10 | B25: 2020-07-06 | C25: 23.52 | D25: 70 | E25: 63.63636364 | F25: 66.66666667 | G25: 74.78787879 | H25: 63.64 | J25: 67.185 | K25: FALSE | L25: 0 | M25: 0 | N25: 0 | O25: =IF(RS4rBenchmarkValues!C25=0,RS4rComputations!O26,RS4rComputations!$C25/RS4rBenchmarkValues!C25) -> 0.2123702032 | P25: 0.2106240262 | Q25: 0.209567286 | R25: 0.2082148917 | S25: 0.205647428 | T25: 10 | U25: 0 | V25: 0 | W25: 0 | X25: 10 | Y25: =IF(RS4rBenchmarkValues!E25=0,RS4rComputations!Y26,RS4rComputations!$C25/RS4rBenchmarkValues!E25) -> 0.1788729181 | Z25: 0.1794979699 | AA25: 0.1797690537 | AB25: 0.1800387065 | AC25: 0.181656313 | AD25: 0 | AE25: 0 | AF25: 0 | AG25: 0 | AH25: 0 | AI25: =IF(RS4rBenchmarkValues!G25=0,RS4rComputations!AI26,RS4rComputations!$C25/RS4rBenchmarkValues!G25) -> 1.083870968 | AJ25: 1.067399511 | AK25: 1.059064572 | AL25: 1.050104499 | AM25: 1.039322379 | AN25: 10 | AO25: 0 | AP25: 0 | AQ25: 0 | AR25: 10 | AS25: =IF(RS4rBenchmarkValues!I25=0,RS4rComputations!AS26,RS4rComputations!$C25/RS4rBenchmarkValues!I25) -> 1.285245902 | AT25: 1.261020634 | AU25: 1.251974214 | AV25: 1.243613242 | AW25: 1.236543988 | AX25: 10 | AY25: 0 | AZ25: 0 | BA25: 0 | BB25: 10 | BC25: =IF(RS4rBenchmarkValues!K25=0,RS4rComputations!BC26,RS4rComputations!$C25/RS4rBenchmarkValues!K25) -> 1.187878788 | BD25: 1.19127763 | BE25: 1.192089934 | BF25: 1.19017018 | BG25: 1.187883973 | BH25: 0 | BI25: 0 | BJ25: 9 | BK25: 0 | BL25: 0 | BM25: =IF(RS4rBenchmarkValues!M25=0,RS4rComputations!BM26,RS4rComputations!$C25/RS4rBenchmarkValues!M25) -> 2.113207547 | BN25: 2.072294207 | BO25: 2.048135413 | BP25: 2.019744134 | BQ25: 1.961288776 | BR25: 10 | BS25: 0 | BT25: 0 | BU25: 0 | BV25: 10 | BW25: =IF(RS4rBenchmarkValues!O25=0,RS4rComputations!BW26,RS4rComputations!$C25/RS4rBenchmarkValues!O25) -> 2.220963173 | BX25: 2.260193145 | BY25: 2.265496348 | BZ25: 2.267245388 | CA25: 2.270320785 | CB25: 0 | CC25: 0 | CD25: 0 | CE25: 0 | CF25: 0 | CG25: =IF(RS4rBenchmarkValues!Q25=0,RS4rComputations!CG26,RS4rComputations!$C25/RS4rBenchmarkValues!Q25) -> 0.7724137931 | CH25: 0.7704721423 | CI25: 0.777326598 | CJ25: 0.7805207185 | CK25: 0.7735593902 | CL25: 0 | CM25: 0 | CN25: 0 | CO25: 0 | CP25: 0 | CQ25: =IF(RS4rBenchmarkValues!S25=0,RS4rComputations!CQ26,RS4rComputations!$C25/RS4rBenchmarkValues!S25) -> 0.2891210817 | CR25: 0.2799804758 | CS25: 0.276427371 | CT25: 0.2721109433 | CU25: 0.2617563934 | CV25: 10 | CW25: 0 | CX25: 0 | CY25: 0 | CZ25: 10 | DA25: =IF(RS4rBenchmarkValues!U25=0,RS4rComputations!DA26,RS4rComputations!$C25/RS4rBenchmarkValues!U25) -> 2.064969271 | DB25: 2.009805652 | DC25: 1.992462855 | DD25: 1.979063282 | DE25: 1.92771411 | DF25: 10 | DG25: 0 | DH25: 0 | DI25: 0 | DJ25: 10 | DK25: =IF(RS4rBenchmarkValues!W25=0,RS4rComputations!DK26,RS4rComputations!$C25/RS4rBenchmarkValues!W25) -> 1.760479042 | DL25: 1.71784897 | DM25: 1.700047359 | DN25: 1.678384595 | DO25: 1.63812807 | DP25: 10 | DQ25: 0 | DR25: 0 | DS25: 0 | DT25: 10
A26: 11 | B26: 2020-07-02 | C26: 23.08 | D26: 70 | E26: 63.63636364 | F26: 72.42424242 | G26: 76.12121212 | H26: 63.64 | J26: 71.457 | K26: FALSE | L26: 0 | M26: 0 | N26: 0 | O26: =IF(RS4rBenchmarkValues!C26=0,RS4rComputations!O27,RS4rComputations!$C26/RS4rBenchmarkValues!C26) -> 0.2117042744 | P26: 0.2102359869 | Q26: 0.2092150393 | R26: 0.2078707297 | S26: 0.2054703615 | T26: 10 | U26: 0 | V26: 0 | W26: 0 | X26: 10 | Y26: =IF(RS4rBenchmarkValues!E26=0,RS4rComputations!Y27,RS4rComputations!$C26/RS4rBenchmarkValues!E26) -> 0.1794154229 | Z26: 0.1796368703 | AA26: 0.179859415 | AB26: 0.1801159546 | AC26: 0.1817678721 | AD26: 0 | AE26: 0 | AF26: 0 | AG26: 0 | AH26: 0 | AI26: =IF(RS4rBenchmarkValues!G26=0,RS4rComputations!AI27,RS4rComputations!$C26/RS4rBenchmarkValues!G26) -> 1.074487896 | AJ26: 1.063739187 | AK26: 1.056286259 | AL26: 1.047633783 | AM26: 1.038578785 | AN26: 10 | AO26: 0 | AP26: 0 | AQ26: 0 | AR26: 10 | AS26: =IF(RS4rBenchmarkValues!I26=0,RS4rComputations!AS27,RS4rComputations!$C26/RS4rBenchmarkValues!I26) -> 1.27092511 | AT26: 1.255637242 | AU26: 1.248958741 | AV26: 1.241126472 | AW26: 1.236056454 | AX26: 10 | AY26: 0 | AZ26: 0 | BA26: 0 | BB26: 10 | BC26: =IF(RS4rBenchmarkValues!K26=0,RS4rComputations!BC27,RS4rComputations!$C26/RS4rBenchmarkValues!K26) -> 1.189690722 | BD26: 1.192032929 | BE26: 1.192360701 | BF26: 1.190011973 | BG26: 1.187726304 | BH26: 0 | BI26: 0 | BJ26: 9 | BK26: 0 | BL26: 0 | BM26: =IF(RS4rBenchmarkValues!M26=0,RS4rComputations!BM27,RS4rComputations!$C26/RS4rBenchmarkValues!M26) -> 2.096276113 | BN26: 2.063202354 | BO26: 2.040082482 | BP26: 2.012236981 | BQ26: 1.957257372 | BR26: 10 | BS26: 0 | BT26: 0 | BU26: 0 | BV26: 10 | BW26: =IF(RS4rBenchmarkValues!O26=0,RS4rComputations!BW27,RS4rComputations!$C26/RS4rBenchmarkValues!O26) -> 2.260528893 | BX26: 2.268910917 | BY26: 2.267264082 | BZ26: 2.268252851 | CA26: 2.270532882 | CB26: 0 | CC26: 0 | CD26: 0 | CE26: 0 | CF26: 0 | CG26: =IF(RS4rBenchmarkValues!Q26=0,RS4rComputations!CG27,RS4rComputations!$C26/RS4rBenchmarkValues!Q26) -> 0.7677977379 | CH26: 0.7700406643 | CI26: 0.7796114165 | CJ26: 0.7819562294 | CK26: 0.7730792985 | CL26: 0 | CM26: 0 | CN26: 0 | CO26: 0 | CP26: 0 | CQ26: =IF(RS4rBenchmarkValues!S26=0,RS4rComputations!CQ27,RS4rComputations!$C26/RS4rBenchmarkValues!S26) -> 0.2798932816 | CR26: 0.27794923 | CS26: 0.2752430028 | CT26: 0.2709867243 | CU26: 0.2610422866 | CV26: 10 | CW26: 0 | CX26: 0 | CY26: 0 | CZ26: 10 | DA26: =IF(RS4rBenchmarkValues!U26=0,RS4rComputations!DA27,RS4rComputations!$C26/RS4rBenchmarkValues!U26) -> 2.028119508 | DB26: 1.99754707 | DC26: 1.986681923 | DD26: 1.974671514 | DE26: 1.924172788 | DF26: 10 | DG26: 0 | DH26: 0 | DI26: 0 | DJ26: 10 | DK26: =IF(RS4rBenchmarkValues!W26=0,RS4rComputations!DK27,RS4rComputations!$C26/RS4rBenchmarkValues!W26) -> 1.719821162 | DL26: 1.708375621 | DM26: 1.694113489 | DN26: 1.672746828 | DO26: 1.635351757 | DP26: 10 | DQ26: 0 | DR26: 0 | DS26: 0 | DT26: 10
A27: 12 | B27: 2020-07-01 | C27: 22.83 | D27: 80 | E27: 72.72727273 | F27: 77.87878788 | G27: 75.63636364 | H27: 72.73 | J27: 77.365 | K27: FALSE | L27: 0 | M27: 0 | N27: 0 | O27: =IF(RS4rBenchmarkValues!C27=0,RS4rComputations!O28,RS4rComputations!$C27/RS4rBenchmarkValues!C27) -> 0.2104147465 | P27: 0.2099097007 | Q27: 0.2088747235 | R27: 0.2075328358 | S27: 0.2053048189 | T27: 10 | U27: 0 | V27: 0 | W27: 0 | X27: 10 | Y27: =IF(RS4rBenchmarkValues!E27=0,RS4rComputations!Y28,RS4rComputations!$C27/RS4rBenchmarkValues!E27) -> 0.1784290739 | Z27: 0.1796860808 | AA27: 0.1799335966 | AB27: 0.1801843952 | AC27: 0.1818817974 | AD27: 0 | AE27: 0 | AF27: 0 | AG27: 0 | AH27: 0 | AI27: =IF(RS4rBenchmarkValues!G27=0,RS4rComputations!AI28,RS4rComputations!$C27/RS4rBenchmarkValues!G27) -> 1.068320075 | AJ27: 1.061350585 | AK27: 1.05380195 | AL27: 1.045333011 | AM27: 1.037954302 | AN27: 10 | AO27: 0 | AP27: 0 | AQ27: 0 | AR27: 10 | AS27: =IF(RS4rBenchmarkValues!I27=0,RS4rComputations!AS28,RS4rComputations!$C27/RS4rBenchmarkValues!I27) -> 1.261325967 | AT27: 1.252239938 | AU27: 1.246732574 | AV27: 1.239053505 | AW27: 1.235706797 | AX27: 10 | AY27: 0 | AZ27: 0 | BA27: 0 | BB27: 10 | BC27: =IF(RS4rBenchmarkValues!K27=0,RS4rComputations!BC28,RS4rComputations!$C27/RS4rBenchmarkValues!K27) -> 1.182901554 | BD27: 1.192553419 | BE27: 1.192469959 | BF27: 1.189723265 | BG27: 1.187568671 | BH27: 10 | BI27: 0 | BJ27: 0 | BK27: 0 | BL27: 10 | BM27: =IF(RS4rBenchmarkValues!M27=0,RS4rComputations!BM28,RS4rComputations!$C27/RS4rBenchmarkValues!M27) -> 2.084931507 | BN27: 2.055852629 | BO27: 2.032375858 | BP27: 2.004956213 | BQ27: 1.953465675 | BR27: 10 | BS27: 0 | BT27: 0 | BU27: 0 | BV27: 10 | BW27: =IF(RS4rBenchmarkValues!O27=0,RS4rComputations!BW28,RS4rComputations!$C27/RS4rBenchmarkValues!O27) -> 2.285285285 | BX27: 2.270773589 | BY27: 2.266715138 | BZ27: 2.268158842 | CA27: 2.270690125 | CB27: 0 | CC27: 0 | CD27: 0 | CE27: 0 | CF27: 0 | CG27: =IF(RS4rBenchmarkValues!Q27=0,RS4rComputations!CG28,RS4rComputations!$C27/RS4rBenchmarkValues!Q27) -> 0.7495075509 | CH27: 0.7705390924 | CI27: 0.7828016673 | CJ27: 0.783658453 | CK27: 0.7724670964 | CL27: 0 | CM27: 0 | CN27: 0 | CO27: 0 | CP27: 0 | CQ27: =IF(RS4rBenchmarkValues!S27=0,RS4rComputations!CQ28,RS4rComputations!$C27/RS4rBenchmarkValues!S27) -> 0.2783806853 | CR27: 0.2775172186 | CS27: 0.274340927 | CT27: 0.2699920807 | CU27: 0.2603564633 | CV27: 10 | CW27: 0 | CX27: 0 | CY27: 0 | CZ27: 10 | DA27: =IF(RS4rBenchmarkValues!U27=0,RS4rComputations!DA28,RS4rComputations!$C27/RS4rBenchmarkValues!U27) -> 2.011453744 | DB27: 1.990753194 | DC27: 1.983060207 | DD27: 1.971403578 | DE27: 1.920690117 | DF27: 10 | DG27: 0 | DH27: 0 | DI27: 0 | DJ27: 10 | DK27: =IF(RS4rBenchmarkValues!W27=0,RS4rComputations!DK28,RS4rComputations!$C27/RS4rBenchmarkValues!W27) -> 1.694877506 | DL27: 1.705832167 | DM27: 1.689359444 | DN27: 1.667657 | DO27: 1.632772787 | DP27: 10 | DQ27: 0 | DR27: 0 | DS27: 0 | DT27: 10
A28: 13 | B28: 2020-06-30 | C28: 22.64 | D28: 89 | E28: 80.90909091 | F28: 80.3030303 | G28: 73.51515152 | H28: 80.91 | J28: 79.364 | K28: TRUE | L28: 1 | M28: 6.666666667 | N28: 6.67 | O28: =IF(RS4rBenchmarkValues!C28=0,RS4rComputations!O29,RS4rComputations!$C28/RS4rBenchmarkValues!C28) -> 0.2097267253 | P28: 0.2097974683 | Q28: 0.208529731 | R28: 0.2071932837 | S28: 0.2051511625 | T28: 10 | U28: 0 | V28: 0 | W28: 0 | X28: 10 | Y28: =IF(RS4rBenchmarkValues!E28=0,RS4rComputations!Y29,RS4rComputations!$C28/RS4rBenchmarkValues!E28) -> 0.1786475183 | Z28: 0.1799654157 | AA28: 0.1800161018 | AB28: 0.180255583 | AC28: 0.1819988597 | AD28: 0 | AE28: 0 | AF28: 0 | AG28: 0 | AH28: 0 | AI28: =IF(RS4rBenchmarkValues!G28=0,RS4rComputations!AI29,RS4rComputations!$C28/RS4rBenchmarkValues!G28) -> 1.060421546 | AJ28: 1.05980181 | AK28: 1.051285738 | AL28: 1.043044786 | AM28: 1.037445426 | AN28: 10 | AO28: 0 | AP28: 0 | AQ28: 0 | AR28: 10 | AS28: =IF(RS4rBenchmarkValues!I28=0,RS4rComputations!AS29,RS4rComputations!$C28/RS4rBenchmarkValues!I28) -> 1.239189929 | AT28: 1.25022082 | AU28: 1.244896786 | AV28: 1.237169729 | AW28: 1.23547599 | AX28: 10 | AY28: 0 | AZ28: 0 | BA28: 0 | BB28: 10 | BC28: =IF(RS4rBenchmarkValues!K28=0,RS4rComputations!BC29,RS4rComputations!$C28/RS4rBenchmarkValues!K28) -> 1.188451444 | BD28: 1.194698278 | BE28: 1.192442139 | BF28: 1.189318958 | BG28: 1.187420079 | BH28: 10 | BI28: 0 | BJ28: 0 | BK28: 0 | BL28: 10 | BM28: =IF(RS4rBenchmarkValues!M28=0,RS4rComputations!BM29,RS4rComputations!$C28/RS4rBenchmarkValues!M28) -> 2.061930783 | BN28: 2.049390656 | BO28: 2.024550267 | BP28: 1.997685297 | BQ28: 1.949914604 | BR28: 10 | BS28: 0 | BT28: 0 | BU28: 0 | BV28: 10 | BW28: =IF(RS4rBenchmarkValues!O28=0,RS4rComputations!BW29,RS4rComputations!$C28/RS4rBenchmarkValues!O28) -> 2.279959718 | BX28: 2.267548767 | BY28: 2.265362321 | BZ28: 2.267785307 | CA28: 2.270864696 | CB28: 0 | CC28: 0 | CD28: 0 | CE28: 0 | CF28: 0 | CG28: =IF(RS4rBenchmarkValues!Q28=0,RS4rComputations!CG29,RS4rComputations!$C28/RS4rBenchmarkValues!Q28) -> 0.7432698621 | CH28: 0.7752127683 | CI28: 0.7868891923 | CJ28: 0.7855326474 | CK28: 0.7716952787 | CL28: 0 | CM28: 0 | CN28: 9 | CO28: 0 | CP28: 9 | CQ28: =IF(RS4rBenchmarkValues!S28=0,RS4rComputations!CQ29,RS4rComputations!$C28/RS4rBenchmarkValues!S28) -> 0.28099789 | CR28: 0.2773253371 | CS28: 0.2732821632 | CT28: 0.268917061 | CU28: 0.2596919379 | CV28: 10 | CW28: 0 | CX28: 0 | CY28: 0 | CZ28: 10 | DA28: =IF(RS4rBenchmarkValues!U28=0,RS4rComputations!DA29,RS4rComputations!$C28/RS4rBenchmarkValues!U28) -> 1.996472663 | DB28: 1.986153072 | DC28: 1.980495878 | DD28: 1.968639347 | DE28: 1.917192637 | DF28: 10 | DG28: 0 | DH28: 0 | DI28: 0 | DJ28: 10 | DK28: =IF(RS4rBenchmarkValues!W28=0,RS4rComputations!DK29,RS4rComputations!$C28/RS4rBenchmarkValues!W28) -> 1.721673004 | DL28: 1.708266536 | DM28: 1.683868537 | DN28: 1.662203405 | DO28: 1.630366979 | DP28: 10 | DQ28: 0 | DR28: 0 | DS28: 0 | DT28: 10
A29: 14 | B29: 2020-06-29 | C29: 22.53 | D29: 88 | E29: 80 | F29: 76.66666667 | G29: 70.36363636 | H29: 80 | J29: 77 | K29: TRUE | L29: 0 | M29: 0 | N29: 0 | O29: =IF(RS4rBenchmarkValues!C29=0,RS4rComputations!O30,RS4rComputations!$C29/RS4rBenchmarkValues!C29) -> 0.2119273822 | P29: 0.209813189 | Q29: 0.2081071519 | R29: 0.2068212573 | S29: 0.2050103266 | T29: 10 | U29: 0 | V29: 0 | W29: 0 | X29: 10 | Y29: =IF(RS4rBenchmarkValues!E29=0,RS4rComputations!Y30,RS4rComputations!$C29/RS4rBenchmarkValues!E29) -> 0.1811384467 | Z29: 0.1802582818 | AA29: 0.1800329972 | AB29: 0.1802970355 | AC29: 0.1821190856 | AD29: 0 | AE29: 0 | AF29: 0 | AG29: 0 | AH29: 0 | AI29: =IF(RS4rBenchmarkValues!G29=0,RS4rComputations!AI30,RS4rComputations!$C29/RS4rBenchmarkValues!G29) -> 1.070308789 | AJ29: 1.05966409 | AK29: 1.048447047 | AL29: 1.040650925 | AM29: 1.037059263 | AN29: 10 | AO29: 0 | AP29: 0 | AQ29: 0 | AR29: 10 | AS29: =IF(RS4rBenchmarkValues!I29=0,RS4rComputations!AS30,RS4rComputations!$C29/RS4rBenchmarkValues!I29) -> 1.250277469 | AT29: 1.252672129 | AU29: 1.243122108 | AV29: 1.235305287 | AW29: 1.23535918 | AX29: 0 | AY29: 9 | AZ29: 0 | BA29: 0 | BB29: 9 | BC29: =IF(RS4rBenchmarkValues!K29=0,RS4rComputations!BC30,RS4rComputations!$C29/RS4rBenchmarkValues!K29) -> 1.204812834 | BD29: 1.196086463 | BE29: 1.191690093 | BF29: 1.188550483 | BG29: 1.187289122 | BH29: 10 | BI29: 0 | BJ29: 0 | BK29: 0 | BL29: 10 | BM29: =IF(RS4rBenchmarkValues!M29=0,RS4rComputations!BM30,RS4rComputations!$C29/RS4rBenchmarkValues!M29) -> 2.076497696 | BN29: 2.046603962 | BO29: 2.016270138 | BP29: 1.990298817 | BQ29: 1.946620073 | BR29: 10 | BS29: 0 | BT29: 0 | BU29: 0 | BV29: 10 | BW29: =IF(RS4rBenchmarkValues!O29=0,RS4rComputations!BW30,RS4rComputations!$C29/RS4rBenchmarkValues!O29) -> 2.268882175 | BX29: 2.264790778 | BY29: 2.264633505 | BZ29: 2.267819098 | CA29: 2.271077068 | CB29: 0 | CC29: 0 | CD29: 0 | CE29: 0 | CF29: 0 | CG29: =IF(RS4rBenchmarkValues!Q29=0,RS4rComputations!CG30,RS4rComputations!$C29/RS4rBenchmarkValues!Q29) -> 0.7629529292 | CH29: 0.7823111919 | CI29: 0.7907813336 | CJ29: 0.7870069158 | CK29: 0.7707409774 | CL29: 0 | CM29: 0 | CN29: 9 | CO29: 0 | CP29: 9 | CQ29: =IF(RS4rBenchmarkValues!S29=0,RS4rComputations!CQ30,RS4rComputations!$C29/RS4rBenchmarkValues!S29) -> 0.2803284808 | CR29: 0.2765092142 | CS29: 0.2719344386 | CT29: 0.2677158787 | CU29: 0.2590557225 | CV29: 10 | CW29: 0 | CX29: 0 | CY29: 0 | CZ29: 10 | DA29: =IF(RS4rBenchmarkValues!U29=0,RS4rComputations!DA30,RS4rComputations!$C29/RS4rBenchmarkValues!U29) -> 1.990282686 | DB29: 1.98385983 | DC29: 1.978610147 | DD29: 1.966137386 | DE29: 1.913644589 | DF29: 10 | DG29: 0 | DH29: 0 | DI29: 0 | DJ29: 10 | DK29: =IF(RS4rBenchmarkValues!W29=0,RS4rComputations!DK30,RS4rComputations!$C29/RS4rBenchmarkValues!W29) -> 1.729086723 | DL29: 1.705287321 | DM29: 1.675735871 | DN29: 1.655622957 | DO29: 1.628171364 | DP29: 10 | DQ29: 0 | DR29: 0 | DS29: 0 | DT29: 10
A30: 15 | B30: 2020-06-26 | C30: 22.41 | D30: 88 | E30: 80 | F30: 73.33333333 | G30: 66.3030303 | H30: 80 | J30: 74 | K30: TRUE | L30: 0 | M30: 0 | N30: 0 | O30: =IF(RS4rBenchmarkValues!C30=0,RS4rComputations!O31,RS4rComputations!$C30/RS4rBenchmarkValues!C30) -> 0.2139175258 | P30: 0.2093433683 | Q30: 0.2075384729 | R30: 0.2063938385 | S30: 0.2048854348 | T30: 10 | U30: 0 | V30: 0 | W30: 0 | X30: 10 | Y30: =IF(RS4rBenchmarkValues!E30=0,RS4rComputations!Y31,RS4rComputations!$C30/RS4rBenchmarkValues!E30) -> 0.1823582065 | Z30: 0.1800626896 | AA30: 0.1799579024 | AB30: 0.1803025717 | AC30: 0.1822447443 | AD30: 0 | AE30: 0 | AF30: 0 | AG30: 0 | AH30: 0 | AI30: =IF(RS4rBenchmarkValues!G30=0,RS4rComputations!AI31,RS4rComputations!$C30/RS4rBenchmarkValues!G30) -> 1.082085949 | AJ30: 1.057298602 | AK30: 1.044708033 | AL30: 1.037934759 | AM30: 1.036811562 | AN30: 10 | AO30: 0 | AP30: 0 | AQ30: 0 | AR30: 10 | AS30: =IF(RS4rBenchmarkValues!I30=0,RS4rComputations!AS31,RS4rComputations!$C30/RS4rBenchmarkValues!I30) -> 1.282770464 | AT30: 1.253204276 | AU30: 1.239938767 | AV30: 1.23282431 | AW30: 1.235362897 | AX30: 0 | AY30: 9 | AZ30: 0 | BA30: 0 | BB30: 9 | BC30: =IF(RS4rBenchmarkValues!K30=0,RS4rComputations!BC31,RS4rComputations!$C30/RS4rBenchmarkValues!K30) -> 1.210696921 | BD30: 1.19414727 | BE30: 1.190224636 | BF30: 1.187473915 | BG30: 1.187202131 | BH30: 10 | BI30: 0 | BJ30: 0 | BK30: 0 | BL30: 10 | BM30: =IF(RS4rBenchmarkValues!M30=0,RS4rComputations!BM31,RS4rComputations!$C30/RS4rBenchmarkValues!M30) -> 2.104225352 | BN30: 2.03996091 | BO30: 2.006158863 | BP30: 1.982255225 | BQ30: 1.943607746 | BR30: 10 | BS30: 0 | BT30: 0 | BU30: 0 | BV30: 10 | BW30: =IF(RS4rBenchmarkValues!O30=0,RS4rComputations!BW31,RS4rComputations!$C30/RS4rBenchmarkValues!O30) -> 2.270516717 | BX30: 2.263881579 | BY30: 2.264581081 | BZ30: 2.268251715 | CA30: 2.271301756 | CB30: 0 | CC30: 0 | CD30: 0 | CE30: 0 | CF30: 0 | CG30: =IF(RS4rBenchmarkValues!Q30=0,RS4rComputations!CG31,RS4rComputations!$C30/RS4rBenchmarkValues!Q30) -> 0.7666780705 | CH30: 0.786613028 | CI30: 0.7936047142 | CJ30: 0.7876777336 | CK30: 0.7696191886 | CL30: 0 | CM30: 0 | CN30: 9 | CO30: 0 | CP30: 9 | CQ30: =IF(RS4rBenchmarkValues!S30=0,RS4rComputations!CQ31,RS4rComputations!$C30/RS4rBenchmarkValues!S30) -> 0.2848970252 | CR30: 0.2756604883 | CS30: 0.2704095133 | CT30: 0.2664596879 | CU30: 0.2584584704 | CV30: 10 | CW30: 0 | CX30: 0 | CY30: 0 | CZ30: 10 | DA30: =IF(RS4rBenchmarkValues!U30=0,RS4rComputations!DA31,RS4rComputations!$C30/RS4rBenchmarkValues!U30) -> 1.977934687 | DB30: 1.982432528 | DC30: 1.976860253 | DD30: 1.963605609 | DE30: 1.910024396 | DF30: 10 | DG30: 0 | DH30: 0 | DI30: 0 | DJ30: 10 | DK30: =IF(RS4rBenchmarkValues!W30=0,RS4rComputations!DK31,RS4rComputations!$C30/RS4rBenchmarkValues!W30) -> 1.754894283 | DL30: 1.699998565 | DM30: 1.665885387 | DN30: 1.648528048 | DO30: 1.62627815 | DP30: 10 | DQ30: 0 | DR30: 0 | DS30: 0 | DT30: 10
A31: 16 | B31: 2020-06-25 | C31: 22.64 | D31: 77 | E31: 70 | F31: 70 | G31: 61.81818182 | H31: 70 | J31: 69.182 | K31: TRUE | L31: 0 | M31: 0 | N31: 0 | O31: =IF(RS4rBenchmarkValues!C31=0,RS4rComputations!O32,RS4rComputations!$C31/RS4rBenchmarkValues!C31) -> 0.2108792846 | P31: 0.2083268889 | Q31: 0.2069368411 | R31: 0.2059724771 | S31: 0.204781407 | T31: 10 | U31: 0 | V31: 0 | W31: 0 | X31: 10 | Y31: =IF(RS4rBenchmarkValues!E31=0,RS4rComputations!Y32,RS4rComputations!$C31/RS4rBenchmarkValues!E31) -> 0.1794546607 | Z31: 0.1795525747 | AA31: 0.1799229733 | AB31: 0.1803368406 | AC31: 0.1823786872 | AD31: 0 | AE31: 0 | AF31: 0 | AG31: 0 | AH31: 0 | AI31: =IF(RS4rBenchmarkValues!G31=0,RS4rComputations!AI32,RS4rComputations!$C31/RS4rBenchmarkValues!G31) -> 1.072985782 | AJ31: 1.051790303 | AK31: 1.040511176 | AL31: 1.035168495 | AM31: 1.0367341 | AN31: 0 | AO31: 9 | AP31: 0 | AQ31: 0 | AR31: 9 | AS31: =IF(RS4rBenchmarkValues!I31=0,RS4rComputations!AS32,RS4rComputations!$C31/RS4rBenchmarkValues!I31) -> 1.264098269 | AT31: 1.246634012 | AU31: 1.235516931 | AV31: 1.229912886 | AW31: 1.235537972 | AX31: 0 | AY31: 9 | AZ31: 0 | BA31: 0 | BB31: 9 | BC31: =IF(RS4rBenchmarkValues!K31=0,RS4rComputations!BC32,RS4rComputations!$C31/RS4rBenchmarkValues!K31) -> 1.194722955 | BD31: 1.190469569 | BE31: 1.188917091 | BF31: 1.186520579 | BG31: 1.187183387 | BH31: 0 | BI31: 9 | BJ31: 0 | BK31: 0 | BL31: 0 | BM31: =IF(RS4rBenchmarkValues!M31=0,RS4rComputations!BM32,RS4rComputations!$C31/RS4rBenchmarkValues!M31) -> 2.07706422 | BN31: 2.025679922 | BO31: 1.994891514 | BP31: 1.974011555 | BQ31: 1.940942403 | BR31: 10 | BS31: 0 | BT31: 0 | BU31: 0 | BV31: 10 | BW31: =IF(RS4rBenchmarkValues!O31=0,RS4rComputations!BW32,RS4rComputations!$C31/RS4rBenchmarkValues!O31) -> 2.264 | BX31: 2.262407103 | BY31: 2.264814248 | BZ31: 2.26887602 | CA31: 2.271512103 | CB31: 0 | CC31: 0 | CD31: 0 | CE31: 0 | CF31: 0 | CG31: =IF(RS4rBenchmarkValues!Q31=0,RS4rComputations!CG32,RS4rComputations!$C31/RS4rBenchmarkValues!Q31) -> 0.7796143251 | CH31: 0.7910430186 | CI31: 0.7959352762 | CJ31: 0.7878298343 | CK31: 0.7683737717 | CL31: 0 | CM31: 0 | CN31: 9 | CO31: 0 | CP31: 9 | CQ31: =IF(RS4rBenchmarkValues!S31=0,RS4rComputations!CQ32,RS4rComputations!$C31/RS4rBenchmarkValues!S31) -> 0.2835671343 | CR31: 0.2736079246 | CS31: 0.2686591883 | CT31: 0.2651452878 | CU31: 0.2579066623 | CV31: 10 | CW31: 0 | CX31: 0 | CY31: 0 | CZ31: 10 | DA31: =IF(RS4rBenchmarkValues!U31=0,RS4rComputations!DA32,RS4rComputations!$C31/RS4rBenchmarkValues!U31) -> 2 | DB31: 1.983432049 | DC31: 1.975002828 | DD31: 1.960916049 | DE31: 1.90632914 | DF31: 10 | DG31: 0 | DH31: 0 | DI31: 0 | DJ31: 10 | DK31: =IF(RS4rBenchmarkValues!W31=0,RS4rComputations!DK32,RS4rComputations!$C31/RS4rBenchmarkValues!W31) -> 1.738863287 | DL31: 1.687799517 | DM31: 1.654514328 | DN31: 1.641175117 | DO31: 1.624743675 | DP31: 10 | DQ31: 0 | DR31: 0 | DS31: 0 | DT31: 10
A32: 17 | B32: 2020-06-24 | C32: 22.36 | D32: 77 | E32: 70 | F32: 67.27272727 | G32: 56.84848485 | H32: 70 | J32: 67.546 | K32: TRUE | L32: 0 | M32: 0 | N32: 0 | O32: =IF(RS4rBenchmarkValues!C32=0,RS4rComputations!O33,RS4rComputations!$C32/RS4rBenchmarkValues!C32) -> 0.2105659667 | P32: 0.2077596898 | Q32: 0.2064734919 | R32: 0.2056361325 | S32: 0.2046992642 | T32: 10 | U32: 0 | V32: 0 | W32: 0 | X32: 10 | Y32: =IF(RS4rBenchmarkValues!E32=0,RS4rComputations!Y33,RS4rComputations!$C32/RS4rBenchmarkValues!E32) -> 0.1791666667 | Z32: 0.1795743334 | AA32: 0.1800464394 | AB32: 0.1804488786 | AC32: 0.1825195042 | AD32: 0 | AE32: 0 | AF32: 0 | AG32: 0 | AH32: 0 | AI32: =IF(RS4rBenchmarkValues!G32=0,RS4rComputations!AI33,RS4rComputations!$C32/RS4rBenchmarkValues!G32) -> 1.071907958 | AJ32: 1.047080196 | AK32: 1.036751467 | AL32: 1.032793951 | AM32: 1.036842073 | AN32: 0 | AO32: 9 | AP32: 0 | AQ32: 0 | AR32: 9 | AS32: =IF(RS4rBenchmarkValues!I32=0,RS4rComputations!AS33,RS4rComputations!$C32/RS4rBenchmarkValues!I32) -> 1.269733106 | AT32: 1.242753066 | AU32: 1.231811237 | AV32: 1.227524154 | AW32: 1.235925909 | AX32: 0 | AY32: 9 | AZ32: 0 | BA32: 0 | BB32: 9 | BC32: =IF(RS4rBenchmarkValues!K32=0,RS4rComputations!BC33,RS4rComputations!$C32/RS4rBenchmarkValues!K32) -> 1.193169691 | BD32: 1.189524373 | BE32: 1.188399598 | BF32: 1.185956437 | BG32: 1.187229098 | BH32: 0 | BI32: 9 | BJ32: 0 | BK32: 0 | BL32: 0 | BM32: =IF(RS4rBenchmarkValues!M32=0,RS4rComputations!BM33,RS4rComputations!$C32/RS4rBenchmarkValues!M32) -> 2.074211503 | BN32: 2.01426119 | BO32: 1.984628711 | BP32: 1.96663036 | BQ32: 1.938661771 | BR32: 10 | BS32: 0 | BT32: 0 | BU32: 0 | BV32: 10 | BW32: =IF(RS4rBenchmarkValues!O32=0,RS4rComputations!BW33,RS4rComputations!$C32/RS4rBenchmarkValues!O32) -> 2.24497992 | BX32: 2.262053126 | BY32: 2.26561663 | BZ32: 2.269800151 | CA32: 2.271693902 | CB32: 0 | CC32: 0 | CD32: 0 | CE32: 0 | CF32: 0 | CG32: =IF(RS4rBenchmarkValues!Q32=0,RS4rComputations!CG33,RS4rComputations!$C32/RS4rBenchmarkValues!Q32) -> 0.774506408 | CH32: 0.7935827283 | CI32: 0.7975660287 | CJ32: 0.787370808 | CK32: 0.7670319743 | CL32: 0 | CM32: 0 | CN32: 9 | CO32: 0 | CP32: 9 | CQ32: =IF(RS4rBenchmarkValues!S32=0,RS4rComputations!CQ33,RS4rComputations!$C32/RS4rBenchmarkValues!S32) -> 0.2775571003 | CR32: 0.2713947669 | CS32: 0.2670096096 | CT32: 0.2639363397 | CU32: 0.2574074467 | CV32: 10 | CW32: 0 | CX32: 0 | CY32: 0 | CZ32: 10 | DA32: =IF(RS4rBenchmarkValues!U32=0,RS4rComputations!DA33,RS4rComputations!$C32/RS4rBenchmarkValues!U32) -> 1.973521624 | DB32: 1.979750282 | DC32: 1.972193088 | DD32: 1.957699477 | DE32: 1.902564525 | DF32: 10 | DG32: 0 | DH32: 0 | DI32: 0 | DJ32: 10 | DK32: =IF(RS4rBenchmarkValues!W32=0,RS4rComputations!DK33,RS4rComputations!$C32/RS4rBenchmarkValues!W32) -> 1.744149766 | DL32: 1.676452012 | DM32: 1.643419265 | DN32: 1.634514489 | DO32: 1.623610472 | DP32: 10 | DQ32: 0 | DR32: 0 | DS32: 0 | DT32: 10
A33: 18 | B33: 2020-06-23 | C33: 22.86 | D33: 77 | E33: 70 | F33: 64.54545455 | G33: 52.66666667 | H33: 70 | J33: 63.455 | K33: TRUE | L33: 0 | M33: 0 | N33: 0 | O33: =IF(RS4rBenchmarkValues!C33=0,RS4rComputations!O34,RS4rComputations!$C33/RS4rBenchmarkValues!C33) -> 0.2097247706 | P33: 0.2071360727 | Q33: 0.2060447593 | R33: 0.2053327672 | S33: 0.2046346526 | T33: 10 | U33: 0 | V33: 0 | W33: 0 | X33: 10 | Y33: =IF(RS4rBenchmarkValues!E33=0,RS4rComputations!Y34,RS4rComputations!$C33/RS4rBenchmarkValues!E33) -> 0.1791676464 | Z33: 0.179664926 | AA33: 0.1802038081 | AB33: 0.1805738136 | AC33: 0.182662306 | AD33: 0 | AE33: 0 | AF33: 0 | AG33: 0 | AH33: 0 | AI33: =IF(RS4rBenchmarkValues!G33=0,RS4rComputations!AI34,RS4rComputations!$C33/RS4rBenchmarkValues!G33) -> 1.062761506 | AJ33: 1.041562916 | AK33: 1.033308557 | AL33: 1.030753059 | AM33: 1.037121254 | AN33: 0 | AO33: 9 | AP33: 0 | AQ33: 0 | AR33: 9 | AS33: =IF(RS4rBenchmarkValues!I33=0,RS4rComputations!AS34,RS4rComputations!$C33/RS4rBenchmarkValues!I33) -> 1.253289474 | AT33: 1.236757501 | AU33: 1.228163961 | AV33: 1.225348595 | AW33: 1.23650534 | AX33: 0 | AY33: 9 | AZ33: 0 | BA33: 0 | BB33: 9 | BC33: =IF(RS4rBenchmarkValues!K33=0,RS4rComputations!BC34,RS4rComputations!$C33/RS4rBenchmarkValues!K33) -> 1.19124544 | BD33: 1.188714302 | BE33: 1.188024674 | BF33: 1.185446732 | BG33: 1.187316868 | BH33: 0 | BI33: 9 | BJ33: 0 | BK33: 0 | BL33: 0 | BM33: =IF(RS4rBenchmarkValues!M33=0,RS4rComputations!BM34,RS4rComputations!$C33/RS4rBenchmarkValues!M33) -> 2.057605761 | BN33: 2.000938898 | BO33: 1.974751219 | BP33: 1.959825956 | BQ33: 1.936732903 | BR33: 10 | BS33: 0 | BT33: 0 | BU33: 0 | BV33: 10 | BW33: =IF(RS4rBenchmarkValues!O33=0,RS4rComputations!BW34,RS4rComputations!$C33/RS4rBenchmarkValues!O33) -> 2.265609514 | BX33: 2.265847172 | BY33: 2.266804464 | BZ33: 2.270906869 | CA33: 2.271824506 | CB33: 0 | CC33: 0 | CD33: 0 | CE33: 0 | CF33: 0 | CG33: =IF(RS4rBenchmarkValues!Q33=0,RS4rComputations!CG34,RS4rComputations!$C33/RS4rBenchmarkValues!Q33) -> 0.7791411043 | CH33: 0.7978219105 | CI33: 0.7988937956 | CJ33: 0.7864833908 | CK33: 0.7656292961 | CL33: 0 | CM33: 0 | CN33: 9 | CO33: 0 | CP33: 9 | CQ33: =IF(RS4rBenchmarkValues!S33=0,RS4rComputations!CQ34,RS4rComputations!$C33/RS4rBenchmarkValues!S33) -> 0.2805940837 | CR33: 0.2700253594 | CS33: 0.2655478905 | CT33: 0.2628708501 | CU33: 0.2569571783 | CV33: 10 | CW33: 0 | CX33: 0 | CY33: 0 | CZ33: 10 | DA33: =IF(RS4rBenchmarkValues!U33=0,RS4rComputations!DA34,RS4rComputations!$C33/RS4rBenchmarkValues!U33) -> 2.015873016 | DB33: 1.981134428 | DC33: 1.969674023 | DD33: 1.954549362 | DE33: 1.898762115 | DF33: 10 | DG33: 0 | DH33: 0 | DI33: 0 | DJ33: 10 | DK33: =IF(RS4rBenchmarkValues!W33=0,RS4rComputations!DK34,RS4rComputations!$C33/RS4rBenchmarkValues!W33) -> 1.735763098 | DL33: 1.661408067 | DM33: 1.632408349 | DN33: 1.628523414 | DO33: 1.622858471 | DP33: 10 | DQ33: 0 | DR33: 0 | DS33: 0 | DT33: 10
A34: 19 | B34: 2020-06-22 | C34: 22.63 | D34: 68 | E34: 61.81818182 | F34: 56.36363636 | G34: 48.90909091 | H34: 61.82 | J34: 56.909 | K34: TRUE | L34: 0 | M34: 0 | N34: 0 | O34: =IF(RS4rBenchmarkValues!C34=0,RS4rComputations!O35,RS4rComputations!$C34/RS4rBenchmarkValues!C34) -> 0.2084945642 | P34: 0.2065608065 | Q34: 0.2056809881 | R34: 0.2050751521 | S34: 0.2045865068 | T34: 10 | U34: 0 | V34: 0 | W34: 0 | X34: 10 | Y34: =IF(RS4rBenchmarkValues!E34=0,RS4rComputations!Y35,RS4rComputations!$C34/RS4rBenchmarkValues!E34) -> 0.1787096265 | Z34: 0.1797754326 | AA34: 0.1803834355 | AB34: 0.1807036547 | AC34: 0.1828063399 | AD34: 0 | AE34: 0 | AF34: 0 | AG34: 0 | AH34: 0 | AI34: =IF(RS4rBenchmarkValues!G34=0,RS4rComputations!AI35,RS4rComputations!$C34/RS4rBenchmarkValues!G34) -> 1.051579926 | AJ34: 1.036852118 | AK34: 1.030557105 | AL34: 1.029208794 | AM34: 1.03756044 | AN34: 0 | AO34: 9 | AP34: 0 | AQ34: 0 | AR34: 9 | AS34: =IF(RS4rBenchmarkValues!I34=0,RS4rComputations!AS35,RS4rComputations!$C34/RS4rBenchmarkValues!I34) -> 1.246145374 | AT34: 1.233083729 | AU34: 1.225299448 | AV34: 1.223718752 | AW34: 1.237274771 | AX34: 0 | AY34: 9 | AZ34: 0 | BA34: 0 | BB34: 9 | BC34: =IF(RS4rBenchmarkValues!K34=0,RS4rComputations!BC35,RS4rComputations!$C34/RS4rBenchmarkValues!K34) -> 1.18668065 | BD34: 1.188151827 | BE34: 1.187794798 | BF34: 1.184979936 | BG34: 1.187445843 | BH34: 0 | BI34: 9 | BJ34: 0 | BK34: 0 | BL34: 0 | BM34: =IF(RS4rBenchmarkValues!M34=0,RS4rComputations!BM35,RS4rComputations!$C34/RS4rBenchmarkValues!M34) -> 2.03690369 | BN34: 1.988346262 | BO34: 1.966021992 | BP34: 1.953952679 | BQ34: 1.935140279 | BR34: 10 | BS34: 0 | BT34: 0 | BU34: 0 | BV34: 10 | BW34: =IF(RS4rBenchmarkValues!O34=0,RS4rComputations!BW35,RS4rComputations!$C34/RS4rBenchmarkValues!O34) -> 2.26753507 | BX34: 2.265899985 | BY34: 2.267123562 | BZ34: 2.271629683 | CA34: 2.271887791 | CB34: 0 | CC34: 0 | CD34: 0 | CE34: 0 | CF34: 0 | CG34: =IF(RS4rBenchmarkValues!Q34=0,RS4rComputations!CG35,RS4rComputations!$C34/RS4rBenchmarkValues!Q34) -> 0.7825034578 | CH34: 0.8019732008 | CI34: 0.7992510906 | CJ34: 0.7848636023 | CK34: 0.7641910826 | CL34: 10 | CM34: 0 | CN34: 0 | CO34: 0 | CP34: 10 | CQ34: =IF(RS4rBenchmarkValues!S34=0,RS4rComputations!CQ35,RS4rComputations!$C34/RS4rBenchmarkValues!S34) -> 0.2747025977 | CR34: 0.267676754 | CS34: 0.2640554009 | CT34: 0.2618487774 | CU34: 0.2565493388 | CV34: 10 | CW34: 0 | CX34: 0 | CY34: 0 | CZ34: 10 | DA34: =IF(RS4rBenchmarkValues!U34=0,RS4rComputations!DA35,RS4rComputations!$C34/RS4rBenchmarkValues!U34) -> 1.995590829 | DB34: 1.973414742 | DC34: 1.965853888 | DD34: 1.950751496 | DE34: 1.894914718 | DF34: 10 | DG34: 0 | DH34: 0 | DI34: 0 | DJ34: 10 | DK34: =IF(RS4rBenchmarkValues!W34=0,RS4rComputations!DK35,RS4rComputations!$C34/RS4rBenchmarkValues!W34) -> 1.709214502 | DL34: 1.644884726 | DM34: 1.622741776 | DN34: 1.623825607 | DO34: 1.622467785 | DP34: 0 | DQ34: 0 | DR34: 0 | DS34: 0 | DT34: 0
A35: 20 | B35: 2020-06-19 | C35: 22.42 | D35: 68 | E35: 61.81818182 | F35: 50.90909091 | G35: 46.48484848 | H35: 61.82 | J35: 51.908 | K35: TRUE | L35: 0 | M35: 0 | N35: 0 | O35: =IF(RS4rBenchmarkValues!C35=0,RS4rComputations!O36,RS4rComputations!$C35/RS4rBenchmarkValues!C35) -> 0.2079198739 | P35: 0.2061310826 | Q35: 0.2053877153 | R35: 0.2048629158 | S35: 0.2045528071 | T35: 10 | U35: 0 | V35: 0 | W35: 0 | X35: 10 | Y35: =IF(RS4rBenchmarkValues!E35=0,RS4rComputations!Y36,RS4rComputations!$C35/RS4rBenchmarkValues!E35) -> 0.1790305837 | Z35: 0.1800122784 | AA35: 0.1805861031 | AB35: 0.1808362578 | AC35: 0.1829513527 | AD35: 0 | AE35: 0 | AF35: 0 | AG35: 0 | AH35: 0 | AI35: =IF(RS4rBenchmarkValues!G35=0,RS4rComputations!AI36,RS4rComputations!$C35/RS4rBenchmarkValues!G35) -> 1.046685341 | AJ35: 1.033579272 | AK35: 1.028458767 | AL35: 1.028116891 | AM35: 1.038136415 | AN35: 0 | AO35: 9 | AP35: 0 | AQ35: 0 | AR35: 9 | AS35: =IF(RS4rBenchmarkValues!I35=0,RS4rComputations!AS36,RS4rComputations!$C35/RS4rBenchmarkValues!I35) -> 1.247634947 | AT35: 1.230181141 | AU35: 1.222704688 | AV35: 1.222380898 | AW35: 1.238209669 | AX35: 0 | AY35: 9 | AZ35: 0 | BA35: 0 | BB35: 9 | BC35: =IF(RS4rBenchmarkValues!K35=0,RS4rComputations!BC36,RS4rComputations!$C35/RS4rBenchmarkValues!K35) -> 1.190021231 | BD35: 1.188478755 | BE35: 1.187675788 | BF35: 1.184526809 | BG35: 1.187615906 | BH35: 0 | BI35: 9 | BJ35: 0 | BK35: 0 | BL35: 0 | BM35: =IF(RS4rBenchmarkValues!M35=0,RS4rComputations!BM36,RS4rComputations!$C35/RS4rBenchmarkValues!M35) -> 2.0180018 | BN35: 1.977555722 | BO35: 1.958580569 | BP35: 1.94903931 | BQ35: 1.933842872 | BR35: 10 | BS35: 0 | BT35: 0 | BU35: 0 | BV35: 10 | BW35: =IF(RS4rBenchmarkValues!O35=0,RS4rComputations!BW36,RS4rComputations!$C35/RS4rBenchmarkValues!O35) -> 2.262361251 | BX35: 2.265536633 | BY35: 2.26753142 | BZ35: 2.272448211 | CA35: 2.271905591 | CB35: 0 | CC35: 0 | CD35: 0 | CE35: 0 | CF35: 0 | CG35: =IF(RS4rBenchmarkValues!Q35=0,RS4rComputations!CG36,RS4rComputations!$C35/RS4rBenchmarkValues!Q35) -> 0.8021466905 | CH35: 0.8062998104 | CI35: 0.7983437205 | CJ35: 0.782419374 | CK35: 0.7627653916 | CL35: 10 | CM35: 0 | CN35: 0 | CO35: 0 | CP35: 10 | CQ35: =IF(RS4rBenchmarkValues!S35=0,RS4rComputations!CQ36,RS4rComputations!$C35/RS4rBenchmarkValues!S35) -> 0.2760743751 | CR35: 0.2661154554 | CS35: 0.2628482832 | CT35: 0.2610162093 | CU35: 0.2561838603 | CV35: 10 | CW35: 0 | CX35: 0 | CY35: 0 | CZ35: 10 | DA35: =IF(RS4rBenchmarkValues!U35=0,RS4rComputations!DA36,RS4rComputations!$C35/RS4rBenchmarkValues!U35) -> 1.975330396 | DB35: 1.968486723 | DC35: 1.963333603 | DD35: 1.947513889 | DE35: 1.891063906 | DF35: 10 | DG35: 0 | DH35: 0 | DI35: 0 | DJ35: 10 | DK35: =IF(RS4rBenchmarkValues!W35=0,RS4rComputations!DK36,RS4rComputations!$C35/RS4rBenchmarkValues!W35) -> 1.702353834 | DL35: 1.630589221 | DM35: 1.615360793 | DN35: 1.620817161 | DO35: 1.622374142 | DP35: 0 | DQ35: 0 | DR35: 0 | DS35: 0 | DT35: 0
A36: 21 | B36: 2020-06-18 | C36: 22.38 | D36: 50 | E36: 45.45454545 | F36: 45.15151515 | G36: 44.24242424 | H36: 45.45 | J36: 45.634 | K36: FALSE | L36: 0 | M36: 0 | N36: 0 | O36: =IF(RS4rBenchmarkValues!C36=0,RS4rComputations!O37,RS4rComputations!$C36/RS4rBenchmarkValues!C36) -> 0.2064004427 | P36: 0.2057335734 | Q36: 0.2051399263 | R36: 0.2046817491 | S36: 0.2045314203 | T36: 10 | U36: 0 | V36: 0 | W36: 0 | X36: 10 | Y36: =IF(RS4rBenchmarkValues!E36=0,RS4rComputations!Y37,RS4rComputations!$C36/RS4rBenchmarkValues!E36) -> 0.1787682722 | Z36: 0.1802304328 | AA36: 0.180777378 | AB36: 0.1809539692 | AC36: 0.1830972213 | AD36: 0 | AE36: 0 | AF36: 0 | AG36: 0 | AH36: 0 | AI36: =IF(RS4rBenchmarkValues!G36=0,RS4rComputations!AI37,RS4rComputations!$C36/RS4rBenchmarkValues!G36) -> 1.036111111 | AJ36: 1.030666812 | AK36: 1.026751932 | AL36: 1.02733655 | AM36: 1.038827417 | AN36: 0 | AO36: 0 | AP36: 0 | AQ36: 0 | AR36: 0 | AS36: =IF(RS4rBenchmarkValues!I36=0,RS4rComputations!AS37,RS4rComputations!$C36/RS4rBenchmarkValues!I36) -> 1.237831858 | AT36: 1.226302518 | AU36: 1.220212537 | AV36: 1.221266577 | AW36: 1.239301308 | AX36: 0 | AY36: 0 | AZ36: 0 | BA36: 0 | BB36: 0 | BC36: =IF(RS4rBenchmarkValues!K36=0,RS4rComputations!BC37,RS4rComputations!$C36/RS4rBenchmarkValues!K36) -> 1.184126984 | BD36: 1.188135982 | BE36: 1.187408132 | BF36: 1.183962245 | BG36: 1.187828947 | BH36: 0 | BI36: 9 | BJ36: 0 | BK36: 0 | BL36: 0 | BM36: =IF(RS4rBenchmarkValues!M36=0,RS4rComputations!BM37,RS4rComputations!$C36/RS4rBenchmarkValues!M36) -> 1.996431757 | BN36: 1.968567704 | BO36: 1.952255519 | BP36: 1.944965536 | BQ36: 1.932794842 | BR36: 10 | BS36: 0 | BT36: 0 | BU36: 0 | BV36: 10 | BW36: =IF(RS4rBenchmarkValues!O36=0,RS4rComputations!BW37,RS4rComputations!$C36/RS4rBenchmarkValues!O36) -> 2.267477204 | BX36: 2.266242273 | BY36: 2.26819635 | BZ36: 2.273435579 | CA36: 2.271868169 | CB36: 0 | CC36: 0 | CD36: 0 | CE36: 0 | CF36: 0 | CG36: =IF(RS4rBenchmarkValues!Q36=0,RS4rComputations!CG37,RS4rComputations!$C36/RS4rBenchmarkValues!Q36) -> 0.8295033358 | CH36: 0.8072227259 | CI36: 0.7956916905 | CJ36: 0.7790078831 | CK36: 0.7614099446 | CL36: 10 | CM36: 0 | CN36: 0 | CO36: 0 | CP36: 10 | CQ36: =IF(RS4rBenchmarkValues!S36=0,RS4rComputations!CQ37,RS4rComputations!$C36/RS4rBenchmarkValues!S36) -> 0.2672877105 | CR36: 0.2639023622 | CS36: 0.2617592257 | CT36: 0.2602877455 | CU36: 0.2558505948 | CV36: 10 | CW36: 0 | CX36: 0 | CY36: 0 | CZ36: 10 | DA36: =IF(RS4rBenchmarkValues!U36=0,RS4rComputations!DA37,RS4rComputations!$C36/RS4rBenchmarkValues!U36) -> 1.975286849 | DB36: 1.966965906 | DC36: 1.961615897 | DD36: 1.94451777 | DE36: 1.887170804 | DF36: 10 | DG36: 0 | DH36: 0 | DI36: 0 | DJ36: 10 | DK36: =IF(RS4rBenchmarkValues!W36=0,RS4rComputations!DK37,RS4rComputations!$C36/RS4rBenchmarkValues!W36) -> 1.644379133 | DL36: 1.614641529 | DM36: 1.61028465 | DN36: 1.619421152 | DO36: 1.62248152 | DP36: 0 | DQ36: 0 | DR36: 0 | DS36: 0 | DT36: 0
A37: 22 | B37: 2020-06-17 | C37: 22.44 | D37: 50 | E37: 45.45454545 | F37: 46.36363636 | G37: 43.33333333 | H37: 45.45 | J37: 45.727 | K37: FALSE | L37: 0 | M37: 0 | N37: 0 | O37: =IF(RS4rBenchmarkValues!C37=0,RS4rComputations!O38,RS4rComputations!$C37/RS4rBenchmarkValues!C37) -> 0.2070874862 | P37: 0.2055853802 | Q37: 0.2049420439 | R37: 0.2045314885 | S37: 0.2045210528 | T37: 10 | U37: 0 | V37: 0 | W37: 0 | X37: 10 | Y37: =IF(RS4rBenchmarkValues!E37=0,RS4rComputations!Y38,RS4rComputations!$C37/RS4rBenchmarkValues!E37) -> 0.1798365123 | Z37: 0.1805553574 | AA37: 0.1809596931 | AB37: 0.1810573315 | AC37: 0.1832450318 | AD37: 0 | AE37: 0 | AF37: 0 | AG37: 0 | AH37: 0 | AI37: =IF(RS4rBenchmarkValues!G37=0,RS4rComputations!AI38,RS4rComputations!$C37/RS4rBenchmarkValues!G37) -> 1.039370079 | AJ37: 1.029456968 | AK37: 1.025446972 | AL37: 1.026860799 | AM37: 1.03961989 | AN37: 0 | AO37: 0 | AP37: 0 | AQ37: 0 | AR37: 0 | AS37: =IF(RS4rBenchmarkValues!I37=0,RS4rComputations!AS38,RS4rComputations!$C37/RS4rBenchmarkValues!I37) -> 1.241837299 | AT37: 1.223740442 | AU37: 1.218182543 | AV37: 1.220547157 | AW37: 1.240545083 | AX37: 0 | AY37: 0 | AZ37: 0 | BA37: 0 | BB37: 0 | BC37: =IF(RS4rBenchmarkValues!K37=0,RS4rComputations!BC38,RS4rComputations!$C37/RS4rBenchmarkValues!K37) -> 1.189189189 | BD37: 1.189026871 | BE37: 1.187165516 | BF37: 1.183365997 | BG37: 1.188095616 | BH37: 0 | BI37: 9 | BJ37: 0 | BK37: 0 | BL37: 0 | BM37: =IF(RS4rBenchmarkValues!M37=0,RS4rComputations!BM38,RS4rComputations!$C37/RS4rBenchmarkValues!M37) -> 2 | BN37: 1.962375693 | BO37: 1.946818123 | BP37: 1.941593798 | BQ37: 1.931955484 | BR37: 10 | BS37: 0 | BT37: 0 | BU37: 0 | BV37: 10 | BW37: =IF(RS4rBenchmarkValues!O37=0,RS4rComputations!BW38,RS4rComputations!$C37/RS4rBenchmarkValues!O37) -> 2.273556231 | BX37: 2.265967844 | BY37: 2.268847708 | BZ37: 2.274463195 | CA37: 2.271760072 | CB37: 0 | CC37: 0 | CD37: 0 | CE37: 0 | CF37: 0 | CG37: =IF(RS4rBenchmarkValues!Q37=0,RS4rComputations!CG38,RS4rComputations!$C37/RS4rBenchmarkValues!Q37) -> 0.8207754206 | CH37: 0.8022714792 | CI37: 0.7918480121 | CJ37: 0.7749771912 | CK37: 0.7601962936 | CL37: 10 | CM37: 0 | CN37: 0 | CO37: 0 | CP37: 10 | CQ37: =IF(RS4rBenchmarkValues!S37=0,RS4rComputations!CQ38,RS4rComputations!$C37/RS4rBenchmarkValues!S37) -> 0.2680363115 | CR37: 0.2631500625 | CS37: 0.2610448469 | CT37: 0.2597713717 | CU37: 0.2555445845 | CV37: 10 | CW37: 0 | CX37: 0 | CY37: 0 | CZ37: 10 | DA37: =IF(RS4rBenchmarkValues!U37=0,RS4rComputations!DA38,RS4rComputations!$C37/RS4rBenchmarkValues!U37) -> 1.980582524 | DB37: 1.965116808 | DC37: 1.95983256 | DD37: 1.941310893 | DE37: 1.883215841 | DF37: 10 | DG37: 0 | DH37: 0 | DI37: 0 | DJ37: 10 | DK37: =IF(RS4rBenchmarkValues!W37=0,RS4rComputations!DK38,RS4rComputations!$C37/RS4rBenchmarkValues!W37) -> 1.630813953 | DL37: 1.608033173 | DM37: 1.608832357 | DN37: 1.620103956 | DO37: 1.62269258 | DP37: 0 | DQ37: 0 | DR37: 0 | DS37: 0 | DT37: 0
A38: 23 | B38: 2020-06-16 | C38: 22.3 | D38: 49 | E38: 44.54545455 | F38: 45.75757576 | G38: 42.60606061 | H38: 44.55 | J38: 45.275 | K38: FALSE | L38: 0 | M38: 0 | N38: 0 | O38: =IF(RS4rBenchmarkValues!C38=0,RS4rComputations!O39,RS4rComputations!$C38/RS4rBenchmarkValues!C38) -> 0.2050574713 | P38: 0.2052515789 | Q38: 0.2047275984 | R38: 0.2043809325 | S38: 0.2045203331 | T38: 0 | U38: 9 | V38: 0 | W38: 0 | X38: 9 | Y38: =IF(RS4rBenchmarkValues!E38=0,RS4rComputations!Y39,RS4rComputations!$C38/RS4rBenchmarkValues!E38) -> 0.1789727127 | Z38: 0.1807151007 | AA38: 0.1810944717 | AB38: 0.1811290421 | AC38: 0.1833959077 | AD38: 0 | AE38: 0 | AF38: 0 | AG38: 0 | AH38: 0 | AI38: =IF(RS4rBenchmarkValues!G38=0,RS4rComputations!AI39,RS4rComputations!$C38/RS4rBenchmarkValues!G38) -> 1.026703499 | AJ38: 1.027254054 | AK38: 1.024110306 | AL38: 1.026489917 | AM38: 1.040499828 | AN38: 0 | AO38: 0 | AP38: 0 | AQ38: 0 | AR38: 0 | AS38: =IF(RS4rBenchmarkValues!I38=0,RS4rComputations!AS39,RS4rComputations!$C38/RS4rBenchmarkValues!I38) -> 1.211956522 | AT38: 1.219718918 | AU38: 1.21632991 | AV38: 1.220090973 | AW38: 1.24192425 | AX38: 0 | AY38: 0 | AZ38: 0 | BA38: 0 | BB38: 0 | BC38: =IF(RS4rBenchmarkValues!K38=0,RS4rComputations!BC39,RS4rComputations!$C38/RS4rBenchmarkValues!K38) -> 1.183023873 | BD38: 1.1889908 | BE38: 1.186545064 | BF38: 1.182557301 | BG38: 1.188421796 | BH38: 0 | BI38: 9 | BJ38: 0 | BK38: 0 | BL38: 0 | BM38: =IF(RS4rBenchmarkValues!M38=0,RS4rComputations!BM39,RS4rComputations!$C38/RS4rBenchmarkValues!M38) -> 1.968225949 | BN38: 1.954014735 | BO38: 1.941632267 | BP38: 1.938624956 | BQ38: 1.931290772 | BR38: 10 | BS38: 0 | BT38: 0 | BU38: 0 | BV38: 10 | BW38: =IF(RS4rBenchmarkValues!O38=0,RS4rComputations!BW39,RS4rComputations!$C38/RS4rBenchmarkValues!O38) -> 2.270875764 | BX38: 2.264281536 | BY38: 2.269807663 | BZ38: 2.275676816 | CA38: 2.27157365 | CB38: 0 | CC38: 0 | CD38: 0 | CE38: 0 | CF38: 0 | CG38: =IF(RS4rBenchmarkValues!Q38=0,RS4rComputations!CG39,RS4rComputations!$C38/RS4rBenchmarkValues!Q38) -> 0.8189496878 | CH38: 0.7981594923 | CI38: 0.788373523 | CJ38: 0.7710780072 | CK38: 0.7591769214 | CL38: 10 | CM38: 0 | CN38: 0 | CO38: 0 | CP38: 10 | CQ38: =IF(RS4rBenchmarkValues!S38=0,RS4rComputations!CQ39,RS4rComputations!$C38/RS4rBenchmarkValues!S38) -> 0.2650974798 | CR38: 0.2620642294 | CS38: 0.2603431084 | CT38: 0.2592887016 | CU38: 0.2552530819 | CV38: 10 | CW38: 0 | CX38: 0 | CY38: 0 | CZ38: 10 | DA38: =IF(RS4rBenchmarkValues!U38=0,RS4rComputations!DA39,RS4rComputations!$C38/RS4rBenchmarkValues!U38) -> 1.968225949 | DB38: 1.961679982 | DC38: 1.958071145 | DD38: 1.937910048 | DE38: 1.879209285 | DF38: 10 | DG38: 0 | DH38: 0 | DI38: 0 | DJ38: 10 | DK38: =IF(RS4rBenchmarkValues!W38=0,RS4rComputations!DK39,RS4rComputations!$C38/RS4rBenchmarkValues!W38) -> 1.586059744 | DL38: 1.602970777 | DM38: 1.609098752 | DN38: 1.621828353 | DO38: 1.622871106 | DP38: 0 | DQ38: 0 | DR38: 0 | DS38: 0 | DT38: 0
A39: 24 | B39: 2020-06-15 | C39: 22.05 | D39: 54 | E39: 49.09090909 | F39: 44.24242424 | G39: 42.48484848 | H39: 49.09 | J39: 44.273 | K39: TRUE | L39: 0 | M39: 0 | N39: 0 | O39: =IF(RS4rBenchmarkValues!C39=0,RS4rComputations!O40,RS4rComputations!$C39/RS4rBenchmarkValues!C39) -> 0.2065960836 | P39: 0.2052947139 | Q39: 0.2045529383 | R39: 0.2042565545 | S39: 0.2045299469 | T39: 0 | U39: 9 | V39: 0 | W39: 0 | X39: 9 | Y39: =IF(RS4rBenchmarkValues!E39=0,RS4rComputations!Y40,RS4rComputations!$C39/RS4rBenchmarkValues!E39) -> 0.1800587947 | Z39: 0.1811022981 | AA39: 0.1812209286 | AB39: 0.1811881766 | AC39: 0.1835522432 | AD39: 0 | AE39: 0 | AF39: 0 | AG39: 5 | AH39: 5 | AI39: =IF(RS4rBenchmarkValues!G39=0,RS4rComputations!AI40,RS4rComputations!$C39/RS4rBenchmarkValues!G39) -> 1.033755274 | AJ39: 1.0273764 | AK39: 1.023062391 | AL39: 1.026380755 | AM39: 1.041466028 | AN39: 0 | AO39: 0 | AP39: 0 | AQ39: 0 | AR39: 0 | AS39: =IF(RS4rBenchmarkValues!I39=0,RS4rComputations!AS40,RS4rComputations!$C39/RS4rBenchmarkValues!I39) -> 1.226362625 | AT39: 1.221443895 | AU39: 1.215200241 | AV39: 1.220144124 | AW39: 1.243429993 | AX39: 0 | AY39: 0 | AZ39: 0 | BA39: 0 | BB39: 0 | BC39: =IF(RS4rBenchmarkValues!K39=0,RS4rComputations!BC40,RS4rComputations!$C39/RS4rBenchmarkValues!K39) -> 1.193181818 | BD39: 1.190316784 | BE39: 1.185729818 | BF39: 1.18163823 | BG39: 1.188826244 | BH39: 0 | BI39: 9 | BJ39: 0 | BK39: 0 | BL39: 0 | BM39: =IF(RS4rBenchmarkValues!M39=0,RS4rComputations!BM40,RS4rComputations!$C39/RS4rBenchmarkValues!M39) -> 1.977578475 | BN39: 1.950856688 | BO39: 1.937504777 | BP39: 1.936426416 | BQ39: 1.930784966 | BR39: 10 | BS39: 0 | BT39: 0 | BU39: 0 | BV39: 10 | BW39: =IF(RS4rBenchmarkValues!O39=0,RS4rComputations!BW40,RS4rComputations!$C39/RS4rBenchmarkValues!O39) -> 2.26618705 | BX39: 2.262816152 | BY39: 2.271649705 | BZ39: 2.277304713 | CA39: 2.271290673 | CB39: 0 | CC39: 0 | CD39: 0 | CE39: 0 | CF39: 0 | CG39: =IF(RS4rBenchmarkValues!Q39=0,RS4rComputations!CG40,RS4rComputations!$C39/RS4rBenchmarkValues!Q39) -> 0.788344655 | CH39: 0.7935394488 | CI39: 0.7851115333 | CJ39: 0.7672092236 | CK39: 0.7583561568 | CL39: 10 | CM39: 0 | CN39: 0 | CO39: 0 | CP39: 10 | CQ39: =IF(RS4rBenchmarkValues!S39=0,RS4rComputations!CQ40,RS4rComputations!$C39/RS4rBenchmarkValues!S39) -> 0.2647058824 | CR39: 0.2613901738 | CS39: 0.2597694014 | CT39: 0.2588921976 | CU39: 0.2549747633 | CV39: 10 | CW39: 0 | CX39: 0 | CY39: 0 | CZ39: 10 | DA39: =IF(RS4rBenchmarkValues!U39=0,RS4rComputations!DA40,RS4rComputations!$C39/RS4rBenchmarkValues!U39) -> 1.954787234 | DB39: 1.960225323 | DC39: 1.956868199 | DD39: 1.934514343 | DE39: 1.875160957 | DF39: 10 | DG39: 0 | DH39: 0 | DI39: 0 | DJ39: 10 | DK39: =IF(RS4rBenchmarkValues!W39=0,RS4rComputations!DK40,RS4rComputations!$C39/RS4rBenchmarkValues!W39) -> 1.609489051 | DL39: 1.606728784 | DM39: 1.611141411 | DN39: 1.624522293 | DO39: 1.62294302 | DP39: 0 | DQ39: 0 | DR39: 0 | DS39: 0 | DT39: 0
A40: 25 | B40: 2020-06-12 | C40: 21.95 | D40: 48 | E40: 43.63636364 | F40: 39.6969697 | G40: 42.48484848 | H40: 43.64 | J40: 41.182 | K40: TRUE | L40: 0 | M40: 0 | N40: 0 | O40: =IF(RS4rBenchmarkValues!C40=0,RS4rComputations!O41,RS4rComputations!$C40/RS4rBenchmarkValues!C40) -> 0.207388511 | P40: 0.2050055206 | Q40: 0.2043056798 | R40: 0.204108246 | S40: 0.2045488015 | T40: 0 | U40: 9 | V40: 0 | W40: 0 | X40: 9 | Y40: =IF(RS4rBenchmarkValues!E40=0,RS4rComputations!Y41,RS4rComputations!$C40/RS4rBenchmarkValues!E40) -> 0.1818106519 | Z40: 0.1813341877 | AA40: 0.1812604722 | AB40: 0.1812004449 | AC40: 0.1837152823 | AD40: 0 | AE40: 9 | AF40: 0 | AG40: 0 | AH40: 9 | AI40: =IF(RS4rBenchmarkValues!G40=0,RS4rComputations!AI41,RS4rComputations!$C40/RS4rBenchmarkValues!G40) -> 1.043747028 | AJ40: 1.025958872 | AK40: 1.021624387 | AL40: 1.02623852 | AM40: 1.042506392 | AN40: 0 | AO40: 0 | AP40: 0 | AQ40: 0 | AR40: 0 | AS40: =IF(RS4rBenchmarkValues!I40=0,RS4rComputations!AS41,RS4rComputations!$C40/RS4rBenchmarkValues!I40) -> 1.248577929 | AT40: 1.220350844 | AU40: 1.213119023 | AV40: 1.219958443 | AW40: 1.245035915 | AX40: 0 | AY40: 0 | AZ40: 0 | BA40: 0 | BB40: 0 | BC40: =IF(RS4rBenchmarkValues!K40=0,RS4rComputations!BC41,RS4rComputations!$C40/RS4rBenchmarkValues!K40) -> 1.200109349 | BD40: 1.189680109 | BE40: 1.18420083 | BF40: 1.180398436 | BG40: 1.189321969 | BH40: 0 | BI40: 9 | BJ40: 0 | BK40: 0 | BL40: 0 | BM40: =IF(RS4rBenchmarkValues!M40=0,RS4rComputations!BM41,RS4rComputations!$C40/RS4rBenchmarkValues!M40) -> 1.986425339 | BN40: 1.944918513 | BO40: 1.933054141 | BP40: 1.934364949 | BQ40: 1.930395901 | BR40: 0 | BS40: 0 | BT40: 0 | BU40: 0 | BV40: 0 | BW40: =IF(RS4rBenchmarkValues!O40=0,RS4rComputations!BW41,RS4rComputations!$C40/RS4rBenchmarkValues!O40) -> 2.239795918 | BX40: 2.262067064 | BY40: 2.274594223 | BZ40: 2.279374508 | CA40: 2.270875911 | CB40: 0 | CC40: 0 | CD40: 0 | CE40: 0 | CF40: 0 | CG40: =IF(RS4rBenchmarkValues!Q40=0,RS4rComputations!CG41,RS4rComputations!$C40/RS4rBenchmarkValues!Q40) -> 0.8066887174 | CH40: 0.7946938474 | CI40: 0.7823022281 | CJ40: 0.7634477629 | CK40: 0.7577456005 | CL40: 10 | CM40: 0 | CN40: 0 | CO40: 0 | CP40: 10 | CQ40: =IF(RS4rBenchmarkValues!S40=0,RS4rComputations!CQ41,RS4rComputations!$C40/RS4rBenchmarkValues!S40) -> 0.2657706744 | CR40: 0.2606533497 | CS40: 0.259229144 | CT40: 0.2585353439 | CU40: 0.2547045954 | CV40: 10 | CW40: 0 | CX40: 0 | CY40: 0 | CZ40: 10 | DA40: =IF(RS4rBenchmarkValues!U40=0,RS4rComputations!DA41,RS4rComputations!$C40/RS4rBenchmarkValues!U40) -> 1.944198406 | DB40: 1.961433787 | DC40: 1.955749158 | DD40: 1.930841346 | DE40: 1.87106762 | DF40: 10 | DG40: 0 | DH40: 0 | DI40: 0 | DJ40: 10 | DK40: =IF(RS4rBenchmarkValues!W40=0,RS4rComputations!DK41,RS4rComputations!$C40/RS4rBenchmarkValues!W40) -> 1.608058608 | DL40: 1.606115391 | DM40: 1.612612287 | DN40: 1.627064223 | DO40: 1.622834104 | DP40: 0 | DQ40: 0 | DR40: 0 | DS40: 0 | DT40: 0
A41: 26 | B41: 2020-06-11 | C41: 21.69 | D41: 44 | E41: 40 | F41: 40.60606061 | G41: 43.15151515 | H41: 40 | J41: 40.543 | K41: FALSE | L41: 0 | M41: 0 | N41: 0 | O41: =IF(RS4rBenchmarkValues!C41=0,RS4rComputations!O42,RS4rComputations!$C41/RS4rBenchmarkValues!C41) -> 0.2076591671 | P41: 0.2044759672 | Q41: 0.2040723995 | R41: 0.2039800639 | S41: 0.2045791847 | T41: 0 | U41: 9 | V41: 0 | W41: 0 | X41: 9 | Y41: =IF(RS4rBenchmarkValues!E41=0,RS4rComputations!Y42,RS4rComputations!$C41/RS4rBenchmarkValues!E41) -> 0.1814910886 | Z41: 0.1812283068 | AA41: 0.1812359003 | AB41: 0.1811813388 | AC41: 0.1838887194 | AD41: 0 | AE41: 0 | AF41: 0 | AG41: 5 | AH41: 5 | AI41: =IF(RS4rBenchmarkValues!G41=0,RS4rComputations!AI42,RS4rComputations!$C41/RS4rBenchmarkValues!G41) -> 1.04934688 | AJ41: 1.022005949 | AK41: 1.020179559 | AL41: 1.02627847 | AM41: 1.043628314 | AN41: 0 | AO41: 0 | AP41: 0 | AQ41: 0 | AR41: 0 | AS41: =IF(RS4rBenchmarkValues!I41=0,RS4rComputations!AS42,RS4rComputations!$C41/RS4rBenchmarkValues!I41) -> 1.262514552 | AT41: 1.214078159 | AU41: 1.210708415 | AV41: 1.219902385 | AW41: 1.246765396 | AX41: 0 | AY41: 0 | AZ41: 0 | BA41: 0 | BB41: 0 | BC41: =IF(RS4rBenchmarkValues!K41=0,RS4rComputations!BC42,RS4rComputations!$C41/RS4rBenchmarkValues!K41) -> 1.198342541 | BD41: 1.187362501 | BE41: 1.182374404 | BF41: 1.179072483 | BG41: 1.189937385 | BH41: 0 | BI41: 9 | BJ41: 0 | BK41: 0 | BL41: 0 | BM41: =IF(RS4rBenchmarkValues!M41=0,RS4rComputations!BM42,RS4rComputations!$C41/RS4rBenchmarkValues!M41) -> 1.997237569 | BN41: 1.935694774 | BO41: 1.92909935 | BP41: 1.932857297 | BQ41: 1.930122174 | BR41: 0 | BS41: 0 | BT41: 0 | BU41: 0 | BV41: 0 | BW41: =IF(RS4rBenchmarkValues!O41=0,RS4rComputations!BW42,RS4rComputations!$C41/RS4rBenchmarkValues!O41) -> 2.247668394 | BX41: 2.267016207 | BY41: 2.278769943 | BZ41: 2.281847 | CA41: 2.270289801 | CB41: 0 | CC41: 0 | CD41: 0 | CE41: 0 | CF41: 0 | CG41: =IF(RS4rBenchmarkValues!Q41=0,RS4rComputations!CG42,RS4rComputations!$C41/RS4rBenchmarkValues!Q41) -> 0.7901639344 | CH41: 0.7920283208 | CI41: 0.7781716883 | CJ41: 0.7589840365 | CK41: 0.7573523479 | CL41: 10 | CM41: 0 | CN41: 0 | CO41: 0 | CP41: 10 | CQ41: =IF(RS4rBenchmarkValues!S41=0,RS4rComputations!CQ42,RS4rComputations!$C41/RS4rBenchmarkValues!S41) -> 0.2624319419 | CR41: 0.2595161664 | CS41: 0.2587544087 | CT41: 0.2582327717 | CU41: 0.2544404058 | CV41: 10 | CW41: 0 | CX41: 0 | CY41: 0 | CZ41: 10 | DA41: =IF(RS4rBenchmarkValues!U41=0,RS4rComputations!DA42,RS4rComputations!$C41/RS4rBenchmarkValues!U41) -> 1.919469027 | DB41: 1.965263871 | DC41: 1.953854281 | DD41: 1.926470998 | DE41: 1.866945294 | DF41: 10 | DG41: 0 | DH41: 0 | DI41: 0 | DJ41: 10 | DK41: =IF(RS4rBenchmarkValues!W41=0,RS4rComputations!DK42,RS4rComputations!$C41/RS4rBenchmarkValues!W41) -> 1.648176292 | DL41: 1.605683565 | DM41: 1.614777918 | DN41: 1.630056913 | DO41: 1.622542372 | DP41: 0 | DQ41: 0 | DR41: 0 | DS41: 0 | DT41: 0
A42: 27 | B42: 2020-06-10 | C42: 22.69 | D42: 39 | E42: 35.45454545 | F42: 42.72727273 | G42: 43.63636364 | H42: 35.45 | J42: 41.633 | K42: FALSE | L42: 0 | M42: 0 | N42: 0 | O42: =IF(RS4rBenchmarkValues!C42=0,RS4rComputations!O43,RS4rComputations!$C42/RS4rBenchmarkValues!C42) -> 0.2044512525 | P42: 0.2037685895 | Q42: 0.2039378769 | R42: 0.2039092206 | S42: 0.2046205034 | T42: 0 | U42: 0 | V42: 0 | W42: 5 | X42: 5 | Y42: =IF(RS4rBenchmarkValues!E42=0,RS4rComputations!Y43,RS4rComputations!$C42/RS4rBenchmarkValues!E42) -> 0.1798652398 | Z42: 0.1811699108 | AA42: 0.1812384315 | AB42: 0.1811746291 | AC42: 0.1840754353 | AD42: 0 | AE42: 0 | AF42: 0 | AG42: 5 | AH42: 5 | AI42: =IF(RS4rBenchmarkValues!G42=0,RS4rComputations!AI43,RS4rComputations!$C42/RS4rBenchmarkValues!G42) -> 1.029024943 | AJ42: 1.015930186 | AK42: 1.019570763 | AL42: 1.02688883 | AM42: 1.044824855 | AN42: 0 | AO42: 0 | AP42: 0 | AQ42: 0 | AR42: 0 | AS42: =IF(RS4rBenchmarkValues!I42=0,RS4rComputations!AS43,RS4rComputations!$C42/RS4rBenchmarkValues!I42) -> 1.221205597 | AT42: 1.203314516 | AU42: 1.209585168 | AV42: 1.220734418 | AW42: 1.248618018 | AX42: 0 | AY42: 0 | AZ42: 0 | BA42: 0 | BB42: 0 | BC42: =IF(RS4rBenchmarkValues!K42=0,RS4rComputations!BC43,RS4rComputations!$C42/RS4rBenchmarkValues!K42) -> 1.185475444 | BD42: 1.184922491 | BE42: 1.180711705 | BF42: 1.177888195 | BG42: 1.190686689 | BH42: 0 | BI42: 9 | BJ42: 0 | BK42: 0 | BL42: 0 | BM42: =IF(RS4rBenchmarkValues!M42=0,RS4rComputations!BM43,RS4rComputations!$C42/RS4rBenchmarkValues!M42) -> 1.952667814 | BN42: 1.922018597 | BO42: 1.926900875 | BP42: 1.932451943 | BQ42: 1.929933544 | BR42: 0 | BS42: 0 | BT42: 0 | BU42: 0 | BV42: 0 | BW42: =IF(RS4rBenchmarkValues!O42=0,RS4rComputations!BW43,RS4rComputations!$C42/RS4rBenchmarkValues!O42) -> 2.255467197 | BX42: 2.271315721 | BY42: 2.282687855 | BZ42: 2.283965684 | CA42: 2.269492753 | CB42: 0 | CC42: 0 | CD42: 0 | CE42: 0 | CF42: 0 | CG42: =IF(RS4rBenchmarkValues!Q42=0,RS4rComputations!CG43,RS4rComputations!$C42/RS4rBenchmarkValues!Q42) -> 0.7911436541 | CH42: 0.7924426288 | CI42: 0.7735528108 | CJ42: 0.7542634245 | CK42: 0.7572398177 | CL42: 0 | CM42: 9 | CN42: 0 | CO42: 0 | CP42: 9 | CQ42: =IF(RS4rBenchmarkValues!S42=0,RS4rComputations!CQ43,RS4rComputations!$C42/RS4rBenchmarkValues!S42) -> 0.2622515025 | CR42: 0.2588682163 | CS42: 0.2585004895 | CT42: 0.2580494295 | CU42: 0.2541788634 | CV42: 10 | CW42: 0 | CX42: 0 | CY42: 0 | CZ42: 10 | DA42: =IF(RS4rBenchmarkValues!U42=0,RS4rComputations!DA43,RS4rComputations!$C42/RS4rBenchmarkValues!U42) -> 2.002647838 | DB42: 1.975440504 | DC42: 1.950051085 | DD42: 1.920929159 | DE42: 1.862840073 | DF42: 10 | DG42: 0 | DH42: 0 | DI42: 0 | DJ42: 10 | DK42: =IF(RS4rBenchmarkValues!W42=0,RS4rComputations!DK43,RS4rComputations!$C42/RS4rBenchmarkValues!W42) -> 1.611505682 | DL42: 1.596240737 | DM42: 1.617809369 | DN42: 1.63353882 | DO42: 1.622024128 | DP42: 0 | DQ42: 0 | DR42: 0 | DS42: 0 | DT42: 0
A43: 28 | B43: 2020-06-09 | C43: 22.53 | D43: 51 | E43: 46.36363636 | F43: 45.15151515 | G43: 43.63636364 | H43: 46.36 | J43: 45.362 | K43: TRUE | L43: 0 | M43: 0 | N43: 0 | O43: =IF(RS4rBenchmarkValues!C43=0,RS4rComputations!O44,RS4rComputations!$C43/RS4rBenchmarkValues!C43) -> 0.2019360043 | P43: 0.2036168866 | Q43: 0.203994306 | R43: 0.2039293107 | S43: 0.2046695573 | T43: 0 | U43: 0 | V43: 0 | W43: 5 | X43: 5 | Y43: =IF(RS4rBenchmarkValues!E43=0,RS4rComputations!Y44,RS4rComputations!$C43/RS4rBenchmarkValues!E43) -> 0.1797797638 | Z43: 0.1814598377 | AA43: 0.1812612717 | AB43: 0.1811753032 | AC43: 0.1842754909 | AD43: 0 | AE43: 9 | AF43: 0 | AG43: 0 | AH43: 9 | AI43: =IF(RS4rBenchmarkValues!G43=0,RS4rComputations!AI44,RS4rComputations!$C43/RS4rBenchmarkValues!G43) -> 1.005354752 | AJ43: 1.01302024 | AK43: 1.020784288 | AL43: 1.02845435 | AM43: 1.046061823 | AN43: 0 | AO43: 0 | AP43: 0 | AQ43: 0 | AR43: 0 | AS43: =IF(RS4rBenchmarkValues!I43=0,RS4rComputations!AS44,RS4rComputations!$C43/RS4rBenchmarkValues!I43) -> 1.18081761 | AT43: 1.19933872 | AU43: 1.211675385 | AV43: 1.223222975 | AW43: 1.250541025 | AX43: 0 | AY43: 0 | AZ43: 0 | BA43: 0 | BB43: 0 | BC43: =IF(RS4rBenchmarkValues!K43=0,RS4rComputations!BC44,RS4rComputations!$C43/RS4rBenchmarkValues!K43) -> 1.185165702 | BD43: 1.184799613 | BE43: 1.179308109 | BF43: 1.176883295 | BG43: 1.191569344 | BH43: 0 | BI43: 9 | BJ43: 0 | BK43: 0 | BL43: 0 | BM43: =IF(RS4rBenchmarkValues!M43=0,RS4rComputations!BM44,RS4rComputations!$C43/RS4rBenchmarkValues!M43) -> 1.898062342 | BN43: 1.91520766 | BO43: 1.928528301 | BP43: 1.933942421 | BQ43: 1.929759862 | BR43: 0 | BS43: 0 | BT43: 0 | BU43: 0 | BV43: 0 | BW43: =IF(RS4rBenchmarkValues!O43=0,RS4rComputations!BW44,RS4rComputations!$C43/RS4rBenchmarkValues!O43) -> 2.248502994 | BX43: 2.274837615 | BY43: 2.286478567 | BZ43: 2.285772822 | CA43: 2.26849462 | CB43: 0 | CC43: 0 | CD43: 9 | CE43: 0 | CF43: 9 | CG43: =IF(RS4rBenchmarkValues!Q43=0,RS4rComputations!CG44,RS4rComputations!$C43/RS4rBenchmarkValues!Q43) -> 0.8154180239 | CH43: 0.7927312899 | CI43: 0.7672562048 | CJ43: 0.7488092525 | CK43: 0.7574450862 | CL43: 0 | CM43: 9 | CN43: 0 | CO43: 0 | CP43: 9 | CQ43: =IF(RS4rBenchmarkValues!S43=0,RS4rComputations!CQ44,RS4rComputations!$C43/RS4rBenchmarkValues!S43) -> 0.2584901331 | CR43: 0.2581163749 | CS43: 0.2583779139 | CT43: 0.25793246 | CU43: 0.2539119278 | CV43: 0 | CW43: 0 | CX43: 9 | CY43: 0 | CZ43: 9 | DA43: =IF(RS4rBenchmarkValues!U43=0,RS4rComputations!DA44,RS4rComputations!$C43/RS4rBenchmarkValues!U43) -> 1.995571302 | DB43: 1.969394429 | DC43: 1.941587945 | DD43: 1.913141824 | DE43: 1.858833929 | DF43: 10 | DG43: 0 | DH43: 0 | DI43: 0 | DJ43: 10 | DK43: =IF(RS4rBenchmarkValues!W43=0,RS4rComputations!DK44,RS4rComputations!$C43/RS4rBenchmarkValues!W43) -> 1.543150685 | DL43: 1.592848527 | DM43: 1.624998914 | DN43: 1.638867117 | DO43: 1.621230011 | DP43: 0 | DQ43: 0 | DR43: 0 | DS43: 0 | DT43: 0
A44: 29 | B44: 2020-06-08 | C44: 22.58 | D44: 51 | E44: 46.36363636 | F44: 44.24242424 | G44: 43.15151515 | H44: 46.36 | J44: 44.364 | K44: TRUE | L44: 0 | M44: 0 | N44: 0 | O44: =IF(RS4rBenchmarkValues!C44=0,RS4rComputations!O45,RS4rComputations!$C44/RS4rBenchmarkValues!C44) -> 0.2008182142 | P44: 0.203990416 | Q44: 0.2041201125 | R44: 0.2039739427 | S44: 0.2047206088 | T44: 0 | U44: 0 | V44: 0 | W44: 5 | X44: 5 | Y44: =IF(RS4rBenchmarkValues!E44=0,RS4rComputations!Y45,RS4rComputations!$C44/RS4rBenchmarkValues!E44) -> 0.180683364 | Z44: 0.1818331875 | AA44: 0.181195083 | AB44: 0.1811346554 | AC44: 0.1844892969 | AD44: 0 | AE44: 9 | AF44: 0 | AG44: 0 | AH44: 9 | AI44: =IF(RS4rBenchmarkValues!G44=0,RS4rComputations!AI45,RS4rComputations!$C44/RS4rBenchmarkValues!G44) -> 0.9868881119 | AJ44: 1.014723682 | AK44: 1.023372304 | AL44: 1.030659223 | AM44: 1.047276131 | AN44: 0 | AO44: 0 | AP44: 0 | AQ44: 0 | AR44: 0 | AS44: =IF(RS4rBenchmarkValues!I44=0,RS4rComputations!AS45,RS4rComputations!$C44/RS4rBenchmarkValues!I44) -> 1.16032888 | AT44: 1.203454522 | AU44: 1.215787607 | AV44: 1.226635011 | AW44: 1.252425028 | AX44: 0 | AY44: 0 | AZ44: 0 | BA44: 0 | BB44: 0 | BC44: =IF(RS4rBenchmarkValues!K44=0,RS4rComputations!BC45,RS4rComputations!$C44/RS4rBenchmarkValues!K44) -> 1.187795897 | BD44: 1.18471826 | BE44: 1.177477608 | BF44: 1.175752393 | BG44: 1.192582175 | BH44: 0 | BI44: 9 | BJ44: 0 | BK44: 0 | BL44: 0 | BM44: =IF(RS4rBenchmarkValues!M44=0,RS4rComputations!BM45,RS4rComputations!$C44/RS4rBenchmarkValues!M44) -> 1.863036304 | BN44: 1.919017731 | BO44: 1.932968515 | BP44: 1.936618815 | BQ44: 1.929471409 | BR44: 0 | BS44: 0 | BT44: 0 | BU44: 0 | BV44: 0 | BW44: =IF(RS4rBenchmarkValues!O44=0,RS4rComputations!BW45,RS4rComputations!$C44/RS4rBenchmarkValues!O44) -> 2.242303873 | BX44: 2.280689753 | BY44: 2.290358884 | BZ44: 2.287334994 | CA44: 2.26730302 | CB44: 0 | CC44: 0 | CD44: 9 | CE44: 0 | CF44: 9 | CG44: =IF(RS4rBenchmarkValues!Q44=0,RS4rComputations!CG45,RS4rComputations!$C44/RS4rBenchmarkValues!Q44) -> 0.8283198826 | CH44: 0.7876897934 | CI44: 0.7587645097 | CJ44: 0.7425346757 | CK44: 0.7580406609 | CL44: 0 | CM44: 9 | CN44: 0 | CO44: 0 | CP44: 9 | CQ44: =IF(RS4rBenchmarkValues!S44=0,RS4rComputations!CQ45,RS4rComputations!$C44/RS4rBenchmarkValues!S44) -> 0.2525162156 | CR44: 0.2580333175 | CS44: 0.2584650936 | CT44: 0.2579061865 | CU44: 0.2536346497 | CV44: 0 | CW44: 0 | CX44: 9 | CY44: 0 | CZ44: 9 | DA44: =IF(RS4rBenchmarkValues!U44=0,RS4rComputations!DA45,RS4rComputations!$C44/RS4rBenchmarkValues!U44) -> 2.00177305 | DB44: 1.963577347 | DC44: 1.932319117 | DD44: 1.905105737 | DE44: 1.855088557 | DF44: 10 | DG44: 0 | DH44: 0 | DI44: 0 | DJ44: 10 | DK44: =IF(RS4rBenchmarkValues!W44=0,RS4rComputations!DK45,RS4rComputations!$C44/RS4rBenchmarkValues!W44) -> 1.510367893 | DL44: 1.603892492 | DM44: 1.635715709 | DN44: 1.645441201 | DO44: 1.620013659 | DP44: 0 | DQ44: 0 | DR44: 0 | DS44: 0 | DT44: 0
A45: 30 | B45: 2020-06-05 | C45: 22.63 | D45: 47 | E45: 42.72727273 | F45: 43.03030303 | G45: 42.84848485 | H45: 42.73 | J45: 43.003 | K45: FALSE | L45: 0 | M45: 0 | N45: 0 | O45: =IF(RS4rBenchmarkValues!C45=0,RS4rComputations!O46,RS4rComputations!$C45/RS4rBenchmarkValues!C45) -> 0.203690369 | P45: 0.2046953498 | Q45: 0.2041633446 | R45: 0.2039715894 | S45: 0.204772103 | T45: 0 | U45: 9 | V45: 0 | W45: 0 | X45: 9 | Y45: =IF(RS4rBenchmarkValues!E45=0,RS4rComputations!Y46,RS4rComputations!$C45/RS4rBenchmarkValues!E45) -> 0.1831350651 | Z45: 0.1820887038 | AA45: 0.1809823816 | AB45: 0.1810348651 | AC45: 0.1847206515 | AD45: 0 | AE45: 0 | AF45: 0 | AG45: 0 | AH45: 0 | AI45: =IF(RS4rBenchmarkValues!G45=0,RS4rComputations!AI46,RS4rComputations!$C45/RS4rBenchmarkValues!G45) -> 1.008017817 | AJ45: 1.020909365 | AK45: 1.026255178 | AL45: 1.032935729 | AM45: 1.048422125 | AN45: 0 | AO45: 0 | AP45: 0 | AQ45: 0 | AR45: 0 | AS45: =IF(RS4rBenchmarkValues!I45=0,RS4rComputations!AS46,RS4rComputations!$C45/RS4rBenchmarkValues!I45) -> 1.1860587 | AT45: 1.213037998 | AU45: 1.219898635 | AV45: 1.22994651 | AW45: 1.25420365 | AX45: 0 | AY45: 0 | AZ45: 0 | BA45: 0 | BB45: 0 | BC45: =IF(RS4rBenchmarkValues!K45=0,RS4rComputations!BC46,RS4rComputations!$C45/RS4rBenchmarkValues!K45) -> 1.200530504 | BD45: 1.184034341 | BE45: 1.175064057 | BF45: 1.174471554 | BG45: 1.193742849 | BH45: 0 | BI45: 9 | BJ45: 0 | BK45: 0 | BL45: 0 | BM45: =IF(RS4rBenchmarkValues!M45=0,RS4rComputations!BM46,RS4rComputations!$C45/RS4rBenchmarkValues!M45) -> 1.903280067 | BN45: 1.931458048 | BO45: 1.937618777 | BP45: 1.939133256 | BQ45: 1.928978485 | BR45: 0 | BS45: 0 | BT45: 0 | BU45: 0 | BV45: 0 | BW45: =IF(RS4rBenchmarkValues!O45=0,RS4rComputations!BW46,RS4rComputations!$C45/RS4rBenchmarkValues!O45) -> 2.260739261 | BX45: 2.289219949 | BY45: 2.293581927 | BZ45: 2.288284314 | CA45: 2.265921504 | CB45: 0 | CC45: 0 | CD45: 9 | CE45: 0 | CF45: 9 | CG45: =IF(RS4rBenchmarkValues!Q45=0,RS4rComputations!CG46,RS4rComputations!$C45/RS4rBenchmarkValues!Q45) -> 0.8384586884 | CH45: 0.7786608847 | CI45: 0.7491227485 | CJ45: 0.7360839446 | CK45: 0.7591100392 | CL45: 0 | CM45: 9 | CN45: 0 | CO45: 0 | CP45: 9 | CQ45: =IF(RS4rBenchmarkValues!S45=0,RS4rComputations!CQ46,RS4rComputations!$C45/RS4rBenchmarkValues!S45) -> 0.260774372 | CR45: 0.2592593401 | CS45: 0.2586090189 | CT45: 0.2578880249 | CU45: 0.2533400609 | CV45: 10 | CW45: 0 | CX45: 0 | CY45: 0 | CZ45: 10 | DA45: =IF(RS4rBenchmarkValues!U45=0,RS4rComputations!DA46,RS4rComputations!$C45/RS4rBenchmarkValues!U45) -> 2.011555556 | DB45: 1.955089413 | DC45: 1.921899707 | DD45: 1.89675265 | DE45: 1.851639096 | DF45: 10 | DG45: 0 | DH45: 0 | DI45: 0 | DJ45: 10 | DK45: =IF(RS4rBenchmarkValues!W45=0,RS4rComputations!DK46,RS4rComputations!$C45/RS4rBenchmarkValues!W45) -> 1.560689655 | DL45: 1.624675737 | DM45: 1.646323448 | DN45: 1.651376731 | DO45: 1.618260035 | DP45: 0 | DQ45: 0 | DR45: 0 | DS45: 0 | DT45: 0
A46: 31 | B46: 2020-06-04 | C46: 22.43 | D46: 48 | E46: 43.63636364 | F46: 43.03030303 | G46: 42.84848485 | H46: 43.64 | J46: 43.094 | K46: =OR(H46>=80,H46>J46) -> TRUE | L46: =IF(H46>80,1,0) -> 0 | M46: =IF(K46,AVERAGE(OFFSET(L46,0,0,$I$6,1))*100,0) -> 0 | N46: 0 | O46: =IF(RS4rBenchmarkValues!C46=0,RS4rComputations!O47,RS4rComputations!$C46/RS4rBenchmarkValues!C46) -> 0.2071864031 | P46: 0.2049186788 | Q46: 0.2039860096 | R46: 0.2038681951 | S46: 0.2048273109 | T46: 0 | U46: 9 | V46: 0 | W46: 0 | X46: 9 | Y46: =IF(RS4rBenchmarkValues!E46=0,RS4rComputations!Y47,RS4rComputations!$C46/RS4rBenchmarkValues!E46) -> 0.1852647229 | Z46: 0.181856179 | AA46: 0.1806136075 | AB46: 0.1808843167 | AC46: 0.1849748437 | AD46: 0 | AE46: 0 | AF46: 0 | AG46: 0 | AH46: 0 | AI46: =IF(RS4rBenchmarkValues!G46=0,RS4rComputations!AI47,RS4rComputations!$C46/RS4rBenchmarkValues!G46) -> 1.020009095 | AJ46: 1.023774153 | AK46: 1.028037115 | AL46: 1.034653781 | AM46: 1.049490152 | AN46: 0 | AO46: 0 | AP46: 0 | AQ46: 0 | AR46: 0 | AS46: =IF(RS4rBenchmarkValues!I46=0,RS4rComputations!AS47,RS4rComputations!$C46/RS4rBenchmarkValues!I46) -> 1.217698154 | AT46: 1.219033397 | AU46: 1.222185514 | AV46: 1.232362012 | AW46: 1.255876556 | AX46: 0 | AY46: 0 | AZ46: 0 | BA46: 0 | BB46: 0 | BC46: =IF(RS4rBenchmarkValues!K46=0,RS4rComputations!BC47,RS4rComputations!$C46/RS4rBenchmarkValues!K46) -> 1.205265986 | BD46: 1.180368527 | BE46: 1.172073962 | BF46: 1.173105442 | BG46: 1.195071904 | BH46: 0 | BI46: 0 | BJ46: 0 | BK46: 0 | BL46: 0 | BM46: =IF(RS4rBenchmarkValues!M46=0,RS4rComputations!BM47,RS4rComputations!$C46/RS4rBenchmarkValues!M46) -> 1.928632846 | BN46: 1.937719821 | BO46: 1.939672353 | BP46: 1.940229715 | BQ46: 1.928278156 | BR46: 0 | BS46: 0 | BT46: 0 | BU46: 0 | BV46: 0 | BW46: =IF(RS4rBenchmarkValues!O46=0,RS4rComputations!BW47,RS4rComputations!$C46/RS4rBenchmarkValues!O46) -> 2.28877551 | BX46: 2.295548991 | BY46: 2.29503592 | BZ46: 2.288150652 | CA46: 2.264379242 | CB46: 10 | CC46: 0 | CD46: 0 | CE46: 0 | CF46: 10 | CG46: =IF(RS4rBenchmarkValues!Q46=0,RS4rComputations!CG47,RS4rComputations!$C46/RS4rBenchmarkValues!Q46) -> 0.8159330666 | CH46: 0.7653724839 | CI46: 0.7392767031 | CJ46: 0.7300015246 | CK46: 0.7606980457 | CL46: 0 | CM46: 9 | CN46: 0 | CO46: 0 | CP46: 9 | CQ46: =IF(RS4rBenchmarkValues!S46=0,RS4rComputations!CQ47,RS4rComputations!$C46/RS4rBenchmarkValues!S46) -> 0.2630159475 | CR46: 0.2589226664 | CS46: 0.2583922452 | CT46: 0.2576921227 | CU46: 0.2530264083 | CV46: 10 | CW46: 0 | CX46: 0 | CY46: 0 | CZ46: 10 | DA46: =IF(RS4rBenchmarkValues!U46=0,RS4rComputations!DA47,RS4rComputations!$C46/RS4rBenchmarkValues!U46) -> 2.000892061 | DB46: 1.942541381 | DC46: 1.910836471 | DD46: 1.888418827 | DE46: 1.848527817 | DF46: 10 | DG46: 0 | DH46: 0 | DI46: 0 | DJ46: 10 | DK46: =IF(RS4rBenchmarkValues!W46=0,RS4rComputations!DK47,RS4rComputations!$C46/RS4rBenchmarkValues!W46) -> 1.612508986 | DL46: 1.638894866 | DM46: 1.653539351 | DN46: 1.655191159 | DO46: 1.615976125 | DP46: 0 | DQ46: 0 | DR46: 0 | DS46: 0 | DT46: 0
A47: 32 | B47: 2020-06-03 | C47: 22.48 | D47: 47 | E47: 42.72727273 | F47: 42.72727273 | G47: 42.90909091 | H47: 42.73 | J47: 42.73 | K47: FALSE | L47: 0 | M47: 0 | N47: 0 | O47: =IF(RS4rBenchmarkValues!C47=0,RS4rComputations!O48,RS4rComputations!$C47/RS4rBenchmarkValues!C47) -> 0.2069981584 | P47: 0.2044147401 | Q47: 0.2036751198 | R47: 0.203718126 | S47: 0.2048934568 | T47: 0 | U47: 0 | V47: 0 | W47: 0 | X47: 0 | Y47: =IF(RS4rBenchmarkValues!E47=0,RS4rComputations!Y48,RS4rComputations!$C47/RS4rBenchmarkValues!E47) -> 0.1843983266 | Z47: 0.1810987249 | AA47: 0.180199417 | AB47: 0.1807454792 | AC47: 0.185256949 | AD47: 0 | AE47: 0 | AF47: 0 | AG47: 0 | AH47: 0 | AI47: =IF(RS4rBenchmarkValues!G47=0,RS4rComputations!AI48,RS4rComputations!$C47/RS4rBenchmarkValues!G47) -> 1.019963702 | AJ47: 1.024610832 | AK47: 1.029458103 | AL47: 1.036208014 | AM47: 1.05051335 | AN47: 0 | AO47: 0 | AP47: 0 | AQ47: 0 | AR47: 0 | AS47: =IF(RS4rBenchmarkValues!I47=0,RS4rComputations!AS48,RS4rComputations!$C47/RS4rBenchmarkValues!I47) -> 1.220412595 | AT47: 1.219330118 | AU47: 1.223236219 | AV47: 1.234266099 | AW47: 1.257498249 | AX47: 0 | AY47: 0 | AZ47: 0 | BA47: 0 | BB47: 0 | BC47: =IF(RS4rBenchmarkValues!K47=0,RS4rComputations!BC48,RS4rComputations!$C47/RS4rBenchmarkValues!K47) -> 1.195744681 | BD47: 1.174835758 | BE47: 1.169309107 | BF47: 1.172067859 | BG47: 1.196586833 | BH47: 0 | BI47: 0 | BJ47: 0 | BK47: 0 | BL47: 0 | BM47: =IF(RS4rBenchmarkValues!M47=0,RS4rComputations!BM48,RS4rComputations!$C47/RS4rBenchmarkValues!M47) -> 1.94295592 | BN47: 1.939739149 | BO47: 1.940323197 | BP47: 1.940588271 | BQ47: 1.92745391 | BR47: 0 | BS47: 0 | BT47: 0 | BU47: 0 | BV47: 0 | BW47: =IF(RS4rBenchmarkValues!O47=0,RS4rComputations!BW48,RS4rComputations!$C47/RS4rBenchmarkValues!O47) -> 2.284552846 | BX47: 2.297054209 | BY47: 2.294864896 | BZ47: 2.287093747 | CA47: 2.262739834 | CB47: 10 | CC47: 0 | CD47: 0 | CE47: 0 | CF47: 10 | CG47: =IF(RS4rBenchmarkValues!Q47=0,RS4rComputations!CG48,RS4rComputations!$C47/RS4rBenchmarkValues!Q47) -> 0.8231417063 | CH47: 0.7541367989 | CI47: 0.7305781095 | CJ47: 0.7249485304 | CK47: 0.7628150472 | CL47: 0 | CM47: 9 | CN47: 0 | CO47: 0 | CP47: 9 | CQ47: =IF(RS4rBenchmarkValues!S47=0,RS4rComputations!CQ48,RS4rComputations!$C47/RS4rBenchmarkValues!S47) -> 0.2591653217 | CR47: 0.2580130484 | CS47: 0.2582154382 | CT47: 0.2575163308 | CU47: 0.2527046348 | CV47: 0 | CW47: 0 | CX47: 9 | CY47: 0 | CZ47: 9 | DA47: =IF(RS4rBenchmarkValues!U47=0,RS4rComputations!DA48,RS4rComputations!$C47/RS4rBenchmarkValues!U47) -> 2.001780944 | DB47: 1.929574563 | DC47: 1.900268168 | DD47: 1.880687034 | DE47: 1.845776712 | DF47: 10 | DG47: 0 | DH47: 0 | DI47: 0 | DJ47: 10 | DK47: =IF(RS4rBenchmarkValues!W47=0,RS4rComputations!DK48,RS4rComputations!$C47/RS4rBenchmarkValues!W47) -> 1.608011445 | DL47: 1.644758395 | DM47: 1.658420846 | DN47: 1.657519201 | DO47: 1.61327164 | DP47: 0 | DQ47: 0 | DR47: 9 | DS47: 0 | DT47: 9
A48: 33 | B48: 2020-06-02 | C48: 22.04 | D48: 47 | E48: 42.72727273 | F48: 42.72727273 | G48: 43.21212121 | H48: 42.73 | J48: 42.73 | K48: FALSE | L48: 0 | M48: 0 | N48: 0 | O48: =IF(RS4rBenchmarkValues!C48=0,RS4rComputations!O49,RS4rComputations!$C48/RS4rBenchmarkValues!C48) -> 0.2057313544 | P48: 0.2038406472 | Q48: 0.2034285798 | R48: 0.2036186097 | S48: 0.2049745141 | T48: 0 | U48: 0 | V48: 0 | W48: 0 | X48: 0 | Y48: =IF(RS4rBenchmarkValues!E48=0,RS4rComputations!Y49,RS4rComputations!$C48/RS4rBenchmarkValues!E48) -> 0.1822089947 | Z48: 0.18036548 | AA48: 0.1798996477 | AB48: 0.1806950156 | AC48: 0.1855680849 | AD48: 0 | AE48: 0 | AF48: 0 | AG48: 0 | AH48: 0 | AI48: =IF(RS4rBenchmarkValues!G48=0,RS4rComputations!AI49,RS4rComputations!$C48/RS4rBenchmarkValues!G48) -> 1.022737819 | AJ48: 1.025643528 | AK48: 1.031073859 | AL48: 1.037864754 | AM48: 1.051499925 | AN48: 0 | AO48: 0 | AP48: 0 | AQ48: 0 | AR48: 0 | AS48: =IF(RS4rBenchmarkValues!I48=0,RS4rComputations!AS49,RS4rComputations!$C48/RS4rBenchmarkValues!I48) -> 1.225125069 | AT48: 1.219089568 | AU48: 1.224538253 | AV48: 1.236399811 | AW48: 1.259100466 | AX48: 0 | AY48: 0 | AZ48: 0 | BA48: 0 | BB48: 0 | BC48: =IF(RS4rBenchmarkValues!K48=0,RS4rComputations!BC49,RS4rComputations!$C48/RS4rBenchmarkValues!K48) -> 1.181769437 | BD48: 1.17018933 | BE48: 1.167466891 | BF48: 1.171672445 | BG48: 1.198277796 | BH48: 0 | BI48: 0 | BJ48: 0 | BK48: 0 | BL48: 0 | BM48: =IF(RS4rBenchmarkValues!M48=0,RS4rComputations!BM49,RS4rComputations!$C48/RS4rBenchmarkValues!M48) -> 1.948717949 | BN48: 1.939024311 | BO48: 1.94051788 | BP48: 1.940709574 | BQ48: 1.926548092 | BR48: 0 | BS48: 0 | BT48: 0 | BU48: 0 | BV48: 0 | BW48: =IF(RS4rBenchmarkValues!O48=0,RS4rComputations!BW49,RS4rComputations!$C48/RS4rBenchmarkValues!O48) -> 2.286307054 | BX48: 2.29983229 | BY48: 2.294135125 | BZ48: 2.285670823 | CA48: 2.261060254 | CB48: 10 | CC48: 0 | CD48: 0 | CE48: 0 | CF48: 10 | CG48: =IF(RS4rBenchmarkValues!Q48=0,RS4rComputations!CG49,RS4rComputations!$C48/RS4rBenchmarkValues!Q48) -> 0.7768769827 | CH48: 0.738802375 | CI48: 0.722725213 | CJ48: 0.7207787777 | CK48: 0.7654265311 | CL48: 0 | CM48: 9 | CN48: 0 | CO48: 0 | CP48: 9 | CQ48: =IF(RS4rBenchmarkValues!S48=0,RS4rComputations!CQ49,RS4rComputations!$C48/RS4rBenchmarkValues!S48) -> 0.2572962876 | CR48: 0.2577569876 | CS48: 0.2582829014 | CT48: 0.2574453711 | CU48: 0.2523727938 | CV48: 0 | CW48: 0 | CX48: 9 | CY48: 0 | CZ48: 9 | DA48: =IF(RS4rBenchmarkValues!U48=0,RS4rComputations!DA49,RS4rComputations!$C48/RS4rBenchmarkValues!U48) -> 1.964349376 | DB48: 1.913528701 | DC48: 1.89049937 | DD48: 1.873703101 | DE48: 1.843369104 | DF48: 10 | DG48: 0 | DH48: 0 | DI48: 0 | DJ48: 10 | DK48: =IF(RS4rBenchmarkValues!W48=0,RS4rComputations!DK49,RS4rComputations!$C48/RS4rBenchmarkValues!W48) -> 1.639880952 | DL48: 1.652924384 | DM48: 1.662974997 | DN48: 1.659342173 | DO48: 1.610220084 | DP48: 0 | DQ48: 0 | DR48: 9 | DS48: 0 | DT48: 9
A49: 34 | B49: 2020-06-01 | C49: 21.81 | D49: 47 | E49: 42.72727273 | F49: 42.72727273 | G49: 43.63636364 | H49: 42.73 | J49: 42.821 | K49: FALSE | L49: 0 | M49: 0 | N49: 0 | O49: =IF(RS4rBenchmarkValues!C49=0,RS4rComputations!O50,RS4rComputations!$C49/RS4rBenchmarkValues!C49) -> 0.2052705882 | P49: 0.20342049 | Q49: 0.203291224 | R49: 0.20358689 | S49: 0.2050680248 | T49: 0 | U49: 0 | V49: 0 | W49: 0 | X49: 0 | Y49: =IF(RS4rBenchmarkValues!E49=0,RS4rComputations!Y50,RS4rComputations!$C49/RS4rBenchmarkValues!E49) -> 0.1813721414 | Z49: 0.1799558101 | AA49: 0.1797443702 | AB49: 0.1807420921 | AC49: 0.1859041586 | AD49: 0 | AE49: 0 | AF49: 0 | AG49: 0 | AH49: 0 | AI49: =IF(RS4rBenchmarkValues!G49=0,RS4rComputations!AI50,RS4rComputations!$C49/RS4rBenchmarkValues!G49) -> 1.022024367 | AJ49: 1.026289241 | AK49: 1.03288397 | AL49: 1.039610643 | AM49: 1.052440282 | AN49: 0 | AO49: 0 | AP49: 0 | AQ49: 0 | AR49: 0 | AS49: =IF(RS4rBenchmarkValues!I49=0,RS4rComputations!AS50,RS4rComputations!$C49/RS4rBenchmarkValues!I49) -> 1.223219293 | AT49: 1.217748345 | AU49: 1.226354481 | AV49: 1.238872703 | AW49: 1.260666029 | AX49: 0 | AY49: 0 | AZ49: 0 | BA49: 0 | BB49: 0 | BC49: =IF(RS4rBenchmarkValues!K49=0,RS4rComputations!BC50,RS4rComputations!$C49/RS4rBenchmarkValues!K49) -> 1.177010254 | BD49: 1.167615973 | BE49: 1.166559411 | BF49: 1.171884318 | BG49: 1.200112648 | BH49: 0 | BI49: 0 | BJ49: 0 | BK49: 0 | BL49: 0 | BM49: =IF(RS4rBenchmarkValues!M49=0,RS4rComputations!BM50,RS4rComputations!$C49/RS4rBenchmarkValues!M49) -> 1.947321429 | BN49: 1.936870169 | BO49: 1.941015736 | BP49: 1.940950326 | BQ49: 1.925571438 | BR49: 0 | BS49: 0 | BT49: 9 | BU49: 0 | BV49: 9 | BW49: =IF(RS4rBenchmarkValues!O49=0,RS4rComputations!BW50,RS4rComputations!$C49/RS4rBenchmarkValues!O49) -> 2.307936508 | BX49: 2.302837898 | BY49: 2.29223607 | BZ49: 2.283647757 | CA49: 2.259362973 | CB49: 10 | CC49: 0 | CD49: 0 | CE49: 0 | CF49: 10 | CG49: =IF(RS4rBenchmarkValues!Q49=0,RS4rComputations!CG50,RS4rComputations!$C49/RS4rBenchmarkValues!Q49) -> 0.7436072281 | CH49: 0.7303413511 | CI49: 0.7173661591 | CJ49: 0.7182039781 | CK49: 0.7685056865 | CL49: 0 | CM49: 0 | CN49: 0 | CO49: 0 | CP49: 0 | CQ49: =IF(RS4rBenchmarkValues!S49=0,RS4rComputations!CQ50,RS4rComputations!$C49/RS4rBenchmarkValues!S49) -> 0.2560460202 | CR49: 0.2578593654 | CS49: 0.258458206 | CT49: 0.2574008545 | CU49: 0.2520229608 | CV49: 0 | CW49: 0 | CX49: 9 | CY49: 0 | CZ49: 9 | DA49: =IF(RS4rBenchmarkValues!U49=0,RS4rComputations!DA50,RS4rComputations!$C49/RS4rBenchmarkValues!U49) -> 1.947321429 | DB49: 1.902235217 | DC49: 1.882822926 | DD49: 1.868013729 | DE49: 1.841277104 | DF49: 10 | DG49: 0 | DH49: 0 | DI49: 0 | DJ49: 10 | DK49: =IF(RS4rBenchmarkValues!W49=0,RS4rComputations!DK50,RS4rComputations!$C49/RS4rBenchmarkValues!W49) -> 1.642319277 | DL49: 1.655822924 | DM49: 1.666325201 | DN49: 1.660259 | DO49: 1.606832354 | DP49: 0 | DQ49: 0 | DR49: 9 | DS49: 0 | DT49: 9
A50: 35 | B50: 2020-05-29 | C50: 21.56 | D50: 47 | E50: 42.72727273 | F50: 43.03030303 | G50: 44.18181818 | H50: 42.73 | J50: 43.003 | K50: FALSE | L50: 0 | M50: 0 | N50: 0 | O50: =IF(RS4rBenchmarkValues!C50=0,RS4rComputations!O51,RS4rComputations!$C50/RS4rBenchmarkValues!C50) -> 0.2036844591 | P50: 0.203009357 | Q50: 0.2032481353 | R50: 0.2036106615 | S50: 0.205170172 | T50: 0 | U50: 0 | V50: 0 | W50: 0 | X50: 0 | Y50: =IF(RS4rBenchmarkValues!E50=0,RS4rComputations!Y51,RS4rComputations!$C50/RS4rBenchmarkValues!E50) -> 0.1804637147 | Z50: 0.1796410698 | AA50: 0.1796738903 | AB50: 0.1808544181 | AC50: 0.1862601632 | AD50: 0 | AE50: 0 | AF50: 0 | AG50: 0 | AH50: 0 | AI50: =IF(RS4rBenchmarkValues!G50=0,RS4rComputations!AI51,RS4rComputations!$C50/RS4rBenchmarkValues!G50) -> 1.021800948 | AJ50: 1.027236991 | AK50: 1.035082213 | AL50: 1.041513701 | AM50: 1.053325084 | AN50: 0 | AO50: 0 | AP50: 0 | AQ50: 0 | AR50: 0 | AS50: =IF(RS4rBenchmarkValues!I50=0,RS4rComputations!AS51,RS4rComputations!$C50/RS4rBenchmarkValues!I50) -> 1.219457014 | AT50: 1.216532579 | AU50: 1.229223193 | AV50: 1.241890468 | AW50: 1.262169017 | AX50: 0 | AY50: 0 | AZ50: 0 | BA50: 0 | BB50: 0 | BC50: =IF(RS4rBenchmarkValues!K50=0,RS4rComputations!BC51,RS4rComputations!$C50/RS4rBenchmarkValues!K50) -> 1.169197397 | BD50: 1.165528355 | BE50: 1.166207223 | BF50: 1.172494082 | BG50: 1.20205943 | BH50: 0 | BI50: 0 | BJ50: 0 | BK50: 0 | BL50: 0 | BM50: =IF(RS4rBenchmarkValues!M50=0,RS4rComputations!BM51,RS4rComputations!$C50/RS4rBenchmarkValues!M50) -> 1.935368043 | BN50: 1.934547667 | BO50: 1.942397592 | BP50: 1.941533205 | BQ50: 1.924510825 | BR50: 0 | BS50: 0 | BT50: 9 | BU50: 0 | BV50: 9 | BW50: =IF(RS4rBenchmarkValues!O50=0,RS4rComputations!BW51,RS4rComputations!$C50/RS4rBenchmarkValues!O50) -> 2.325782093 | BX50: 2.301704873 | BY50: 2.288702128 | BZ50: 2.280906308 | CA50: 2.257688161 | CB50: 10 | CC50: 0 | CD50: 0 | CE50: 0 | CF50: 10 | CG50: =IF(RS4rBenchmarkValues!Q50=0,RS4rComputations!CG51,RS4rComputations!$C50/RS4rBenchmarkValues!Q50) -> 0.7541098286 | CH50: 0.7273933784 | CI50: 0.7130410951 | CJ50: 0.7164700677 | CK50: 0.7719747698 | CL50: 0 | CM50: 0 | CN50: 0 | CO50: 0 | CP50: 0 | CQ50: =IF(RS4rBenchmarkValues!S50=0,RS4rComputations!CQ51,RS4rComputations!$C50/RS4rBenchmarkValues!S50) -> 0.2569113441 | CR50: 0.258262331 | CS50: 0.2586578195 | CT50: 0.2573353529 | CU50: 0.2516520716 | CV50: 0 | CW50: 0 | CX50: 9 | CY50: 0 | CZ50: 9 | DA50: =IF(RS4rBenchmarkValues!U50=0,RS4rComputations!DA51,RS4rComputations!$C50/RS4rBenchmarkValues!U50) -> 1.926720286 | DB50: 1.892216059 | DC50: 1.876352163 | DD50: 1.863124945 | DE50: 1.839433199 | DF50: 10 | DG50: 0 | DH50: 0 | DI50: 0 | DJ50: 10 | DK50: =IF(RS4rBenchmarkValues!W50=0,RS4rComputations!DK51,RS4rComputations!$C50/RS4rBenchmarkValues!W50) -> 1.66229761 | DL50: 1.658823735 | DM50: 1.66982596 | DN50: 1.660892725 | DO50: 1.603147758 | DP50: 0 | DQ50: 0 | DR50: 9 | DS50: 0 | DT50: 9
A51: 36 | B51: 2020-05-28 | C51: 21.42 | D51: 47 | E51: 42.72727273 | F51: 43.33333333 | G51: 44.60606061 | H51: 42.73 | J51: 43.457 | K51: FALSE | L51: 0 | M51: 0 | N51: 0 | O51: =IF(RS4rBenchmarkValues!C51=0,RS4rComputations!O52,RS4rComputations!$C51/RS4rBenchmarkValues!C51) -> 0.2033608659 | P51: 0.2028593343 | Q51: 0.203327728 | R51: 0.2036965621 | S51: 0.2052777244 | T51: 0 | U51: 0 | V51: 0 | W51: 0 | X51: 0 | Y51: =IF(RS4rBenchmarkValues!E51=0,RS4rComputations!Y52,RS4rComputations!$C51/RS4rBenchmarkValues!E51) -> 0.1816023739 | Z51: 0.1794582598 | AA51: 0.1796848304 | AB51: 0.1810277535 | AC51: 0.1866329732 | AD51: 0 | AE51: 0 | AF51: 0 | AG51: 0 | AH51: 0 | AI51: =IF(RS4rBenchmarkValues!G51=0,RS4rComputations!AI52,RS4rComputations!$C51/RS4rBenchmarkValues!G51) -> 1.019514517 | AJ51: 1.028445 | AK51: 1.037697287 | AL51: 1.043553231 | AM51: 1.054139662 | AN51: 0 | AO51: 0 | AP51: 0 | AQ51: 0 | AR51: 0 | AS51: =IF(RS4rBenchmarkValues!I51=0,RS4rComputations!AS52,RS4rComputations!$C51/RS4rBenchmarkValues!I51) -> 1.206081081 | AT51: 1.215882705 | AU51: 1.233453398 | AV51: 1.245513024 | AW51: 1.263567537 | AX51: 0 | AY51: 0 | AZ51: 0 | BA51: 0 | BB51: 0 | BC51: =IF(RS4rBenchmarkValues!K51=0,RS4rComputations!BC52,RS4rComputations!$C51/RS4rBenchmarkValues!K51) -> 1.17305586 | BD51: 1.164713013 | BE51: 1.166433513 | BF51: 1.173489185 | BG51: 1.204098419 | BH51: 0 | BI51: 0 | BJ51: 0 | BK51: 0 | BL51: 0 | BM51: =IF(RS4rBenchmarkValues!M51=0,RS4rComputations!BM52,RS4rComputations!$C51/RS4rBenchmarkValues!M51) -> 1.922800718 | BN51: 1.934365361 | BO51: 1.945014234 | BP51: 1.94253114 | BQ51: 1.923336868 | BR51: 0 | BS51: 0 | BT51: 9 | BU51: 0 | BV51: 9 | BW51: =IF(RS4rBenchmarkValues!O51=0,RS4rComputations!BW52,RS4rComputations!$C51/RS4rBenchmarkValues!O51) -> 2.338427948 | BX51: 2.29635438 | BY51: 2.284367879 | BZ51: 2.277935085 | CA51: 2.256086909 | CB51: 10 | CC51: 0 | CD51: 0 | CE51: 0 | CF51: 10 | CG51: =IF(RS4rBenchmarkValues!Q51=0,RS4rComputations!CG52,RS4rComputations!$C51/RS4rBenchmarkValues!Q51) -> 0.7603833866 | CH51: 0.7214563895 | CI51: 0.7082570006 | CJ51: 0.7149095947 | CK51: 0.7758026803 | CL51: 0 | CM51: 0 | CN51: 0 | CO51: 0 | CP51: 0 | CQ51: =IF(RS4rBenchmarkValues!S51=0,RS4rComputations!CQ52,RS4rComputations!$C51/RS4rBenchmarkValues!S51) -> 0.2553952546 | CR51: 0.2585625503 | CS51: 0.258789649 | CT51: 0.2572029275 | CU51: 0.2512601212 | CV51: 0 | CW51: 0 | CX51: 9 | CY51: 0 | CZ51: 9 | DA51: =IF(RS4rBenchmarkValues!U51=0,RS4rComputations!DA52,RS4rComputations!$C51/RS4rBenchmarkValues!U51) -> 1.921076233 | DB51: 1.884548453 | DC51: 1.871064197 | DD51: 1.858969072 | DE51: 1.837799285 | DF51: 10 | DG51: 0 | DH51: 0 | DI51: 0 | DJ51: 10 | DK51: =IF(RS4rBenchmarkValues!W51=0,RS4rComputations!DK52,RS4rComputations!$C51/RS4rBenchmarkValues!W51) -> 1.622727273 | DL51: 1.658051762 | DM51: 1.673493369 | DN51: 1.661188295 | DO51: 1.599165346 | DP51: 0 | DQ51: 0 | DR51: 9 | DS51: 0 | DT51: 9
A52: 37 | B52: 2020-05-27 | C52: 21.09 | D52: 48 | E52: 43.63636364 | F52: 44.24242424 | G52: 44.96969697 | H52: 43.64 | J52: 44.183 | K52: FALSE | L52: 0 | M52: 0 | N52: 0 | O52: =IF(RS4rBenchmarkValues!C52=0,RS4rComputations!O53,RS4rComputations!$C52/RS4rBenchmarkValues!C52) -> 0.1998294486 | P52: 0.2027478829 | Q52: 0.2034838593 | R52: 0.203816166 | S52: 0.2053867701 | T52: 0 | U52: 0 | V52: 0 | W52: 0 | X52: 0 | Y52: =IF(RS4rBenchmarkValues!E52=0,RS4rComputations!Y53,RS4rComputations!$C52/RS4rBenchmarkValues!E52) -> 0.1779897038 | Z52: 0.17898179 | AA52: 0.179760354 | AB52: 0.1812519669 | AC52: 0.1870195401 | AD52: 0 | AE52: 0 | AF52: 0 | AG52: 0 | AH52: 0 | AI52: =IF(RS4rBenchmarkValues!G52=0,RS4rComputations!AI53,RS4rComputations!$C52/RS4rBenchmarkValues!G52) -> 0.9990525817 | AJ52: 1.030429552 | AK52: 1.040781383 | AL52: 1.045711549 | AM52: 1.054869761 | AN52: 0 | AO52: 0 | AP52: 0 | AQ52: 0 | AR52: 0 | AS52: =IF(RS4rBenchmarkValues!I52=0,RS4rComputations!AS53,RS4rComputations!$C52/RS4rBenchmarkValues!I52) -> 1.15751921 | AT52: 1.218060843 | AU52: 1.239310296 | AV52: 1.249745926 | AW52: 1.264812676 | AX52: 0 | AY52: 0 | AZ52: 0 | BA52: 0 | BB52: 0 | BC52: =IF(RS4rBenchmarkValues!K52=0,RS4rComputations!BC53,RS4rComputations!$C52/RS4rBenchmarkValues!K52) -> 1.15625 | BD52: 1.162859047 | BE52: 1.167007012 | BF52: 1.174742924 | BG52: 1.206209401 | BH52: 0 | BI52: 0 | BJ52: 0 | BK52: 0 | BL52: 0 | BM52: =IF(RS4rBenchmarkValues!M52=0,RS4rComputations!BM53,RS4rComputations!$C52/RS4rBenchmarkValues!M52) -> 1.879679144 | BN52: 1.936935281 | BO52: 1.948563859 | BP52: 1.943697679 | BQ52: 1.922013125 | BR52: 0 | BS52: 0 | BT52: 9 | BU52: 0 | BV52: 9 | BW52: =IF(RS4rBenchmarkValues!O52=0,RS4rComputations!BW53,RS4rComputations!$C52/RS4rBenchmarkValues!O52) -> 2.294885745 | BX52: 2.287004698 | BY52: 2.280372379 | BZ52: 2.275303757 | CA52: 2.254580138 | CB52: 10 | CC52: 0 | CD52: 0 | CE52: 0 | CF52: 10 | CG52: =IF(RS4rBenchmarkValues!Q52=0,RS4rComputations!CG53,RS4rComputations!$C52/RS4rBenchmarkValues!Q52) -> 0.7524081341 | CH52: 0.7128059457 | CI52: 0.7038572043 | CJ52: 0.7139743383 | CK52: 0.7800022035 | CL52: 0 | CM52: 0 | CN52: 0 | CO52: 0 | CP52: 0 | CQ52: =IF(RS4rBenchmarkValues!S52=0,RS4rComputations!CQ53,RS4rComputations!$C52/RS4rBenchmarkValues!S52) -> 0.2578554836 | CR52: 0.2592663938 | CS52: 0.2588653486 | CT52: 0.2570086956 | CU52: 0.2508502725 | CV52: 10 | CW52: 0 | CX52: 0 | CY52: 0 | CZ52: 10 | DA52: =IF(RS4rBenchmarkValues!U52=0,RS4rComputations!DA53,RS4rComputations!$C52/RS4rBenchmarkValues!U52) -> 1.893177738 | DB52: 1.876431169 | DC52: 1.866569445 | DD52: 1.855314875 | DE52: 1.8363393 | DF52: 10 | DG52: 0 | DH52: 0 | DI52: 0 | DJ52: 10 | DK52: =IF(RS4rBenchmarkValues!W52=0,RS4rComputations!DK53,RS4rComputations!$C52/RS4rBenchmarkValues!W52) -> 1.59893859 | DL52: 1.665901649 | DM52: 1.678640571 | DN52: 1.661636371 | DO52: 1.594887901 | DP52: 0 | DQ52: 0 | DR52: 9 | DS52: 0 | DT52: 9
A53: 38 | B53: 2020-05-26 | C53: 21.08 | D53: 48 | E53: 43.63636364 | F53: 44.84848485 | G53: 45.09090909 | H53: 43.64 | J53: 44.726 | K53: FALSE | L53: 0 | M53: 0 | N53: 0 | O53: =IF(RS4rBenchmarkValues!C53=0,RS4rComputations!O54,RS4rComputations!$C53/RS4rBenchmarkValues!C53) -> 0.2027117992 | P53: 0.2033964239 | Q53: 0.2037291847 | R53: 0.2039687779 | S53: 0.2054950876 | T53: 0 | U53: 0 | V53: 0 | W53: 0 | X53: 0 | Y53: =IF(RS4rBenchmarkValues!E53=0,RS4rComputations!Y54,RS4rComputations!$C53/RS4rBenchmarkValues!E53) -> 0.1792821908 | Z53: 0.1792022536 | AA53: 0.1800198753 | AB53: 0.1815762779 | AC53: 0.1874173037 | AD53: 0 | AE53: 0 | AF53: 0 | AG53: 0 | AH53: 0 | AI53: =IF(RS4rBenchmarkValues!G53=0,RS4rComputations!AI54,RS4rComputations!$C53/RS4rBenchmarkValues!G53) -> 1.017865765 | AJ53: 1.037402212 | AK53: 1.044231993 | AL53: 1.047894692 | AM53: 1.055501362 | AN53: 0 | AO53: 0 | AP53: 0 | AQ53: 0 | AR53: 0 | AS53: =IF(RS4rBenchmarkValues!I53=0,RS4rComputations!AS54,RS4rComputations!$C53/RS4rBenchmarkValues!I53) -> 1.192982456 | AT53: 1.23151454 | AU53: 1.246393447 | AV53: 1.254272367 | AW53: 1.265851762 | AX53: 0 | AY53: 0 | AZ53: 0 | BA53: 0 | BB53: 0 | BC53: =IF(RS4rBenchmarkValues!K53=0,RS4rComputations!BC54,RS4rComputations!$C53/RS4rBenchmarkValues!K53) -> 1.165284688 | BD53: 1.164327724 | BE53: 1.168389668 | BF53: 1.176440621 | BG53: 1.208379503 | BH53: 0 | BI53: 0 | BJ53: 0 | BK53: 0 | BL53: 0 | BM53: =IF(RS4rBenchmarkValues!M53=0,RS4rComputations!BM54,RS4rComputations!$C53/RS4rBenchmarkValues!M53) -> 1.923357664 | BN53: 1.949658867 | BO53: 1.952440051 | BP53: 1.944663736 | BQ53: 1.920517639 | BR53: 0 | BS53: 0 | BT53: 9 | BU53: 0 | BV53: 9 | BW53: =IF(RS4rBenchmarkValues!O53=0,RS4rComputations!BW54,RS4rComputations!$C53/RS4rBenchmarkValues!O53) -> 2.301310044 | BX53: 2.285253354 | BY53: 2.278161606 | BZ53: 2.273632194 | CA53: 2.253150923 | CB53: 10 | CC53: 0 | CD53: 0 | CE53: 0 | CF53: 10 | CG53: =IF(RS4rBenchmarkValues!Q53=0,RS4rComputations!CG54,RS4rComputations!$C53/RS4rBenchmarkValues!Q53) -> 0.7427766032 | CH53: 0.7040054593 | CI53: 0.7008742905 | CJ53: 0.7141412516 | CK53: 0.7845558494 | CL53: 0 | CM53: 0 | CN53: 0 | CO53: 0 | CP53: 0 | CQ53: =IF(RS4rBenchmarkValues!S53=0,RS4rComputations!CQ54,RS4rComputations!$C53/RS4rBenchmarkValues!S53) -> 0.260407659 | CR53: 0.2595799294 | CS53: 0.2587316669 | CT53: 0.2566861673 | CU53: 0.2504255536 | CV53: 10 | CW53: 0 | CX53: 0 | CY53: 0 | CZ53: 10 | DA53: =IF(RS4rBenchmarkValues!U53=0,RS4rComputations!DA54,RS4rComputations!$C53/RS4rBenchmarkValues!U53) -> 1.893980234 | DB53: 1.872709709 | DC53: 1.863282204 | DD53: 1.852298261 | DE53: 1.83503064 | DF53: 10 | DG53: 0 | DH53: 0 | DI53: 0 | DJ53: 10 | DK53: =IF(RS4rBenchmarkValues!W53=0,RS4rComputations!DK54,RS4rComputations!$C53/RS4rBenchmarkValues!W53) -> 1.62654321 | DL53: 1.680782329 | DM53: 1.682886878 | DN53: 1.661027046 | DO53: 1.590284559 | DP53: 0 | DQ53: 0 | DR53: 9 | DS53: 0 | DT53: 9
A54: 39 | B54: 2020-05-22 | C54: 20.76 | D54: 50 | E54: 45.45454545 | F54: 45.45454545 | G54: 45.15151515 | H54: 45.45 | J54: 45.36 | K54: TRUE | L54: 0 | M54: 0 | N54: 0 | O54: =IF(RS4rBenchmarkValues!C54=0,RS4rComputations!O55,RS4rComputations!$C54/RS4rBenchmarkValues!C54) -> 0.2020831305 | P54: 0.2035485627 | Q54: 0.203840105 | R54: 0.2040505428 | S54: 0.2056003504 | T54: 0 | U54: 0 | V54: 0 | W54: 0 | X54: 0 | Y54: =IF(RS4rBenchmarkValues!E54=0,RS4rComputations!Y55,RS4rComputations!$C54/RS4rBenchmarkValues!E54) -> 0.1768765443 | Z54: 0.1791844898 | AA54: 0.1802924158 | AB54: 0.1819154242 | AC54: 0.1878201331 | AD54: 0 | AE54: 0 | AF54: 0 | AG54: 0 | AH54: 0 | AI54: =IF(RS4rBenchmarkValues!G54=0,RS4rComputations!AI55,RS4rComputations!$C54/RS4rBenchmarkValues!G54) -> 1.026706231 | AJ54: 1.041743645 | AK54: 1.046508587 | AL54: 1.049393618 | AM54: 1.05602596 | AN54: 0 | AO54: 0 | AP54: 0 | AQ54: 0 | AR54: 0 | AS54: =IF(RS4rBenchmarkValues!I54=0,RS4rComputations!AS55,RS4rComputations!$C54/RS4rBenchmarkValues!I54) -> 1.207678883 | AT54: 1.240077225 | AU54: 1.251353083 | AV54: 1.257523485 | AW54: 1.266650341 | AX54: 0 | AY54: 0 | AZ54: 0 | BA54: 0 | BB54: 0 | BC54: =IF(RS4rBenchmarkValues!K54=0,RS4rComputations!BC55,RS4rComputations!$C54/RS4rBenchmarkValues!K54) -> 1.150776053 | BD54: 1.164115065 | BE54: 1.169743649 | BF54: 1.178171035 | BG54: 1.210582184 | BH54: 0 | BI54: 0 | BJ54: 0 | BK54: 0 | BL54: 0 | BM54: =IF(RS4rBenchmarkValues!M54=0,RS4rComputations!BM55,RS4rComputations!$C54/RS4rBenchmarkValues!M54) -> 1.945641987 | BN54: 1.955503579 | BO54: 1.953367112 | BP54: 1.943950146 | BQ54: 1.918852391 | BR54: 10 | BS54: 0 | BT54: 0 | BU54: 0 | BV54: 10 | BW54: =IF(RS4rBenchmarkValues!O54=0,RS4rComputations!BW55,RS4rComputations!$C54/RS4rBenchmarkValues!O54) -> 2.314381271 | BX54: 2.281685201 | BY54: 2.275797691 | BZ54: 2.271972028 | CA54: 2.251738422 | CB54: 10 | CC54: 0 | CD54: 0 | CE54: 0 | CF54: 10 | CG54: =IF(RS4rBenchmarkValues!Q54=0,RS4rComputations!CG55,RS4rComputations!$C54/RS4rBenchmarkValues!Q54) -> 0.6985195155 | CH54: 0.6953896496 | CI54: 0.6998305676 | CJ54: 0.7155892219 | CK54: 0.7894120285 | CL54: 0 | CM54: 0 | CN54: 0 | CO54: 0 | CP54: 0 | CQ54: =IF(RS4rBenchmarkValues!S54=0,RS4rComputations!CQ55,RS4rComputations!$C54/RS4rBenchmarkValues!S54) -> 0.2581768437 | CR54: 0.2593959895 | CS54: 0.2584489127 | CT54: 0.2562727727 | CU54: 0.2499937872 | CV54: 10 | CW54: 0 | CX54: 0 | CY54: 0 | CZ54: 10 | DA54: =IF(RS4rBenchmarkValues!U54=0,RS4rComputations!DA55,RS4rComputations!$C54/RS4rBenchmarkValues!U54) -> 1.868586859 | DB54: 1.867982926 | DC54: 1.860139702 | DD54: 1.84938234 | DE54: 1.833839769 | DF54: 10 | DG54: 0 | DH54: 0 | DI54: 0 | DJ54: 10 | DK54: =IF(RS4rBenchmarkValues!W54=0,RS4rComputations!DK55,RS4rComputations!$C54/RS4rBenchmarkValues!W54) -> 1.68097166 | DL54: 1.692835466 | DM54: 1.683588395 | DN54: 1.658204863 | DO54: 1.585405767 | DP54: 10 | DQ54: 0 | DR54: 0 | DS54: 0 | DT54: 10
A55: 40 | B55: 2020-05-21 | C55: 20.87 | D55: 50 | E55: 45.45454545 | F55: 45.15151515 | G55: 45.09090909 | H55: 45.45 | J55: 45.27 | K55: TRUE | L55: 0 | M55: 0 | N55: 0 | O55: =IF(RS4rBenchmarkValues!C55=0,RS4rComputations!O56,RS4rComputations!$C55/RS4rBenchmarkValues!C55) -> 0.2036693666 | P55: 0.2038742143 | Q55: 0.2039372858 | R55: 0.2041222542 | S55: 0.2057072336 | T55: 0 | U55: 0 | V55: 0 | W55: 0 | X55: 0 | Y55: =IF(RS4rBenchmarkValues!E55=0,RS4rComputations!Y56,RS4rComputations!$C55/RS4rBenchmarkValues!E55) -> 0.1785744845 | Z55: 0.1796973666 | AA55: 0.1806617245 | AB55: 0.1823055577 | AC55: 0.1882273544 | AD55: 0 | AE55: 0 | AF55: 0 | AG55: 0 | AH55: 0 | AI55: =IF(RS4rBenchmarkValues!G55=0,RS4rComputations!AI56,RS4rComputations!$C55/RS4rBenchmarkValues!G55) -> 1.036246276 | AJ55: 1.045085292 | AK55: 1.048096901 | AL55: 1.050486471 | AM55: 1.056483363 | AN55: 0 | AO55: 0 | AP55: 0 | AQ55: 0 | AR55: 0 | AS55: =IF(RS4rBenchmarkValues!I55=0,RS4rComputations!AS56,RS4rComputations!$C55/RS4rBenchmarkValues!I55) -> 1.221181978 | AT55: 1.247276856 | AU55: 1.255111702 | AV55: 1.260015808 | AW55: 1.26727978 | AX55: 0 | AY55: 0 | AZ55: 0 | BA55: 0 | BB55: 0 | BC55: =IF(RS4rBenchmarkValues!K55=0,RS4rComputations!BC56,RS4rComputations!$C55/RS4rBenchmarkValues!K55) -> 1.162026726 | BD55: 1.16707929 | BE55: 1.171619843 | BF55: 1.18017903 | BG55: 1.212817436 | BH55: 0 | BI55: 0 | BJ55: 0 | BK55: 0 | BL55: 0 | BM55: =IF(RS4rBenchmarkValues!M55=0,RS4rComputations!BM56,RS4rComputations!$C55/RS4rBenchmarkValues!M55) -> 1.955951265 | BN55: 1.957695044 | BO55: 1.952654957 | BP55: 1.942299656 | BQ55: 1.917121511 | BR55: 10 | BS55: 0 | BT55: 0 | BU55: 0 | BV55: 10 | BW55: =IF(RS4rBenchmarkValues!O55=0,RS4rComputations!BW56,RS4rComputations!$C55/RS4rBenchmarkValues!O55) -> 2.273420479 | BX55: 2.274419408 | BY55: 2.273835187 | BZ55: 2.270584432 | CA55: 2.250343001 | CB55: 10 | CC55: 0 | CD55: 0 | CE55: 0 | CF55: 10 | CG55: =IF(RS4rBenchmarkValues!Q55=0,RS4rComputations!CG56,RS4rComputations!$C55/RS4rBenchmarkValues!Q55) -> 0.7019845274 | CH55: 0.6946941238 | CI55: 0.7013108736 | CJ55: 0.7184748751 | CK55: 0.7945032565 | CL55: 0 | CM55: 0 | CN55: 0 | CO55: 0 | CP55: 0 | CQ55: =IF(RS4rBenchmarkValues!S55=0,RS4rComputations!CQ56,RS4rComputations!$C55/RS4rBenchmarkValues!S55) -> 0.2627470729 | CR55: 0.2596669108 | CS55: 0.2581332204 | CT55: 0.2558265989 | CU55: 0.2495607537 | CV55: 10 | CW55: 0 | CX55: 0 | CY55: 0 | CZ55: 10 | DA55: =IF(RS4rBenchmarkValues!U55=0,RS4rComputations!DA56,RS4rComputations!$C55/RS4rBenchmarkValues!U55) -> 1.878487849 | DB55: 1.867848718 | DC55: 1.857525294 | DD55: 1.846725114 | DE55: 1.832767868 | DF55: 10 | DG55: 0 | DH55: 0 | DI55: 0 | DJ55: 10 | DK55: =IF(RS4rBenchmarkValues!W55=0,RS4rComputations!DK56,RS4rComputations!$C55/RS4rBenchmarkValues!W55) -> 1.693993506 | DL55: 1.695471868 | DM55: 1.680506038 | DN55: 1.653257633 | DO55: 1.580385139 | DP55: 10 | DQ55: 0 | DR55: 0 | DS55: 0 | DT55: 10
A56: 41 | B56: 2020-05-20 | C56: 21.09 | D56: 50 | E56: 45.45454545 | F56: 45.15151515 | G56: 45.15151515 | H56: 45.45 | J56: 45.09 | K56: TRUE | L56: 0 | M56: 0 | N56: 0 | O56: =IF(RS4rBenchmarkValues!C56=0,RS4rComputations!O57,RS4rComputations!$C56/RS4rBenchmarkValues!C56) -> 0.2042219425 | P56: 0.203919736 | Q56: 0.2039583096 | R56: 0.2041576885 | S56: 0.2058165426 | T56: 0 | U56: 0 | V56: 0 | W56: 0 | X56: 0 | Y56: =IF(RS4rBenchmarkValues!E56=0,RS4rComputations!Y57,RS4rComputations!$C56/RS4rBenchmarkValues!E56) -> 0.1786985257 | Z56: 0.1799468959 | AA56: 0.1809831772 | AB56: 0.1826781564 | AC56: 0.1886357542 | AD56: 0 | AE56: 0 | AF56: 0 | AG56: 0 | AH56: 0 | AI56: =IF(RS4rBenchmarkValues!G56=0,RS4rComputations!AI57,RS4rComputations!$C56/RS4rBenchmarkValues!G56) -> 1.041996047 | AJ56: 1.047049518 | AK56: 1.04910077 | AL56: 1.051258068 | AM56: 1.056896942 | AN56: 0 | AO56: 0 | AP56: 0 | AQ56: 0 | AR56: 0 | AS56: =IF(RS4rBenchmarkValues!I56=0,RS4rComputations!AS57,RS4rComputations!$C56/RS4rBenchmarkValues!I56) -> 1.234777518 | AT56: 1.253075718 | AU56: 1.257723318 | AV56: 1.261835658 | AW56: 1.267780743 | AX56: 0 | AY56: 0 | AZ56: 0 | BA56: 0 | BB56: 0 | BC56: =IF(RS4rBenchmarkValues!K56=0,RS4rComputations!BC57,RS4rComputations!$C56/RS4rBenchmarkValues!K56) -> 1.16519337 | BD56: 1.168202082 | BE56: 1.173133361 | BF56: 1.182050422 | BG56: 1.21506836 | BH56: 0 | BI56: 0 | BJ56: 0 | BK56: 0 | BL56: 0 | BM56: =IF(RS4rBenchmarkValues!M56=0,RS4rComputations!BM57,RS4rComputations!$C56/RS4rBenchmarkValues!M56) -> 1.965517241 | BN56: 1.95808255 | BO56: 1.950974928 | BP56: 1.940100314 | BQ56: 1.915385087 | BR56: 10 | BS56: 0 | BT56: 0 | BU56: 0 | BV56: 10 | BW56: =IF(RS4rBenchmarkValues!O56=0,RS4rComputations!BW57,RS4rComputations!$C56/RS4rBenchmarkValues!O56) -> 2.282467532 | BX56: 2.274641392 | BY56: 2.273640447 | BZ56: 2.270036578 | CA56: 2.24894704 | CB56: 10 | CC56: 0 | CD56: 0 | CE56: 0 | CF56: 10 | CG56: =IF(RS4rBenchmarkValues!Q56=0,RS4rComputations!CG57,RS4rComputations!$C56/RS4rBenchmarkValues!Q56) -> 0.6896664487 | CH56: 0.6930740341 | CI56: 0.7035164569 | CJ56: 0.7218721253 | CK56: 0.7997465932 | CL56: 0 | CM56: 0 | CN56: 0 | CO56: 0 | CP56: 0 | CQ56: =IF(RS4rBenchmarkValues!S56=0,RS4rComputations!CQ57,RS4rComputations!$C56/RS4rBenchmarkValues!S56) -> 0.2629347962 | CR56: 0.2589824304 | CS56: 0.2576219903 | CT56: 0.2552779829 | CU56: 0.2491286264 | CV56: 10 | CW56: 0 | CX56: 0 | CY56: 0 | CZ56: 10 | DA56: =IF(RS4rBenchmarkValues!U56=0,RS4rComputations!DA57,RS4rComputations!$C56/RS4rBenchmarkValues!U56) -> 1.901713255 | DB56: 1.865484467 | DC56: 1.854084152 | DD56: 1.843707456 | DE56: 1.831805299 | DF56: 10 | DG56: 0 | DH56: 0 | DI56: 0 | DJ56: 10 | DK56: =IF(RS4rBenchmarkValues!W56=0,RS4rComputations!DK57,RS4rComputations!$C56/RS4rBenchmarkValues!W56) -> 1.713241267 | DL56: 1.695800392 | DM56: 1.675517428 | DN56: 1.647227029 | DO56: 1.57535945 | DP56: 10 | DQ56: 0 | DR56: 0 | DS56: 0 | DT56: 10
A57: 42 | B57: 2020-05-19 | C57: 20.68 | D57: 49 | E57: 44.54545455 | F57: 44.84848485 | G57: 45.15151515 | H57: 44.55 | J57: 44.91 | K57: FALSE | L57: 0 | M57: 0 | N57: 0 | O57: =IF(RS4rBenchmarkValues!C57=0,RS4rComputations!O58,RS4rComputations!$C57/RS4rBenchmarkValues!C57) -> 0.2036234738 | P57: 0.2038525789 | Q57: 0.2039711675 | R57: 0.2041916817 | S57: 0.2059309463 | T57: 0 | U57: 0 | V57: 0 | W57: 0 | X57: 0 | Y57: =IF(RS4rBenchmarkValues!E57=0,RS4rComputations!Y58,RS4rComputations!$C57/RS4rBenchmarkValues!E57) -> 0.1789236892 | Z57: 0.1802243115 | AA57: 0.1813286042 | AB57: 0.1830683365 | AC57: 0.189046623 | AD57: 0 | AE57: 0 | AF57: 0 | AG57: 0 | AH57: 0 | AI57: =IF(RS4rBenchmarkValues!G57=0,RS4rComputations!AI58,RS4rComputations!$C57/RS4rBenchmarkValues!G57) -> 1.039718451 | AJ57: 1.048172511 | AK57: 1.049784521 | AL57: 1.051859289 | AM57: 1.057285829 | AN57: 0 | AO57: 0 | AP57: 0 | AQ57: 0 | AR57: 0 | AS57: =IF(RS4rBenchmarkValues!I57=0,RS4rComputations!AS58,RS4rComputations!$C57/RS4rBenchmarkValues!I57) -> 1.247285887 | AT57: 1.257141985 | AU57: 1.259272517 | AV57: 1.263087078 | AW57: 1.268190749 | AX57: 0 | AY57: 0 | AZ57: 0 | BA57: 0 | BB57: 0 | BC57: =IF(RS4rBenchmarkValues!K57=0,RS4rComputations!BC58,RS4rComputations!$C57/RS4rBenchmarkValues!K57) -> 1.161797753 | BD57: 1.168870685 | BE57: 1.17477712 | BF57: 1.184028756 | BG57: 1.21734546 | BH57: 0 | BI57: 0 | BJ57: 0 | BK57: 0 | BL57: 0 | BM57: =IF(RS4rBenchmarkValues!M57=0,RS4rComputations!BM58,RS4rComputations!$C57/RS4rBenchmarkValues!M57) -> 1.962049336 | BN57: 1.956430397 | BO57: 1.94860572 | BP57: 1.937531424 | BQ57: 1.913680589 | BR57: 10 | BS57: 0 | BT57: 0 | BU57: 0 | BV57: 10 | BW57: =IF(RS4rBenchmarkValues!O57=0,RS4rComputations!BW58,RS4rComputations!$C57/RS4rBenchmarkValues!O57) -> 2.26754386 | BX57: 2.272902249 | BY57: 2.273306799 | BZ57: 2.269378747 | CA57: 2.247492589 | CB57: 0 | CC57: 0 | CD57: 9 | CE57: 0 | CF57: 9 | CG57: =IF(RS4rBenchmarkValues!Q57=0,RS4rComputations!CG58,RS4rComputations!$C57/RS4rBenchmarkValues!Q57) -> 0.6664518208 | CH57: 0.6938312754 | CI57: 0.7069972644 | CJ57: 0.7259861383 | CK57: 0.8051172462 | CL57: 0 | CM57: 0 | CN57: 0 | CO57: 0 | CP57: 0 | CQ57: =IF(RS4rBenchmarkValues!S57=0,RS4rComputations!CQ58,RS4rComputations!$C57/RS4rBenchmarkValues!S57) -> 0.25879114 | CR57: 0.2581041269 | CS57: 0.2571685103 | CT57: 0.2547487761 | CU57: 0.2487045329 | CV57: 10 | CW57: 0 | CX57: 0 | CY57: 0 | CZ57: 10 | DA57: =IF(RS4rBenchmarkValues!U57=0,RS4rComputations!DA58,RS4rComputations!$C57/RS4rBenchmarkValues!U57) -> 1.871493213 | DB57: 1.857433625 | DC57: 1.850284047 | DD57: 1.840596454 | DE57: 1.830984461 | DF57: 10 | DG57: 0 | DH57: 0 | DI57: 0 | DJ57: 10 | DK57: =IF(RS4rBenchmarkValues!W57=0,RS4rComputations!DK58,RS4rComputations!$C57/RS4rBenchmarkValues!W57) -> 1.700657895 | DL57: 1.691924642 | DM57: 1.668756439 | DN57: 1.640287977 | DO57: 1.570403065 | DP57: 10 | DQ57: 0 | DR57: 0 | DS57: 0 | DT57: 10
A58: 43 | B58: 2020-05-18 | C58: 20.78 | D58: 50 | E58: 45.45454545 | F58: 45.15151515 | G58: 45.15151515 | H58: 45.45 | J58: 45.18 | K58: TRUE | L58: 0 | M58: 0 | N58: 0 | O58: =IF(RS4rBenchmarkValues!C58=0,RS4rComputations!O59,RS4rComputations!$C58/RS4rBenchmarkValues!C58) -> 0.2024946404 | P58: 0.2039034912 | Q58: 0.204010697 | R58: 0.204240125 | S58: 0.2060508956 | T58: 0 | U58: 0 | V58: 0 | W58: 0 | X58: 0 | Y58: =IF(RS4rBenchmarkValues!E58=0,RS4rComputations!Y59,RS4rComputations!$C58/RS4rBenchmarkValues!E58) -> 0.1788142156 | Z58: 0.1805133387 | AA58: 0.1816967018 | AB58: 0.1834746258 | AC58: 0.1894589186 | AD58: 0 | AE58: 0 | AF58: 0 | AG58: 0 | AH58: 0 | AI58: =IF(RS4rBenchmarkValues!G58=0,RS4rComputations!AI59,RS4rComputations!$C58/RS4rBenchmarkValues!G58) -> 1.035376183 | AJ58: 1.050051191 | AK58: 1.050321857 | AL58: 1.052385972 | AM58: 1.057660074 | AN58: 0 | AO58: 0 | AP58: 0 | AQ58: 0 | AR58: 0 | AS58: =IF(RS4rBenchmarkValues!I58=0,RS4rComputations!AS59,RS4rComputations!$C58/RS4rBenchmarkValues!I58) -> 1.228858664 | AT58: 1.259332229 | AU58: 1.259982695 | AV58: 1.263936377 | AW58: 1.268542726 | AX58: 0 | AY58: 0 | AZ58: 0 | BA58: 0 | BB58: 0 | BC58: =IF(RS4rBenchmarkValues!K58=0,RS4rComputations!BC59,RS4rComputations!$C58/RS4rBenchmarkValues!K58) -> 1.161542761 | BD58: 1.170442448 | BE58: 1.176745932 | BF58: 1.186194195 | BG58: 1.219643163 | BH58: 0 | BI58: 0 | BJ58: 0 | BK58: 0 | BL58: 0 | BM58: =IF(RS4rBenchmarkValues!M58=0,RS4rComputations!BM59,RS4rComputations!$C58/RS4rBenchmarkValues!M58) -> 1.938432836 | BN58: 1.955181744 | BO58: 1.945997495 | BP58: 1.93483157 | BQ58: 1.912035704 | BR58: 10 | BS58: 0 | BT58: 0 | BU58: 0 | BV58: 10 | BW58: =IF(RS4rBenchmarkValues!O58=0,RS4rComputations!BW59,RS4rComputations!$C58/RS4rBenchmarkValues!O58) -> 2.278508772 | BX58: 2.274093002 | BY58: 2.273441649 | BZ58: 2.26887539 | CA58: 2.245983199 | CB58: 10 | CC58: 0 | CD58: 0 | CE58: 0 | CF58: 10 | CG58: =IF(RS4rBenchmarkValues!Q58=0,RS4rComputations!CG59,RS4rComputations!$C58/RS4rBenchmarkValues!Q58) -> 0.6892205638 | CH58: 0.6999155986 | CI58: 0.7113859275 | CJ58: 0.7305796901 | CK58: 0.8105745639 | CL58: 0 | CM58: 0 | CN58: 0 | CO58: 0 | CP58: 0 | CQ58: =IF(RS4rBenchmarkValues!S58=0,RS4rComputations!CQ59,RS4rComputations!$C58/RS4rBenchmarkValues!S58) -> 0.2563216973 | CR58: 0.2579514573 | CS58: 0.2568566381 | CT58: 0.2542694403 | CU58: 0.2482876885 | CV58: 10 | CW58: 0 | CX58: 0 | CY58: 0 | CZ58: 10 | DA58: =IF(RS4rBenchmarkValues!U58=0,RS4rComputations!DA59,RS4rComputations!$C58/RS4rBenchmarkValues!U58) -> 1.885662432 | DB58: 1.854309273 | DC58: 1.847900855 | DD58: 1.838191144 | DE58: 1.830321565 | DF58: 10 | DG58: 0 | DH58: 0 | DI58: 0 | DJ58: 10 | DK58: =IF(RS4rBenchmarkValues!W58=0,RS4rComputations!DK59,RS4rComputations!$C58/RS4rBenchmarkValues!W58) -> 1.683954619 | DL58: 1.689983919 | DM58: 1.661033705 | DN58: 1.63291131 | DO58: 1.565583416 | DP58: 10 | DQ58: 0 | DR58: 0 | DS58: 0 | DT58: 10
A59: 44 | B59: 2020-05-15 | C59: 20.21 | D59: 49 | E59: 44.54545455 | F59: 45.15151515 | G59: 44.42424242 | H59: 44.55 | J59: 45.09 | K59: FALSE | L59: 0 | M59: 0 | N59: 0 | O59: =IF(RS4rBenchmarkValues!C59=0,RS4rComputations!O60,RS4rComputations!$C59/RS4rBenchmarkValues!C59) -> 0.2031564133 | P59: 0.2042165691 | Q59: 0.2040464322 | R59: 0.2042882155 | S59: 0.2061757763 | T59: 0 | U59: 0 | V59: 0 | W59: 0 | X59: 0 | Y59: =IF(RS4rBenchmarkValues!E59=0,RS4rComputations!Y60,RS4rComputations!$C59/RS4rBenchmarkValues!E59) -> 0.1781872686 | Z59: 0.1808909216 | AA59: 0.1820911562 | AB59: 0.1838976668 | AC59: 0.1898716285 | AD59: 0 | AE59: 0 | AF59: 0 | AG59: 0 | AH59: 0 | AI59: =IF(RS4rBenchmarkValues!G59=0,RS4rComputations!AI60,RS4rComputations!$C59/RS4rBenchmarkValues!G59) -> 1.052604167 | AJ59: 1.053312304 | AK59: 1.05041208 | AL59: 1.052719512 | AM59: 1.058023805 | AN59: 0 | AO59: 0 | AP59: 0 | AQ59: 0 | AR59: 0 | AS59: =IF(RS4rBenchmarkValues!I59=0,RS4rComputations!AS60,RS4rComputations!$C59/RS4rBenchmarkValues!I59) -> 1.268675455 | AT59: 1.266104133 | AU59: 1.260199517 | AV59: 1.264594113 | AW59: 1.268860406 | AX59: 0 | AY59: 0 | AZ59: 0 | BA59: 0 | BB59: 0 | BC59: =IF(RS4rBenchmarkValues!K59=0,RS4rComputations!BC60,RS4rComputations!$C59/RS4rBenchmarkValues!K59) -> 1.155517439 | BD59: 1.172420156 | BE59: 1.178847093 | BF59: 1.188444444 | BG59: 1.221949989 | BH59: 0 | BI59: 0 | BJ59: 0 | BK59: 0 | BL59: 0 | BM59: =IF(RS4rBenchmarkValues!M59=0,RS4rComputations!BM60,RS4rComputations!$C59/RS4rBenchmarkValues!M59) -> 1.971707317 | BN59: 1.958903723 | BO59: 1.942936078 | BP59: 1.931924403 | BQ59: 1.910463575 | BR59: 10 | BS59: 0 | BT59: 0 | BU59: 0 | BV59: 10 | BW59: =IF(RS4rBenchmarkValues!O59=0,RS4rComputations!BW60,RS4rComputations!$C59/RS4rBenchmarkValues!O59) -> 2.270786517 | BX59: 2.27311172 | BY59: 2.273224531 | BZ59: 2.268130017 | CA59: 2.244404427 | CB59: 0 | CC59: 0 | CD59: 9 | CE59: 0 | CF59: 9 | CG59: =IF(RS4rBenchmarkValues!Q59=0,RS4rComputations!CG60,RS4rComputations!$C59/RS4rBenchmarkValues!Q59) -> 0.6608894702 | CH59: 0.702292273 | CI59: 0.7152093704 | CJ59: 0.7349602746 | CK59: 0.8160914518 | CL59: 0 | CM59: 0 | CN59: 0 | CO59: 0 | CP59: 0 | CQ59: =IF(RS4rBenchmarkValues!S59=0,RS4rComputations!CQ60,RS4rComputations!$C59/RS4rBenchmarkValues!S59) -> 0.260404587 | CR59: 0.2583136261 | CS59: 0.2564916984 | CT59: 0.2537434379 | CU59: 0.2478751539 | CV59: 10 | CW59: 0 | CX59: 0 | CY59: 0 | CZ59: 10 | DA59: =IF(RS4rBenchmarkValues!U59=0,RS4rComputations!DA60,RS4rComputations!$C59/RS4rBenchmarkValues!U59) -> 1.835603996 | DB59: 1.847341904 | DC59: 1.845764715 | DD59: 1.835888554 | DE59: 1.829778835 | DF59: 10 | DG59: 0 | DH59: 0 | DI59: 0 | DJ59: 10 | DK59: =IF(RS4rBenchmarkValues!W59=0,RS4rComputations!DK60,RS4rComputations!$C59/RS4rBenchmarkValues!W59) -> 1.751299827 | DL59: 1.691323764 | DM59: 1.651383634 | DN59: 1.62475808 | DO59: 1.560940113 | DP59: 10 | DQ59: 0 | DR59: 0 | DS59: 0 | DT59: 10
A60: 45 | B60: 2020-05-14 | C60: 20.23 | D60: 50 | E60: 45.45454545 | F60: 45.45454545 | G60: 43.09090909 | H60: 45.45 | J60: 45.36 | K60: TRUE | L60: 0 | M60: 0 | N60: 0 | O60: =IF(RS4rBenchmarkValues!C60=0,RS4rComputations!O61,RS4rComputations!$C60/RS4rBenchmarkValues!C60) -> 0.2041784417 | P60: 0.2044521593 | Q60: 0.2039897199 | R60: 0.2042984507 | S60: 0.2063059529 | T60: 0 | U60: 0 | V60: 0 | W60: 0 | X60: 0 | Y60: =IF(RS4rBenchmarkValues!E60=0,RS4rComputations!Y61,RS4rComputations!$C60/RS4rBenchmarkValues!E60) -> 0.1797902595 | Z60: 0.1814917334 | AA60: 0.1824912343 | AB60: 0.1843272018 | AC60: 0.1902836258 | AD60: 0 | AE60: 0 | AF60: 0 | AG60: 0 | AH60: 0 | AI60: =IF(RS4rBenchmarkValues!G60=0,RS4rComputations!AI61,RS4rComputations!$C60/RS4rBenchmarkValues!G60) -> 1.058608059 | AJ60: 1.053469668 | AK60: 1.049445338 | AL60: 1.052634828 | AM60: 1.058389618 | AN60: 0 | AO60: 0 | AP60: 0 | AQ60: 0 | AR60: 0 | AS60: =IF(RS4rBenchmarkValues!I60=0,RS4rComputations!AS61,RS4rComputations!$C60/RS4rBenchmarkValues!I60) -> 1.289356278 | AT60: 1.265532728 | AU60: 1.258231312 | AV60: 1.264378395 | AW60: 1.269154633 | AX60: 0 | AY60: 0 | AZ60: 0 | BA60: 0 | BB60: 0 | BC60: =IF(RS4rBenchmarkValues!K60=0,RS4rComputations!BC61,RS4rComputations!$C60/RS4rBenchmarkValues!K60) -> 1.165994236 | BD60: 1.176176316 | BE60: 1.180989406 | BF60: 1.190733628 | BG60: 1.224260716 | BH60: 0 | BI60: 0 | BJ60: 0 | BK60: 0 | BL60: 0 | BM60: =IF(RS4rBenchmarkValues!M60=0,RS4rComputations!BM61,RS4rComputations!$C60/RS4rBenchmarkValues!M60) -> 1.973658537 | BN60: 1.95605848 | BO60: 1.93761353 | BP60: 1.928070214 | BQ60: 1.908983518 | BR60: 10 | BS60: 0 | BT60: 0 | BU60: 0 | BV60: 10 | BW60: =IF(RS4rBenchmarkValues!O60=0,RS4rComputations!BW61,RS4rComputations!$C60/RS4rBenchmarkValues!O60) -> 2.252783964 | BX60: 2.273628432 | BY60: 2.273262134 | BZ60: 2.267418345 | CA60: 2.242768179 | CB60: 10 | CC60: 0 | CD60: 0 | CE60: 0 | CF60: 10 | CG60: =IF(RS4rBenchmarkValues!Q60=0,RS4rComputations!CG61,RS4rComputations!$C60/RS4rBenchmarkValues!Q60) -> 0.6871603261 | CH60: 0.7114928958 | CI60: 0.7195150696 | CJ60: 0.739627132 | CK60: 0.8216867054 | CL60: 0 | CM60: 0 | CN60: 0 | CO60: 0 | CP60: 0 | CQ60: =IF(RS4rBenchmarkValues!S60=0,RS4rComputations!CQ61,RS4rComputations!$C60/RS4rBenchmarkValues!S60) -> 0.257084763 | CR60: 0.2578489682 | CS60: 0.2558843891 | CT60: 0.2530905538 | CU60: 0.2474704447 | CV60: 10 | CW60: 0 | CX60: 0 | CY60: 0 | CZ60: 10 | DA60: =IF(RS4rBenchmarkValues!U60=0,RS4rComputations!DA61,RS4rComputations!$C60/RS4rBenchmarkValues!U60) -> 1.839090909 | DB60: 1.849950328 | DC60: 1.845238986 | DD60: 1.834252362 | DE60: 1.829357475 | DF60: 10 | DG60: 0 | DH60: 0 | DI60: 0 | DJ60: 10 | DK60: =IF(RS4rBenchmarkValues!W60=0,RS4rComputations!DK61,RS4rComputations!$C60/RS4rBenchmarkValues!W60) -> 1.743965517 | DL60: 1.67799575 | DM60: 1.638070257 | DN60: 1.615248697 | DO60: 1.556538874 | DP60: 10 | DQ60: 0 | DR60: 0 | DS60: 0 | DT60: 10
A61: 46 | B61: 2020-05-13 | C61: 20.36 | D61: 50 | E61: 45.45454545 | F61: 45.15151515 | G61: 41.09090909 | H61: 45.45 | J61: 45.18 | K61: TRUE | L61: 0 | M61: 0 | N61: 0 | O61: =IF(RS4rBenchmarkValues!C61=0,RS4rComputations!O62,RS4rComputations!$C61/RS4rBenchmarkValues!C61) -> 0.2079036046 | P61: 0.2045129855 | Q61: 0.2038355735 | R61: 0.2042764924 | S61: 0.2064444013 | T61: 0 | U61: 0 | V61: 0 | W61: 0 | X61: 0 | Y61: =IF(RS4rBenchmarkValues!E61=0,RS4rComputations!Y62,RS4rComputations!$C61/RS4rBenchmarkValues!E61) -> 0.1826172751 | Z61: 0.1818698387 | AA61: 0.1828244013 | AB61: 0.1847322688 | AC61: 0.1906944137 | AD61: 0 | AE61: 0 | AF61: 0 | AG61: 0 | AH61: 0 | AI61: =IF(RS4rBenchmarkValues!G61=0,RS4rComputations!AI62,RS4rComputations!$C61/RS4rBenchmarkValues!G61) -> 1.081253319 | AJ61: 1.052327803 | AK61: 1.048103895 | AL61: 1.052515565 | AM61: 1.0587865 | AN61: 0 | AO61: 0 | AP61: 0 | AQ61: 0 | AR61: 0 | AS61: =IF(RS4rBenchmarkValues!I61=0,RS4rComputations!AS62,RS4rComputations!$C61/RS4rBenchmarkValues!I61) -> 1.302623161 | AT61: 1.260238605 | AU61: 1.255797506 | AV61: 1.264213491 | AW61: 1.269484029 | AX61: 0 | AY61: 0 | AZ61: 0 | BA61: 0 | BB61: 0 | BC61: =IF(RS4rBenchmarkValues!K61=0,RS4rComputations!BC62,RS4rComputations!$C61/RS4rBenchmarkValues!K61) -> 1.185098952 | BD61: 1.178439 | BE61: 1.182593769 | BF61: 1.192813244 | BG61: 1.226572929 | BH61: 0 | BI61: 0 | BJ61: 0 | BK61: 0 | BL61: 0 | BM61: =IF(RS4rBenchmarkValues!M61=0,RS4rComputations!BM62,RS4rComputations!$C61/RS4rBenchmarkValues!M61) -> 2.013847676 | BN61: 1.952147357 | BO61: 1.931465213 | BP61: 1.92407189 | BQ61: 1.907667194 | BR61: 10 | BS61: 0 | BT61: 0 | BU61: 0 | BV61: 10 | BW61: =IF(RS4rBenchmarkValues!O61=0,RS4rComputations!BW62,RS4rComputations!$C61/RS4rBenchmarkValues!O61) -> 2.277404922 | BX61: 2.278260536 | BY61: 2.273140035 | BZ61: 2.26653119 | CA61: 2.241068168 | CB61: 10 | CC61: 0 | CD61: 0 | CE61: 0 | CF61: 10 | CG61: =IF(RS4rBenchmarkValues!Q61=0,RS4rComputations!CG62,RS4rComputations!$C61/RS4rBenchmarkValues!Q61) -> 0.7131348511 | CH61: 0.7169001335 | CI61: 0.7221891275 | CJ61: 0.7436463086 | CK61: 0.8273459863 | CL61: 0 | CM61: 0 | CN61: 0 | CO61: 0 | CP61: 0 | CQ61: =IF(RS4rBenchmarkValues!S61=0,RS4rComputations!CQ62,RS4rComputations!$C61/RS4rBenchmarkValues!S61) -> 0.2619323299 | CR61: 0.2580187915 | CS61: 0.2552295294 | CT61: 0.2524107803 | CU61: 0.247082851 | CV61: 10 | CW61: 0 | CX61: 0 | CY61: 0 | CZ61: 10 | DA61: =IF(RS4rBenchmarkValues!U61=0,RS4rComputations!DA62,RS4rComputations!$C61/RS4rBenchmarkValues!U61) -> 1.850909091 | DB61: 1.852363532 | DC61: 1.843668538 | DD61: 1.832009795 | DE61: 1.829019897 | DF61: 10 | DG61: 0 | DH61: 0 | DI61: 0 | DJ61: 10 | DK61: =IF(RS4rBenchmarkValues!W61=0,RS4rComputations!DK62,RS4rComputations!$C61/RS4rBenchmarkValues!W61) -> 1.773519164 | DL61: 1.663335802 | DM61: 1.624761759 | DN61: 1.606284832 | DO61: 1.552489921 | DP61: 10 | DQ61: 0 | DR61: 0 | DS61: 0 | DT61: 10
A62: 47 | B62: 2020-05-12 | C62: 20.45 | D62: 50 | E62: 45.45454545 | F62: 44.84848485 | G62: 39.09090909 | H62: 45.45 | J62: 44 | K62: TRUE | L62: 0 | M62: 0 | N62: 0 | O62: =IF(RS4rBenchmarkValues!C62=0,RS4rComputations!O63,RS4rComputations!$C62/RS4rBenchmarkValues!C62) -> 0.2051976721 | P62: 0.2037595145 | Q62: 0.2036097695 | R62: 0.2042427076 | S62: 0.2065939123 | T62: 0 | U62: 0 | V62: 0 | W62: 0 | X62: 0 | Y62: =IF(RS4rBenchmarkValues!E62=0,RS4rComputations!Y63,RS4rComputations!$C62/RS4rBenchmarkValues!E62) -> 0.1805739514 | Z62: 0.1817037418 | AA62: 0.1831425888 | AB62: 0.1851411873 | AC62: 0.1911055961 | AD62: 0 | AE62: 0 | AF62: 0 | AG62: 0 | AH62: 0 | AI62: =IF(RS4rBenchmarkValues!G62=0,RS4rComputations!AI63,RS4rComputations!$C62/RS4rBenchmarkValues!G62) -> 1.056301653 | AJ62: 1.04589991 | AK62: 1.046695926 | AL62: 1.052542388 | AM62: 1.059218978 | AN62: 0 | AO62: 0 | AP62: 0 | AQ62: 0 | AR62: 0 | AS62: =IF(RS4rBenchmarkValues!I62=0,RS4rComputations!AS63,RS4rComputations!$C62/RS4rBenchmarkValues!I62) -> 1.265470297 | AT62: 1.250819815 | AU62: 1.25431714 | AV62: 1.264781332 | AW62: 1.269847514 | AX62: 0 | AY62: 0 | AZ62: 0 | BA62: 0 | BB62: 0 | BC62: =IF(RS4rBenchmarkValues!K62=0,RS4rComputations!BC63,RS4rComputations!$C62/RS4rBenchmarkValues!K62) -> 1.172591743 | BD62: 1.17695901 | BE62: 1.183978692 | BF62: 1.194866708 | BG62: 1.228901183 | BH62: 0 | BI62: 0 | BJ62: 0 | BK62: 0 | BL62: 0 | BM62: =IF(RS4rBenchmarkValues!M62=0,RS4rComputations!BM63,RS4rComputations!$C62/RS4rBenchmarkValues!M62) -> 1.975845411 | BN62: 1.938436175 | BO62: 1.924571165 | BP62: 1.920061109 | BQ62: 1.906535836 | BR62: 10 | BS62: 0 | BT62: 0 | BU62: 0 | BV62: 10 | BW62: =IF(RS4rBenchmarkValues!O62=0,RS4rComputations!BW63,RS4rComputations!$C62/RS4rBenchmarkValues!O62) -> 2.284916201 | BX62: 2.278450673 | BY62: 2.271433201 | BZ62: 2.264855569 | CA62: 2.239312098 | CB62: 10 | CC62: 0 | CD62: 0 | CE62: 0 | CF62: 10 | CG62: =IF(RS4rBenchmarkValues!Q62=0,RS4rComputations!CG63,RS4rComputations!$C62/RS4rBenchmarkValues!Q62) -> 0.7193105874 | CH62: 0.717736863 | CI62: 0.7239521255 | CJ62: 0.7474671908 | CK62: 0.8331183779 | CL62: 0 | CM62: 0 | CN62: 0 | CO62: 0 | CP62: 0 | CQ62: =IF(RS4rBenchmarkValues!S62=0,RS4rComputations!CQ63,RS4rComputations!$C62/RS4rBenchmarkValues!S62) -> 0.2599466124 | CR62: 0.2571491163 | CS62: 0.2542997754 | CT62: 0.2516096359 | CU62: 0.2467154075 | CV62: 10 | CW62: 0 | CX62: 0 | CY62: 0 | CZ62: 10 | DA62: =IF(RS4rBenchmarkValues!U62=0,RS4rComputations!DA63,RS4rComputations!$C62/RS4rBenchmarkValues!U62) -> 1.859090909 | DB62: 1.852686741 | DC62: 1.840770207 | DD62: 1.829102118 | DE62: 1.828813697 | DF62: 10 | DG62: 0 | DH62: 0 | DI62: 0 | DJ62: 10 | DK62: =IF(RS4rBenchmarkValues!W62=0,RS4rComputations!DK63,RS4rComputations!$C62/RS4rBenchmarkValues!W62) -> 1.730118443 | DL62: 1.63885061 | DM62: 1.611903745 | DN62: 1.598134694 | DO62: 1.548779927 | DP62: 10 | DQ62: 0 | DR62: 0 | DS62: 0 | DT62: 10
A63: 48 | B63: 2020-05-11 | C63: 20.65 | D63: 49 | E63: 44.54545455 | F63: 41.51515152 | G63: 37.03030303 | H63: 44.55 | J63: 41.82 | K63: TRUE | L63: 0 | M63: 0 | N63: 0 | O63: =IF(RS4rBenchmarkValues!C63=0,RS4rComputations!O64,RS4rComputations!$C63/RS4rBenchmarkValues!C63) -> 0.2029883024 | P63: 0.203439924 | Q63: 0.2035598544 | R63: 0.2043117352 | S63: 0.2067560643 | T63: 0 | U63: 0 | V63: 0 | W63: 0 | X63: 0 | Y63: =IF(RS4rBenchmarkValues!E63=0,RS4rComputations!Y64,RS4rComputations!$C63/RS4rBenchmarkValues!E63) -> 0.1785559879 | Z63: 0.1819548063 | AA63: 0.1836222045 | AB63: 0.185632251 | AC63: 0.1915169346 | AD63: 0 | AE63: 0 | AF63: 0 | AG63: 0 | AH63: 0 | AI63: =IF(RS4rBenchmarkValues!G63=0,RS4rComputations!AI64,RS4rComputations!$C63/RS4rBenchmarkValues!G63) -> 1.038732394 | AJ63: 1.043588412 | AK63: 1.046961264 | AL63: 1.053491313 | AM63: 1.059679433 | AN63: 0 | AO63: 0 | AP63: 0 | AQ63: 0 | AR63: 0 | AS63: =IF(RS4rBenchmarkValues!I63=0,RS4rComputations!AS64,RS4rComputations!$C63/RS4rBenchmarkValues!I63) -> 1.233572282 | AT63: 1.247564153 | AU63: 1.255482915 | AV63: 1.266775834 | AW63: 1.270196906 | AX63: 0 | AY63: 0 | AZ63: 0 | BA63: 0 | BB63: 0 | BC63: =IF(RS4rBenchmarkValues!K63=0,RS4rComputations!BC64,RS4rComputations!$C63/RS4rBenchmarkValues!K63) -> 1.161417323 | BD63: 1.177929514 | BE63: 1.186318586 | BF63: 1.19742495 | BG63: 1.231248388 | BH63: 0 | BI63: 0 | BJ63: 0 | BK63: 0 | BL63: 0 | BM63: =IF(RS4rBenchmarkValues!M63=0,RS4rComputations!BM64,RS4rComputations!$C63/RS4rBenchmarkValues!M63) -> 1.948113208 | BN63: 1.930123011 | BO63: 1.919949495 | BP63: 1.9174361 | BQ63: 1.905603058 | BR63: 10 | BS63: 0 | BT63: 0 | BU63: 0 | BV63: 10 | BW63: =IF(RS4rBenchmarkValues!O63=0,RS4rComputations!BW64,RS4rComputations!$C63/RS4rBenchmarkValues!O63) -> 2.284292035 | BX63: 2.277013889 | BY63: 2.269094043 | BZ63: 2.262913411 | CA63: 2.237550479 | CB63: 10 | CC63: 0 | CD63: 0 | CE63: 0 | CF63: 10 | CG63: =IF(RS4rBenchmarkValues!Q63=0,RS4rComputations!CG64,RS4rComputations!$C63/RS4rBenchmarkValues!Q63) -> 0.7258347979 | CH63: 0.7173871464 | CI63: 0.7260238796 | CJ63: 0.7517143804 | CK63: 0.8390253563 | CL63: 0 | CM63: 0 | CN63: 0 | CO63: 0 | CP63: 0 | CQ63: =IF(RS4rBenchmarkValues!S63=0,RS4rComputations!CQ64,RS4rComputations!$C63/RS4rBenchmarkValues!S63) -> 0.2602394455 | CR63: 0.2565274505 | CS63: 0.253349995 | CT63: 0.2508182815 | CU63: 0.2463778746 | CV63: 10 | CW63: 0 | CX63: 0 | CY63: 0 | CZ63: 10 | DA63: =IF(RS4rBenchmarkValues!U63=0,RS4rComputations!DA64,RS4rComputations!$C63/RS4rBenchmarkValues!U63) -> 1.884124088 | DB63: 1.851263593 | DC63: 1.836798029 | DD63: 1.825732886 | DE63: 1.828793806 | DF63: 0 | DG63: 9 | DH63: 0 | DI63: 0 | DJ63: 9 | DK63: =IF(RS4rBenchmarkValues!W63=0,RS4rComputations!DK64,RS4rComputations!$C63/RS4rBenchmarkValues!W63) -> 1.654647436 | DL63: 1.618568869 | DM63: 1.602921457 | DN63: 1.592318134 | DO63: 1.54537615 | DP63: 10 | DQ63: 0 | DR63: 0 | DS63: 0 | DT63: 10
A64: 49 | B64: 2020-05-08 | C64: 20.72 | D64: 49 | E64: 44.54545455 | F64: 38.48484848 | G64: 35.51515152 | H64: 44.55 | J64: 39.09 | K64: TRUE | L64: 0 | M64: 0 | N64: 0 | O64: =IF(RS4rBenchmarkValues!C64=0,RS4rComputations!O65,RS4rComputations!$C64/RS4rBenchmarkValues!C64) -> 0.2036964215 | P64: 0.2035402843 | Q64: 0.2035998312 | R64: 0.2044362797 | S64: 0.2069246388 | T64: 0 | U64: 0 | V64: 0 | W64: 0 | X64: 0 | Y64: =IF(RS4rBenchmarkValues!E64=0,RS4rComputations!Y65,RS4rComputations!$C64/RS4rBenchmarkValues!E64) -> 0.1805507145 | Z64: 0.1827100992 | AA64: 0.184178004 | AB64: 0.1861576002 | AC64: 0.1919227749 | AD64: 0 | AE64: 0 | AF64: 0 | AG64: 0 | AH64: 0 | AI64: =IF(RS4rBenchmarkValues!G64=0,RS4rComputations!AI65,RS4rComputations!$C64/RS4rBenchmarkValues!G64) -> 1.036 | AJ64: 1.044667527 | AK64: 1.048085549 | AL64: 1.054906014 | AM64: 1.0601062 | AN64: 0 | AO64: 0 | AP64: 0 | AQ64: 0 | AR64: 0 | AS64: =IF(RS4rBenchmarkValues!I64=0,RS4rComputations!AS65,RS4rComputations!$C64/RS4rBenchmarkValues!I64) -> 1.229673591 | AT64: 1.250673457 | AU64: 1.258122502 | AV64: 1.26952036 | AW64: 1.270432842 | AX64: 0 | AY64: 0 | AZ64: 0 | BA64: 0 | BB64: 0 | BC64: =IF(RS4rBenchmarkValues!K64=0,RS4rComputations!BC65,RS4rComputations!$C64/RS4rBenchmarkValues!K64) -> 1.173272933 | BD64: 1.18159889 | BE64: 1.189114943 | BF64: 1.200210012 | BG64: 1.233581039 | BH64: 0 | BI64: 0 | BJ64: 0 | BK64: 0 | BL64: 0 | BM64: =IF(RS4rBenchmarkValues!M64=0,RS4rComputations!BM65,RS4rComputations!$C64/RS4rBenchmarkValues!M64) -> 1.936448598 | BN64: 1.92612519 | BO64: 1.916558323 | BP64: 1.915623684 | BQ64: 1.904786986 | BR64: 10 | BS64: 0 | BT64: 0 | BU64: 0 | BV64: 10 | BW64: =IF(RS4rBenchmarkValues!O64=0,RS4rComputations!BW65,RS4rComputations!$C64/RS4rBenchmarkValues!O64) -> 2.294573643 | BX64: 2.275396523 | BY64: 2.266454095 | BZ64: 2.260899057 | CA64: 2.235801311 | CB64: 10 | CC64: 0 | CD64: 0 | CE64: 0 | CF64: 10 | CG64: =IF(RS4rBenchmarkValues!Q64=0,RS4rComputations!CG65,RS4rComputations!$C64/RS4rBenchmarkValues!Q64) -> 0.7069259638 | CH64: 0.7155098905 | CI64: 0.7289027907 | CJ64: 0.756618271 | CK64: 0.8450468029 | CL64: 0 | CM64: 0 | CN64: 0 | CO64: 0 | CP64: 0 | CQ64: =IF(RS4rBenchmarkValues!S64=0,RS4rComputations!CQ65,RS4rComputations!$C64/RS4rBenchmarkValues!S64) -> 0.2597142141 | CR64: 0.2557025628 | CS64: 0.2522908432 | CT64: 0.250002686 | CU64: 0.2460716396 | CV64: 10 | CW64: 0 | CX64: 0 | CY64: 0 | CZ64: 10 | DA64: =IF(RS4rBenchmarkValues!U64=0,RS4rComputations!DA65,RS4rComputations!$C64/RS4rBenchmarkValues!U64) -> 1.885350318 | DB64: 1.843961261 | DC64: 1.831976174 | DD64: 1.822085643 | DE64: 1.829004904 | DF64: 0 | DG64: 9 | DH64: 0 | DI64: 0 | DJ64: 9 | DK64: =IF(RS4rBenchmarkValues!W64=0,RS4rComputations!DK65,RS4rComputations!$C64/RS4rBenchmarkValues!W64) -> 1.622552858 | DL64: 1.61055141 | DM64: 1.597705653 | DN64: 1.588568029 | DO64: 1.542138772 | DP64: 10 | DQ64: 0 | DR64: 0 | DS64: 0 | DT64: 10
A65: 50 | B65: 2020-05-07 | C65: 20.48 | D65: 39 | E65: 35.45454545 | F65: 35.45454545 | G65: 34.54545455 | H65: 35.45 | J65: 35.36 | K65: TRUE | L65: 0 | M65: 0 | N65: 0 | O65: =IF(RS4rBenchmarkValues!C65=0,RS4rComputations!O66,RS4rComputations!$C65/RS4rBenchmarkValues!C65) -> 0.204779522 | P65: 0.2035055872 | Q65: 0.2036196802 | R65: 0.204564279 | S65: 0.2070962497 | T65: 0 | U65: 0 | V65: 0 | W65: 0 | X65: 0 | Y65: =IF(RS4rBenchmarkValues!E65=0,RS4rComputations!Y66,RS4rComputations!$C65/RS4rBenchmarkValues!E65) -> 0.1813352222 | Z65: 0.1831899625 | AA65: 0.1846673055 | AB65: 0.1866501004 | AC65: 0.1923203731 | AD65: 0 | AE65: 0 | AF65: 0 | AG65: 0 | AH65: 0 | AI65: =IF(RS4rBenchmarkValues!G65=0,RS4rComputations!AI66,RS4rComputations!$C65/RS4rBenchmarkValues!G65) -> 1.048643113 | AJ65: 1.046593644 | AK65: 1.049224889 | AL65: 1.056368655 | AM65: 1.060464833 | AN65: 0 | AO65: 0 | AP65: 0 | AQ65: 0 | AR65: 0 | AS65: =IF(RS4rBenchmarkValues!I65=0,RS4rComputations!AS66,RS4rComputations!$C65/RS4rBenchmarkValues!I65) -> 1.260307692 | AT65: 1.255340094 | AU65: 1.260605517 | AV65: 1.272212775 | AW65: 1.270495772 | AX65: 0 | AY65: 0 | AZ65: 0 | BA65: 0 | BB65: 0 | BC65: =IF(RS4rBenchmarkValues!K65=0,RS4rComputations!BC66,RS4rComputations!$C65/RS4rBenchmarkValues!K65) -> 1.174985657 | BD65: 1.183449103 | BE65: 1.191620294 | BF65: 1.202868744 | BG65: 1.235882489 | BH65: 0 | BI65: 0 | BJ65: 0 | BK65: 0 | BL65: 0 | BM65: =IF(RS4rBenchmarkValues!M65=0,RS4rComputations!BM66,RS4rComputations!$C65/RS4rBenchmarkValues!M65) -> 1.959808612 | BN65: 1.923831099 | BO65: 1.913369368 | BP65: 1.914123469 | BQ65: 1.904039628 | BR65: 0 | BS65: 0 | BT65: 0 | BU65: 0 | BV65: 0 | BW65: =IF(RS4rBenchmarkValues!O65=0,RS4rComputations!BW66,RS4rComputations!$C65/RS4rBenchmarkValues!O65) -> 2.303712036 | BX65: 2.271134941 | BY65: 2.263473286 | BZ65: 2.25882799 | CA65: 2.234070432 | CB65: 10 | CC65: 0 | CD65: 0 | CE65: 0 | CF65: 10 | CG65: =IF(RS4rBenchmarkValues!Q65=0,RS4rComputations!CG66,RS4rComputations!$C65/RS4rBenchmarkValues!Q65) -> 0.6992147491 | CH65: 0.7174174298 | CI65: 0.7333670908 | CJ65: 0.7624908968 | CK65: 0.8511453224 | CL65: 0 | CM65: 0 | CN65: 0 | CO65: 0 | CP65: 0 | CQ65: =IF(RS4rBenchmarkValues!S65=0,RS4rComputations!CQ66,RS4rComputations!$C65/RS4rBenchmarkValues!S65) -> 0.2636457261 | CR65: 0.2548110847 | CS65: 0.2511536034 | CT65: 0.2491884179 | CU65: 0.2458005329 | CV65: 10 | CW65: 0 | CX65: 0 | CY65: 0 | CZ65: 10 | DA65: =IF(RS4rBenchmarkValues!U65=0,RS4rComputations!DA66,RS4rComputations!$C65/RS4rBenchmarkValues!U65) -> 1.860127157 | DB65: 1.834763692 | DC65: 1.827981145 | DD65: 1.818960554 | DE65: 1.829482094 | DF65: 0 | DG65: 9 | DH65: 0 | DI65: 0 | DJ65: 9 | DK65: =IF(RS4rBenchmarkValues!W65=0,RS4rComputations!DK66,RS4rComputations!$C65/RS4rBenchmarkValues!W65) -> 1.64497992 | DL65: 1.607884422 | DM65: 1.593423734 | DN65: 1.585427546 | DO65: 1.538936754 | DP65: 10 | DQ65: 0 | DR65: 0 | DS65: 0 | DT65: 10
